Workbook

Sheet INTRODUCTION

Sheet Yield Curve Movie
B2: Step Size: | C2: 1 | E2: 2 | G2: 2 | I2: To Click Through all Exemplars, be Sure to Set CELL:A6 to 1 Before Beginning
B3: Data Row: | C3: =(E2=2)*(1+(A6>1)*(A6-1)*C2)+(E2=1)*IF(ISERROR(INDEX(A48:A83,A6,1)),15000,INDEX(A48:A83,A6,1)) -> 1
B5: =IF(B45>0,IF(ISERROR(CONCATENATE(INDEX(Data_US_UK_NZ!D4:D15000,'Yield Curve Movie'!C3,1))),"",CONCATENATE(INDEX(Data_US_UK_NZ!D4:D15000,'Yield Curve Movie'!C3,1)," ",INDEX(Data_US_UK_NZ!E4:E15000,'Yield Curve Movie'!C3,1)," ",INDEX(Data_US_UK_NZ!F4:F15000,'Yield Curve Movie'!C3,1))),"END OF DATA") -> 
A6: 1 | B6: =IF(B45>0,IF(ISERROR(CONCATENATE("US Inflation ", TEXT(INDEX(Data_US_UK_NZ!G4:G15000,'Yield Curve Movie'!C3,1)/100,"0.0%")," p.a. ")),"",CONCATENATE("Inflation (p.a.): US = ", TEXT(INDEX(Data_US_UK_NZ!G4:G15000,'Yield Curve Movie'!C3,1)/100,"0.0%"),"; ","UK = ", TEXT(INDEX(Data_US_UK_NZ!H4:H15000,'Yield Curve Movie'!C3,1)/100,"0.0%"),"; ","NZ = ", TEXT(INDEX(Data_US_UK_NZ!I4:I14874,'Yield Curve Movie'!C3,1)/100,"0.0%"))),"END OF DATA") -> Inflation (p.a.): US = 0.7%; UK = 4.6%; NZ = 2.1%
A7: To find index to a date, | B7: =IF(B45>0,IF(ISERROR(CONCATENATE("Pres. ",INDEX(Data_US_UK_NZ!A4:A15000,'Yield Curve Movie'!C3,1),"; ",INDEX(Data_US_UK_NZ!J4:J15000,'Yield Curve Movie'!C3,1))),"",CONCATENATE(YEAR(B45)," News: ", "Pres. ",INDEX(Data_US_UK_NZ!A4:A15000,'Yield Curve Movie'!C3,1),", ","PM ",INDEX(Data_US_UK_NZ!B4:B15000,'Yield Curve Movie'!C3,1),", ","PM ",INDEX(Data_US_UK_NZ!C4:C15000,'Yield Curve Movie'!C3,1),"; ",INDEX(Data_US_UK_NZ!J4:J15000,'Yield Curve Movie'!C3,1))),"END OF DATA") -> 1962 News: Pres. Kennedy, PM Macmillan, PM Holyoake; World Pop 3.1b Cuban Missile Crisis (Aug-Nov)
A8: enter mm/dd/yyyy
A9: into CELL:A13
A10: Then harvest integer from
A11: CELL:A14 and enter
A12: it into CELL:A6
A13: 1981-06-01
A14: =IF(C2=1,MATCH(A13,Data_US_UK_NZ!$K$4:$K$15000,1),"Set Step Size = 1") -> 4856
A16: Graph displays
A17: date or business day
A18: prior to selected date.
A20: Enter 1 in CELL:A6 to
A21: restart the time series, or
A22: hit CTRL-HOME
A33: Axis Scaling
A34: 0 | C34: 0.003773584906 | D34: 0.08333333333 | E34: 0.1666666667 | F34: 0.25 | G34: 1 | H34: 2 | I34: 5 | J34: 10
A35: 30 | B35: NZ | C35: =IF($B$45>0,IF(INDEX(Data_US_UK_NZ!$CE$4:$CL$15000,'Yield Curve Movie'!$C$3,MATCH('Yield Curve Movie'!C34,'Yield Curve Movie'!$C$34:$J$34,0))="N/A",NA(),INDEX(Data_US_UK_NZ!$CE$4:$CL$15000,'Yield Curve Movie'!$C$3,MATCH('Yield Curve Movie'!C34,'Yield Curve Movie'!$C$34:$J$34,0))/100),NA()) ->  | D35: =IF($B$45>0,IF(INDEX(Data_US_UK_NZ!$CE$4:$CL$15000,'Yield Curve Movie'!$C$3,MATCH('Yield Curve Movie'!D34,'Yield Curve Movie'!$C$34:$J$34,0))="N/A",NA(),INDEX(Data_US_UK_NZ!$CE$4:$CL$15000,'Yield Curve Movie'!$C$3,MATCH('Yield Curve Movie'!D34,'Yield Curve Movie'!$C$34:$J$34,0))/100),NA()) ->  | E35: =IF($B$45>0,IF(INDEX(Data_US_UK_NZ!$CE$4:$CL$15000,'Yield Curve Movie'!$C$3,MATCH('Yield Curve Movie'!E34,'Yield Curve Movie'!$C$34:$J$34,0))="N/A",NA(),INDEX(Data_US_UK_NZ!$CE$4:$CL$15000,'Yield Curve Movie'!$C$3,MATCH('Yield Curve Movie'!E34,'Yield Curve Movie'!$C$34:$J$34,0))/100),NA()) ->  | F35: =IF($B$45>0,IF(INDEX(Data_US_UK_NZ!$CE$4:$CL$15000,'Yield Curve Movie'!$C$3,MATCH('Yield Curve Movie'!F34,'Yield Curve Movie'!$C$34:$J$34,0))="N/A",NA(),INDEX(Data_US_UK_NZ!$CE$4:$CL$15000,'Yield Curve Movie'!$C$3,MATCH('Yield Curve Movie'!F34,'Yield Curve Movie'!$C$34:$J$34,0))/100),NA()) ->  | G35: =IF($B$45>0,IF(INDEX(Data_US_UK_NZ!$CE$4:$CL$15000,'Yield Curve Movie'!$C$3,MATCH('Yield Curve Movie'!G34,'Yield Curve Movie'!$C$34:$J$34,0))="N/A",NA(),INDEX(Data_US_UK_NZ!$CE$4:$CL$15000,'Yield Curve Movie'!$C$3,MATCH('Yield Curve Movie'!G34,'Yield Curve Movie'!$C$34:$J$34,0))/100),NA()) ->  | H35: =IF($B$45>0,IF(INDEX(Data_US_UK_NZ!$CE$4:$CL$15000,'Yield Curve Movie'!$C$3,MATCH('Yield Curve Movie'!H34,'Yield Curve Movie'!$C$34:$J$34,0))="N/A",NA(),INDEX(Data_US_UK_NZ!$CE$4:$CL$15000,'Yield Curve Movie'!$C$3,MATCH('Yield Curve Movie'!H34,'Yield Curve Movie'!$C$34:$J$34,0))/100),NA()) ->  | I35: =IF($B$45>0,IF(INDEX(Data_US_UK_NZ!$CE$4:$CL$15000,'Yield Curve Movie'!$C$3,MATCH('Yield Curve Movie'!I34,'Yield Curve Movie'!$C$34:$J$34,0))="N/A",NA(),INDEX(Data_US_UK_NZ!$CE$4:$CL$15000,'Yield Curve Movie'!$C$3,MATCH('Yield Curve Movie'!I34,'Yield Curve Movie'!$C$34:$J$34,0))/100),NA()) ->  | J35: =IF($B$45>0,IF(INDEX(Data_US_UK_NZ!$CE$4:$CL$15000,'Yield Curve Movie'!$C$3,MATCH('Yield Curve Movie'!J34,'Yield Curve Movie'!$C$34:$J$34,0))="N/A",NA(),INDEX(Data_US_UK_NZ!$CE$4:$CL$15000,'Yield Curve Movie'!$C$3,MATCH('Yield Curve Movie'!J34,'Yield Curve Movie'!$C$34:$J$34,0))/100),NA()) -> 
A36: 1 | C36: 0.08333333333 | D36: 0.25 | E36: 0.5 | F36: 1 | G36: 2 | H36: 3 | I36: 5 | J36: 7 | K36: 10 | L36: 20 | M36: 30
A37: 0 | B37: US | C37: =IF($B$45>0,IF(INDEX(Data_US_UK_NZ!$L$4:$V$15000,'Yield Curve Movie'!$C$3,MATCH('Yield Curve Movie'!C36,'Yield Curve Movie'!$C$36:$M$36,0))="N/A",NA(),INDEX(Data_US_UK_NZ!$L$4:$V$15000,'Yield Curve Movie'!$C$3,MATCH('Yield Curve Movie'!C36,'Yield Curve Movie'!$C$36:$M$36,0))/100),NA()) ->  | D37: =IF($B$45>0,IF(INDEX(Data_US_UK_NZ!$L$4:$V$15000,'Yield Curve Movie'!$C$3,MATCH('Yield Curve Movie'!D36,'Yield Curve Movie'!$C$36:$M$36,0))="N/A",NA(),INDEX(Data_US_UK_NZ!$L$4:$V$15000,'Yield Curve Movie'!$C$3,MATCH('Yield Curve Movie'!D36,'Yield Curve Movie'!$C$36:$M$36,0))/100),NA()) ->  | E37: =IF($B$45>0,IF(INDEX(Data_US_UK_NZ!$L$4:$V$15000,'Yield Curve Movie'!$C$3,MATCH('Yield Curve Movie'!E36,'Yield Curve Movie'!$C$36:$M$36,0))="N/A",NA(),INDEX(Data_US_UK_NZ!$L$4:$V$15000,'Yield Curve Movie'!$C$3,MATCH('Yield Curve Movie'!E36,'Yield Curve Movie'!$C$36:$M$36,0))/100),NA()) ->  | F37: =IF($B$45>0,IF(INDEX(Data_US_UK_NZ!$L$4:$V$15000,'Yield Curve Movie'!$C$3,MATCH('Yield Curve Movie'!F36,'Yield Curve Movie'!$C$36:$M$36,0))="N/A",NA(),INDEX(Data_US_UK_NZ!$L$4:$V$15000,'Yield Curve Movie'!$C$3,MATCH('Yield Curve Movie'!F36,'Yield Curve Movie'!$C$36:$M$36,0))/100),NA()) -> 0.0322 | G37: =IF($B$45>0,IF(INDEX(Data_US_UK_NZ!$L$4:$V$15000,'Yield Curve Movie'!$C$3,MATCH('Yield Curve Movie'!G36,'Yield Curve Movie'!$C$36:$M$36,0))="N/A",NA(),INDEX(Data_US_UK_NZ!$L$4:$V$15000,'Yield Curve Movie'!$C$3,MATCH('Yield Curve Movie'!G36,'Yield Curve Movie'!$C$36:$M$36,0))/100),NA()) ->  | H37: =IF($B$45>0,IF(INDEX(Data_US_UK_NZ!$L$4:$V$15000,'Yield Curve Movie'!$C$3,MATCH('Yield Curve Movie'!H36,'Yield Curve Movie'!$C$36:$M$36,0))="N/A",NA(),INDEX(Data_US_UK_NZ!$L$4:$V$15000,'Yield Curve Movie'!$C$3,MATCH('Yield Curve Movie'!H36,'Yield Curve Movie'!$C$36:$M$36,0))/100),NA()) -> 0.037 | I37: =IF($B$45>0,IF(INDEX(Data_US_UK_NZ!$L$4:$V$15000,'Yield Curve Movie'!$C$3,MATCH('Yield Curve Movie'!I36,'Yield Curve Movie'!$C$36:$M$36,0))="N/A",NA(),INDEX(Data_US_UK_NZ!$L$4:$V$15000,'Yield Curve Movie'!$C$3,MATCH('Yield Curve Movie'!I36,'Yield Curve Movie'!$C$36:$M$36,0))/100),NA()) -> 0.0388 | J37: =IF($B$45>0,IF(INDEX(Data_US_UK_NZ!$L$4:$V$15000,'Yield Curve Movie'!$C$3,MATCH('Yield Curve Movie'!J36,'Yield Curve Movie'!$C$36:$M$36,0))="N/A",NA(),INDEX(Data_US_UK_NZ!$L$4:$V$15000,'Yield Curve Movie'!$C$3,MATCH('Yield Curve Movie'!J36,'Yield Curve Movie'!$C$36:$M$36,0))/100),NA()) ->  | K37: =IF($B$45>0,IF(INDEX(Data_US_UK_NZ!$L$4:$V$15000,'Yield Curve Movie'!$C$3,MATCH('Yield Curve Movie'!K36,'Yield Curve Movie'!$C$36:$M$36,0))="N/A",NA(),INDEX(Data_US_UK_NZ!$L$4:$V$15000,'Yield Curve Movie'!$C$3,MATCH('Yield Curve Movie'!K36,'Yield Curve Movie'!$C$36:$M$36,0))/100),NA()) -> 0.0406 | L37: =IF($B$45>0,IF(INDEX(Data_US_UK_NZ!$L$4:$V$15000,'Yield Curve Movie'!$C$3,MATCH('Yield Curve Movie'!L36,'Yield Curve Movie'!$C$36:$M$36,0))="N/A",NA(),INDEX(Data_US_UK_NZ!$L$4:$V$15000,'Yield Curve Movie'!$C$3,MATCH('Yield Curve Movie'!L36,'Yield Curve Movie'!$C$36:$M$36,0))/100),NA()) -> 0.0407 | M37: =IF($B$45>0,IF(INDEX(Data_US_UK_NZ!$L$4:$V$15000,'Yield Curve Movie'!$C$3,MATCH('Yield Curve Movie'!M36,'Yield Curve Movie'!$C$36:$M$36,0))="N/A",NA(),INDEX(Data_US_UK_NZ!$L$4:$V$15000,'Yield Curve Movie'!$C$3,MATCH('Yield Curve Movie'!M36,'Yield Curve Movie'!$C$36:$M$36,0))/100),NA()) -> 
A38: =(G2=1)*(E2=1)*IF(ISERROR(INDEX($A$48:$G$83,A6,6)),0.3,IF(INDEX($A$48:$G$83,A6,6)>0,INDEX($A$48:$G$83,A6,6),0.3)) +(G2=2)*0.3+(E2=2)*(G2=1)*((C3<=4180)*0.1+AND(C3>=4181,C3<=5792)*0.175+AND(C3>=5793,C3<=7400)*0.3+AND(C3>=7401,C3<=11949)*0.12+(C3>=11950)*0.07) -> 0.3 | C38: 0.5 | D38: 1 | E38: 1.5 | F38: 2 | G38: 2.5 | H38: 3 | I38: 3.5 | J38: 4 | K38: 4.5 | L38: 5 | M38: 5.5 | N38: 6 | O38: 6.5 | P38: 7 | Q38: 7.5 | R38: 8 | S38: 8.5 | T38: 9 | U38: 9.5 | V38: 10 | W38: 10.5 | X38: 11 | Y38: 11.5 | Z38: 12 | AA38: 12.5 | AB38: 13 | AC38: 13.5 | AD38: 14 | AE38: 14.5 | AF38: 15 | AG38: 15.5 | AH38: 16 | AI38: 16.5 | AJ38: 17 | AK38: 17.5 | AL38: 18 | AM38: 18.5 | AN38: 19 | AO38: 19.5 | AP38: 20 | AQ38: 20.5 | AR38: 21 | AS38: 21.5 | AT38: 22 | AU38: 22.5 | AV38: 23 | AW38: 23.5 | AX38: 24 | AY38: 24.5 | AZ38: 25 | BA38: 25.5 | BB38: 26 | BC38: 26.5 | BD38: 27 | BE38: 27.5 | BF38: 28 | BG38: 28.5 | BH38: 29 | BI38: 29.5 | BJ38: 30
A39: =(G2=1)*(E2=1)*IF(ISERROR(INDEX($A$48:$G$83,A6,7)),0.025,IF(INDEX($A$48:$G$83,A6,7)>0,INDEX($A$48:$G$83,A6,7),0.025)) +(G2=2)*0.025+(E2=2)*(G2=1)*((C3<=4180)*0.01+AND(C3>=4181,C3<=5792)*0.025+AND(C3>=5793,C3<=7400)*0.025+AND(C3>=7401,C3<=11949)*0.01+(C3>=11950)*0.01) -> 0.025 | B39: UK | C39: =IF($B$45>0,IF(INDEX(Data_US_UK_NZ!$W$4:$CD$15000,'Yield Curve Movie'!$C$3,MATCH('Yield Curve Movie'!C38,'Yield Curve Movie'!$C$38:$BJ$38,0))="N/A",NA(),INDEX(Data_US_UK_NZ!$W$4:$CD$15000,'Yield Curve Movie'!$C$3,MATCH('Yield Curve Movie'!C38,'Yield Curve Movie'!$C$38:$BJ$38,0))/100),NA()) ->  | D39: =IF($B$45>0,IF(INDEX(Data_US_UK_NZ!$W$4:$CD$15000,'Yield Curve Movie'!$C$3,MATCH('Yield Curve Movie'!D38,'Yield Curve Movie'!$C$38:$BJ$38,0))="N/A",NA(),INDEX(Data_US_UK_NZ!$W$4:$CD$15000,'Yield Curve Movie'!$C$3,MATCH('Yield Curve Movie'!D38,'Yield Curve Movie'!$C$38:$BJ$38,0))/100),NA()) ->  | E39: =IF($B$45>0,IF(INDEX(Data_US_UK_NZ!$W$4:$CD$15000,'Yield Curve Movie'!$C$3,MATCH('Yield Curve Movie'!E38,'Yield Curve Movie'!$C$38:$BJ$38,0))="N/A",NA(),INDEX(Data_US_UK_NZ!$W$4:$CD$15000,'Yield Curve Movie'!$C$3,MATCH('Yield Curve Movie'!E38,'Yield Curve Movie'!$C$38:$BJ$38,0))/100),NA()) ->  | F39: =IF($B$45>0,IF(INDEX(Data_US_UK_NZ!$W$4:$CD$15000,'Yield Curve Movie'!$C$3,MATCH('Yield Curve Movie'!F38,'Yield Curve Movie'!$C$38:$BJ$38,0))="N/A",NA(),INDEX(Data_US_UK_NZ!$W$4:$CD$15000,'Yield Curve Movie'!$C$3,MATCH('Yield Curve Movie'!F38,'Yield Curve Movie'!$C$38:$BJ$38,0))/100),NA()) ->  | G39: =IF($B$45>0,IF(INDEX(Data_US_UK_NZ!$W$4:$CD$15000,'Yield Curve Movie'!$C$3,MATCH('Yield Curve Movie'!G38,'Yield Curve Movie'!$C$38:$BJ$38,0))="N/A",NA(),INDEX(Data_US_UK_NZ!$W$4:$CD$15000,'Yield Curve Movie'!$C$3,MATCH('Yield Curve Movie'!G38,'Yield Curve Movie'!$C$38:$BJ$38,0))/100),NA()) ->  | H39: =IF($B$45>0,IF(INDEX(Data_US_UK_NZ!$W$4:$CD$15000,'Yield Curve Movie'!$C$3,MATCH('Yield Curve Movie'!H38,'Yield Curve Movie'!$C$38:$BJ$38,0))="N/A",NA(),INDEX(Data_US_UK_NZ!$W$4:$CD$15000,'Yield Curve Movie'!$C$3,MATCH('Yield Curve Movie'!H38,'Yield Curve Movie'!$C$38:$BJ$38,0))/100),NA()) ->  | I39: =IF($B$45>0,IF(INDEX(Data_US_UK_NZ!$W$4:$CD$15000,'Yield Curve Movie'!$C$3,MATCH('Yield Curve Movie'!I38,'Yield Curve Movie'!$C$38:$BJ$38,0))="N/A",NA(),INDEX(Data_US_UK_NZ!$W$4:$CD$15000,'Yield Curve Movie'!$C$3,MATCH('Yield Curve Movie'!I38,'Yield Curve Movie'!$C$38:$BJ$38,0))/100),NA()) ->  | J39: =IF($B$45>0,IF(INDEX(Data_US_UK_NZ!$W$4:$CD$15000,'Yield Curve Movie'!$C$3,MATCH('Yield Curve Movie'!J38,'Yield Curve Movie'!$C$38:$BJ$38,0))="N/A",NA(),INDEX(Data_US_UK_NZ!$W$4:$CD$15000,'Yield Curve Movie'!$C$3,MATCH('Yield Curve Movie'!J38,'Yield Curve Movie'!$C$38:$BJ$38,0))/100),NA()) ->  | K39: =IF($B$45>0,IF(INDEX(Data_US_UK_NZ!$W$4:$CD$15000,'Yield Curve Movie'!$C$3,MATCH('Yield Curve Movie'!K38,'Yield Curve Movie'!$C$38:$BJ$38,0))="N/A",NA(),INDEX(Data_US_UK_NZ!$W$4:$CD$15000,'Yield Curve Movie'!$C$3,MATCH('Yield Curve Movie'!K38,'Yield Curve Movie'!$C$38:$BJ$38,0))/100),NA()) ->  | L39: =IF($B$45>0,IF(INDEX(Data_US_UK_NZ!$W$4:$CD$15000,'Yield Curve Movie'!$C$3,MATCH('Yield Curve Movie'!L38,'Yield Curve Movie'!$C$38:$BJ$38,0))="N/A",NA(),INDEX(Data_US_UK_NZ!$W$4:$CD$15000,'Yield Curve Movie'!$C$3,MATCH('Yield Curve Movie'!L38,'Yield Curve Movie'!$C$38:$BJ$38,0))/100),NA()) ->  | M39: =IF($B$45>0,IF(INDEX(Data_US_UK_NZ!$W$4:$CD$15000,'Yield Curve Movie'!$C$3,MATCH('Yield Curve Movie'!M38,'Yield Curve Movie'!$C$38:$BJ$38,0))="N/A",NA(),INDEX(Data_US_UK_NZ!$W$4:$CD$15000,'Yield Curve Movie'!$C$3,MATCH('Yield Curve Movie'!M38,'Yield Curve Movie'!$C$38:$BJ$38,0))/100),NA()) ->  | N39: =IF($B$45>0,IF(INDEX(Data_US_UK_NZ!$W$4:$CD$15000,'Yield Curve Movie'!$C$3,MATCH('Yield Curve Movie'!N38,'Yield Curve Movie'!$C$38:$BJ$38,0))="N/A",NA(),INDEX(Data_US_UK_NZ!$W$4:$CD$15000,'Yield Curve Movie'!$C$3,MATCH('Yield Curve Movie'!N38,'Yield Curve Movie'!$C$38:$BJ$38,0))/100),NA()) ->  | O39: =IF($B$45>0,IF(INDEX(Data_US_UK_NZ!$W$4:$CD$15000,'Yield Curve Movie'!$C$3,MATCH('Yield Curve Movie'!O38,'Yield Curve Movie'!$C$38:$BJ$38,0))="N/A",NA(),INDEX(Data_US_UK_NZ!$W$4:$CD$15000,'Yield Curve Movie'!$C$3,MATCH('Yield Curve Movie'!O38,'Yield Curve Movie'!$C$38:$BJ$38,0))/100),NA()) ->  | P39: =IF($B$45>0,IF(INDEX(Data_US_UK_NZ!$W$4:$CD$15000,'Yield Curve Movie'!$C$3,MATCH('Yield Curve Movie'!P38,'Yield Curve Movie'!$C$38:$BJ$38,0))="N/A",NA(),INDEX(Data_US_UK_NZ!$W$4:$CD$15000,'Yield Curve Movie'!$C$3,MATCH('Yield Curve Movie'!P38,'Yield Curve Movie'!$C$38:$BJ$38,0))/100),NA()) ->  | Q39: =IF($B$45>0,IF(INDEX(Data_US_UK_NZ!$W$4:$CD$15000,'Yield Curve Movie'!$C$3,MATCH('Yield Curve Movie'!Q38,'Yield Curve Movie'!$C$38:$BJ$38,0))="N/A",NA(),INDEX(Data_US_UK_NZ!$W$4:$CD$15000,'Yield Curve Movie'!$C$3,MATCH('Yield Curve Movie'!Q38,'Yield Curve Movie'!$C$38:$BJ$38,0))/100),NA()) ->  | R39: =IF($B$45>0,IF(INDEX(Data_US_UK_NZ!$W$4:$CD$15000,'Yield Curve Movie'!$C$3,MATCH('Yield Curve Movie'!R38,'Yield Curve Movie'!$C$38:$BJ$38,0))="N/A",NA(),INDEX(Data_US_UK_NZ!$W$4:$CD$15000,'Yield Curve Movie'!$C$3,MATCH('Yield Curve Movie'!R38,'Yield Curve Movie'!$C$38:$BJ$38,0))/100),NA()) ->  | S39: =IF($B$45>0,IF(INDEX(Data_US_UK_NZ!$W$4:$CD$15000,'Yield Curve Movie'!$C$3,MATCH('Yield Curve Movie'!S38,'Yield Curve Movie'!$C$38:$BJ$38,0))="N/A",NA(),INDEX(Data_US_UK_NZ!$W$4:$CD$15000,'Yield Curve Movie'!$C$3,MATCH('Yield Curve Movie'!S38,'Yield Curve Movie'!$C$38:$BJ$38,0))/100),NA()) ->  | T39: =IF($B$45>0,IF(INDEX(Data_US_UK_NZ!$W$4:$CD$15000,'Yield Curve Movie'!$C$3,MATCH('Yield Curve Movie'!T38,'Yield Curve Movie'!$C$38:$BJ$38,0))="N/A",NA(),INDEX(Data_US_UK_NZ!$W$4:$CD$15000,'Yield Curve Movie'!$C$3,MATCH('Yield Curve Movie'!T38,'Yield Curve Movie'!$C$38:$BJ$38,0))/100),NA()) ->  | U39: =IF($B$45>0,IF(INDEX(Data_US_UK_NZ!$W$4:$CD$15000,'Yield Curve Movie'!$C$3,MATCH('Yield Curve Movie'!U38,'Yield Curve Movie'!$C$38:$BJ$38,0))="N/A",NA(),INDEX(Data_US_UK_NZ!$W$4:$CD$15000,'Yield Curve Movie'!$C$3,MATCH('Yield Curve Movie'!U38,'Yield Curve Movie'!$C$38:$BJ$38,0))/100),NA()) ->  | V39: =IF($B$45>0,IF(INDEX(Data_US_UK_NZ!$W$4:$CD$15000,'Yield Curve Movie'!$C$3,MATCH('Yield Curve Movie'!V38,'Yield Curve Movie'!$C$38:$BJ$38,0))="N/A",NA(),INDEX(Data_US_UK_NZ!$W$4:$CD$15000,'Yield Curve Movie'!$C$3,MATCH('Yield Curve Movie'!V38,'Yield Curve Movie'!$C$38:$BJ$38,0))/100),NA()) ->  | W39: =IF($B$45>0,IF(INDEX(Data_US_UK_NZ!$W$4:$CD$15000,'Yield Curve Movie'!$C$3,MATCH('Yield Curve Movie'!W38,'Yield Curve Movie'!$C$38:$BJ$38,0))="N/A",NA(),INDEX(Data_US_UK_NZ!$W$4:$CD$15000,'Yield Curve Movie'!$C$3,MATCH('Yield Curve Movie'!W38,'Yield Curve Movie'!$C$38:$BJ$38,0))/100),NA()) ->  | X39: =IF($B$45>0,IF(INDEX(Data_US_UK_NZ!$W$4:$CD$15000,'Yield Curve Movie'!$C$3,MATCH('Yield Curve Movie'!X38,'Yield Curve Movie'!$C$38:$BJ$38,0))="N/A",NA(),INDEX(Data_US_UK_NZ!$W$4:$CD$15000,'Yield Curve Movie'!$C$3,MATCH('Yield Curve Movie'!X38,'Yield Curve Movie'!$C$38:$BJ$38,0))/100),NA()) ->  | Y39: =IF($B$45>0,IF(INDEX(Data_US_UK_NZ!$W$4:$CD$15000,'Yield Curve Movie'!$C$3,MATCH('Yield Curve Movie'!Y38,'Yield Curve Movie'!$C$38:$BJ$38,0))="N/A",NA(),INDEX(Data_US_UK_NZ!$W$4:$CD$15000,'Yield Curve Movie'!$C$3,MATCH('Yield Curve Movie'!Y38,'Yield Curve Movie'!$C$38:$BJ$38,0))/100),NA()) ->  | Z39: =IF($B$45>0,IF(INDEX(Data_US_UK_NZ!$W$4:$CD$15000,'Yield Curve Movie'!$C$3,MATCH('Yield Curve Movie'!Z38,'Yield Curve Movie'!$C$38:$BJ$38,0))="N/A",NA(),INDEX(Data_US_UK_NZ!$W$4:$CD$15000,'Yield Curve Movie'!$C$3,MATCH('Yield Curve Movie'!Z38,'Yield Curve Movie'!$C$38:$BJ$38,0))/100),NA()) ->  | AA39: =IF($B$45>0,IF(INDEX(Data_US_UK_NZ!$W$4:$CD$15000,'Yield Curve Movie'!$C$3,MATCH('Yield Curve Movie'!AA38,'Yield Curve Movie'!$C$38:$BJ$38,0))="N/A",NA(),INDEX(Data_US_UK_NZ!$W$4:$CD$15000,'Yield Curve Movie'!$C$3,MATCH('Yield Curve Movie'!AA38,'Yield Curve Movie'!$C$38:$BJ$38,0))/100),NA()) ->  | AB39: =IF($B$45>0,IF(INDEX(Data_US_UK_NZ!$W$4:$CD$15000,'Yield Curve Movie'!$C$3,MATCH('Yield Curve Movie'!AB38,'Yield Curve Movie'!$C$38:$BJ$38,0))="N/A",NA(),INDEX(Data_US_UK_NZ!$W$4:$CD$15000,'Yield Curve Movie'!$C$3,MATCH('Yield Curve Movie'!AB38,'Yield Curve Movie'!$C$38:$BJ$38,0))/100),NA()) ->  | AC39: =IF($B$45>0,IF(INDEX(Data_US_UK_NZ!$W$4:$CD$15000,'Yield Curve Movie'!$C$3,MATCH('Yield Curve Movie'!AC38,'Yield Curve Movie'!$C$38:$BJ$38,0))="N/A",NA(),INDEX(Data_US_UK_NZ!$W$4:$CD$15000,'Yield Curve Movie'!$C$3,MATCH('Yield Curve Movie'!AC38,'Yield Curve Movie'!$C$38:$BJ$38,0))/100),NA()) ->  | AD39: =IF($B$45>0,IF(INDEX(Data_US_UK_NZ!$W$4:$CD$15000,'Yield Curve Movie'!$C$3,MATCH('Yield Curve Movie'!AD38,'Yield Curve Movie'!$C$38:$BJ$38,0))="N/A",NA(),INDEX(Data_US_UK_NZ!$W$4:$CD$15000,'Yield Curve Movie'!$C$3,MATCH('Yield Curve Movie'!AD38,'Yield Curve Movie'!$C$38:$BJ$38,0))/100),NA()) ->  | AE39: =IF($B$45>0,IF(INDEX(Data_US_UK_NZ!$W$4:$CD$15000,'Yield Curve Movie'!$C$3,MATCH('Yield Curve Movie'!AE38,'Yield Curve Movie'!$C$38:$BJ$38,0))="N/A",NA(),INDEX(Data_US_UK_NZ!$W$4:$CD$15000,'Yield Curve Movie'!$C$3,MATCH('Yield Curve Movie'!AE38,'Yield Curve Movie'!$C$38:$BJ$38,0))/100),NA()) ->  | AF39: =IF($B$45>0,IF(INDEX(Data_US_UK_NZ!$W$4:$CD$15000,'Yield Curve Movie'!$C$3,MATCH('Yield Curve Movie'!AF38,'Yield Curve Movie'!$C$38:$BJ$38,0))="N/A",NA(),INDEX(Data_US_UK_NZ!$W$4:$CD$15000,'Yield Curve Movie'!$C$3,MATCH('Yield Curve Movie'!AF38,'Yield Curve Movie'!$C$38:$BJ$38,0))/100),NA()) ->  | AG39: =IF($B$45>0,IF(INDEX(Data_US_UK_NZ!$W$4:$CD$15000,'Yield Curve Movie'!$C$3,MATCH('Yield Curve Movie'!AG38,'Yield Curve Movie'!$C$38:$BJ$38,0))="N/A",NA(),INDEX(Data_US_UK_NZ!$W$4:$CD$15000,'Yield Curve Movie'!$C$3,MATCH('Yield Curve Movie'!AG38,'Yield Curve Movie'!$C$38:$BJ$38,0))/100),NA()) ->  | AH39: =IF($B$45>0,IF(INDEX(Data_US_UK_NZ!$W$4:$CD$15000,'Yield Curve Movie'!$C$3,MATCH('Yield Curve Movie'!AH38,'Yield Curve Movie'!$C$38:$BJ$38,0))="N/A",NA(),INDEX(Data_US_UK_NZ!$W$4:$CD$15000,'Yield Curve Movie'!$C$3,MATCH('Yield Curve Movie'!AH38,'Yield Curve Movie'!$C$38:$BJ$38,0))/100),NA()) ->  | AI39: =IF($B$45>0,IF(INDEX(Data_US_UK_NZ!$W$4:$CD$15000,'Yield Curve Movie'!$C$3,MATCH('Yield Curve Movie'!AI38,'Yield Curve Movie'!$C$38:$BJ$38,0))="N/A",NA(),INDEX(Data_US_UK_NZ!$W$4:$CD$15000,'Yield Curve Movie'!$C$3,MATCH('Yield Curve Movie'!AI38,'Yield Curve Movie'!$C$38:$BJ$38,0))/100),NA()) ->  | AJ39: =IF($B$45>0,IF(INDEX(Data_US_UK_NZ!$W$4:$CD$15000,'Yield Curve Movie'!$C$3,MATCH('Yield Curve Movie'!AJ38,'Yield Curve Movie'!$C$38:$BJ$38,0))="N/A",NA(),INDEX(Data_US_UK_NZ!$W$4:$CD$15000,'Yield Curve Movie'!$C$3,MATCH('Yield Curve Movie'!AJ38,'Yield Curve Movie'!$C$38:$BJ$38,0))/100),NA()) ->  | AK39: =IF($B$45>0,IF(INDEX(Data_US_UK_NZ!$W$4:$CD$15000,'Yield Curve Movie'!$C$3,MATCH('Yield Curve Movie'!AK38,'Yield Curve Movie'!$C$38:$BJ$38,0))="N/A",NA(),INDEX(Data_US_UK_NZ!$W$4:$CD$15000,'Yield Curve Movie'!$C$3,MATCH('Yield Curve Movie'!AK38,'Yield Curve Movie'!$C$38:$BJ$38,0))/100),NA()) ->  | AL39: =IF($B$45>0,IF(INDEX(Data_US_UK_NZ!$W$4:$CD$15000,'Yield Curve Movie'!$C$3,MATCH('Yield Curve Movie'!AL38,'Yield Curve Movie'!$C$38:$BJ$38,0))="N/A",NA(),INDEX(Data_US_UK_NZ!$W$4:$CD$15000,'Yield Curve Movie'!$C$3,MATCH('Yield Curve Movie'!AL38,'Yield Curve Movie'!$C$38:$BJ$38,0))/100),NA()) ->  | AM39: =IF($B$45>0,IF(INDEX(Data_US_UK_NZ!$W$4:$CD$15000,'Yield Curve Movie'!$C$3,MATCH('Yield Curve Movie'!AM38,'Yield Curve Movie'!$C$38:$BJ$38,0))="N/A",NA(),INDEX(Data_US_UK_NZ!$W$4:$CD$15000,'Yield Curve Movie'!$C$3,MATCH('Yield Curve Movie'!AM38,'Yield Curve Movie'!$C$38:$BJ$38,0))/100),NA()) ->  | AN39: =IF($B$45>0,IF(INDEX(Data_US_UK_NZ!$W$4:$CD$15000,'Yield Curve Movie'!$C$3,MATCH('Yield Curve Movie'!AN38,'Yield Curve Movie'!$C$38:$BJ$38,0))="N/A",NA(),INDEX(Data_US_UK_NZ!$W$4:$CD$15000,'Yield Curve Movie'!$C$3,MATCH('Yield Curve Movie'!AN38,'Yield Curve Movie'!$C$38:$BJ$38,0))/100),NA()) ->  | AO39: =IF($B$45>0,IF(INDEX(Data_US_UK_NZ!$W$4:$CD$15000,'Yield Curve Movie'!$C$3,MATCH('Yield Curve Movie'!AO38,'Yield Curve Movie'!$C$38:$BJ$38,0))="N/A",NA(),INDEX(Data_US_UK_NZ!$W$4:$CD$15000,'Yield Curve Movie'!$C$3,MATCH('Yield Curve Movie'!AO38,'Yield Curve Movie'!$C$38:$BJ$38,0))/100),NA()) ->  | AP39: =IF($B$45>0,IF(INDEX(Data_US_UK_NZ!$W$4:$CD$15000,'Yield Curve Movie'!$C$3,MATCH('Yield Curve Movie'!AP38,'Yield Curve Movie'!$C$38:$BJ$38,0))="N/A",NA(),INDEX(Data_US_UK_NZ!$W$4:$CD$15000,'Yield Curve Movie'!$C$3,MATCH('Yield Curve Movie'!AP38,'Yield Curve Movie'!$C$38:$BJ$38,0))/100),NA()) ->  | AQ39: =IF($B$45>0,IF(INDEX(Data_US_UK_NZ!$W$4:$CD$15000,'Yield Curve Movie'!$C$3,MATCH('Yield Curve Movie'!AQ38,'Yield Curve Movie'!$C$38:$BJ$38,0))="N/A",NA(),INDEX(Data_US_UK_NZ!$W$4:$CD$15000,'Yield Curve Movie'!$C$3,MATCH('Yield Curve Movie'!AQ38,'Yield Curve Movie'!$C$38:$BJ$38,0))/100),NA()) ->  | AR39: =IF($B$45>0,IF(INDEX(Data_US_UK_NZ!$W$4:$CD$15000,'Yield Curve Movie'!$C$3,MATCH('Yield Curve Movie'!AR38,'Yield Curve Movie'!$C$38:$BJ$38,0))="N/A",NA(),INDEX(Data_US_UK_NZ!$W$4:$CD$15000,'Yield Curve Movie'!$C$3,MATCH('Yield Curve Movie'!AR38,'Yield Curve Movie'!$C$38:$BJ$38,0))/100),NA()) ->  | AS39: =IF($B$45>0,IF(INDEX(Data_US_UK_NZ!$W$4:$CD$15000,'Yield Curve Movie'!$C$3,MATCH('Yield Curve Movie'!AS38,'Yield Curve Movie'!$C$38:$BJ$38,0))="N/A",NA(),INDEX(Data_US_UK_NZ!$W$4:$CD$15000,'Yield Curve Movie'!$C$3,MATCH('Yield Curve Movie'!AS38,'Yield Curve Movie'!$C$38:$BJ$38,0))/100),NA()) ->  | AT39: =IF($B$45>0,IF(INDEX(Data_US_UK_NZ!$W$4:$CD$15000,'Yield Curve Movie'!$C$3,MATCH('Yield Curve Movie'!AT38,'Yield Curve Movie'!$C$38:$BJ$38,0))="N/A",NA(),INDEX(Data_US_UK_NZ!$W$4:$CD$15000,'Yield Curve Movie'!$C$3,MATCH('Yield Curve Movie'!AT38,'Yield Curve Movie'!$C$38:$BJ$38,0))/100),NA()) ->  | AU39: =IF($B$45>0,IF(INDEX(Data_US_UK_NZ!$W$4:$CD$15000,'Yield Curve Movie'!$C$3,MATCH('Yield Curve Movie'!AU38,'Yield Curve Movie'!$C$38:$BJ$38,0))="N/A",NA(),INDEX(Data_US_UK_NZ!$W$4:$CD$15000,'Yield Curve Movie'!$C$3,MATCH('Yield Curve Movie'!AU38,'Yield Curve Movie'!$C$38:$BJ$38,0))/100),NA()) ->  | AV39: =IF($B$45>0,IF(INDEX(Data_US_UK_NZ!$W$4:$CD$15000,'Yield Curve Movie'!$C$3,MATCH('Yield Curve Movie'!AV38,'Yield Curve Movie'!$C$38:$BJ$38,0))="N/A",NA(),INDEX(Data_US_UK_NZ!$W$4:$CD$15000,'Yield Curve Movie'!$C$3,MATCH('Yield Curve Movie'!AV38,'Yield Curve Movie'!$C$38:$BJ$38,0))/100),NA()) ->  | AW39: =IF($B$45>0,IF(INDEX(Data_US_UK_NZ!$W$4:$CD$15000,'Yield Curve Movie'!$C$3,MATCH('Yield Curve Movie'!AW38,'Yield Curve Movie'!$C$38:$BJ$38,0))="N/A",NA(),INDEX(Data_US_UK_NZ!$W$4:$CD$15000,'Yield Curve Movie'!$C$3,MATCH('Yield Curve Movie'!AW38,'Yield Curve Movie'!$C$38:$BJ$38,0))/100),NA()) ->  | AX39: =IF($B$45>0,IF(INDEX(Data_US_UK_NZ!$W$4:$CD$15000,'Yield Curve Movie'!$C$3,MATCH('Yield Curve Movie'!AX38,'Yield Curve Movie'!$C$38:$BJ$38,0))="N/A",NA(),INDEX(Data_US_UK_NZ!$W$4:$CD$15000,'Yield Curve Movie'!$C$3,MATCH('Yield Curve Movie'!AX38,'Yield Curve Movie'!$C$38:$BJ$38,0))/100),NA()) ->  | AY39: =IF($B$45>0,IF(INDEX(Data_US_UK_NZ!$W$4:$CD$15000,'Yield Curve Movie'!$C$3,MATCH('Yield Curve Movie'!AY38,'Yield Curve Movie'!$C$38:$BJ$38,0))="N/A",NA(),INDEX(Data_US_UK_NZ!$W$4:$CD$15000,'Yield Curve Movie'!$C$3,MATCH('Yield Curve Movie'!AY38,'Yield Curve Movie'!$C$38:$BJ$38,0))/100),NA()) ->  | AZ39: =IF($B$45>0,IF(INDEX(Data_US_UK_NZ!$W$4:$CD$15000,'Yield Curve Movie'!$C$3,MATCH('Yield Curve Movie'!AZ38,'Yield Curve Movie'!$C$38:$BJ$38,0))="N/A",NA(),INDEX(Data_US_UK_NZ!$W$4:$CD$15000,'Yield Curve Movie'!$C$3,MATCH('Yield Curve Movie'!AZ38,'Yield Curve Movie'!$C$38:$BJ$38,0))/100),NA()) ->  | BA39: =IF($B$45>0,IF(INDEX(Data_US_UK_NZ!$W$4:$CD$15000,'Yield Curve Movie'!$C$3,MATCH('Yield Curve Movie'!BA38,'Yield Curve Movie'!$C$38:$BJ$38,0))="N/A",NA(),INDEX(Data_US_UK_NZ!$W$4:$CD$15000,'Yield Curve Movie'!$C$3,MATCH('Yield Curve Movie'!BA38,'Yield Curve Movie'!$C$38:$BJ$38,0))/100),NA()) ->  | BB39: =IF($B$45>0,IF(INDEX(Data_US_UK_NZ!$W$4:$CD$15000,'Yield Curve Movie'!$C$3,MATCH('Yield Curve Movie'!BB38,'Yield Curve Movie'!$C$38:$BJ$38,0))="N/A",NA(),INDEX(Data_US_UK_NZ!$W$4:$CD$15000,'Yield Curve Movie'!$C$3,MATCH('Yield Curve Movie'!BB38,'Yield Curve Movie'!$C$38:$BJ$38,0))/100),NA()) ->  | BC39: =IF($B$45>0,IF(INDEX(Data_US_UK_NZ!$W$4:$CD$15000,'Yield Curve Movie'!$C$3,MATCH('Yield Curve Movie'!BC38,'Yield Curve Movie'!$C$38:$BJ$38,0))="N/A",NA(),INDEX(Data_US_UK_NZ!$W$4:$CD$15000,'Yield Curve Movie'!$C$3,MATCH('Yield Curve Movie'!BC38,'Yield Curve Movie'!$C$38:$BJ$38,0))/100),NA()) ->  | BD39: =IF($B$45>0,IF(INDEX(Data_US_UK_NZ!$W$4:$CD$15000,'Yield Curve Movie'!$C$3,MATCH('Yield Curve Movie'!BD38,'Yield Curve Movie'!$C$38:$BJ$38,0))="N/A",NA(),INDEX(Data_US_UK_NZ!$W$4:$CD$15000,'Yield Curve Movie'!$C$3,MATCH('Yield Curve Movie'!BD38,'Yield Curve Movie'!$C$38:$BJ$38,0))/100),NA()) ->  | BE39: =IF($B$45>0,IF(INDEX(Data_US_UK_NZ!$W$4:$CD$15000,'Yield Curve Movie'!$C$3,MATCH('Yield Curve Movie'!BE38,'Yield Curve Movie'!$C$38:$BJ$38,0))="N/A",NA(),INDEX(Data_US_UK_NZ!$W$4:$CD$15000,'Yield Curve Movie'!$C$3,MATCH('Yield Curve Movie'!BE38,'Yield Curve Movie'!$C$38:$BJ$38,0))/100),NA()) ->  | BF39: =IF($B$45>0,IF(INDEX(Data_US_UK_NZ!$W$4:$CD$15000,'Yield Curve Movie'!$C$3,MATCH('Yield Curve Movie'!BF38,'Yield Curve Movie'!$C$38:$BJ$38,0))="N/A",NA(),INDEX(Data_US_UK_NZ!$W$4:$CD$15000,'Yield Curve Movie'!$C$3,MATCH('Yield Curve Movie'!BF38,'Yield Curve Movie'!$C$38:$BJ$38,0))/100),NA()) ->  | BG39: =IF($B$45>0,IF(INDEX(Data_US_UK_NZ!$W$4:$CD$15000,'Yield Curve Movie'!$C$3,MATCH('Yield Curve Movie'!BG38,'Yield Curve Movie'!$C$38:$BJ$38,0))="N/A",NA(),INDEX(Data_US_UK_NZ!$W$4:$CD$15000,'Yield Curve Movie'!$C$3,MATCH('Yield Curve Movie'!BG38,'Yield Curve Movie'!$C$38:$BJ$38,0))/100),NA()) ->  | BH39: =IF($B$45>0,IF(INDEX(Data_US_UK_NZ!$W$4:$CD$15000,'Yield Curve Movie'!$C$3,MATCH('Yield Curve Movie'!BH38,'Yield Curve Movie'!$C$38:$BJ$38,0))="N/A",NA(),INDEX(Data_US_UK_NZ!$W$4:$CD$15000,'Yield Curve Movie'!$C$3,MATCH('Yield Curve Movie'!BH38,'Yield Curve Movie'!$C$38:$BJ$38,0))/100),NA()) ->  | BI39: =IF($B$45>0,IF(INDEX(Data_US_UK_NZ!$W$4:$CD$15000,'Yield Curve Movie'!$C$3,MATCH('Yield Curve Movie'!BI38,'Yield Curve Movie'!$C$38:$BJ$38,0))="N/A",NA(),INDEX(Data_US_UK_NZ!$W$4:$CD$15000,'Yield Curve Movie'!$C$3,MATCH('Yield Curve Movie'!BI38,'Yield Curve Movie'!$C$38:$BJ$38,0))/100),NA()) ->  | BJ39: =IF($B$45>0,IF(INDEX(Data_US_UK_NZ!$W$4:$CD$15000,'Yield Curve Movie'!$C$3,MATCH('Yield Curve Movie'!BJ38,'Yield Curve Movie'!$C$38:$BJ$38,0))="N/A",NA(),INDEX(Data_US_UK_NZ!$W$4:$CD$15000,'Yield Curve Movie'!$C$3,MATCH('Yield Curve Movie'!BJ38,'Yield Curve Movie'!$C$38:$BJ$38,0))/100),NA()) -> 
A45: Graph Date Number: | B45: =IF(C3>COUNT(Data_US_UK_NZ!K4:K15768),0,INDEX(Data_US_UK_NZ!$K$4:$K$15768,'Yield Curve Movie'!C3,1)) -> 22648
A46: Graph Title: | B46: =IF(B45>0,IF(E2=2,CONCATENATE(TEXT(B45,"mmmm-dd-yyyy")," (",IF(C2=1,"Daily",IF(C2=5,"~Weekly Steps",IF(C2=21,"~Monthly Steps",CONCATENATE(TEXT(C2,"0"),"-Day Steps")))),")"),CONCATENATE(TEXT(B45,"mmmm-dd-yyyy")," (",INDEX($B$48:$B$83,A6,1),")")),"END OF DATA") -> January-02-1962 (Daily) | F46: Y Scale and grid for exemplars.
A47: Examplars | F47: max | G47: grid
A48: 4927 | B48: US Curve High and Inverted | F48: 0.18 | G48: 0.02
A49: 12902 | B49: US Curve Low | F49: 0.18 | G49: 0.02
A50: 4554 | B50: US Curve Steeply Inverted | F50: 0.18 | G50: 0.02
A51: 12243 | B51: US, UK, NZ Curves Steep | F51: 0.18 | G51: 0.02
A52: 11265 | B52: US Curve Flat | F52: 0.18 | G52: 0.02
A53: 4236 | B53: US Curve Humped | F53: 0.18 | G53: 0.02
A54: 5420 | B54: UK Curve Mid-Humped | F54: 0.18 | G54: 0.02
A55: 7769 | B55: GB Supporting GBP with High Rates; BOE ERM Exit; Soros 1b Win | F55: 0.18 | G55: 0.02
A56: 4433 | B56: Volker Saturday Night Special; Before | F56: 0.18 | G56: 0.02
A57: 4435 | B57: Volker Saturday Night Special; After Fed Funds Rate Jump 11%→12% | F57: 0.18 | G57: 0.02
A58: 11760 | B58: Bear Stearns Collapse---Before | F58: 0.18 | G58: 0.02
A59: 11776 | B59: Bear Stearns Collapse---After; Rush to US Treasuries | F59: 0.18 | G59: 0.02
A60: 12651 | B60: S&P Downgrade of US Debt AAA→AA+; Before | F60: 0.05 | G60: 0.01
A61: 12653 | B61: S&P Downgrade of US Debt AAA →AA+; After; Rush to Treasuries | F61: 0.05 | G61: 0.01
A62: 7359 | B62: Middle of Three-Month Period Where US, UK, NZ All in Recession | F62: 0.18 | G62: 0.02
A63: 11945 | B63: Middle of 15-Month Period Where US, UK, NZ All in Recession | F63: 0.18 | G63: 0.02
A64: 4961 | B64: Maximum US 30-Year Yield in Sample 15.21% | F64: 0.18 | G64: 0.02
A65: 13923 | B65: Minimum US 30-Year Yield in Sample 2.11% | F65: 0.18 | G65: 0.02
A66: 4272 | B66: Maximum UK 20-Year Yield in Sample 13.57% | F66: 0.18 | G66: 0.02
A67: 13947 | B67: Minimum UK 20-Year Yield in Sample 1.23% | F67: 0.18 | G67: 0.02
A68: 5828 | B68: Max NZ O/N Yield 265%; NZD Floated March 4; Large Cap. Outflows | F68: 2.7 | G68: 0.3
A69: 5877 | B69: Max NZ 10-Year Yield 19.2%; Govt Stock Tender Previous Day | F69: 0.3 | G69: 0.025
A70: 15000 | B70: ADD MORE EXAMPLARS HERE
A71: 15000 | B71: ADD MORE EXAMPLARS HERE
A72: 15000 | B72: ADD MORE EXAMPLARS HERE
A73: 15000 | B73: ADD MORE EXAMPLARS HERE
A74: 15000 | B74: ADD MORE EXAMPLARS HERE
A75: 15000 | B75: ADD MORE EXAMPLARS HERE
A76: 15000 | B76: ADD MORE EXAMPLARS HERE
A77: 15000 | B77: ADD MORE EXAMPLARS HERE
A78: 15000 | B78: ADD MORE EXAMPLARS HERE
A79: 15000 | B79: ADD MORE EXAMPLARS HERE
A80: 15000 | B80: ADD MORE EXAMPLARS HERE
A81: 15000 | B81: ADD MORE EXAMPLARS HERE
A82: 15000 | B82: ADD MORE EXAMPLARS HERE
A83: 15000 | B83: ADD MORE EXAMPLARS HERE

Sheet Data_US_UK_NZ
L1: Note: These data are copied as values from my dynamic YC_US_UK_NZ.xls spreadsheet which is 5x larger. | CE1: Note NZ data are O/N interbank Cash, 30-, 60-, and 90-day bank bills, then govt bonds | DA1: D7BT
L2: US | W2: UK | CE2: NZ | CO2: US Inflation Data Monthly. Percenatge change in CPI cf 1 year ago (CPIAUCSL). | CW2: https://fred.stlouisfed.org/series/GBRCPIALLMINMEI | DA2: https://www.ons.gov.uk/economy/inflationandpriceindices/datasets/consumerpriceindices | DI2: NZ Inflation: http://www.stats.govt.nz/infoshare/SelectVariables.aspx?pxID=a6edef11-bcfc-481f-b5bd-a97328b13489
A3: US President | B3: UK PM | C3: NZ PM | D3: US Recessions | E3: UK Recessions | F3: NZ Recessions | G3: US Inflation | H3: UK Inflation | I3: NZ Inflation | J3: Other News | K3: Dates | L3: 0.08333333333 | M3: 0.25 | N3: 0.5 | O3: 1 | P3: 2 | Q3: 3 | R3: 5 | S3: 7 | T3: 10 | U3: 20 | V3: 30 | W3: 0.5 | X3: 1 | Y3: 1.5 | Z3: 2 | AA3: 2.5 | AB3: 3 | AC3: 3.5 | AD3: 4 | AE3: 4.5 | AF3: 5 | AG3: 5.5 | AH3: 6 | AI3: 6.5 | AJ3: 7 | AK3: 7.5 | AL3: 8 | AM3: 8.5 | AN3: 9 | AO3: 9.5 | AP3: 10 | AQ3: 10.5 | AR3: 11 | AS3: 11.5 | AT3: 12 | AU3: 12.5 | AV3: 13 | AW3: 13.5 | AX3: 14 | AY3: 14.5 | AZ3: 15 | BA3: 15.5 | BB3: 16 | BC3: 16.5 | BD3: 17 | BE3: 17.5 | BF3: 18 | BG3: 18.5 | BH3: 19 | BI3: 19.5 | BJ3: 20 | BK3: 20.5 | BL3: 21 | BM3: 21.5 | BN3: 22 | BO3: 22.5 | BP3: 23 | BQ3: 23.5 | BR3: 24 | BS3: 24.5 | BT3: 25 | BU3: 25.5 | BV3: 26 | BW3: 26.5 | BX3: 27 | BY3: 27.5 | BZ3: 28 | CA3: 28.5 | CB3: 29 | CC3: 29.5 | CD3: 30 | CE3: 0.003773584906 | CF3: 0.08333333333 | CG3: 0.1666666667 | CH3: 0.25 | CI3: 1 | CJ3: 2 | CK3: 5 | CL3: 10 | CO3: Date | CP3: Rate | CW3: DATES | CX3: LEVEL | CY3: UK Inflation | CZ3: DATES | DA3: LEVEL | DB3: UK Inflation | DC3: UK Inflation Used | DI3: CPI All Groups for New Zealand (Qrtly-Mar/Jun/Sep/Dec)
A4: Kennedy | B4: Macmillan | C4: Holyoake | G4: =VLOOKUP(K4,$CO$4:$CP$870,2,TRUE) -> 0.67024 | H4: =VLOOKUP(K4,$CW$4:$DC$831,7,TRUE) -> 4.630454141 | I4: =VLOOKUP(K4,$DM$5:$DO$832,3,TRUE) -> 2.140412558 | J4: World Pop 3.1b Cuban Missile Crisis (Aug-Nov) | K4: 1962-01-02 | L4: N/A | M4: N/A | N4: N/A | O4: 3.22 | P4: N/A | Q4: 3.7 | R4: 3.88 | S4: N/A | T4: 4.06 | U4: 4.07 | V4: N/A | W4: N/A | X4: N/A | Y4: N/A | Z4: N/A | AA4: N/A | AB4: N/A | AC4: N/A | AD4: N/A | AE4: N/A | AF4: N/A | AG4: N/A | AH4: N/A | AI4: N/A | AJ4: N/A | AK4: N/A | AL4: N/A | AM4: N/A | AN4: N/A | AO4: N/A | AP4: N/A | AQ4: N/A | AR4: N/A | AS4: N/A | AT4: N/A | AU4: N/A | AV4: N/A | AW4: N/A | AX4: N/A | AY4: N/A | AZ4: N/A | BA4: N/A | BB4: N/A | BC4: N/A | BD4: N/A | BE4: N/A | BF4: N/A | BG4: N/A | BH4: N/A | BI4: N/A | BJ4: N/A | BK4: N/A | BL4: N/A | BM4: N/A | BN4: N/A | BO4: N/A | BP4: N/A | BQ4: N/A | BR4: N/A | BS4: N/A | BT4: N/A | BU4: N/A | BV4: N/A | BW4: N/A | BX4: N/A | BY4: N/A | BZ4: N/A | CA4: N/A | CB4: N/A | CC4: N/A | CD4: N/A | CE4: N/A | CF4: N/A | CG4: N/A | CH4: N/A | CI4: N/A | CJ4: N/A | CK4: N/A | CL4: N/A | CO4: 1948-01-01 | CP4: 10.24209 | CW4: 1955-01-01 | CX4: 5.60273292 | DM4: DATE | DN4: All groups | DO4: Inflation
A5: Kennedy | B5: Macmillan | C5: Holyoake | G5: 0.67024 | H5: 4.630454141 | I5: 2.140412558 | J5: World Pop 3.1b Cuban Missile Crisis (Aug-Nov) | K5: 1962-01-03 | L5: N/A | M5: N/A | N5: N/A | O5: 3.24 | P5: N/A | Q5: 3.7 | R5: 3.87 | S5: N/A | T5: 4.03 | U5: 4.07 | V5: N/A | W5: N/A | X5: N/A | Y5: N/A | Z5: N/A | AA5: N/A | AB5: N/A | AC5: N/A | AD5: N/A | AE5: N/A | AF5: N/A | AG5: N/A | AH5: N/A | AI5: N/A | AJ5: N/A | AK5: N/A | AL5: N/A | AM5: N/A | AN5: N/A | AO5: N/A | AP5: N/A | AQ5: N/A | AR5: N/A | AS5: N/A | AT5: N/A | AU5: N/A | AV5: N/A | AW5: N/A | AX5: N/A | AY5: N/A | AZ5: N/A | BA5: N/A | BB5: N/A | BC5: N/A | BD5: N/A | BE5: N/A | BF5: N/A | BG5: N/A | BH5: N/A | BI5: N/A | BJ5: N/A | BK5: N/A | BL5: N/A | BM5: N/A | BN5: N/A | BO5: N/A | BP5: N/A | BQ5: N/A | BR5: N/A | BS5: N/A | BT5: N/A | BU5: N/A | BV5: N/A | BW5: N/A | BX5: N/A | BY5: N/A | BZ5: N/A | CA5: N/A | CB5: N/A | CC5: N/A | CD5: N/A | CE5: N/A | CF5: N/A | CG5: N/A | CH5: N/A | CI5: N/A | CJ5: N/A | CK5: N/A | CL5: N/A | CO5: 1948-02-01 | CP5: 9.48196 | CW5: 1955-02-01 | CX5: 5.60273292 | DI5: 1914Q2 | DJ5: =LEFT(DI5,4) -> 1914 | DK5: =RIGHT(DI5,2) -> Q2 | DL5: =IF(DK5="Q1",3,IF(DK5="Q2",6,IF(DK5="Q3",9,12))) -> 6 | DM5: =DATE(DJ5,DL5+1,) -> 1914-06-30 | DN5: 12.869674
A6: Kennedy | B6: Macmillan | C6: Holyoake | G6: 0.67024 | H6: 4.630454141 | I6: 2.140412558 | J6: World Pop 3.1b Cuban Missile Crisis (Aug-Nov) | K6: 1962-01-04 | L6: N/A | M6: N/A | N6: N/A | O6: 3.24 | P6: N/A | Q6: 3.69 | R6: 3.86 | S6: N/A | T6: 3.99 | U6: 4.07 | V6: N/A | W6: N/A | X6: N/A | Y6: N/A | Z6: N/A | AA6: N/A | AB6: N/A | AC6: N/A | AD6: N/A | AE6: N/A | AF6: N/A | AG6: N/A | AH6: N/A | AI6: N/A | AJ6: N/A | AK6: N/A | AL6: N/A | AM6: N/A | AN6: N/A | AO6: N/A | AP6: N/A | AQ6: N/A | AR6: N/A | AS6: N/A | AT6: N/A | AU6: N/A | AV6: N/A | AW6: N/A | AX6: N/A | AY6: N/A | AZ6: N/A | BA6: N/A | BB6: N/A | BC6: N/A | BD6: N/A | BE6: N/A | BF6: N/A | BG6: N/A | BH6: N/A | BI6: N/A | BJ6: N/A | BK6: N/A | BL6: N/A | BM6: N/A | BN6: N/A | BO6: N/A | BP6: N/A | BQ6: N/A | BR6: N/A | BS6: N/A | BT6: N/A | BU6: N/A | BV6: N/A | BW6: N/A | BX6: N/A | BY6: N/A | BZ6: N/A | CA6: N/A | CB6: N/A | CC6: N/A | CD6: N/A | CE6: N/A | CF6: N/A | CG6: N/A | CH6: N/A | CI6: N/A | CJ6: N/A | CK6: N/A | CL6: N/A | CO6: 1948-03-01 | CP6: 6.81818 | CW6: 1955-03-01 | CX6: 5.60273292 | DI6: 1914Q3 | DJ6: =LEFT(DI6,4) -> 1914 | DK6: =RIGHT(DI6,2) -> Q3 | DL6: =IF(DK6="Q1",3,IF(DK6="Q2",6,IF(DK6="Q3",9,12))) -> 9 | DM6: =DATE(DJ6,DL6+1,) -> 1914-09-30 | DN6: 0
A7: Kennedy | B7: Macmillan | C7: Holyoake | G7: 0.67024 | H7: 4.630454141 | I7: 2.140412558 | J7: World Pop 3.1b Cuban Missile Crisis (Aug-Nov) | K7: 1962-01-05 | L7: N/A | M7: N/A | N7: N/A | O7: 3.26 | P7: N/A | Q7: 3.71 | R7: 3.89 | S7: N/A | T7: 4.02 | U7: 4.07 | V7: N/A | W7: N/A | X7: N/A | Y7: N/A | Z7: N/A | AA7: N/A | AB7: N/A | AC7: N/A | AD7: N/A | AE7: N/A | AF7: N/A | AG7: N/A | AH7: N/A | AI7: N/A | AJ7: N/A | AK7: N/A | AL7: N/A | AM7: N/A | AN7: N/A | AO7: N/A | AP7: N/A | AQ7: N/A | AR7: N/A | AS7: N/A | AT7: N/A | AU7: N/A | AV7: N/A | AW7: N/A | AX7: N/A | AY7: N/A | AZ7: N/A | BA7: N/A | BB7: N/A | BC7: N/A | BD7: N/A | BE7: N/A | BF7: N/A | BG7: N/A | BH7: N/A | BI7: N/A | BJ7: N/A | BK7: N/A | BL7: N/A | BM7: N/A | BN7: N/A | BO7: N/A | BP7: N/A | BQ7: N/A | BR7: N/A | BS7: N/A | BT7: N/A | BU7: N/A | BV7: N/A | BW7: N/A | BX7: N/A | BY7: N/A | BZ7: N/A | CA7: N/A | CB7: N/A | CC7: N/A | CD7: N/A | CE7: N/A | CF7: N/A | CG7: N/A | CH7: N/A | CI7: N/A | CJ7: N/A | CK7: N/A | CL7: N/A | CO7: 1948-04-01 | CP7: 8.27273 | CW7: 1955-04-01 | CX7: 5.633237818 | DI7: 1914Q4 | DJ7: 1914 | DK7: Q4 | DL7: 12 | DM7: 1914-12-31 | DN7: 0
A8: Kennedy | B8: Macmillan | C8: Holyoake | G8: 0.67024 | H8: 4.630454141 | I8: 2.140412558 | J8: World Pop 3.1b Cuban Missile Crisis (Aug-Nov) | K8: 1962-01-08 | L8: N/A | M8: N/A | N8: N/A | O8: 3.31 | P8: N/A | Q8: 3.71 | R8: 3.91 | S8: N/A | T8: 4.03 | U8: 4.07 | V8: N/A | W8: N/A | X8: N/A | Y8: N/A | Z8: N/A | AA8: N/A | AB8: N/A | AC8: N/A | AD8: N/A | AE8: N/A | AF8: N/A | AG8: N/A | AH8: N/A | AI8: N/A | AJ8: N/A | AK8: N/A | AL8: N/A | AM8: N/A | AN8: N/A | AO8: N/A | AP8: N/A | AQ8: N/A | AR8: N/A | AS8: N/A | AT8: N/A | AU8: N/A | AV8: N/A | AW8: N/A | AX8: N/A | AY8: N/A | AZ8: N/A | BA8: N/A | BB8: N/A | BC8: N/A | BD8: N/A | BE8: N/A | BF8: N/A | BG8: N/A | BH8: N/A | BI8: N/A | BJ8: N/A | BK8: N/A | BL8: N/A | BM8: N/A | BN8: N/A | BO8: N/A | BP8: N/A | BQ8: N/A | BR8: N/A | BS8: N/A | BT8: N/A | BU8: N/A | BV8: N/A | BW8: N/A | BX8: N/A | BY8: N/A | BZ8: N/A | CA8: N/A | CB8: N/A | CC8: N/A | CD8: N/A | CE8: N/A | CF8: N/A | CG8: N/A | CH8: N/A | CI8: N/A | CJ8: N/A | CK8: N/A | CL8: N/A | CO8: 1948-05-01 | CP8: 9.38497 | CW8: 1955-05-01 | CX8: 5.623069518 | DI8: 1915Q1 | DJ8: 1915 | DK8: Q1 | DL8: 3 | DM8: 1915-03-31 | DN8: 0
A9: Kennedy | B9: Macmillan | C9: Holyoake | G9: 0.67024 | H9: 4.630454141 | I9: 2.140412558 | J9: World Pop 3.1b Cuban Missile Crisis (Aug-Nov) | K9: 1962-01-09 | L9: N/A | M9: N/A | N9: N/A | O9: 3.32 | P9: N/A | Q9: 3.74 | R9: 3.93 | S9: N/A | T9: 4.05 | U9: 4.07 | V9: N/A | W9: N/A | X9: N/A | Y9: N/A | Z9: N/A | AA9: N/A | AB9: N/A | AC9: N/A | AD9: N/A | AE9: N/A | AF9: N/A | AG9: N/A | AH9: N/A | AI9: N/A | AJ9: N/A | AK9: N/A | AL9: N/A | AM9: N/A | AN9: N/A | AO9: N/A | AP9: N/A | AQ9: N/A | AR9: N/A | AS9: N/A | AT9: N/A | AU9: N/A | AV9: N/A | AW9: N/A | AX9: N/A | AY9: N/A | AZ9: N/A | BA9: N/A | BB9: N/A | BC9: N/A | BD9: N/A | BE9: N/A | BF9: N/A | BG9: N/A | BH9: N/A | BI9: N/A | BJ9: N/A | BK9: N/A | BL9: N/A | BM9: N/A | BN9: N/A | BO9: N/A | BP9: N/A | BQ9: N/A | BR9: N/A | BS9: N/A | BT9: N/A | BU9: N/A | BV9: N/A | BW9: N/A | BX9: N/A | BY9: N/A | BZ9: N/A | CA9: N/A | CB9: N/A | CC9: N/A | CD9: N/A | CE9: N/A | CF9: N/A | CG9: N/A | CH9: N/A | CI9: N/A | CJ9: N/A | CK9: N/A | CL9: N/A | CO9: 1948-06-01 | CP9: 9.375 | CW9: 1955-06-01 | CX9: 5.74000496 | DI9: 1915Q2 | DJ9: 1915 | DK9: Q2 | DL9: 6 | DM9: 1915-06-30 | DN9: 0
A10: Kennedy | B10: Macmillan | C10: Holyoake | G10: 0.67024 | H10: 4.630454141 | I10: 2.140412558 | J10: World Pop 3.1b Cuban Missile Crisis (Aug-Nov) | K10: 1962-01-10 | L10: N/A | M10: N/A | N10: N/A | O10: 3.33 | P10: N/A | Q10: 3.75 | R10: 3.94 | S10: N/A | T10: 4.07 | U10: 4.07 | V10: N/A | W10: N/A | X10: N/A | Y10: N/A | Z10: N/A | AA10: N/A | AB10: N/A | AC10: N/A | AD10: N/A | AE10: N/A | AF10: N/A | AG10: N/A | AH10: N/A | AI10: N/A | AJ10: N/A | AK10: N/A | AL10: N/A | AM10: N/A | AN10: N/A | AO10: N/A | AP10: N/A | AQ10: N/A | AR10: N/A | AS10: N/A | AT10: N/A | AU10: N/A | AV10: N/A | AW10: N/A | AX10: N/A | AY10: N/A | AZ10: N/A | BA10: N/A | BB10: N/A | BC10: N/A | BD10: N/A | BE10: N/A | BF10: N/A | BG10: N/A | BH10: N/A | BI10: N/A | BJ10: N/A | BK10: N/A | BL10: N/A | BM10: N/A | BN10: N/A | BO10: N/A | BP10: N/A | BQ10: N/A | BR10: N/A | BS10: N/A | BT10: N/A | BU10: N/A | BV10: N/A | BW10: N/A | BX10: N/A | BY10: N/A | BZ10: N/A | CA10: N/A | CB10: N/A | CC10: N/A | CD10: N/A | CE10: N/A | CF10: N/A | CG10: N/A | CH10: N/A | CI10: N/A | CJ10: N/A | CK10: N/A | CL10: N/A | CO10: 1948-07-01 | CP10: 9.76158 | CW10: 1955-07-01 | CX10: 5.760341559 | DI10: 1915Q3 | DJ10: 1915 | DK10: Q3 | DL10: 9 | DM10: 1915-09-30 | DN10: 13.924987
A11: Kennedy | B11: Macmillan | C11: Holyoake | G11: 0.67024 | H11: 4.630454141 | I11: 2.140412558 | J11: World Pop 3.1b Cuban Missile Crisis (Aug-Nov) | K11: 1962-01-11 | L11: N/A | M11: N/A | N11: N/A | O11: 3.33 | P11: N/A | Q11: 3.77 | R11: 3.94 | S11: N/A | T11: 4.08 | U11: 4.07 | V11: N/A | W11: N/A | X11: N/A | Y11: N/A | Z11: N/A | AA11: N/A | AB11: N/A | AC11: N/A | AD11: N/A | AE11: N/A | AF11: N/A | AG11: N/A | AH11: N/A | AI11: N/A | AJ11: N/A | AK11: N/A | AL11: N/A | AM11: N/A | AN11: N/A | AO11: N/A | AP11: N/A | AQ11: N/A | AR11: N/A | AS11: N/A | AT11: N/A | AU11: N/A | AV11: N/A | AW11: N/A | AX11: N/A | AY11: N/A | AZ11: N/A | BA11: N/A | BB11: N/A | BC11: N/A | BD11: N/A | BE11: N/A | BF11: N/A | BG11: N/A | BH11: N/A | BI11: N/A | BJ11: N/A | BK11: N/A | BL11: N/A | BM11: N/A | BN11: N/A | BO11: N/A | BP11: N/A | BQ11: N/A | BR11: N/A | BS11: N/A | BT11: N/A | BU11: N/A | BV11: N/A | BW11: N/A | BX11: N/A | BY11: N/A | BZ11: N/A | CA11: N/A | CB11: N/A | CC11: N/A | CD11: N/A | CE11: N/A | CF11: N/A | CG11: N/A | CH11: N/A | CI11: N/A | CJ11: N/A | CK11: N/A | CL11: N/A | CO11: 1948-08-01 | CP11: 9.0625 | CW11: 1955-08-01 | CX11: 5.719668362 | DI11: 1915Q4 | DJ11: 1915 | DK11: Q4 | DL11: 12 | DM11: 1915-12-31 | DN11: 0
A12: Kennedy | B12: Macmillan | C12: Holyoake | G12: 0.67024 | H12: 4.630454141 | I12: 2.140412558 | J12: World Pop 3.1b Cuban Missile Crisis (Aug-Nov) | K12: 1962-01-12 | L12: N/A | M12: N/A | N12: N/A | O12: 3.3 | P12: N/A | Q12: 3.76 | R12: 3.95 | S12: N/A | T12: 4.08 | U12: 4.07 | V12: N/A | W12: N/A | X12: N/A | Y12: N/A | Z12: N/A | AA12: N/A | AB12: N/A | AC12: N/A | AD12: N/A | AE12: N/A | AF12: N/A | AG12: N/A | AH12: N/A | AI12: N/A | AJ12: N/A | AK12: N/A | AL12: N/A | AM12: N/A | AN12: N/A | AO12: N/A | AP12: N/A | AQ12: N/A | AR12: N/A | AS12: N/A | AT12: N/A | AU12: N/A | AV12: N/A | AW12: N/A | AX12: N/A | AY12: N/A | AZ12: N/A | BA12: N/A | BB12: N/A | BC12: N/A | BD12: N/A | BE12: N/A | BF12: N/A | BG12: N/A | BH12: N/A | BI12: N/A | BJ12: N/A | BK12: N/A | BL12: N/A | BM12: N/A | BN12: N/A | BO12: N/A | BP12: N/A | BQ12: N/A | BR12: N/A | BS12: N/A | BT12: N/A | BU12: N/A | BV12: N/A | BW12: N/A | BX12: N/A | BY12: N/A | BZ12: N/A | CA12: N/A | CB12: N/A | CC12: N/A | CD12: N/A | CE12: N/A | CF12: N/A | CG12: N/A | CH12: N/A | CI12: N/A | CJ12: N/A | CK12: N/A | CL12: N/A | CO12: 1948-09-01 | CP12: 6.65499 | CW12: 1955-09-01 | CX12: 5.755257409 | DI12: 1916Q1 | DJ12: 1916 | DK12: Q1 | DL12: 3 | DM12: 1916-03-31 | DN12: 0
A13: Kennedy | B13: Macmillan | C13: Holyoake | G13: 0.67024 | H13: 4.630454141 | I13: 2.140412558 | J13: World Pop 3.1b Cuban Missile Crisis (Aug-Nov) | K13: 1962-01-15 | L13: N/A | M13: N/A | N13: N/A | O13: 3.32 | P13: N/A | Q13: 3.79 | R13: 3.96 | S13: N/A | T13: 4.1 | U13: 4.1 | V13: N/A | W13: N/A | X13: N/A | Y13: N/A | Z13: N/A | AA13: N/A | AB13: N/A | AC13: N/A | AD13: N/A | AE13: N/A | AF13: N/A | AG13: N/A | AH13: N/A | AI13: N/A | AJ13: N/A | AK13: N/A | AL13: N/A | AM13: N/A | AN13: N/A | AO13: N/A | AP13: N/A | AQ13: N/A | AR13: N/A | AS13: N/A | AT13: N/A | AU13: N/A | AV13: N/A | AW13: N/A | AX13: N/A | AY13: N/A | AZ13: N/A | BA13: N/A | BB13: N/A | BC13: N/A | BD13: N/A | BE13: N/A | BF13: N/A | BG13: N/A | BH13: N/A | BI13: N/A | BJ13: N/A | BK13: N/A | BL13: N/A | BM13: N/A | BN13: N/A | BO13: N/A | BP13: N/A | BQ13: N/A | BR13: N/A | BS13: N/A | BT13: N/A | BU13: N/A | BV13: N/A | BW13: N/A | BX13: N/A | BY13: N/A | BZ13: N/A | CA13: N/A | CB13: N/A | CC13: N/A | CD13: N/A | CE13: N/A | CF13: N/A | CG13: N/A | CH13: N/A | CI13: N/A | CJ13: N/A | CK13: N/A | CL13: N/A | CO13: 1948-10-01 | CP13: 6.11087 | CW13: 1955-10-01 | CX13: 5.816267205 | DI13: 1916Q2 | DJ13: 1916 | DK13: Q2 | DL13: 6 | DM13: 1916-06-30 | DN13: 0
A14: Kennedy | B14: Macmillan | C14: Holyoake | G14: 0.67024 | H14: 4.630454141 | I14: 2.140412558 | J14: World Pop 3.1b Cuban Missile Crisis (Aug-Nov) | K14: 1962-01-16 | L14: N/A | M14: N/A | N14: N/A | O14: 3.3 | P14: N/A | Q14: 3.81 | R14: 3.98 | S14: N/A | T14: 4.13 | U14: 4.1 | V14: N/A | W14: N/A | X14: N/A | Y14: N/A | Z14: N/A | AA14: N/A | AB14: N/A | AC14: N/A | AD14: N/A | AE14: N/A | AF14: N/A | AG14: N/A | AH14: N/A | AI14: N/A | AJ14: N/A | AK14: N/A | AL14: N/A | AM14: N/A | AN14: N/A | AO14: N/A | AP14: N/A | AQ14: N/A | AR14: N/A | AS14: N/A | AT14: N/A | AU14: N/A | AV14: N/A | AW14: N/A | AX14: N/A | AY14: N/A | AZ14: N/A | BA14: N/A | BB14: N/A | BC14: N/A | BD14: N/A | BE14: N/A | BF14: N/A | BG14: N/A | BH14: N/A | BI14: N/A | BJ14: N/A | BK14: N/A | BL14: N/A | BM14: N/A | BN14: N/A | BO14: N/A | BP14: N/A | BQ14: N/A | BR14: N/A | BS14: N/A | BT14: N/A | BU14: N/A | BV14: N/A | BW14: N/A | BX14: N/A | BY14: N/A | BZ14: N/A | CA14: N/A | CB14: N/A | CC14: N/A | CD14: N/A | CE14: N/A | CF14: N/A | CG14: N/A | CH14: N/A | CI14: N/A | CJ14: N/A | CK14: N/A | CL14: N/A | CO14: 1948-11-01 | CP14: 4.77016 | CW14: 1955-11-01 | CX14: 5.907781899 | DI14: 1916Q3 | DJ14: 1916 | DK14: Q3 | DL14: 9 | DM14: 1916-09-30 | DN14: 15.031779
A15: Kennedy | B15: Macmillan | C15: Holyoake | G15: 0.67024 | H15: 4.630454141 | I15: 2.140412558 | J15: World Pop 3.1b Cuban Missile Crisis (Aug-Nov) | K15: 1962-01-17 | L15: N/A | M15: N/A | N15: N/A | O15: 3.3 | P15: N/A | Q15: 3.81 | R15: 3.97 | S15: N/A | T15: 4.12 | U15: 4.1 | V15: N/A | W15: N/A | X15: N/A | Y15: N/A | Z15: N/A | AA15: N/A | AB15: N/A | AC15: N/A | AD15: N/A | AE15: N/A | AF15: N/A | AG15: N/A | AH15: N/A | AI15: N/A | AJ15: N/A | AK15: N/A | AL15: N/A | AM15: N/A | AN15: N/A | AO15: N/A | AP15: N/A | AQ15: N/A | AR15: N/A | AS15: N/A | AT15: N/A | AU15: N/A | AV15: N/A | AW15: N/A | AX15: N/A | AY15: N/A | AZ15: N/A | BA15: N/A | BB15: N/A | BC15: N/A | BD15: N/A | BE15: N/A | BF15: N/A | BG15: N/A | BH15: N/A | BI15: N/A | BJ15: N/A | BK15: N/A | BL15: N/A | BM15: N/A | BN15: N/A | BO15: N/A | BP15: N/A | BQ15: N/A | BR15: N/A | BS15: N/A | BT15: N/A | BU15: N/A | BV15: N/A | BW15: N/A | BX15: N/A | BY15: N/A | BZ15: N/A | CA15: N/A | CB15: N/A | CC15: N/A | CD15: N/A | CE15: N/A | CF15: N/A | CG15: N/A | CH15: N/A | CI15: N/A | CJ15: N/A | CK15: N/A | CL15: N/A | CO15: 1948-12-01 | CP15: 2.73387 | CW15: 1955-12-01 | CX15: 5.907781899 | DI15: 1916Q4 | DJ15: 1916 | DK15: Q4 | DL15: 12 | DM15: 1916-12-31 | DN15: 0
A16: Kennedy | B16: Macmillan | C16: Holyoake | G16: 0.67024 | H16: 4.630454141 | I16: 2.140412558 | J16: World Pop 3.1b Cuban Missile Crisis (Aug-Nov) | K16: 1962-01-18 | L16: N/A | M16: N/A | N16: N/A | O16: 3.27 | P16: N/A | Q16: 3.79 | R16: 3.96 | S16: N/A | T16: 4.11 | U16: 4.1 | V16: N/A | W16: N/A | X16: N/A | Y16: N/A | Z16: N/A | AA16: N/A | AB16: N/A | AC16: N/A | AD16: N/A | AE16: N/A | AF16: N/A | AG16: N/A | AH16: N/A | AI16: N/A | AJ16: N/A | AK16: N/A | AL16: N/A | AM16: N/A | AN16: N/A | AO16: N/A | AP16: N/A | AQ16: N/A | AR16: N/A | AS16: N/A | AT16: N/A | AU16: N/A | AV16: N/A | AW16: N/A | AX16: N/A | AY16: N/A | AZ16: N/A | BA16: N/A | BB16: N/A | BC16: N/A | BD16: N/A | BE16: N/A | BF16: N/A | BG16: N/A | BH16: N/A | BI16: N/A | BJ16: N/A | BK16: N/A | BL16: N/A | BM16: N/A | BN16: N/A | BO16: N/A | BP16: N/A | BQ16: N/A | BR16: N/A | BS16: N/A | BT16: N/A | BU16: N/A | BV16: N/A | BW16: N/A | BX16: N/A | BY16: N/A | BZ16: N/A | CA16: N/A | CB16: N/A | CC16: N/A | CD16: N/A | CE16: N/A | CF16: N/A | CG16: N/A | CH16: N/A | CI16: N/A | CJ16: N/A | CK16: N/A | CL16: N/A | CO16: 1949-01-01 | CP16: 1.39358 | CW16: 1956-01-01 | CX16: 5.8874453 | CY16: =100*(CX16/CX4-1) -> 5.081669691 | DC16: =CY16 -> 5.081669691 | DI16: 1917Q1 | DJ16: 1917 | DK16: Q1 | DL16: 3 | DM16: 1917-03-31 | DN16: 0
A17: Kennedy | B17: Macmillan | C17: Holyoake | G17: 0.67024 | H17: 4.630454141 | I17: 2.140412558 | J17: World Pop 3.1b Cuban Missile Crisis (Aug-Nov) | K17: 1962-01-19 | L17: N/A | M17: N/A | N17: N/A | O17: 3.27 | P17: N/A | Q17: 3.78 | R17: 3.95 | S17: N/A | T17: 4.11 | U17: 4.1 | V17: N/A | W17: N/A | X17: N/A | Y17: N/A | Z17: N/A | AA17: N/A | AB17: N/A | AC17: N/A | AD17: N/A | AE17: N/A | AF17: N/A | AG17: N/A | AH17: N/A | AI17: N/A | AJ17: N/A | AK17: N/A | AL17: N/A | AM17: N/A | AN17: N/A | AO17: N/A | AP17: N/A | AQ17: N/A | AR17: N/A | AS17: N/A | AT17: N/A | AU17: N/A | AV17: N/A | AW17: N/A | AX17: N/A | AY17: N/A | AZ17: N/A | BA17: N/A | BB17: N/A | BC17: N/A | BD17: N/A | BE17: N/A | BF17: N/A | BG17: N/A | BH17: N/A | BI17: N/A | BJ17: N/A | BK17: N/A | BL17: N/A | BM17: N/A | BN17: N/A | BO17: N/A | BP17: N/A | BQ17: N/A | BR17: N/A | BS17: N/A | BT17: N/A | BU17: N/A | BV17: N/A | BW17: N/A | BX17: N/A | BY17: N/A | BZ17: N/A | CA17: N/A | CB17: N/A | CC17: N/A | CD17: N/A | CE17: N/A | CF17: N/A | CG17: N/A | CH17: N/A | CI17: N/A | CJ17: N/A | CK17: N/A | CL17: N/A | CO17: 1949-02-01 | CP17: 1.01394 | CW17: 1956-02-01 | CX17: 5.8874453 | CY17: =100*(CX17/CX5-1) -> 5.081669691 | DC17: =CY17 -> 5.081669691 | DI17: 1917Q2 | DJ17: 1917 | DK17: Q2 | DL17: 6 | DM17: 1917-06-30 | DN17: 0
A18: Kennedy | B18: Macmillan | C18: Holyoake | G18: 0.67024 | H18: 4.630454141 | I18: 2.140412558 | J18: World Pop 3.1b Cuban Missile Crisis (Aug-Nov) | K18: 1962-01-22 | L18: N/A | M18: N/A | N18: N/A | O18: 3.25 | P18: N/A | Q18: 3.76 | R18: 3.93 | S18: N/A | T18: 4.09 | U18: 4.1 | V18: N/A | W18: N/A | X18: N/A | Y18: N/A | Z18: N/A | AA18: N/A | AB18: N/A | AC18: N/A | AD18: N/A | AE18: N/A | AF18: N/A | AG18: N/A | AH18: N/A | AI18: N/A | AJ18: N/A | AK18: N/A | AL18: N/A | AM18: N/A | AN18: N/A | AO18: N/A | AP18: N/A | AQ18: N/A | AR18: N/A | AS18: N/A | AT18: N/A | AU18: N/A | AV18: N/A | AW18: N/A | AX18: N/A | AY18: N/A | AZ18: N/A | BA18: N/A | BB18: N/A | BC18: N/A | BD18: N/A | BE18: N/A | BF18: N/A | BG18: N/A | BH18: N/A | BI18: N/A | BJ18: N/A | BK18: N/A | BL18: N/A | BM18: N/A | BN18: N/A | BO18: N/A | BP18: N/A | BQ18: N/A | BR18: N/A | BS18: N/A | BT18: N/A | BU18: N/A | BV18: N/A | BW18: N/A | BX18: N/A | BY18: N/A | BZ18: N/A | CA18: N/A | CB18: N/A | CC18: N/A | CD18: N/A | CE18: N/A | CF18: N/A | CG18: N/A | CH18: N/A | CI18: N/A | CJ18: N/A | CK18: N/A | CL18: N/A | CO18: 1949-03-01 | CP18: 1.74468 | CW18: 1956-03-01 | CX18: 5.963982089 | CY18: 6.447731397 | DC18: 6.447731397 | DI18: 1917Q3 | DJ18: 1917 | DK18: Q3 | DL18: 9 | DM18: 1917-09-30 | DN18: 16.498922
A19: Kennedy | B19: Macmillan | C19: Holyoake | G19: 0.67024 | H19: 4.630454141 | I19: 2.140412558 | J19: World Pop 3.1b Cuban Missile Crisis (Aug-Nov) | K19: 1962-01-23 | L19: N/A | M19: N/A | N19: N/A | O19: 3.25 | P19: N/A | Q19: 3.77 | R19: 3.94 | S19: N/A | T19: 4.11 | U19: 4.1 | V19: N/A | W19: N/A | X19: N/A | Y19: N/A | Z19: N/A | AA19: N/A | AB19: N/A | AC19: N/A | AD19: N/A | AE19: N/A | AF19: N/A | AG19: N/A | AH19: N/A | AI19: N/A | AJ19: N/A | AK19: N/A | AL19: N/A | AM19: N/A | AN19: N/A | AO19: N/A | AP19: N/A | AQ19: N/A | AR19: N/A | AS19: N/A | AT19: N/A | AU19: N/A | AV19: N/A | AW19: N/A | AX19: N/A | AY19: N/A | AZ19: N/A | BA19: N/A | BB19: N/A | BC19: N/A | BD19: N/A | BE19: N/A | BF19: N/A | BG19: N/A | BH19: N/A | BI19: N/A | BJ19: N/A | BK19: N/A | BL19: N/A | BM19: N/A | BN19: N/A | BO19: N/A | BP19: N/A | BQ19: N/A | BR19: N/A | BS19: N/A | BT19: N/A | BU19: N/A | BV19: N/A | BW19: N/A | BX19: N/A | BY19: N/A | BZ19: N/A | CA19: N/A | CB19: N/A | CC19: N/A | CD19: N/A | CE19: N/A | CF19: N/A | CG19: N/A | CH19: N/A | CI19: N/A | CJ19: N/A | CK19: N/A | CL19: N/A | CO19: 1949-04-01 | CP19: 0.41982 | CW19: 1956-04-01 | CX19: 6.046406324 | CY19: 7.334476534 | DC19: 7.334476534 | DI19: 1917Q4 | DJ19: 1917 | DK19: Q4 | DL19: 12 | DM19: 1917-12-31 | DN19: 0
A20: Kennedy | B20: Macmillan | C20: Holyoake | G20: 0.67024 | H20: 4.630454141 | I20: 2.140412558 | J20: World Pop 3.1b Cuban Missile Crisis (Aug-Nov) | K20: 1962-01-24 | L20: N/A | M20: N/A | N20: N/A | O20: 3.24 | P20: N/A | Q20: 3.76 | R20: 3.93 | S20: N/A | T20: 4.1 | U20: 4.1 | V20: N/A | W20: N/A | X20: N/A | Y20: N/A | Z20: N/A | AA20: N/A | AB20: N/A | AC20: N/A | AD20: N/A | AE20: N/A | AF20: N/A | AG20: N/A | AH20: N/A | AI20: N/A | AJ20: N/A | AK20: N/A | AL20: N/A | AM20: N/A | AN20: N/A | AO20: N/A | AP20: N/A | AQ20: N/A | AR20: N/A | AS20: N/A | AT20: N/A | AU20: N/A | AV20: N/A | AW20: N/A | AX20: N/A | AY20: N/A | AZ20: N/A | BA20: N/A | BB20: N/A | BC20: N/A | BD20: N/A | BE20: N/A | BF20: N/A | BG20: N/A | BH20: N/A | BI20: N/A | BJ20: N/A | BK20: N/A | BL20: N/A | BM20: N/A | BN20: N/A | BO20: N/A | BP20: N/A | BQ20: N/A | BR20: N/A | BS20: N/A | BT20: N/A | BU20: N/A | BV20: N/A | BW20: N/A | BX20: N/A | BY20: N/A | BZ20: N/A | CA20: N/A | CB20: N/A | CC20: N/A | CD20: N/A | CE20: N/A | CF20: N/A | CG20: N/A | CH20: N/A | CI20: N/A | CJ20: N/A | CK20: N/A | CL20: N/A | CO20: 1949-05-01 | CP20: -0.41649 | CW20: 1956-05-01 | CX20: 6.034631433 | CY20: 7.319168174 | DC20: 7.319168174 | DI20: 1918Q1 | DJ20: 1918 | DK20: Q1 | DL20: 3 | DM20: 1918-03-31 | DN20: 0
A21: Kennedy | B21: Macmillan | C21: Holyoake | G21: 0.67024 | H21: 4.630454141 | I21: 2.140412558 | J21: World Pop 3.1b Cuban Missile Crisis (Aug-Nov) | K21: 1962-01-25 | L21: N/A | M21: N/A | N21: N/A | O21: 3.27 | P21: N/A | Q21: 3.77 | R21: 3.94 | S21: N/A | T21: 4.11 | U21: 4.1 | V21: N/A | W21: N/A | X21: N/A | Y21: N/A | Z21: N/A | AA21: N/A | AB21: N/A | AC21: N/A | AD21: N/A | AE21: N/A | AF21: N/A | AG21: N/A | AH21: N/A | AI21: N/A | AJ21: N/A | AK21: N/A | AL21: N/A | AM21: N/A | AN21: N/A | AO21: N/A | AP21: N/A | AQ21: N/A | AR21: N/A | AS21: N/A | AT21: N/A | AU21: N/A | AV21: N/A | AW21: N/A | AX21: N/A | AY21: N/A | AZ21: N/A | BA21: N/A | BB21: N/A | BC21: N/A | BD21: N/A | BE21: N/A | BF21: N/A | BG21: N/A | BH21: N/A | BI21: N/A | BJ21: N/A | BK21: N/A | BL21: N/A | BM21: N/A | BN21: N/A | BO21: N/A | BP21: N/A | BQ21: N/A | BR21: N/A | BS21: N/A | BT21: N/A | BU21: N/A | BV21: N/A | BW21: N/A | BX21: N/A | BY21: N/A | BZ21: N/A | CA21: N/A | CB21: N/A | CC21: N/A | CD21: N/A | CE21: N/A | CF21: N/A | CG21: N/A | CH21: N/A | CI21: N/A | CJ21: N/A | CK21: N/A | CL21: N/A | CO21: 1949-06-01 | CP21: -0.95238 | CW21: 1956-06-01 | CX21: 6.028743988 | CY21: 5.030292294 | DC21: 5.030292294 | DI21: 1918Q2 | DJ21: 1918 | DK21: Q2 | DL21: 6 | DM21: 1918-06-30 | DN21: 0
A22: Kennedy | B22: Macmillan | C22: Holyoake | G22: 0.67024 | H22: 4.630454141 | I22: 2.140412558 | J22: World Pop 3.1b Cuban Missile Crisis (Aug-Nov) | K22: 1962-01-26 | L22: N/A | M22: N/A | N22: N/A | O22: 3.28 | P22: N/A | Q22: 3.8 | R22: 3.97 | S22: N/A | T22: 4.11 | U22: 4.1 | V22: N/A | W22: N/A | X22: N/A | Y22: N/A | Z22: N/A | AA22: N/A | AB22: N/A | AC22: N/A | AD22: N/A | AE22: N/A | AF22: N/A | AG22: N/A | AH22: N/A | AI22: N/A | AJ22: N/A | AK22: N/A | AL22: N/A | AM22: N/A | AN22: N/A | AO22: N/A | AP22: N/A | AQ22: N/A | AR22: N/A | AS22: N/A | AT22: N/A | AU22: N/A | AV22: N/A | AW22: N/A | AX22: N/A | AY22: N/A | AZ22: N/A | BA22: N/A | BB22: N/A | BC22: N/A | BD22: N/A | BE22: N/A | BF22: N/A | BG22: N/A | BH22: N/A | BI22: N/A | BJ22: N/A | BK22: N/A | BL22: N/A | BM22: N/A | BN22: N/A | BO22: N/A | BP22: N/A | BQ22: N/A | BR22: N/A | BS22: N/A | BT22: N/A | BU22: N/A | BV22: N/A | BW22: N/A | BX22: N/A | BY22: N/A | BZ22: N/A | CA22: N/A | CB22: N/A | CC22: N/A | CD22: N/A | CE22: N/A | CF22: N/A | CG22: N/A | CH22: N/A | CI22: N/A | CJ22: N/A | CK22: N/A | CL22: N/A | CO22: 1949-07-01 | CP22: -2.86885 | CW22: 1956-07-01 | CX22: 6.005194206 | CY22: 4.250661959 | DC22: 4.250661959 | DI22: 1918Q3 | DJ22: 1918 | DK22: Q3 | DL22: 9 | DM22: 1918-09-30 | DN22: 18.53233
A23: Kennedy | B23: Macmillan | C23: Holyoake | G23: 0.67024 | H23: 4.630454141 | I23: 2.140412558 | J23: World Pop 3.1b Cuban Missile Crisis (Aug-Nov) | K23: 1962-01-29 | L23: N/A | M23: N/A | N23: N/A | O23: 3.28 | P23: N/A | Q23: 3.8 | R23: 3.98 | S23: N/A | T23: 4.12 | U23: 4.1 | V23: N/A | W23: N/A | X23: N/A | Y23: N/A | Z23: N/A | AA23: N/A | AB23: N/A | AC23: N/A | AD23: N/A | AE23: N/A | AF23: N/A | AG23: N/A | AH23: N/A | AI23: N/A | AJ23: N/A | AK23: N/A | AL23: N/A | AM23: N/A | AN23: N/A | AO23: N/A | AP23: N/A | AQ23: N/A | AR23: N/A | AS23: N/A | AT23: N/A | AU23: N/A | AV23: N/A | AW23: N/A | AX23: N/A | AY23: N/A | AZ23: N/A | BA23: N/A | BB23: N/A | BC23: N/A | BD23: N/A | BE23: N/A | BF23: N/A | BG23: N/A | BH23: N/A | BI23: N/A | BJ23: N/A | BK23: N/A | BL23: N/A | BM23: N/A | BN23: N/A | BO23: N/A | BP23: N/A | BQ23: N/A | BR23: N/A | BS23: N/A | BT23: N/A | BU23: N/A | BV23: N/A | BW23: N/A | BX23: N/A | BY23: N/A | BZ23: N/A | CA23: N/A | CB23: N/A | CC23: N/A | CD23: N/A | CE23: N/A | CF23: N/A | CG23: N/A | CH23: N/A | CI23: N/A | CJ23: N/A | CK23: N/A | CL23: N/A | CO23: 1949-08-01 | CP23: -2.98813 | CW23: 1956-08-01 | CX23: 6.022856542 | CY23: 5.3008 | DC23: 5.3008 | DI23: 1918Q4 | DJ23: 1918 | DK23: Q4 | DL23: 12 | DM23: 1918-12-31 | DN23: 0
A24: Kennedy | B24: Macmillan | C24: Holyoake | G24: 0.67024 | H24: 4.630454141 | I24: 2.140412558 | J24: World Pop 3.1b Cuban Missile Crisis (Aug-Nov) | K24: 1962-01-30 | L24: N/A | M24: N/A | N24: N/A | O24: 3.28 | P24: N/A | Q24: 3.8 | R24: 3.98 | S24: N/A | T24: 4.11 | U24: 4.1 | V24: N/A | W24: N/A | X24: N/A | Y24: N/A | Z24: N/A | AA24: N/A | AB24: N/A | AC24: N/A | AD24: N/A | AE24: N/A | AF24: N/A | AG24: N/A | AH24: N/A | AI24: N/A | AJ24: N/A | AK24: N/A | AL24: N/A | AM24: N/A | AN24: N/A | AO24: N/A | AP24: N/A | AQ24: N/A | AR24: N/A | AS24: N/A | AT24: N/A | AU24: N/A | AV24: N/A | AW24: N/A | AX24: N/A | AY24: N/A | AZ24: N/A | BA24: N/A | BB24: N/A | BC24: N/A | BD24: N/A | BE24: N/A | BF24: N/A | BG24: N/A | BH24: N/A | BI24: N/A | BJ24: N/A | BK24: N/A | BL24: N/A | BM24: N/A | BN24: N/A | BO24: N/A | BP24: N/A | BQ24: N/A | BR24: N/A | BS24: N/A | BT24: N/A | BU24: N/A | BV24: N/A | BW24: N/A | BX24: N/A | BY24: N/A | BZ24: N/A | CA24: N/A | CB24: N/A | CC24: N/A | CD24: N/A | CE24: N/A | CF24: N/A | CG24: N/A | CH24: N/A | CI24: N/A | CJ24: N/A | CK24: N/A | CL24: N/A | CO24: 1949-09-01 | CP24: -2.50411 | CW24: 1956-09-01 | CX24: 6.011081652 | CY24: 4.445053004 | DC24: 4.445053004 | DI24: 1919Q1 | DJ24: 1919 | DK24: Q1 | DL24: 3 | DM24: 1919-03-31 | DN24: 19.626252
A25: Kennedy | B25: Macmillan | C25: Holyoake | G25: 0.67024 | H25: 4.630454141 | I25: 2.140412558 | J25: World Pop 3.1b Cuban Missile Crisis (Aug-Nov) | K25: 1962-01-31 | L25: N/A | M25: N/A | N25: N/A | O25: 3.29 | P25: N/A | Q25: 3.81 | R25: 3.99 | S25: N/A | T25: 4.1 | U25: 4.1 | V25: N/A | W25: N/A | X25: N/A | Y25: N/A | Z25: N/A | AA25: N/A | AB25: N/A | AC25: N/A | AD25: N/A | AE25: N/A | AF25: N/A | AG25: N/A | AH25: N/A | AI25: N/A | AJ25: N/A | AK25: N/A | AL25: N/A | AM25: N/A | AN25: N/A | AO25: N/A | AP25: N/A | AQ25: N/A | AR25: N/A | AS25: N/A | AT25: N/A | AU25: N/A | AV25: N/A | AW25: N/A | AX25: N/A | AY25: N/A | AZ25: N/A | BA25: N/A | BB25: N/A | BC25: N/A | BD25: N/A | BE25: N/A | BF25: N/A | BG25: N/A | BH25: N/A | BI25: N/A | BJ25: N/A | BK25: N/A | BL25: N/A | BM25: N/A | BN25: N/A | BO25: N/A | BP25: N/A | BQ25: N/A | BR25: N/A | BS25: N/A | BT25: N/A | BU25: N/A | BV25: N/A | BW25: N/A | BX25: N/A | BY25: N/A | BZ25: N/A | CA25: N/A | CB25: N/A | CC25: N/A | CD25: N/A | CE25: N/A | CF25: N/A | CG25: N/A | CH25: N/A | CI25: N/A | CJ25: N/A | CK25: N/A | CL25: N/A | CO25: 1949-10-01 | CP25: -2.63266 | CW25: 1956-10-01 | CX25: 6.046406324 | CY25: 3.956818182 | DC25: 3.956818182 | DI25: 1919Q2 | DJ25: 1919 | DK25: Q2 | DL25: 6 | DM25: 1919-06-30 | DN25: 0
A26: Kennedy | B26: Macmillan | C26: Holyoake | G26: 0.90483 | H26: 4.735084595 | I26: 2.140412558 | J26: World Pop 3.1b Cuban Missile Crisis (Aug-Nov) | K26: 1962-02-01 | L26: N/A | M26: N/A | N26: N/A | O26: 3.3 | P26: N/A | Q26: 3.81 | R26: 4 | S26: N/A | T26: 4.09 | U26: 4.1 | V26: N/A | W26: N/A | X26: N/A | Y26: N/A | Z26: N/A | AA26: N/A | AB26: N/A | AC26: N/A | AD26: N/A | AE26: N/A | AF26: N/A | AG26: N/A | AH26: N/A | AI26: N/A | AJ26: N/A | AK26: N/A | AL26: N/A | AM26: N/A | AN26: N/A | AO26: N/A | AP26: N/A | AQ26: N/A | AR26: N/A | AS26: N/A | AT26: N/A | AU26: N/A | AV26: N/A | AW26: N/A | AX26: N/A | AY26: N/A | AZ26: N/A | BA26: N/A | BB26: N/A | BC26: N/A | BD26: N/A | BE26: N/A | BF26: N/A | BG26: N/A | BH26: N/A | BI26: N/A | BJ26: N/A | BK26: N/A | BL26: N/A | BM26: N/A | BN26: N/A | BO26: N/A | BP26: N/A | BQ26: N/A | BR26: N/A | BS26: N/A | BT26: N/A | BU26: N/A | BV26: N/A | BW26: N/A | BX26: N/A | BY26: N/A | BZ26: N/A | CA26: N/A | CB26: N/A | CC26: N/A | CD26: N/A | CE26: N/A | CF26: N/A | CG26: N/A | CH26: N/A | CI26: N/A | CJ26: N/A | CK26: N/A | CL26: N/A | CO26: 1949-11-01 | CP26: -1.90397 | CW26: 1956-11-01 | CX26: 6.069956105 | CY26: 2.745094664 | DC26: 2.745094664 | DI26: 1919Q3 | DJ26: 1919 | DK26: Q3 | DL26: 9 | DM26: 1919-09-30 | DN26: 20.243997
A27: Kennedy | B27: Macmillan | C27: Holyoake | G27: 0.90483 | H27: 4.735084595 | I27: 2.140412558 | J27: World Pop 3.1b Cuban Missile Crisis (Aug-Nov) | K27: 1962-02-02 | L27: N/A | M27: N/A | N27: N/A | O27: 3.3 | P27: N/A | Q27: 3.77 | R27: 3.97 | S27: N/A | T27: 4.08 | U27: 4.1 | V27: N/A | W27: N/A | X27: N/A | Y27: N/A | Z27: N/A | AA27: N/A | AB27: N/A | AC27: N/A | AD27: N/A | AE27: N/A | AF27: N/A | AG27: N/A | AH27: N/A | AI27: N/A | AJ27: N/A | AK27: N/A | AL27: N/A | AM27: N/A | AN27: N/A | AO27: N/A | AP27: N/A | AQ27: N/A | AR27: N/A | AS27: N/A | AT27: N/A | AU27: N/A | AV27: N/A | AW27: N/A | AX27: N/A | AY27: N/A | AZ27: N/A | BA27: N/A | BB27: N/A | BC27: N/A | BD27: N/A | BE27: N/A | BF27: N/A | BG27: N/A | BH27: N/A | BI27: N/A | BJ27: N/A | BK27: N/A | BL27: N/A | BM27: N/A | BN27: N/A | BO27: N/A | BP27: N/A | BQ27: N/A | BR27: N/A | BS27: N/A | BT27: N/A | BU27: N/A | BV27: N/A | BW27: N/A | BX27: N/A | BY27: N/A | BZ27: N/A | CA27: N/A | CB27: N/A | CC27: N/A | CD27: N/A | CE27: N/A | CF27: N/A | CG27: N/A | CH27: N/A | CI27: N/A | CJ27: N/A | CK27: N/A | CL27: N/A | CO27: 1949-12-01 | CP27: -1.82952 | CW27: 1956-12-01 | CX27: 6.087618441 | CY27: 3.044061962 | DC27: 3.044061962 | DI27: 1919Q4 | DJ27: 1919 | DK27: Q4 | DL27: 12 | DM27: 1919-12-31 | DN27: 0
A28: Kennedy | B28: Macmillan | C28: Holyoake | G28: 0.90483 | H28: 4.735084595 | I28: 2.140412558 | J28: World Pop 3.1b Cuban Missile Crisis (Aug-Nov) | K28: 1962-02-05 | L28: N/A | M28: N/A | N28: N/A | O28: 3.29 | P28: N/A | Q28: 3.77 | R28: 3.96 | S28: N/A | T28: 4.07 | U28: 4.1 | V28: N/A | W28: N/A | X28: N/A | Y28: N/A | Z28: N/A | AA28: N/A | AB28: N/A | AC28: N/A | AD28: N/A | AE28: N/A | AF28: N/A | AG28: N/A | AH28: N/A | AI28: N/A | AJ28: N/A | AK28: N/A | AL28: N/A | AM28: N/A | AN28: N/A | AO28: N/A | AP28: N/A | AQ28: N/A | AR28: N/A | AS28: N/A | AT28: N/A | AU28: N/A | AV28: N/A | AW28: N/A | AX28: N/A | AY28: N/A | AZ28: N/A | BA28: N/A | BB28: N/A | BC28: N/A | BD28: N/A | BE28: N/A | BF28: N/A | BG28: N/A | BH28: N/A | BI28: N/A | BJ28: N/A | BK28: N/A | BL28: N/A | BM28: N/A | BN28: N/A | BO28: N/A | BP28: N/A | BQ28: N/A | BR28: N/A | BS28: N/A | BT28: N/A | BU28: N/A | BV28: N/A | BW28: N/A | BX28: N/A | BY28: N/A | BZ28: N/A | CA28: N/A | CB28: N/A | CC28: N/A | CD28: N/A | CE28: N/A | CF28: N/A | CG28: N/A | CH28: N/A | CI28: N/A | CJ28: N/A | CK28: N/A | CL28: N/A | CO28: 1950-01-01 | CP28: -2.08247 | CW28: 1957-01-01 | CX28: 6.146492894 | CY28: 4.4 | DC28: 4.4 | DI28: 1920Q1 | DJ28: 1920 | DK28: Q1 | DL28: 3 | DM28: 1920-03-31 | DN28: 21.955663
A29: Kennedy | B29: Macmillan | C29: Holyoake | G29: 0.90483 | H29: 4.735084595 | I29: 2.140412558 | J29: World Pop 3.1b Cuban Missile Crisis (Aug-Nov) | K29: 1962-02-06 | L29: N/A | M29: N/A | N29: N/A | O29: 3.29 | P29: N/A | Q29: 3.77 | R29: 3.96 | S29: N/A | T29: 4.06 | U29: 4.1 | V29: N/A | W29: N/A | X29: N/A | Y29: N/A | Z29: N/A | AA29: N/A | AB29: N/A | AC29: N/A | AD29: N/A | AE29: N/A | AF29: N/A | AG29: N/A | AH29: N/A | AI29: N/A | AJ29: N/A | AK29: N/A | AL29: N/A | AM29: N/A | AN29: N/A | AO29: N/A | AP29: N/A | AQ29: N/A | AR29: N/A | AS29: N/A | AT29: N/A | AU29: N/A | AV29: N/A | AW29: N/A | AX29: N/A | AY29: N/A | AZ29: N/A | BA29: N/A | BB29: N/A | BC29: N/A | BD29: N/A | BE29: N/A | BF29: N/A | BG29: N/A | BH29: N/A | BI29: N/A | BJ29: N/A | BK29: N/A | BL29: N/A | BM29: N/A | BN29: N/A | BO29: N/A | BP29: N/A | BQ29: N/A | BR29: N/A | BS29: N/A | BT29: N/A | BU29: N/A | BV29: N/A | BW29: N/A | BX29: N/A | BY29: N/A | BZ29: N/A | CA29: N/A | CB29: N/A | CC29: N/A | CD29: N/A | CE29: N/A | CF29: N/A | CG29: N/A | CH29: N/A | CI29: N/A | CJ29: N/A | CK29: N/A | CL29: N/A | CO29: 1950-02-01 | CP29: -1.25471 | CW29: 1957-02-01 | CX29: 6.140605448 | CY29: 4.3 | DC29: 4.3 | DI29: 1920Q2 | DJ29: 1920 | DK29: Q2 | DL29: 6 | DM29: 1920-06-30 | DN29: 0
A30: Kennedy | B30: Macmillan | C30: Holyoake | G30: 0.90483 | H30: 4.735084595 | I30: 2.140412558 | J30: World Pop 3.1b Cuban Missile Crisis (Aug-Nov) | K30: 1962-02-07 | L30: N/A | M30: N/A | N30: N/A | O30: 3.29 | P30: N/A | Q30: 3.77 | R30: 3.95 | S30: N/A | T30: 4.07 | U30: 4.1 | V30: N/A | W30: N/A | X30: N/A | Y30: N/A | Z30: N/A | AA30: N/A | AB30: N/A | AC30: N/A | AD30: N/A | AE30: N/A | AF30: N/A | AG30: N/A | AH30: N/A | AI30: N/A | AJ30: N/A | AK30: N/A | AL30: N/A | AM30: N/A | AN30: N/A | AO30: N/A | AP30: N/A | AQ30: N/A | AR30: N/A | AS30: N/A | AT30: N/A | AU30: N/A | AV30: N/A | AW30: N/A | AX30: N/A | AY30: N/A | AZ30: N/A | BA30: N/A | BB30: N/A | BC30: N/A | BD30: N/A | BE30: N/A | BF30: N/A | BG30: N/A | BH30: N/A | BI30: N/A | BJ30: N/A | BK30: N/A | BL30: N/A | BM30: N/A | BN30: N/A | BO30: N/A | BP30: N/A | BQ30: N/A | BR30: N/A | BS30: N/A | BT30: N/A | BU30: N/A | BV30: N/A | BW30: N/A | BX30: N/A | BY30: N/A | BZ30: N/A | CA30: N/A | CB30: N/A | CC30: N/A | CD30: N/A | CE30: N/A | CF30: N/A | CG30: N/A | CH30: N/A | CI30: N/A | CJ30: N/A | CK30: N/A | CL30: N/A | CO30: 1950-03-01 | CP30: -1.12923 | CW30: 1957-03-01 | CX30: 6.128830558 | CY30: 2.764067127 | DC30: 2.764067127 | DI30: 1920Q3 | DJ30: 1920 | DK30: Q3 | DL30: 9 | DM30: 1920-09-30 | DN30: 23.358458
A31: Kennedy | B31: Macmillan | C31: Holyoake | G31: 0.90483 | H31: 4.735084595 | I31: 2.140412558 | J31: World Pop 3.1b Cuban Missile Crisis (Aug-Nov) | K31: 1962-02-08 | L31: N/A | M31: N/A | N31: N/A | O31: 3.3 | P31: N/A | Q31: 3.75 | R31: 3.93 | S31: N/A | T31: 4.07 | U31: 4.1 | V31: N/A | W31: N/A | X31: N/A | Y31: N/A | Z31: N/A | AA31: N/A | AB31: N/A | AC31: N/A | AD31: N/A | AE31: N/A | AF31: N/A | AG31: N/A | AH31: N/A | AI31: N/A | AJ31: N/A | AK31: N/A | AL31: N/A | AM31: N/A | AN31: N/A | AO31: N/A | AP31: N/A | AQ31: N/A | AR31: N/A | AS31: N/A | AT31: N/A | AU31: N/A | AV31: N/A | AW31: N/A | AX31: N/A | AY31: N/A | AZ31: N/A | BA31: N/A | BB31: N/A | BC31: N/A | BD31: N/A | BE31: N/A | BF31: N/A | BG31: N/A | BH31: N/A | BI31: N/A | BJ31: N/A | BK31: N/A | BL31: N/A | BM31: N/A | BN31: N/A | BO31: N/A | BP31: N/A | BQ31: N/A | BR31: N/A | BS31: N/A | BT31: N/A | BU31: N/A | BV31: N/A | BW31: N/A | BX31: N/A | BY31: N/A | BZ31: N/A | CA31: N/A | CB31: N/A | CC31: N/A | CD31: N/A | CE31: N/A | CF31: N/A | CG31: N/A | CH31: N/A | CI31: N/A | CJ31: N/A | CK31: N/A | CL31: N/A | CO31: 1950-04-01 | CP31: -1.12876 | CW31: 1957-04-01 | CX31: 6.152380339 | CY31: 1.752677702 | DC31: 1.752677702 | DI31: 1920Q4 | DJ31: 1920 | DK31: Q4 | DL31: 12 | DM31: 1920-12-31 | DN31: 0
A32: Kennedy | B32: Macmillan | C32: Holyoake | G32: 0.90483 | H32: 4.735084595 | I32: 2.140412558 | J32: World Pop 3.1b Cuban Missile Crisis (Aug-Nov) | K32: 1962-02-09 | L32: N/A | M32: N/A | N32: N/A | O32: 3.28 | P32: N/A | Q32: 3.73 | R32: 3.91 | S32: N/A | T32: 4.05 | U32: 4.1 | V32: N/A | W32: N/A | X32: N/A | Y32: N/A | Z32: N/A | AA32: N/A | AB32: N/A | AC32: N/A | AD32: N/A | AE32: N/A | AF32: N/A | AG32: N/A | AH32: N/A | AI32: N/A | AJ32: N/A | AK32: N/A | AL32: N/A | AM32: N/A | AN32: N/A | AO32: N/A | AP32: N/A | AQ32: N/A | AR32: N/A | AS32: N/A | AT32: N/A | AU32: N/A | AV32: N/A | AW32: N/A | AX32: N/A | AY32: N/A | AZ32: N/A | BA32: N/A | BB32: N/A | BC32: N/A | BD32: N/A | BE32: N/A | BF32: N/A | BG32: N/A | BH32: N/A | BI32: N/A | BJ32: N/A | BK32: N/A | BL32: N/A | BM32: N/A | BN32: N/A | BO32: N/A | BP32: N/A | BQ32: N/A | BR32: N/A | BS32: N/A | BT32: N/A | BU32: N/A | BV32: N/A | BW32: N/A | BX32: N/A | BY32: N/A | BZ32: N/A | CA32: N/A | CB32: N/A | CC32: N/A | CD32: N/A | CE32: N/A | CF32: N/A | CG32: N/A | CH32: N/A | CI32: N/A | CJ32: N/A | CK32: N/A | CL32: N/A | CO32: 1950-05-01 | CP32: -0.58553 | CW32: 1957-05-01 | CX32: 6.158267784 | CY32: 2.048780488 | DC32: 2.048780488 | DI32: 1921Q1 | DJ32: 1921 | DK32: Q1 | DL32: 3 | DM32: 1921-03-31 | DN32: 23.873244
A33: Kennedy | B33: Macmillan | C33: Holyoake | G33: 0.90483 | H33: 4.735084595 | I33: 2.140412558 | J33: World Pop 3.1b Cuban Missile Crisis (Aug-Nov) | K33: 1962-02-13 | L33: N/A | M33: N/A | N33: N/A | O33: 3.28 | P33: N/A | Q33: 3.72 | R33: 3.91 | S33: N/A | T33: 4.03 | U33: 4.1 | V33: N/A | W33: N/A | X33: N/A | Y33: N/A | Z33: N/A | AA33: N/A | AB33: N/A | AC33: N/A | AD33: N/A | AE33: N/A | AF33: N/A | AG33: N/A | AH33: N/A | AI33: N/A | AJ33: N/A | AK33: N/A | AL33: N/A | AM33: N/A | AN33: N/A | AO33: N/A | AP33: N/A | AQ33: N/A | AR33: N/A | AS33: N/A | AT33: N/A | AU33: N/A | AV33: N/A | AW33: N/A | AX33: N/A | AY33: N/A | AZ33: N/A | BA33: N/A | BB33: N/A | BC33: N/A | BD33: N/A | BE33: N/A | BF33: N/A | BG33: N/A | BH33: N/A | BI33: N/A | BJ33: N/A | BK33: N/A | BL33: N/A | BM33: N/A | BN33: N/A | BO33: N/A | BP33: N/A | BQ33: N/A | BR33: N/A | BS33: N/A | BT33: N/A | BU33: N/A | BV33: N/A | BW33: N/A | BX33: N/A | BY33: N/A | BZ33: N/A | CA33: N/A | CB33: N/A | CC33: N/A | CD33: N/A | CE33: N/A | CF33: N/A | CG33: N/A | CH33: N/A | CI33: N/A | CJ33: N/A | CK33: N/A | CL33: N/A | CO33: 1950-06-01 | CP33: -0.16722 | CW33: 1957-06-01 | CX33: 6.223029683 | CY33: 3.22265625 | DC33: 3.22265625 | DI33: 1921Q2 | DJ33: 1921 | DK33: Q2 | DL33: 6 | DM33: 1921-06-30 | DN33: 0
A34: Kennedy | B34: Macmillan | C34: Holyoake | G34: 0.90483 | H34: 4.735084595 | I34: 2.140412558 | J34: World Pop 3.1b Cuban Missile Crisis (Aug-Nov) | K34: 1962-02-14 | L34: N/A | M34: N/A | N34: N/A | O34: 3.31 | P34: N/A | Q34: 3.71 | R34: 3.9 | S34: N/A | T34: 4.03 | U34: 4.1 | V34: N/A | W34: N/A | X34: N/A | Y34: N/A | Z34: N/A | AA34: N/A | AB34: N/A | AC34: N/A | AD34: N/A | AE34: N/A | AF34: N/A | AG34: N/A | AH34: N/A | AI34: N/A | AJ34: N/A | AK34: N/A | AL34: N/A | AM34: N/A | AN34: N/A | AO34: N/A | AP34: N/A | AQ34: N/A | AR34: N/A | AS34: N/A | AT34: N/A | AU34: N/A | AV34: N/A | AW34: N/A | AX34: N/A | AY34: N/A | AZ34: N/A | BA34: N/A | BB34: N/A | BC34: N/A | BD34: N/A | BE34: N/A | BF34: N/A | BG34: N/A | BH34: N/A | BI34: N/A | BJ34: N/A | BK34: N/A | BL34: N/A | BM34: N/A | BN34: N/A | BO34: N/A | BP34: N/A | BQ34: N/A | BR34: N/A | BS34: N/A | BT34: N/A | BU34: N/A | BV34: N/A | BW34: N/A | BX34: N/A | BY34: N/A | BZ34: N/A | CA34: N/A | CB34: N/A | CC34: N/A | CD34: N/A | CE34: N/A | CF34: N/A | CG34: N/A | CH34: N/A | CI34: N/A | CJ34: N/A | CK34: N/A | CL34: N/A | CO34: 1950-07-01 | CP34: 1.56118 | CW34: 1957-07-01 | CX34: 6.27601669 | CY34: 4.509803922 | DC34: 4.509803922 | DI34: 1921Q3 | DJ34: 1921 | DK34: Q3 | DL34: 9 | DM34: 1921-09-30 | DN34: 22.933758
A35: Kennedy | B35: Macmillan | C35: Holyoake | G35: 0.90483 | H35: 4.735084595 | I35: 2.140412558 | J35: World Pop 3.1b Cuban Missile Crisis (Aug-Nov) | K35: 1962-02-15 | L35: N/A | M35: N/A | N35: N/A | O35: 3.33 | P35: N/A | Q35: 3.71 | R35: 3.9 | S35: N/A | T35: 4.02 | U35: 4.12 | V35: N/A | W35: N/A | X35: N/A | Y35: N/A | Z35: N/A | AA35: N/A | AB35: N/A | AC35: N/A | AD35: N/A | AE35: N/A | AF35: N/A | AG35: N/A | AH35: N/A | AI35: N/A | AJ35: N/A | AK35: N/A | AL35: N/A | AM35: N/A | AN35: N/A | AO35: N/A | AP35: N/A | AQ35: N/A | AR35: N/A | AS35: N/A | AT35: N/A | AU35: N/A | AV35: N/A | AW35: N/A | AX35: N/A | AY35: N/A | AZ35: N/A | BA35: N/A | BB35: N/A | BC35: N/A | BD35: N/A | BE35: N/A | BF35: N/A | BG35: N/A | BH35: N/A | BI35: N/A | BJ35: N/A | BK35: N/A | BL35: N/A | BM35: N/A | BN35: N/A | BO35: N/A | BP35: N/A | BQ35: N/A | BR35: N/A | BS35: N/A | BT35: N/A | BU35: N/A | BV35: N/A | BW35: N/A | BX35: N/A | BY35: N/A | BZ35: N/A | CA35: N/A | CB35: N/A | CC35: N/A | CD35: N/A | CE35: N/A | CF35: N/A | CG35: N/A | CH35: N/A | CI35: N/A | CJ35: N/A | CK35: N/A | CL35: N/A | CO35: 1950-08-01 | CP35: 2.1097 | CW35: 1957-08-01 | CX35: 6.2642418 | CY35: 4.007820137 | DC35: 4.007820137 | DI35: 1921Q4 | DJ35: 1921 | DK35: Q4 | DL35: 12 | DM35: 1921-12-31 | DN35: 0
A36: Kennedy | B36: Macmillan | C36: Holyoake | G36: 0.90483 | H36: 4.735084595 | I36: 2.140412558 | J36: World Pop 3.1b Cuban Missile Crisis (Aug-Nov) | K36: 1962-02-16 | L36: N/A | M36: N/A | N36: N/A | O36: 3.33 | P36: N/A | Q36: 3.69 | R36: 3.88 | S36: N/A | T36: 4.02 | U36: 4.12 | V36: N/A | W36: N/A | X36: N/A | Y36: N/A | Z36: N/A | AA36: N/A | AB36: N/A | AC36: N/A | AD36: N/A | AE36: N/A | AF36: N/A | AG36: N/A | AH36: N/A | AI36: N/A | AJ36: N/A | AK36: N/A | AL36: N/A | AM36: N/A | AN36: N/A | AO36: N/A | AP36: N/A | AQ36: N/A | AR36: N/A | AS36: N/A | AT36: N/A | AU36: N/A | AV36: N/A | AW36: N/A | AX36: N/A | AY36: N/A | AZ36: N/A | BA36: N/A | BB36: N/A | BC36: N/A | BD36: N/A | BE36: N/A | BF36: N/A | BG36: N/A | BH36: N/A | BI36: N/A | BJ36: N/A | BK36: N/A | BL36: N/A | BM36: N/A | BN36: N/A | BO36: N/A | BP36: N/A | BQ36: N/A | BR36: N/A | BS36: N/A | BT36: N/A | BU36: N/A | BV36: N/A | BW36: N/A | BX36: N/A | BY36: N/A | BZ36: N/A | CA36: N/A | CB36: N/A | CC36: N/A | CD36: N/A | CE36: N/A | CF36: N/A | CG36: N/A | CH36: N/A | CI36: N/A | CJ36: N/A | CK36: N/A | CL36: N/A | CO36: 1950-09-01 | CP36: 2.48421 | CW36: 1957-09-01 | CX36: 6.246579464 | CY36: 3.917727718 | DC36: 3.917727718 | DI36: 1922Q1 | DJ36: 1922 | DK36: Q1 | DL36: 3 | DM36: 1922-03-31 | DN36: 21.234961
A37: Kennedy | B37: Macmillan | C37: Holyoake | G37: 0.90483 | H37: 4.735084595 | I37: 2.140412558 | J37: World Pop 3.1b Cuban Missile Crisis (Aug-Nov) | K37: 1962-02-19 | L37: N/A | M37: N/A | N37: N/A | O37: 3.32 | P37: N/A | Q37: 3.67 | R37: 3.86 | S37: N/A | T37: 4.01 | U37: 4.12 | V37: N/A | W37: N/A | X37: N/A | Y37: N/A | Z37: N/A | AA37: N/A | AB37: N/A | AC37: N/A | AD37: N/A | AE37: N/A | AF37: N/A | AG37: N/A | AH37: N/A | AI37: N/A | AJ37: N/A | AK37: N/A | AL37: N/A | AM37: N/A | AN37: N/A | AO37: N/A | AP37: N/A | AQ37: N/A | AR37: N/A | AS37: N/A | AT37: N/A | AU37: N/A | AV37: N/A | AW37: N/A | AX37: N/A | AY37: N/A | AZ37: N/A | BA37: N/A | BB37: N/A | BC37: N/A | BD37: N/A | BE37: N/A | BF37: N/A | BG37: N/A | BH37: N/A | BI37: N/A | BJ37: N/A | BK37: N/A | BL37: N/A | BM37: N/A | BN37: N/A | BO37: N/A | BP37: N/A | BQ37: N/A | BR37: N/A | BS37: N/A | BT37: N/A | BU37: N/A | BV37: N/A | BW37: N/A | BX37: N/A | BY37: N/A | BZ37: N/A | CA37: N/A | CB37: N/A | CC37: N/A | CD37: N/A | CE37: N/A | CF37: N/A | CG37: N/A | CH37: N/A | CI37: N/A | CJ37: N/A | CK37: N/A | CL37: N/A | CO37: 1950-10-01 | CP37: 3.50655 | CW37: 1957-10-01 | CX37: 6.305453917 | CY37: 4.284323272 | DC37: 4.284323272 | DI37: 1922Q2 | DJ37: 1922 | DK37: Q2 | DL37: 6 | DM37: 1922-06-30 | DN37: 0
A38: Kennedy | B38: Macmillan | C38: Holyoake | G38: 0.90483 | H38: 4.735084595 | I38: 2.140412558 | J38: World Pop 3.1b Cuban Missile Crisis (Aug-Nov) | K38: 1962-02-20 | L38: N/A | M38: N/A | N38: N/A | O38: 3.31 | P38: N/A | Q38: 3.67 | R38: 3.88 | S38: N/A | T38: 4.05 | U38: 4.12 | V38: N/A | W38: N/A | X38: N/A | Y38: N/A | Z38: N/A | AA38: N/A | AB38: N/A | AC38: N/A | AD38: N/A | AE38: N/A | AF38: N/A | AG38: N/A | AH38: N/A | AI38: N/A | AJ38: N/A | AK38: N/A | AL38: N/A | AM38: N/A | AN38: N/A | AO38: N/A | AP38: N/A | AQ38: N/A | AR38: N/A | AS38: N/A | AT38: N/A | AU38: N/A | AV38: N/A | AW38: N/A | AX38: N/A | AY38: N/A | AZ38: N/A | BA38: N/A | BB38: N/A | BC38: N/A | BD38: N/A | BE38: N/A | BF38: N/A | BG38: N/A | BH38: N/A | BI38: N/A | BJ38: N/A | BK38: N/A | BL38: N/A | BM38: N/A | BN38: N/A | BO38: N/A | BP38: N/A | BQ38: N/A | BR38: N/A | BS38: N/A | BT38: N/A | BU38: N/A | BV38: N/A | BW38: N/A | BX38: N/A | BY38: N/A | BZ38: N/A | CA38: N/A | CB38: N/A | CC38: N/A | CD38: N/A | CE38: N/A | CF38: N/A | CG38: N/A | CH38: N/A | CI38: N/A | CJ38: N/A | CK38: N/A | CL38: N/A | CO38: 1950-11-01 | CP38: 3.79747 | CW38: 1957-11-01 | CX38: 6.340778589 | CY38: 4.461687682 | DC38: 4.461687682 | DI38: 1922Q3 | DJ38: 1922 | DK38: Q3 | DL38: 9 | DM38: 1922-09-30 | DN38: 20.462781
A39: Kennedy | B39: Macmillan | C39: Holyoake | G39: 0.90483 | H39: 4.735084595 | I39: 2.140412558 | J39: World Pop 3.1b Cuban Missile Crisis (Aug-Nov) | K39: 1962-02-21 | L39: N/A | M39: N/A | N39: N/A | O39: 3.28 | P39: N/A | Q39: 3.64 | R39: 3.86 | S39: N/A | T39: 4.03 | U39: 4.12 | V39: N/A | W39: N/A | X39: N/A | Y39: N/A | Z39: N/A | AA39: N/A | AB39: N/A | AC39: N/A | AD39: N/A | AE39: N/A | AF39: N/A | AG39: N/A | AH39: N/A | AI39: N/A | AJ39: N/A | AK39: N/A | AL39: N/A | AM39: N/A | AN39: N/A | AO39: N/A | AP39: N/A | AQ39: N/A | AR39: N/A | AS39: N/A | AT39: N/A | AU39: N/A | AV39: N/A | AW39: N/A | AX39: N/A | AY39: N/A | AZ39: N/A | BA39: N/A | BB39: N/A | BC39: N/A | BD39: N/A | BE39: N/A | BF39: N/A | BG39: N/A | BH39: N/A | BI39: N/A | BJ39: N/A | BK39: N/A | BL39: N/A | BM39: N/A | BN39: N/A | BO39: N/A | BP39: N/A | BQ39: N/A | BR39: N/A | BS39: N/A | BT39: N/A | BU39: N/A | BV39: N/A | BW39: N/A | BX39: N/A | BY39: N/A | BZ39: N/A | CA39: N/A | CB39: N/A | CC39: N/A | CD39: N/A | CE39: N/A | CF39: N/A | CG39: N/A | CH39: N/A | CI39: N/A | CJ39: N/A | CK39: N/A | CL39: N/A | CO39: 1950-12-01 | CP39: 5.80263 | CW39: 1957-12-01 | CX39: 6.370215815 | CY39: 4.642166344 | DC39: 4.642166344 | DI39: 1922Q4 | DJ39: 1922 | DK39: Q4 | DL39: 12 | DM39: 1922-12-31 | DN39: 0
A40: Kennedy | B40: Macmillan | C40: Holyoake | G40: 0.90483 | H40: 4.735084595 | I40: 2.140412558 | J40: World Pop 3.1b Cuban Missile Crisis (Aug-Nov) | K40: 1962-02-23 | L40: N/A | M40: N/A | N40: N/A | O40: 3.24 | P40: N/A | Q40: 3.6 | R40: 3.83 | S40: N/A | T40: 4.02 | U40: 4.12 | V40: N/A | W40: N/A | X40: N/A | Y40: N/A | Z40: N/A | AA40: N/A | AB40: N/A | AC40: N/A | AD40: N/A | AE40: N/A | AF40: N/A | AG40: N/A | AH40: N/A | AI40: N/A | AJ40: N/A | AK40: N/A | AL40: N/A | AM40: N/A | AN40: N/A | AO40: N/A | AP40: N/A | AQ40: N/A | AR40: N/A | AS40: N/A | AT40: N/A | AU40: N/A | AV40: N/A | AW40: N/A | AX40: N/A | AY40: N/A | AZ40: N/A | BA40: N/A | BB40: N/A | BC40: N/A | BD40: N/A | BE40: N/A | BF40: N/A | BG40: N/A | BH40: N/A | BI40: N/A | BJ40: N/A | BK40: N/A | BL40: N/A | BM40: N/A | BN40: N/A | BO40: N/A | BP40: N/A | BQ40: N/A | BR40: N/A | BS40: N/A | BT40: N/A | BU40: N/A | BV40: N/A | BW40: N/A | BX40: N/A | BY40: N/A | BZ40: N/A | CA40: N/A | CB40: N/A | CC40: N/A | CD40: N/A | CE40: N/A | CF40: N/A | CG40: N/A | CH40: N/A | CI40: N/A | CJ40: N/A | CK40: N/A | CL40: N/A | CO40: 1951-01-01 | CP40: 7.95406 | CW40: 1958-01-01 | CX40: 6.36432837 | CY40: 3.544061303 | DC40: 3.544061303 | DI40: 1923Q1 | DJ40: 1923 | DK40: Q1 | DL40: 3 | DM40: 1923-03-31 | DN40: 20.218257
A41: Kennedy | B41: Macmillan | C41: Holyoake | G41: 0.90483 | H41: 4.735084595 | I41: 2.140412558 | J41: World Pop 3.1b Cuban Missile Crisis (Aug-Nov) | K41: 1962-02-26 | L41: N/A | M41: N/A | N41: N/A | O41: 3.22 | P41: N/A | Q41: 3.58 | R41: 3.8 | S41: N/A | T41: 4 | U41: 4.12 | V41: N/A | W41: N/A | X41: N/A | Y41: N/A | Z41: N/A | AA41: N/A | AB41: N/A | AC41: N/A | AD41: N/A | AE41: N/A | AF41: N/A | AG41: N/A | AH41: N/A | AI41: N/A | AJ41: N/A | AK41: N/A | AL41: N/A | AM41: N/A | AN41: N/A | AO41: N/A | AP41: N/A | AQ41: N/A | AR41: N/A | AS41: N/A | AT41: N/A | AU41: N/A | AV41: N/A | AW41: N/A | AX41: N/A | AY41: N/A | AZ41: N/A | BA41: N/A | BB41: N/A | BC41: N/A | BD41: N/A | BE41: N/A | BF41: N/A | BG41: N/A | BH41: N/A | BI41: N/A | BJ41: N/A | BK41: N/A | BL41: N/A | BM41: N/A | BN41: N/A | BO41: N/A | BP41: N/A | BQ41: N/A | BR41: N/A | BS41: N/A | BT41: N/A | BU41: N/A | BV41: N/A | BW41: N/A | BX41: N/A | BY41: N/A | BZ41: N/A | CA41: N/A | CB41: N/A | CC41: N/A | CD41: N/A | CE41: N/A | CF41: N/A | CG41: N/A | CH41: N/A | CI41: N/A | CJ41: N/A | CK41: N/A | CL41: N/A | CO41: 1951-02-01 | CP41: 9.4028 | CW41: 1958-02-01 | CX41: 6.334891143 | CY41: 3.163950144 | DC41: 3.163950144 | DI41: 1923Q2 | DJ41: 1923 | DK41: Q2 | DL41: 6 | DM41: 1923-06-30 | DN41: 0
A42: Kennedy | B42: Macmillan | C42: Holyoake | G42: 0.90483 | H42: 4.735084595 | I42: 2.140412558 | J42: World Pop 3.1b Cuban Missile Crisis (Aug-Nov) | K42: 1962-02-27 | L42: N/A | M42: N/A | N42: N/A | O42: 3.23 | P42: N/A | Q42: 3.57 | R42: 3.8 | S42: N/A | T42: 4.01 | U42: 4.12 | V42: N/A | W42: N/A | X42: N/A | Y42: N/A | Z42: N/A | AA42: N/A | AB42: N/A | AC42: N/A | AD42: N/A | AE42: N/A | AF42: N/A | AG42: N/A | AH42: N/A | AI42: N/A | AJ42: N/A | AK42: N/A | AL42: N/A | AM42: N/A | AN42: N/A | AO42: N/A | AP42: N/A | AQ42: N/A | AR42: N/A | AS42: N/A | AT42: N/A | AU42: N/A | AV42: N/A | AW42: N/A | AX42: N/A | AY42: N/A | AZ42: N/A | BA42: N/A | BB42: N/A | BC42: N/A | BD42: N/A | BE42: N/A | BF42: N/A | BG42: N/A | BH42: N/A | BI42: N/A | BJ42: N/A | BK42: N/A | BL42: N/A | BM42: N/A | BN42: N/A | BO42: N/A | BP42: N/A | BQ42: N/A | BR42: N/A | BS42: N/A | BT42: N/A | BU42: N/A | BV42: N/A | BW42: N/A | BX42: N/A | BY42: N/A | BZ42: N/A | CA42: N/A | CB42: N/A | CC42: N/A | CD42: N/A | CE42: N/A | CF42: N/A | CG42: N/A | CH42: N/A | CI42: N/A | CJ42: N/A | CK42: N/A | CL42: N/A | CO42: 1951-03-01 | CP42: 9.47547 | CW42: 1958-03-01 | CX42: 6.381990706 | CY42: 4.130643612 | DC42: 4.130643612 | DI42: 1923Q3 | DJ42: 1923 | DK42: Q3 | DL42: 9 | DM42: 1923-09-30 | DN42: 20.385563
A43: Kennedy | B43: Macmillan | C43: Holyoake | G43: 0.90483 | H43: 4.735084595 | I43: 2.140412558 | J43: World Pop 3.1b Cuban Missile Crisis (Aug-Nov) | K43: 1962-02-28 | L43: N/A | M43: N/A | N43: N/A | O43: 3.21 | P43: N/A | Q43: 3.53 | R43: 3.77 | S43: N/A | T43: 4 | U43: 4.12 | V43: N/A | W43: N/A | X43: N/A | Y43: N/A | Z43: N/A | AA43: N/A | AB43: N/A | AC43: N/A | AD43: N/A | AE43: N/A | AF43: N/A | AG43: N/A | AH43: N/A | AI43: N/A | AJ43: N/A | AK43: N/A | AL43: N/A | AM43: N/A | AN43: N/A | AO43: N/A | AP43: N/A | AQ43: N/A | AR43: N/A | AS43: N/A | AT43: N/A | AU43: N/A | AV43: N/A | AW43: N/A | AX43: N/A | AY43: N/A | AZ43: N/A | BA43: N/A | BB43: N/A | BC43: N/A | BD43: N/A | BE43: N/A | BF43: N/A | BG43: N/A | BH43: N/A | BI43: N/A | BJ43: N/A | BK43: N/A | BL43: N/A | BM43: N/A | BN43: N/A | BO43: N/A | BP43: N/A | BQ43: N/A | BR43: N/A | BS43: N/A | BT43: N/A | BU43: N/A | BV43: N/A | BW43: N/A | BX43: N/A | BY43: N/A | BZ43: N/A | CA43: N/A | CB43: N/A | CC43: N/A | CD43: N/A | CE43: N/A | CF43: N/A | CG43: N/A | CH43: N/A | CI43: N/A | CJ43: N/A | CK43: N/A | CL43: N/A | CO43: 1951-04-01 | CP43: 9.59831 | CW43: 1958-04-01 | CX43: 6.452640049 | CY43: 4.880382775 | DC43: 4.880382775 | DI43: 1923Q4 | DJ43: 1923 | DK43: Q4 | DL43: 12 | DM43: 1923-12-31 | DN43: 0
A44: Kennedy | B44: Macmillan | C44: Holyoake | G44: 1.1059 | H44: 4.780390417 | I44: 2.140412558 | J44: World Pop 3.1b Cuban Missile Crisis (Aug-Nov) | K44: 1962-03-01 | L44: N/A | M44: N/A | N44: N/A | O44: 3.15 | P44: N/A | Q44: 3.44 | R44: 3.71 | S44: N/A | T44: 3.98 | U44: 4.12 | V44: N/A | W44: N/A | X44: N/A | Y44: N/A | Z44: N/A | AA44: N/A | AB44: N/A | AC44: N/A | AD44: N/A | AE44: N/A | AF44: N/A | AG44: N/A | AH44: N/A | AI44: N/A | AJ44: N/A | AK44: N/A | AL44: N/A | AM44: N/A | AN44: N/A | AO44: N/A | AP44: N/A | AQ44: N/A | AR44: N/A | AS44: N/A | AT44: N/A | AU44: N/A | AV44: N/A | AW44: N/A | AX44: N/A | AY44: N/A | AZ44: N/A | BA44: N/A | BB44: N/A | BC44: N/A | BD44: N/A | BE44: N/A | BF44: N/A | BG44: N/A | BH44: N/A | BI44: N/A | BJ44: N/A | BK44: N/A | BL44: N/A | BM44: N/A | BN44: N/A | BO44: N/A | BP44: N/A | BQ44: N/A | BR44: N/A | BS44: N/A | BT44: N/A | BU44: N/A | BV44: N/A | BW44: N/A | BX44: N/A | BY44: N/A | BZ44: N/A | CA44: N/A | CB44: N/A | CC44: N/A | CD44: N/A | CE44: N/A | CF44: N/A | CG44: N/A | CH44: N/A | CI44: N/A | CJ44: N/A | CK44: N/A | CL44: N/A | CO44: 1951-05-01 | CP44: 9.3395 | CW44: 1958-05-01 | CX44: 6.429090268 | CY44: 4.397705545 | DC44: 4.397705545 | DI44: 1924Q1 | DJ44: 1924 | DK44: Q1 | DL44: 3 | DM44: 1924-03-31 | DN44: 20.861741
A45: Kennedy | B45: Macmillan | C45: Holyoake | G45: 1.1059 | H45: 4.780390417 | I45: 2.140412558 | J45: World Pop 3.1b Cuban Missile Crisis (Aug-Nov) | K45: 1962-03-02 | L45: N/A | M45: N/A | N45: N/A | O45: 3.17 | P45: N/A | Q45: 3.48 | R45: 3.72 | S45: N/A | T45: 3.98 | U45: 4.12 | V45: N/A | W45: N/A | X45: N/A | Y45: N/A | Z45: N/A | AA45: N/A | AB45: N/A | AC45: N/A | AD45: N/A | AE45: N/A | AF45: N/A | AG45: N/A | AH45: N/A | AI45: N/A | AJ45: N/A | AK45: N/A | AL45: N/A | AM45: N/A | AN45: N/A | AO45: N/A | AP45: N/A | AQ45: N/A | AR45: N/A | AS45: N/A | AT45: N/A | AU45: N/A | AV45: N/A | AW45: N/A | AX45: N/A | AY45: N/A | AZ45: N/A | BA45: N/A | BB45: N/A | BC45: N/A | BD45: N/A | BE45: N/A | BF45: N/A | BG45: N/A | BH45: N/A | BI45: N/A | BJ45: N/A | BK45: N/A | BL45: N/A | BM45: N/A | BN45: N/A | BO45: N/A | BP45: N/A | BQ45: N/A | BR45: N/A | BS45: N/A | BT45: N/A | BU45: N/A | BV45: N/A | BW45: N/A | BX45: N/A | BY45: N/A | BZ45: N/A | CA45: N/A | CB45: N/A | CC45: N/A | CD45: N/A | CE45: N/A | CF45: N/A | CG45: N/A | CH45: N/A | CI45: N/A | CJ45: N/A | CK45: N/A | CL45: N/A | CO45: 1951-06-01 | CP45: 8.58459 | CW45: 1958-06-01 | CX45: 6.487964721 | CY45: 4.257332072 | DC45: 4.257332072 | DI45: 1924Q2 | DJ45: 1924 | DK45: Q2 | DL45: 6 | DM45: 1924-06-30 | DN45: 0
A46: Kennedy | B46: Macmillan | C46: Holyoake | G46: 1.1059 | H46: 4.780390417 | I46: 2.140412558 | J46: World Pop 3.1b Cuban Missile Crisis (Aug-Nov) | K46: 1962-03-05 | L46: N/A | M46: N/A | N46: N/A | O46: 3.18 | P46: N/A | Q46: 3.53 | R46: 3.74 | S46: N/A | T46: 4 | U46: 4.12 | V46: N/A | W46: N/A | X46: N/A | Y46: N/A | Z46: N/A | AA46: N/A | AB46: N/A | AC46: N/A | AD46: N/A | AE46: N/A | AF46: N/A | AG46: N/A | AH46: N/A | AI46: N/A | AJ46: N/A | AK46: N/A | AL46: N/A | AM46: N/A | AN46: N/A | AO46: N/A | AP46: N/A | AQ46: N/A | AR46: N/A | AS46: N/A | AT46: N/A | AU46: N/A | AV46: N/A | AW46: N/A | AX46: N/A | AY46: N/A | AZ46: N/A | BA46: N/A | BB46: N/A | BC46: N/A | BD46: N/A | BE46: N/A | BF46: N/A | BG46: N/A | BH46: N/A | BI46: N/A | BJ46: N/A | BK46: N/A | BL46: N/A | BM46: N/A | BN46: N/A | BO46: N/A | BP46: N/A | BQ46: N/A | BR46: N/A | BS46: N/A | BT46: N/A | BU46: N/A | BV46: N/A | BW46: N/A | BX46: N/A | BY46: N/A | BZ46: N/A | CA46: N/A | CB46: N/A | CC46: N/A | CD46: N/A | CE46: N/A | CF46: N/A | CG46: N/A | CH46: N/A | CI46: N/A | CJ46: N/A | CK46: N/A | CL46: N/A | CO46: 1951-07-01 | CP46: 7.64437 | CW46: 1958-07-01 | CX46: 6.387878151 | CY46: 1.782363977 | DC46: 1.782363977 | DI46: 1924Q3 | DJ46: 1924 | DK46: Q3 | DL46: 9 | DM46: 1924-09-30 | DN46: 20.617217
A47: Kennedy | B47: Macmillan | C47: Holyoake | G47: 1.1059 | H47: 4.780390417 | I47: 2.140412558 | J47: World Pop 3.1b Cuban Missile Crisis (Aug-Nov) | K47: 1962-03-06 | L47: N/A | M47: N/A | N47: N/A | O47: 3.18 | P47: N/A | Q47: 3.52 | R47: 3.74 | S47: N/A | T47: 4.01 | U47: 4.12 | V47: N/A | W47: N/A | X47: N/A | Y47: N/A | Z47: N/A | AA47: N/A | AB47: N/A | AC47: N/A | AD47: N/A | AE47: N/A | AF47: N/A | AG47: N/A | AH47: N/A | AI47: N/A | AJ47: N/A | AK47: N/A | AL47: N/A | AM47: N/A | AN47: N/A | AO47: N/A | AP47: N/A | AQ47: N/A | AR47: N/A | AS47: N/A | AT47: N/A | AU47: N/A | AV47: N/A | AW47: N/A | AX47: N/A | AY47: N/A | AZ47: N/A | BA47: N/A | BB47: N/A | BC47: N/A | BD47: N/A | BE47: N/A | BF47: N/A | BG47: N/A | BH47: N/A | BI47: N/A | BJ47: N/A | BK47: N/A | BL47: N/A | BM47: N/A | BN47: N/A | BO47: N/A | BP47: N/A | BQ47: N/A | BR47: N/A | BS47: N/A | BT47: N/A | BU47: N/A | BV47: N/A | BW47: N/A | BX47: N/A | BY47: N/A | BZ47: N/A | CA47: N/A | CB47: N/A | CC47: N/A | CD47: N/A | CE47: N/A | CF47: N/A | CG47: N/A | CH47: N/A | CI47: N/A | CJ47: N/A | CK47: N/A | CL47: N/A | CO47: 1951-08-01 | CP47: 6.8595 | CW47: 1958-08-01 | CX47: 6.37610326 | CY47: 1.785714286 | DC47: 1.785714286 | DI47: 1924Q4 | DJ47: 1924 | DK47: Q4 | DL47: 12 | DM47: 1924-12-31 | DN47: 0
A48: Kennedy | B48: Macmillan | C48: Holyoake | G48: 1.1059 | H48: 4.780390417 | I48: 2.140412558 | J48: World Pop 3.1b Cuban Missile Crisis (Aug-Nov) | K48: 1962-03-07 | L48: N/A | M48: N/A | N48: N/A | O48: 3.14 | P48: N/A | Q48: 3.52 | R48: 3.74 | S48: N/A | T48: 4 | U48: 4.12 | V48: N/A | W48: N/A | X48: N/A | Y48: N/A | Z48: N/A | AA48: N/A | AB48: N/A | AC48: N/A | AD48: N/A | AE48: N/A | AF48: N/A | AG48: N/A | AH48: N/A | AI48: N/A | AJ48: N/A | AK48: N/A | AL48: N/A | AM48: N/A | AN48: N/A | AO48: N/A | AP48: N/A | AQ48: N/A | AR48: N/A | AS48: N/A | AT48: N/A | AU48: N/A | AV48: N/A | AW48: N/A | AX48: N/A | AY48: N/A | AZ48: N/A | BA48: N/A | BB48: N/A | BC48: N/A | BD48: N/A | BE48: N/A | BF48: N/A | BG48: N/A | BH48: N/A | BI48: N/A | BJ48: N/A | BK48: N/A | BL48: N/A | BM48: N/A | BN48: N/A | BO48: N/A | BP48: N/A | BQ48: N/A | BR48: N/A | BS48: N/A | BT48: N/A | BU48: N/A | BV48: N/A | BW48: N/A | BX48: N/A | BY48: N/A | BZ48: N/A | CA48: N/A | CB48: N/A | CC48: N/A | CD48: N/A | CE48: N/A | CF48: N/A | CG48: N/A | CH48: N/A | CI48: N/A | CJ48: N/A | CK48: N/A | CL48: N/A | CO48: 1951-09-01 | CP48: 6.9433 | CW48: 1958-09-01 | CX48: 6.381990706 | CY48: 2.167766258 | DC48: 2.167766258 | DI48: 1925Q1 | DJ48: 1925 | DK48: Q1 | DL48: 3 | DM48: 1925-03-31 | DN48: 20.539999
A49: Kennedy | B49: Macmillan | C49: Holyoake | G49: 1.1059 | H49: 4.780390417 | I49: 2.140412558 | J49: World Pop 3.1b Cuban Missile Crisis (Aug-Nov) | K49: 1962-03-08 | L49: N/A | M49: N/A | N49: N/A | O49: 3.11 | P49: N/A | Q49: 3.51 | R49: 3.72 | S49: N/A | T49: 3.98 | U49: 4.12 | V49: N/A | W49: N/A | X49: N/A | Y49: N/A | Z49: N/A | AA49: N/A | AB49: N/A | AC49: N/A | AD49: N/A | AE49: N/A | AF49: N/A | AG49: N/A | AH49: N/A | AI49: N/A | AJ49: N/A | AK49: N/A | AL49: N/A | AM49: N/A | AN49: N/A | AO49: N/A | AP49: N/A | AQ49: N/A | AR49: N/A | AS49: N/A | AT49: N/A | AU49: N/A | AV49: N/A | AW49: N/A | AX49: N/A | AY49: N/A | AZ49: N/A | BA49: N/A | BB49: N/A | BC49: N/A | BD49: N/A | BE49: N/A | BF49: N/A | BG49: N/A | BH49: N/A | BI49: N/A | BJ49: N/A | BK49: N/A | BL49: N/A | BM49: N/A | BN49: N/A | BO49: N/A | BP49: N/A | BQ49: N/A | BR49: N/A | BS49: N/A | BT49: N/A | BU49: N/A | BV49: N/A | BW49: N/A | BX49: N/A | BY49: N/A | BZ49: N/A | CA49: N/A | CB49: N/A | CC49: N/A | CD49: N/A | CE49: N/A | CF49: N/A | CG49: N/A | CH49: N/A | CI49: N/A | CJ49: N/A | CK49: N/A | CL49: N/A | CO49: 1951-10-01 | CP49: 6.77551 | CW49: 1958-10-01 | CX49: 6.440865159 | CY49: 2.147525677 | DC49: 2.147525677 | DI49: 1925Q2 | DJ49: 1925 | DK49: Q2 | DL49: 6 | DM49: 1925-06-30 | DN49: 0
A50: Kennedy | B50: Macmillan | C50: Holyoake | G50: 1.1059 | H50: 4.780390417 | I50: 2.140412558 | J50: World Pop 3.1b Cuban Missile Crisis (Aug-Nov) | K50: 1962-03-09 | L50: N/A | M50: N/A | N50: N/A | O50: 3.12 | P50: N/A | Q50: 3.53 | R50: 3.71 | S50: N/A | T50: 3.96 | U50: 4.12 | V50: N/A | W50: N/A | X50: N/A | Y50: N/A | Z50: N/A | AA50: N/A | AB50: N/A | AC50: N/A | AD50: N/A | AE50: N/A | AF50: N/A | AG50: N/A | AH50: N/A | AI50: N/A | AJ50: N/A | AK50: N/A | AL50: N/A | AM50: N/A | AN50: N/A | AO50: N/A | AP50: N/A | AQ50: N/A | AR50: N/A | AS50: N/A | AT50: N/A | AU50: N/A | AV50: N/A | AW50: N/A | AX50: N/A | AY50: N/A | AZ50: N/A | BA50: N/A | BB50: N/A | BC50: N/A | BD50: N/A | BE50: N/A | BF50: N/A | BG50: N/A | BH50: N/A | BI50: N/A | BJ50: N/A | BK50: N/A | BL50: N/A | BM50: N/A | BN50: N/A | BO50: N/A | BP50: N/A | BQ50: N/A | BR50: N/A | BS50: N/A | BT50: N/A | BU50: N/A | BV50: N/A | BW50: N/A | BX50: N/A | BY50: N/A | BZ50: N/A | CA50: N/A | CB50: N/A | CC50: N/A | CD50: N/A | CE50: N/A | CF50: N/A | CG50: N/A | CH50: N/A | CI50: N/A | CJ50: N/A | CK50: N/A | CL50: N/A | CO50: 1951-11-01 | CP50: 6.99187 | CW50: 1958-11-01 | CX50: 6.46441494 | CY50: 1.949860724 | DC50: 1.949860724 | DI50: 1925Q3 | DJ50: 1925 | DK50: Q3 | DL50: 9 | DM50: 1925-09-30 | DN50: 20.990437
A51: Kennedy | B51: Macmillan | C51: Holyoake | G51: 1.1059 | H51: 4.780390417 | I51: 2.140412558 | J51: World Pop 3.1b Cuban Missile Crisis (Aug-Nov) | K51: 1962-03-12 | L51: N/A | M51: N/A | N51: N/A | O51: 3.13 | P51: N/A | Q51: 3.54 | R51: 3.73 | S51: N/A | T51: 3.94 | U51: 4.12 | V51: N/A | W51: N/A | X51: N/A | Y51: N/A | Z51: N/A | AA51: N/A | AB51: N/A | AC51: N/A | AD51: N/A | AE51: N/A | AF51: N/A | AG51: N/A | AH51: N/A | AI51: N/A | AJ51: N/A | AK51: N/A | AL51: N/A | AM51: N/A | AN51: N/A | AO51: N/A | AP51: N/A | AQ51: N/A | AR51: N/A | AS51: N/A | AT51: N/A | AU51: N/A | AV51: N/A | AW51: N/A | AX51: N/A | AY51: N/A | AZ51: N/A | BA51: N/A | BB51: N/A | BC51: N/A | BD51: N/A | BE51: N/A | BF51: N/A | BG51: N/A | BH51: N/A | BI51: N/A | BJ51: N/A | BK51: N/A | BL51: N/A | BM51: N/A | BN51: N/A | BO51: N/A | BP51: N/A | BQ51: N/A | BR51: N/A | BS51: N/A | BT51: N/A | BU51: N/A | BV51: N/A | BW51: N/A | BX51: N/A | BY51: N/A | BZ51: N/A | CA51: N/A | CB51: N/A | CC51: N/A | CD51: N/A | CE51: N/A | CF51: N/A | CG51: N/A | CH51: N/A | CI51: N/A | CJ51: N/A | CK51: N/A | CL51: N/A | CO51: 1951-12-01 | CP51: 5.96477 | CW51: 1958-12-01 | CX51: 6.487964721 | CY51: 1.848428835 | DC51: 1.848428835 | DI51: 1925Q4 | DJ51: 1925 | DK51: Q4 | DL51: 12 | DM51: 1925-12-31 | DN51: 21.054785
A52: Kennedy | B52: Macmillan | C52: Holyoake | G52: 1.1059 | H52: 4.780390417 | I52: 2.140412558 | J52: World Pop 3.1b Cuban Missile Crisis (Aug-Nov) | K52: 1962-03-13 | L52: N/A | M52: N/A | N52: N/A | O52: 3.11 | P52: N/A | Q52: 3.53 | R52: 3.7 | S52: N/A | T52: 3.92 | U52: 4.12 | V52: N/A | W52: N/A | X52: N/A | Y52: N/A | Z52: N/A | AA52: N/A | AB52: N/A | AC52: N/A | AD52: N/A | AE52: N/A | AF52: N/A | AG52: N/A | AH52: N/A | AI52: N/A | AJ52: N/A | AK52: N/A | AL52: N/A | AM52: N/A | AN52: N/A | AO52: N/A | AP52: N/A | AQ52: N/A | AR52: N/A | AS52: N/A | AT52: N/A | AU52: N/A | AV52: N/A | AW52: N/A | AX52: N/A | AY52: N/A | AZ52: N/A | BA52: N/A | BB52: N/A | BC52: N/A | BD52: N/A | BE52: N/A | BF52: N/A | BG52: N/A | BH52: N/A | BI52: N/A | BJ52: N/A | BK52: N/A | BL52: N/A | BM52: N/A | BN52: N/A | BO52: N/A | BP52: N/A | BQ52: N/A | BR52: N/A | BS52: N/A | BT52: N/A | BU52: N/A | BV52: N/A | BW52: N/A | BX52: N/A | BY52: N/A | BZ52: N/A | CA52: N/A | CB52: N/A | CC52: N/A | CD52: N/A | CE52: N/A | CF52: N/A | CG52: N/A | CH52: N/A | CI52: N/A | CJ52: N/A | CK52: N/A | CL52: N/A | CO52: 1952-01-01 | CP52: 4.21592 | CW52: 1959-01-01 | CX52: 6.499739612 | CY52: 2.127659574 | DC52: 2.127659574 | DI52: 1926Q1 | DJ52: 1926 | DK52: Q1 | DL52: 3 | DM52: 1926-03-31 | DN52: 20.90035
A53: Kennedy | B53: Macmillan | C53: Holyoake | G53: 1.1059 | H53: 4.780390417 | I53: 2.140412558 | J53: World Pop 3.1b Cuban Missile Crisis (Aug-Nov) | K53: 1962-03-14 | L53: N/A | M53: N/A | N53: N/A | O53: 3.1 | P53: N/A | Q53: 3.53 | R53: 3.72 | S53: N/A | T53: 3.93 | U53: 4.12 | V53: N/A | W53: N/A | X53: N/A | Y53: N/A | Z53: N/A | AA53: N/A | AB53: N/A | AC53: N/A | AD53: N/A | AE53: N/A | AF53: N/A | AG53: N/A | AH53: N/A | AI53: N/A | AJ53: N/A | AK53: N/A | AL53: N/A | AM53: N/A | AN53: N/A | AO53: N/A | AP53: N/A | AQ53: N/A | AR53: N/A | AS53: N/A | AT53: N/A | AU53: N/A | AV53: N/A | AW53: N/A | AX53: N/A | AY53: N/A | AZ53: N/A | BA53: N/A | BB53: N/A | BC53: N/A | BD53: N/A | BE53: N/A | BF53: N/A | BG53: N/A | BH53: N/A | BI53: N/A | BJ53: N/A | BK53: N/A | BL53: N/A | BM53: N/A | BN53: N/A | BO53: N/A | BP53: N/A | BQ53: N/A | BR53: N/A | BS53: N/A | BT53: N/A | BU53: N/A | BV53: N/A | BW53: N/A | BX53: N/A | BY53: N/A | BZ53: N/A | CA53: N/A | CB53: N/A | CC53: N/A | CD53: N/A | CE53: N/A | CF53: N/A | CG53: N/A | CH53: N/A | CI53: N/A | CJ53: N/A | CK53: N/A | CL53: N/A | CO53: 1952-02-01 | CP53: 2.24545 | CW53: 1959-02-01 | CX53: 6.493852166 | CY53: 2.50929368 | DC53: 2.50929368 | DI53: 1926Q2 | DJ53: 1926 | DK53: Q2 | DL53: 6 | DM53: 1926-06-30 | DN53: 20.990437
A54: Kennedy | B54: Macmillan | C54: Holyoake | G54: 1.1059 | H54: 4.780390417 | I54: 2.140412558 | J54: World Pop 3.1b Cuban Missile Crisis (Aug-Nov) | K54: 1962-03-15 | L54: N/A | M54: N/A | N54: N/A | O54: 3.1 | P54: N/A | Q54: 3.52 | R54: 3.73 | S54: N/A | T54: 3.96 | U54: 4.04 | V54: N/A | W54: N/A | X54: N/A | Y54: N/A | Z54: N/A | AA54: N/A | AB54: N/A | AC54: N/A | AD54: N/A | AE54: N/A | AF54: N/A | AG54: N/A | AH54: N/A | AI54: N/A | AJ54: N/A | AK54: N/A | AL54: N/A | AM54: N/A | AN54: N/A | AO54: N/A | AP54: N/A | AQ54: N/A | AR54: N/A | AS54: N/A | AT54: N/A | AU54: N/A | AV54: N/A | AW54: N/A | AX54: N/A | AY54: N/A | AZ54: N/A | BA54: N/A | BB54: N/A | BC54: N/A | BD54: N/A | BE54: N/A | BF54: N/A | BG54: N/A | BH54: N/A | BI54: N/A | BJ54: N/A | BK54: N/A | BL54: N/A | BM54: N/A | BN54: N/A | BO54: N/A | BP54: N/A | BQ54: N/A | BR54: N/A | BS54: N/A | BT54: N/A | BU54: N/A | BV54: N/A | BW54: N/A | BX54: N/A | BY54: N/A | BZ54: N/A | CA54: N/A | CB54: N/A | CC54: N/A | CD54: N/A | CE54: N/A | CF54: N/A | CG54: N/A | CH54: N/A | CI54: N/A | CJ54: N/A | CK54: N/A | CL54: N/A | CO54: 1952-03-01 | CP54: 1.97063 | CW54: 1959-03-01 | CX54: 6.493852166 | CY54: 1.752767528 | DC54: 1.752767528 | DI54: 1926Q3 | DJ54: 1926 | DK54: Q3 | DL54: 9 | DM54: 1926-09-30 | DN54: 21.016177
A55: Kennedy | B55: Macmillan | C55: Holyoake | G55: 1.1059 | H55: 4.780390417 | I55: 2.140412558 | J55: World Pop 3.1b Cuban Missile Crisis (Aug-Nov) | K55: 1962-03-16 | L55: N/A | M55: N/A | N55: N/A | O55: 3.06 | P55: N/A | Q55: 3.48 | R55: 3.72 | S55: N/A | T55: 3.96 | U55: 4.04 | V55: N/A | W55: N/A | X55: N/A | Y55: N/A | Z55: N/A | AA55: N/A | AB55: N/A | AC55: N/A | AD55: N/A | AE55: N/A | AF55: N/A | AG55: N/A | AH55: N/A | AI55: N/A | AJ55: N/A | AK55: N/A | AL55: N/A | AM55: N/A | AN55: N/A | AO55: N/A | AP55: N/A | AQ55: N/A | AR55: N/A | AS55: N/A | AT55: N/A | AU55: N/A | AV55: N/A | AW55: N/A | AX55: N/A | AY55: N/A | AZ55: N/A | BA55: N/A | BB55: N/A | BC55: N/A | BD55: N/A | BE55: N/A | BF55: N/A | BG55: N/A | BH55: N/A | BI55: N/A | BJ55: N/A | BK55: N/A | BL55: N/A | BM55: N/A | BN55: N/A | BO55: N/A | BP55: N/A | BQ55: N/A | BR55: N/A | BS55: N/A | BT55: N/A | BU55: N/A | BV55: N/A | BW55: N/A | BX55: N/A | BY55: N/A | BZ55: N/A | CA55: N/A | CB55: N/A | CC55: N/A | CD55: N/A | CE55: N/A | CF55: N/A | CG55: N/A | CH55: N/A | CI55: N/A | CJ55: N/A | CK55: N/A | CL55: N/A | CO55: 1952-04-01 | CP55: 2.08333 | CW55: 1959-04-01 | CX55: 6.446752604 | CY55: -0.09124087591 | DC55: -0.09124087591 | DI55: 1926Q4 | DJ55: 1926 | DK55: Q4 | DL55: 12 | DM55: 1926-12-31 | DN55: 20.926089
A56: Kennedy | B56: Macmillan | C56: Holyoake | G56: 1.1059 | H56: 4.780390417 | I56: 2.140412558 | J56: World Pop 3.1b Cuban Missile Crisis (Aug-Nov) | K56: 1962-03-19 | L56: N/A | M56: N/A | N56: N/A | O56: 3.03 | P56: N/A | Q56: 3.44 | R56: 3.71 | S56: N/A | T56: 3.93 | U56: 4.04 | V56: N/A | W56: N/A | X56: N/A | Y56: N/A | Z56: N/A | AA56: N/A | AB56: N/A | AC56: N/A | AD56: N/A | AE56: N/A | AF56: N/A | AG56: N/A | AH56: N/A | AI56: N/A | AJ56: N/A | AK56: N/A | AL56: N/A | AM56: N/A | AN56: N/A | AO56: N/A | AP56: N/A | AQ56: N/A | AR56: N/A | AS56: N/A | AT56: N/A | AU56: N/A | AV56: N/A | AW56: N/A | AX56: N/A | AY56: N/A | AZ56: N/A | BA56: N/A | BB56: N/A | BC56: N/A | BD56: N/A | BE56: N/A | BF56: N/A | BG56: N/A | BH56: N/A | BI56: N/A | BJ56: N/A | BK56: N/A | BL56: N/A | BM56: N/A | BN56: N/A | BO56: N/A | BP56: N/A | BQ56: N/A | BR56: N/A | BS56: N/A | BT56: N/A | BU56: N/A | BV56: N/A | BW56: N/A | BX56: N/A | BY56: N/A | BZ56: N/A | CA56: N/A | CB56: N/A | CC56: N/A | CD56: N/A | CE56: N/A | CF56: N/A | CG56: N/A | CH56: N/A | CI56: N/A | CJ56: N/A | CK56: N/A | CL56: N/A | CO56: 1952-05-01 | CP56: 1.84686 | CW56: 1959-05-01 | CX56: 6.423202823 | CY56: -0.09157509158 | DC56: -0.09157509158 | DI56: 1927Q1 | DJ56: 1927 | DK56: Q1 | DL56: 3 | DM56: 1927-03-31 | DN56: 20.88748 | DO56: =100*(DN56/DN52-1) -> -0.06157791616
A57: Kennedy | B57: Macmillan | C57: Holyoake | G57: 1.1059 | H57: 4.780390417 | I57: 2.140412558 | J57: World Pop 3.1b Cuban Missile Crisis (Aug-Nov) | K57: 1962-03-20 | L57: N/A | M57: N/A | N57: N/A | O57: 3.02 | P57: N/A | Q57: 3.41 | R57: 3.67 | S57: N/A | T57: 3.91 | U57: 4.04 | V57: N/A | W57: N/A | X57: N/A | Y57: N/A | Z57: N/A | AA57: N/A | AB57: N/A | AC57: N/A | AD57: N/A | AE57: N/A | AF57: N/A | AG57: N/A | AH57: N/A | AI57: N/A | AJ57: N/A | AK57: N/A | AL57: N/A | AM57: N/A | AN57: N/A | AO57: N/A | AP57: N/A | AQ57: N/A | AR57: N/A | AS57: N/A | AT57: N/A | AU57: N/A | AV57: N/A | AW57: N/A | AX57: N/A | AY57: N/A | AZ57: N/A | BA57: N/A | BB57: N/A | BC57: N/A | BD57: N/A | BE57: N/A | BF57: N/A | BG57: N/A | BH57: N/A | BI57: N/A | BJ57: N/A | BK57: N/A | BL57: N/A | BM57: N/A | BN57: N/A | BO57: N/A | BP57: N/A | BQ57: N/A | BR57: N/A | BS57: N/A | BT57: N/A | BU57: N/A | BV57: N/A | BW57: N/A | BX57: N/A | BY57: N/A | BZ57: N/A | CA57: N/A | CB57: N/A | CC57: N/A | CD57: N/A | CE57: N/A | CF57: N/A | CG57: N/A | CH57: N/A | CI57: N/A | CJ57: N/A | CK57: N/A | CL57: N/A | CO57: 1952-06-01 | CP57: 2.31392 | CW57: 1959-06-01 | CX57: 6.434977713 | CY57: -0.8166969147 | DC57: -0.8166969147 | DI57: 1927Q2 | DJ57: 1927 | DK57: Q2 | DL57: 6 | DM57: 1927-06-30 | DN57: 20.810262 | DO57: =100*(DN57/DN53-1) -> -0.8583670745
A58: Kennedy | B58: Macmillan | C58: Holyoake | G58: 1.1059 | H58: 4.780390417 | I58: 2.140412558 | J58: World Pop 3.1b Cuban Missile Crisis (Aug-Nov) | K58: 1962-03-21 | L58: N/A | M58: N/A | N58: N/A | O58: 3.01 | P58: N/A | Q58: 3.37 | R58: 3.61 | S58: N/A | T58: 3.86 | U58: 4.04 | V58: N/A | W58: N/A | X58: N/A | Y58: N/A | Z58: N/A | AA58: N/A | AB58: N/A | AC58: N/A | AD58: N/A | AE58: N/A | AF58: N/A | AG58: N/A | AH58: N/A | AI58: N/A | AJ58: N/A | AK58: N/A | AL58: N/A | AM58: N/A | AN58: N/A | AO58: N/A | AP58: N/A | AQ58: N/A | AR58: N/A | AS58: N/A | AT58: N/A | AU58: N/A | AV58: N/A | AW58: N/A | AX58: N/A | AY58: N/A | AZ58: N/A | BA58: N/A | BB58: N/A | BC58: N/A | BD58: N/A | BE58: N/A | BF58: N/A | BG58: N/A | BH58: N/A | BI58: N/A | BJ58: N/A | BK58: N/A | BL58: N/A | BM58: N/A | BN58: N/A | BO58: N/A | BP58: N/A | BQ58: N/A | BR58: N/A | BS58: N/A | BT58: N/A | BU58: N/A | BV58: N/A | BW58: N/A | BX58: N/A | BY58: N/A | BZ58: N/A | CA58: N/A | CB58: N/A | CC58: N/A | CD58: N/A | CE58: N/A | CF58: N/A | CG58: N/A | CH58: N/A | CI58: N/A | CJ58: N/A | CK58: N/A | CL58: N/A | CO58: 1952-07-01 | CP58: 2.97183 | CW58: 1959-07-01 | CX58: 6.417315377 | CY58: 0.4608294931 | DC58: 0.4608294931 | DI58: 1927Q3 | DJ58: 1927 | DK58: Q3 | DL58: 9 | DM58: 1927-09-30 | DN58: 20.720175 | DO58: -1.408448359
A59: Kennedy | B59: Macmillan | C59: Holyoake | G59: 1.1059 | H59: 4.780390417 | I59: 2.140412558 | J59: World Pop 3.1b Cuban Missile Crisis (Aug-Nov) | K59: 1962-03-22 | L59: N/A | M59: N/A | N59: N/A | O59: 2.94 | P59: N/A | Q59: 3.29 | R59: 3.58 | S59: N/A | T59: 3.83 | U59: 4.04 | V59: N/A | W59: N/A | X59: N/A | Y59: N/A | Z59: N/A | AA59: N/A | AB59: N/A | AC59: N/A | AD59: N/A | AE59: N/A | AF59: N/A | AG59: N/A | AH59: N/A | AI59: N/A | AJ59: N/A | AK59: N/A | AL59: N/A | AM59: N/A | AN59: N/A | AO59: N/A | AP59: N/A | AQ59: N/A | AR59: N/A | AS59: N/A | AT59: N/A | AU59: N/A | AV59: N/A | AW59: N/A | AX59: N/A | AY59: N/A | AZ59: N/A | BA59: N/A | BB59: N/A | BC59: N/A | BD59: N/A | BE59: N/A | BF59: N/A | BG59: N/A | BH59: N/A | BI59: N/A | BJ59: N/A | BK59: N/A | BL59: N/A | BM59: N/A | BN59: N/A | BO59: N/A | BP59: N/A | BQ59: N/A | BR59: N/A | BS59: N/A | BT59: N/A | BU59: N/A | BV59: N/A | BW59: N/A | BX59: N/A | BY59: N/A | BZ59: N/A | CA59: N/A | CB59: N/A | CC59: N/A | CD59: N/A | CE59: N/A | CF59: N/A | CG59: N/A | CH59: N/A | CI59: N/A | CJ59: N/A | CK59: N/A | CL59: N/A | CO59: 1952-08-01 | CP59: 3.20959 | CW59: 1959-08-01 | CX59: 6.434977713 | CY59: 0.9233610342 | DC59: 0.9233610342 | DI59: 1927Q4 | DJ59: 1927 | DK59: Q4 | DL59: 12 | DM59: 1927-12-31 | DN59: 20.733044 | DO59: -0.9225087402
A60: Kennedy | B60: Macmillan | C60: Holyoake | G60: 1.1059 | H60: 4.780390417 | I60: 2.140412558 | J60: World Pop 3.1b Cuban Missile Crisis (Aug-Nov) | K60: 1962-03-23 | L60: N/A | M60: N/A | N60: N/A | O60: 2.94 | P60: N/A | Q60: 3.33 | R60: 3.62 | S60: N/A | T60: 3.87 | U60: 4.04 | V60: N/A | W60: N/A | X60: N/A | Y60: N/A | Z60: N/A | AA60: N/A | AB60: N/A | AC60: N/A | AD60: N/A | AE60: N/A | AF60: N/A | AG60: N/A | AH60: N/A | AI60: N/A | AJ60: N/A | AK60: N/A | AL60: N/A | AM60: N/A | AN60: N/A | AO60: N/A | AP60: N/A | AQ60: N/A | AR60: N/A | AS60: N/A | AT60: N/A | AU60: N/A | AV60: N/A | AW60: N/A | AX60: N/A | AY60: N/A | AZ60: N/A | BA60: N/A | BB60: N/A | BC60: N/A | BD60: N/A | BE60: N/A | BF60: N/A | BG60: N/A | BH60: N/A | BI60: N/A | BJ60: N/A | BK60: N/A | BL60: N/A | BM60: N/A | BN60: N/A | BO60: N/A | BP60: N/A | BQ60: N/A | BR60: N/A | BS60: N/A | BT60: N/A | BU60: N/A | BV60: N/A | BW60: N/A | BX60: N/A | BY60: N/A | BZ60: N/A | CA60: N/A | CB60: N/A | CC60: N/A | CD60: N/A | CE60: N/A | CF60: N/A | CG60: N/A | CH60: N/A | CI60: N/A | CJ60: N/A | CK60: N/A | CL60: N/A | CO60: 1952-09-01 | CP60: 2.30503 | CW60: 1959-09-01 | CX60: 6.399653042 | CY60: 0.2767527675 | DC60: 0.2767527675 | DI60: 1928Q1 | DJ60: 1928 | DK60: Q1 | DL60: 3 | DM60: 1928-03-31 | DN60: 20.733044 | DO60: -0.7393711448
A61: Kennedy | B61: Macmillan | C61: Holyoake | G61: 1.1059 | H61: 4.780390417 | I61: 2.140412558 | J61: World Pop 3.1b Cuban Missile Crisis (Aug-Nov) | K61: 1962-03-26 | L61: N/A | M61: N/A | N61: N/A | O61: 2.95 | P61: N/A | Q61: 3.37 | R61: 3.65 | S61: N/A | T61: 3.89 | U61: 4.04 | V61: N/A | W61: N/A | X61: N/A | Y61: N/A | Z61: N/A | AA61: N/A | AB61: N/A | AC61: N/A | AD61: N/A | AE61: N/A | AF61: N/A | AG61: N/A | AH61: N/A | AI61: N/A | AJ61: N/A | AK61: N/A | AL61: N/A | AM61: N/A | AN61: N/A | AO61: N/A | AP61: N/A | AQ61: N/A | AR61: N/A | AS61: N/A | AT61: N/A | AU61: N/A | AV61: N/A | AW61: N/A | AX61: N/A | AY61: N/A | AZ61: N/A | BA61: N/A | BB61: N/A | BC61: N/A | BD61: N/A | BE61: N/A | BF61: N/A | BG61: N/A | BH61: N/A | BI61: N/A | BJ61: N/A | BK61: N/A | BL61: N/A | BM61: N/A | BN61: N/A | BO61: N/A | BP61: N/A | BQ61: N/A | BR61: N/A | BS61: N/A | BT61: N/A | BU61: N/A | BV61: N/A | BW61: N/A | BX61: N/A | BY61: N/A | BZ61: N/A | CA61: N/A | CB61: N/A | CC61: N/A | CD61: N/A | CE61: N/A | CF61: N/A | CG61: N/A | CH61: N/A | CI61: N/A | CJ61: N/A | CK61: N/A | CL61: N/A | CO61: 1952-10-01 | CP61: 2.02599 | CW61: 1959-10-01 | CX61: 6.429090268 | CY61: -0.1828153565 | DC61: -0.1828153565 | DI61: 1928Q2 | DJ61: 1928 | DK61: Q2 | DL61: 6 | DM61: 1928-06-30 | DN61: 20.861741 | DO61: 0.247373147
A62: Kennedy | B62: Macmillan | C62: Holyoake | G62: 1.1059 | H62: 4.780390417 | I62: 2.140412558 | J62: World Pop 3.1b Cuban Missile Crisis (Aug-Nov) | K62: 1962-03-27 | L62: N/A | M62: N/A | N62: N/A | O62: 2.95 | P62: N/A | Q62: 3.39 | R62: 3.65 | S62: N/A | T62: 3.9 | U62: 4.04 | V62: N/A | W62: N/A | X62: N/A | Y62: N/A | Z62: N/A | AA62: N/A | AB62: N/A | AC62: N/A | AD62: N/A | AE62: N/A | AF62: N/A | AG62: N/A | AH62: N/A | AI62: N/A | AJ62: N/A | AK62: N/A | AL62: N/A | AM62: N/A | AN62: N/A | AO62: N/A | AP62: N/A | AQ62: N/A | AR62: N/A | AS62: N/A | AT62: N/A | AU62: N/A | AV62: N/A | AW62: N/A | AX62: N/A | AY62: N/A | AZ62: N/A | BA62: N/A | BB62: N/A | BC62: N/A | BD62: N/A | BE62: N/A | BF62: N/A | BG62: N/A | BH62: N/A | BI62: N/A | BJ62: N/A | BK62: N/A | BL62: N/A | BM62: N/A | BN62: N/A | BO62: N/A | BP62: N/A | BQ62: N/A | BR62: N/A | BS62: N/A | BT62: N/A | BU62: N/A | BV62: N/A | BW62: N/A | BX62: N/A | BY62: N/A | BZ62: N/A | CA62: N/A | CB62: N/A | CC62: N/A | CD62: N/A | CE62: N/A | CF62: N/A | CG62: N/A | CH62: N/A | CI62: N/A | CJ62: N/A | CK62: N/A | CL62: N/A | CO62: 1952-11-01 | CP62: 1.40578 | CW62: 1959-11-01 | CX62: 6.47618983 | CY62: 0.1821493625 | DC62: 0.1821493625 | DI62: 1928Q3 | DJ62: 1928 | DK62: Q3 | DL62: 9 | DM62: 1928-09-30 | DN62: 20.758783 | DO62: 0.1863304726
A63: Kennedy | B63: Macmillan | C63: Holyoake | G63: 1.1059 | H63: 4.780390417 | I63: 2.140412558 | J63: World Pop 3.1b Cuban Missile Crisis (Aug-Nov) | K63: 1962-03-28 | L63: N/A | M63: N/A | N63: N/A | O63: 2.96 | P63: N/A | Q63: 3.39 | R63: 3.64 | S63: N/A | T63: 3.9 | U63: 4.04 | V63: N/A | W63: N/A | X63: N/A | Y63: N/A | Z63: N/A | AA63: N/A | AB63: N/A | AC63: N/A | AD63: N/A | AE63: N/A | AF63: N/A | AG63: N/A | AH63: N/A | AI63: N/A | AJ63: N/A | AK63: N/A | AL63: N/A | AM63: N/A | AN63: N/A | AO63: N/A | AP63: N/A | AQ63: N/A | AR63: N/A | AS63: N/A | AT63: N/A | AU63: N/A | AV63: N/A | AW63: N/A | AX63: N/A | AY63: N/A | AZ63: N/A | BA63: N/A | BB63: N/A | BC63: N/A | BD63: N/A | BE63: N/A | BF63: N/A | BG63: N/A | BH63: N/A | BI63: N/A | BJ63: N/A | BK63: N/A | BL63: N/A | BM63: N/A | BN63: N/A | BO63: N/A | BP63: N/A | BQ63: N/A | BR63: N/A | BS63: N/A | BT63: N/A | BU63: N/A | BV63: N/A | BW63: N/A | BX63: N/A | BY63: N/A | BZ63: N/A | CA63: N/A | CB63: N/A | CC63: N/A | CD63: N/A | CE63: N/A | CF63: N/A | CG63: N/A | CH63: N/A | CI63: N/A | CJ63: N/A | CK63: N/A | CL63: N/A | CO63: 1952-12-01 | CP63: 0.90669 | CW63: 1959-12-01 | CX63: 6.487964721 | CY63: 0 | DC63: 0 | DI63: 1928Q4 | DJ63: 1928 | DK63: Q4 | DL63: 12 | DM63: 1928-12-31 | DN63: 20.861741 | DO63: 0.6207337427
A64: Kennedy | B64: Macmillan | C64: Holyoake | G64: 1.1059 | H64: 4.780390417 | I64: 2.140412558 | J64: World Pop 3.1b Cuban Missile Crisis (Aug-Nov) | K64: 1962-03-29 | L64: N/A | M64: N/A | N64: N/A | O64: 2.96 | P64: N/A | Q64: 3.4 | R64: 3.64 | S64: N/A | T64: 3.9 | U64: 4.04 | V64: N/A | W64: N/A | X64: N/A | Y64: N/A | Z64: N/A | AA64: N/A | AB64: N/A | AC64: N/A | AD64: N/A | AE64: N/A | AF64: N/A | AG64: N/A | AH64: N/A | AI64: N/A | AJ64: N/A | AK64: N/A | AL64: N/A | AM64: N/A | AN64: N/A | AO64: N/A | AP64: N/A | AQ64: N/A | AR64: N/A | AS64: N/A | AT64: N/A | AU64: N/A | AV64: N/A | AW64: N/A | AX64: N/A | AY64: N/A | AZ64: N/A | BA64: N/A | BB64: N/A | BC64: N/A | BD64: N/A | BE64: N/A | BF64: N/A | BG64: N/A | BH64: N/A | BI64: N/A | BJ64: N/A | BK64: N/A | BL64: N/A | BM64: N/A | BN64: N/A | BO64: N/A | BP64: N/A | BQ64: N/A | BR64: N/A | BS64: N/A | BT64: N/A | BU64: N/A | BV64: N/A | BW64: N/A | BX64: N/A | BY64: N/A | BZ64: N/A | CA64: N/A | CB64: N/A | CC64: N/A | CD64: N/A | CE64: N/A | CF64: N/A | CG64: N/A | CH64: N/A | CI64: N/A | CJ64: N/A | CK64: N/A | CL64: N/A | CO64: 1953-01-01 | CP64: 0.71834 | CW64: 1960-01-01 | CX64: 6.470302385 | CY64: -0.4528985507 | DC64: -0.4528985507 | DI64: 1929Q1 | DJ64: 1929 | DK64: Q1 | DL64: 3 | DM64: 1929-03-31 | DN64: 20.745914 | DO64: 0.06207482124
A65: Kennedy | B65: Macmillan | C65: Holyoake | G65: 1.1059 | H65: 4.780390417 | I65: 2.140412558 | J65: World Pop 3.1b Cuban Missile Crisis (Aug-Nov) | K65: 1962-03-30 | L65: N/A | M65: N/A | N65: N/A | O65: 2.97 | P65: N/A | Q65: 3.39 | R65: 3.61 | S65: N/A | T65: 3.86 | U65: 4.04 | V65: N/A | W65: N/A | X65: N/A | Y65: N/A | Z65: N/A | AA65: N/A | AB65: N/A | AC65: N/A | AD65: N/A | AE65: N/A | AF65: N/A | AG65: N/A | AH65: N/A | AI65: N/A | AJ65: N/A | AK65: N/A | AL65: N/A | AM65: N/A | AN65: N/A | AO65: N/A | AP65: N/A | AQ65: N/A | AR65: N/A | AS65: N/A | AT65: N/A | AU65: N/A | AV65: N/A | AW65: N/A | AX65: N/A | AY65: N/A | AZ65: N/A | BA65: N/A | BB65: N/A | BC65: N/A | BD65: N/A | BE65: N/A | BF65: N/A | BG65: N/A | BH65: N/A | BI65: N/A | BJ65: N/A | BK65: N/A | BL65: N/A | BM65: N/A | BN65: N/A | BO65: N/A | BP65: N/A | BQ65: N/A | BR65: N/A | BS65: N/A | BT65: N/A | BU65: N/A | BV65: N/A | BW65: N/A | BX65: N/A | BY65: N/A | BZ65: N/A | CA65: N/A | CB65: N/A | CC65: N/A | CD65: N/A | CE65: N/A | CF65: N/A | CG65: N/A | CH65: N/A | CI65: N/A | CJ65: N/A | CK65: N/A | CL65: N/A | CO65: 1953-02-01 | CP65: 0.68156 | CW65: 1960-02-01 | CX65: 6.470302385 | CY65: -0.3626473255 | DC65: -0.3626473255 | DI65: 1929Q2 | DJ65: 1929 | DK65: Q2 | DL65: 6 | DM65: 1929-06-30 | DN65: 20.707304 | DO65: -0.7402881667
A66: Kennedy | B66: Macmillan | C66: Holyoake | G66: 1.34183 | H66: 5.677405119 | I66: 2.923474652 | J66: World Pop 3.1b Cuban Missile Crisis (Aug-Nov) | K66: 1962-04-02 | L66: N/A | M66: N/A | N66: N/A | O66: 2.95 | P66: N/A | Q66: 3.38 | R66: 3.58 | S66: N/A | T66: 3.86 | U66: 4.04 | V66: N/A | W66: N/A | X66: N/A | Y66: N/A | Z66: N/A | AA66: N/A | AB66: N/A | AC66: N/A | AD66: N/A | AE66: N/A | AF66: N/A | AG66: N/A | AH66: N/A | AI66: N/A | AJ66: N/A | AK66: N/A | AL66: N/A | AM66: N/A | AN66: N/A | AO66: N/A | AP66: N/A | AQ66: N/A | AR66: N/A | AS66: N/A | AT66: N/A | AU66: N/A | AV66: N/A | AW66: N/A | AX66: N/A | AY66: N/A | AZ66: N/A | BA66: N/A | BB66: N/A | BC66: N/A | BD66: N/A | BE66: N/A | BF66: N/A | BG66: N/A | BH66: N/A | BI66: N/A | BJ66: N/A | BK66: N/A | BL66: N/A | BM66: N/A | BN66: N/A | BO66: N/A | BP66: N/A | BQ66: N/A | BR66: N/A | BS66: N/A | BT66: N/A | BU66: N/A | BV66: N/A | BW66: N/A | BX66: N/A | BY66: N/A | BZ66: N/A | CA66: N/A | CB66: N/A | CC66: N/A | CD66: N/A | CE66: N/A | CF66: N/A | CG66: N/A | CH66: N/A | CI66: N/A | CJ66: N/A | CK66: N/A | CL66: N/A | CO66: 1953-03-01 | CP66: 0.90944 | CW66: 1960-03-01 | CX66: 6.458527495 | CY66: -0.5439709882 | DC66: -0.5439709882 | DI66: 1929Q3 | DJ66: 1929 | DK66: Q3 | DL66: 9 | DM66: 1929-09-30 | DN66: 20.762972 | DO66: 0.02017941032
A67: Kennedy | B67: Macmillan | C67: Holyoake | G67: 1.34183 | H67: 5.677405119 | I67: 2.923474652 | J67: World Pop 3.1b Cuban Missile Crisis (Aug-Nov) | K67: 1962-04-03 | L67: N/A | M67: N/A | N67: N/A | O67: 2.93 | P67: N/A | Q67: 3.36 | R67: 3.55 | S67: N/A | T67: 3.83 | U67: 4.04 | V67: N/A | W67: N/A | X67: N/A | Y67: N/A | Z67: N/A | AA67: N/A | AB67: N/A | AC67: N/A | AD67: N/A | AE67: N/A | AF67: N/A | AG67: N/A | AH67: N/A | AI67: N/A | AJ67: N/A | AK67: N/A | AL67: N/A | AM67: N/A | AN67: N/A | AO67: N/A | AP67: N/A | AQ67: N/A | AR67: N/A | AS67: N/A | AT67: N/A | AU67: N/A | AV67: N/A | AW67: N/A | AX67: N/A | AY67: N/A | AZ67: N/A | BA67: N/A | BB67: N/A | BC67: N/A | BD67: N/A | BE67: N/A | BF67: N/A | BG67: N/A | BH67: N/A | BI67: N/A | BJ67: N/A | BK67: N/A | BL67: N/A | BM67: N/A | BN67: N/A | BO67: N/A | BP67: N/A | BQ67: N/A | BR67: N/A | BS67: N/A | BT67: N/A | BU67: N/A | BV67: N/A | BW67: N/A | BX67: N/A | BY67: N/A | BZ67: N/A | CA67: N/A | CB67: N/A | CC67: N/A | CD67: N/A | CE67: N/A | CF67: N/A | CG67: N/A | CH67: N/A | CI67: N/A | CJ67: N/A | CK67: N/A | CL67: N/A | CO67: 1953-04-01 | CP67: 0.86924 | CW67: 1960-04-01 | CX67: 6.493852166 | CY67: 0.7305936073 | DC67: 0.7305936073 | DI67: 1929Q4 | DJ67: 1929 | DK67: Q4 | DL67: 12 | DM67: 1929-12-31 | DN67: 20.762972 | DO67: -0.4734456247
A68: Kennedy | B68: Macmillan | C68: Holyoake | G68: =VLOOKUP(K68,$CO$4:$CP$870,2,TRUE) -> 1.34183 | H68: =VLOOKUP(K68,$CW$4:$DC$831,7,TRUE) -> 5.677405119 | I68: =VLOOKUP(K68,$DM$5:$DO$832,3,TRUE) -> 2.923474652 | J68: World Pop 3.1b Cuban Missile Crisis (Aug-Nov) | K68: 1962-04-04 | L68: N/A | M68: N/A | N68: N/A | O68: 2.88 | P68: N/A | Q68: 3.28 | R68: 3.51 | S68: N/A | T68: 3.78 | U68: 4.04 | V68: N/A | W68: N/A | X68: N/A | Y68: N/A | Z68: N/A | AA68: N/A | AB68: N/A | AC68: N/A | AD68: N/A | AE68: N/A | AF68: N/A | AG68: N/A | AH68: N/A | AI68: N/A | AJ68: N/A | AK68: N/A | AL68: N/A | AM68: N/A | AN68: N/A | AO68: N/A | AP68: N/A | AQ68: N/A | AR68: N/A | AS68: N/A | AT68: N/A | AU68: N/A | AV68: N/A | AW68: N/A | AX68: N/A | AY68: N/A | AZ68: N/A | BA68: N/A | BB68: N/A | BC68: N/A | BD68: N/A | BE68: N/A | BF68: N/A | BG68: N/A | BH68: N/A | BI68: N/A | BJ68: N/A | BK68: N/A | BL68: N/A | BM68: N/A | BN68: N/A | BO68: N/A | BP68: N/A | BQ68: N/A | BR68: N/A | BS68: N/A | BT68: N/A | BU68: N/A | BV68: N/A | BW68: N/A | BX68: N/A | BY68: N/A | BZ68: N/A | CA68: N/A | CB68: N/A | CC68: N/A | CD68: N/A | CE68: N/A | CF68: N/A | CG68: N/A | CH68: N/A | CI68: N/A | CJ68: N/A | CK68: N/A | CL68: N/A | CO68: 1953-05-01 | CP68: 0.86891 | CW68: 1960-05-01 | CX68: 6.493852166 | CY68: 1.099908341 | DC68: 1.099908341 | DI68: 1930Q1 | DJ68: 1930 | DK68: Q1 | DL68: 3 | DM68: 1930-03-31 | DN68: 20.618066 | DO68: -0.6162562903
A69: Kennedy | B69: Macmillan | C69: Holyoake | G69: 1.34183 | H69: 5.677405119 | I69: 2.923474652 | J69: World Pop 3.1b Cuban Missile Crisis (Aug-Nov) | K69: 1962-04-05 | L69: N/A | M69: N/A | N69: N/A | O69: 2.89 | P69: N/A | Q69: 3.34 | R69: 3.56 | S69: N/A | T69: 3.84 | U69: 4.04 | V69: N/A | W69: N/A | X69: N/A | Y69: N/A | Z69: N/A | AA69: N/A | AB69: N/A | AC69: N/A | AD69: N/A | AE69: N/A | AF69: N/A | AG69: N/A | AH69: N/A | AI69: N/A | AJ69: N/A | AK69: N/A | AL69: N/A | AM69: N/A | AN69: N/A | AO69: N/A | AP69: N/A | AQ69: N/A | AR69: N/A | AS69: N/A | AT69: N/A | AU69: N/A | AV69: N/A | AW69: N/A | AX69: N/A | AY69: N/A | AZ69: N/A | BA69: N/A | BB69: N/A | BC69: N/A | BD69: N/A | BE69: N/A | BF69: N/A | BG69: N/A | BH69: N/A | BI69: N/A | BJ69: N/A | BK69: N/A | BL69: N/A | BM69: N/A | BN69: N/A | BO69: N/A | BP69: N/A | BQ69: N/A | BR69: N/A | BS69: N/A | BT69: N/A | BU69: N/A | BV69: N/A | BW69: N/A | BX69: N/A | BY69: N/A | BZ69: N/A | CA69: N/A | CB69: N/A | CC69: N/A | CD69: N/A | CE69: N/A | CF69: N/A | CG69: N/A | CH69: N/A | CI69: N/A | CJ69: N/A | CK69: N/A | CL69: N/A | CO69: 1953-06-01 | CP69: 0.90464 | CW69: 1960-06-01 | CX69: 6.529176838 | CY69: 1.463860933 | DC69: 1.463860933 | DI69: 1930Q2 | DJ69: 1930 | DK69: Q2 | DL69: 6 | DM69: 1930-06-30 | DN69: 20.493861 | DO69: -1.030761899
A70: Kennedy | B70: Macmillan | C70: Holyoake | G70: 1.34183 | H70: 5.677405119 | I70: 2.923474652 | J70: World Pop 3.1b Cuban Missile Crisis (Aug-Nov) | K70: 1962-04-06 | L70: N/A | M70: N/A | N70: N/A | O70: 2.89 | P70: N/A | Q70: 3.32 | R70: 3.55 | S70: N/A | T70: 3.81 | U70: 4.04 | V70: N/A | W70: N/A | X70: N/A | Y70: N/A | Z70: N/A | AA70: N/A | AB70: N/A | AC70: N/A | AD70: N/A | AE70: N/A | AF70: N/A | AG70: N/A | AH70: N/A | AI70: N/A | AJ70: N/A | AK70: N/A | AL70: N/A | AM70: N/A | AN70: N/A | AO70: N/A | AP70: N/A | AQ70: N/A | AR70: N/A | AS70: N/A | AT70: N/A | AU70: N/A | AV70: N/A | AW70: N/A | AX70: N/A | AY70: N/A | AZ70: N/A | BA70: N/A | BB70: N/A | BC70: N/A | BD70: N/A | BE70: N/A | BF70: N/A | BG70: N/A | BH70: N/A | BI70: N/A | BJ70: N/A | BK70: N/A | BL70: N/A | BM70: N/A | BN70: N/A | BO70: N/A | BP70: N/A | BQ70: N/A | BR70: N/A | BS70: N/A | BT70: N/A | BU70: N/A | BV70: N/A | BW70: N/A | BX70: N/A | BY70: N/A | BZ70: N/A | CA70: N/A | CB70: N/A | CC70: N/A | CD70: N/A | CE70: N/A | CF70: N/A | CG70: N/A | CH70: N/A | CI70: N/A | CJ70: N/A | CK70: N/A | CL70: N/A | CO70: 1953-07-01 | CP70: 0.41229 | CW70: 1960-07-01 | CX70: 6.540951729 | CY70: 1.926605505 | DC70: 1.926605505 | DI70: 1930Q3 | DJ70: =LEFT(DI70,4) -> 1930 | DK70: =RIGHT(DI70,2) -> Q3 | DL70: =IF(DK70="Q1",3,IF(DK70="Q2",6,IF(DK70="Q3",9,12))) -> 9 | DM70: =DATE(DJ70,DL70+1,) -> 1930-09-30 | DN70: 20.286852 | DO70: -2.293120657
A71: Kennedy | B71: Macmillan | C71: Holyoake | G71: 1.34183 | H71: 5.677405119 | I71: 2.923474652 | J71: World Pop 3.1b Cuban Missile Crisis (Aug-Nov) | K71: 1962-04-09 | L71: N/A | M71: N/A | N71: N/A | O71: 2.9 | P71: N/A | Q71: 3.33 | R71: 3.57 | S71: N/A | T71: 3.83 | U71: 4.04 | V71: N/A | W71: N/A | X71: N/A | Y71: N/A | Z71: N/A | AA71: N/A | AB71: N/A | AC71: N/A | AD71: N/A | AE71: N/A | AF71: N/A | AG71: N/A | AH71: N/A | AI71: N/A | AJ71: N/A | AK71: N/A | AL71: N/A | AM71: N/A | AN71: N/A | AO71: N/A | AP71: N/A | AQ71: N/A | AR71: N/A | AS71: N/A | AT71: N/A | AU71: N/A | AV71: N/A | AW71: N/A | AX71: N/A | AY71: N/A | AZ71: N/A | BA71: N/A | BB71: N/A | BC71: N/A | BD71: N/A | BE71: N/A | BF71: N/A | BG71: N/A | BH71: N/A | BI71: N/A | BJ71: N/A | BK71: N/A | BL71: N/A | BM71: N/A | BN71: N/A | BO71: N/A | BP71: N/A | BQ71: N/A | BR71: N/A | BS71: N/A | BT71: N/A | BU71: N/A | BV71: N/A | BW71: N/A | BX71: N/A | BY71: N/A | BZ71: N/A | CA71: N/A | CB71: N/A | CC71: N/A | CD71: N/A | CE71: N/A | CF71: N/A | CG71: N/A | CH71: N/A | CI71: N/A | CJ71: N/A | CK71: N/A | CL71: N/A | CO71: 1953-08-01 | CP71: 0.59948 | CW71: 1960-08-01 | CX71: 6.499739612 | CY71: 1.006404392 | DC71: 1.006404392 | DI71: 1930Q4 | DJ71: 1930 | DK71: Q4 | DL71: 12 | DM71: 1930-12-31 | DN71: 19.934937 | DO71: -3.988036973
A72: Kennedy | B72: Macmillan | C72: Holyoake | G72: 1.34183 | H72: 5.677405119 | I72: 2.923474652 | J72: World Pop 3.1b Cuban Missile Crisis (Aug-Nov) | K72: 1962-04-10 | L72: N/A | M72: N/A | N72: N/A | O72: 2.94 | P72: N/A | Q72: 3.36 | R72: 3.57 | S72: N/A | T72: 3.83 | U72: 4.04 | V72: N/A | W72: N/A | X72: N/A | Y72: N/A | Z72: N/A | AA72: N/A | AB72: N/A | AC72: N/A | AD72: N/A | AE72: N/A | AF72: N/A | AG72: N/A | AH72: N/A | AI72: N/A | AJ72: N/A | AK72: N/A | AL72: N/A | AM72: N/A | AN72: N/A | AO72: N/A | AP72: N/A | AQ72: N/A | AR72: N/A | AS72: N/A | AT72: N/A | AU72: N/A | AV72: N/A | AW72: N/A | AX72: N/A | AY72: N/A | AZ72: N/A | BA72: N/A | BB72: N/A | BC72: N/A | BD72: N/A | BE72: N/A | BF72: N/A | BG72: N/A | BH72: N/A | BI72: N/A | BJ72: N/A | BK72: N/A | BL72: N/A | BM72: N/A | BN72: N/A | BO72: N/A | BP72: N/A | BQ72: N/A | BR72: N/A | BS72: N/A | BT72: N/A | BU72: N/A | BV72: N/A | BW72: N/A | BX72: N/A | BY72: N/A | BZ72: N/A | CA72: N/A | CB72: N/A | CC72: N/A | CD72: N/A | CE72: N/A | CF72: N/A | CG72: N/A | CH72: N/A | CI72: N/A | CJ72: N/A | CK72: N/A | CL72: N/A | CO72: 1953-09-01 | CP72: 0.97634 | CW72: 1960-09-01 | CX72: 6.505627057 | CY72: 1.655933763 | DC72: 1.655933763 | DI72: 1931Q1 | DJ72: 1931 | DK72: Q1 | DL72: 3 | DM72: 1931-03-31 | DN72: 19.29321 | DO72: -6.425704525
A73: Kennedy | B73: Macmillan | C73: Holyoake | G73: 1.34183 | H73: 5.677405119 | I73: 2.923474652 | J73: World Pop 3.1b Cuban Missile Crisis (Aug-Nov) | K73: 1962-04-11 | L73: N/A | M73: N/A | N73: N/A | O73: 3 | P73: N/A | Q73: 3.41 | R73: 3.61 | S73: N/A | T73: 3.87 | U73: 4.04 | V73: N/A | W73: N/A | X73: N/A | Y73: N/A | Z73: N/A | AA73: N/A | AB73: N/A | AC73: N/A | AD73: N/A | AE73: N/A | AF73: N/A | AG73: N/A | AH73: N/A | AI73: N/A | AJ73: N/A | AK73: N/A | AL73: N/A | AM73: N/A | AN73: N/A | AO73: N/A | AP73: N/A | AQ73: N/A | AR73: N/A | AS73: N/A | AT73: N/A | AU73: N/A | AV73: N/A | AW73: N/A | AX73: N/A | AY73: N/A | AZ73: N/A | BA73: N/A | BB73: N/A | BC73: N/A | BD73: N/A | BE73: N/A | BF73: N/A | BG73: N/A | BH73: N/A | BI73: N/A | BJ73: N/A | BK73: N/A | BL73: N/A | BM73: N/A | BN73: N/A | BO73: N/A | BP73: N/A | BQ73: N/A | BR73: N/A | BS73: N/A | BT73: N/A | BU73: N/A | BV73: N/A | BW73: N/A | BX73: N/A | BY73: N/A | BZ73: N/A | CA73: N/A | CB73: N/A | CC73: N/A | CD73: N/A | CE73: N/A | CF73: N/A | CG73: N/A | CH73: N/A | CI73: N/A | CJ73: N/A | CK73: N/A | CL73: N/A | CO73: 1953-10-01 | CP73: 0.97415 | CW73: 1960-10-01 | CX73: 6.558614065 | CY73: 2.014652015 | DC73: 2.014652015 | DI73: 1931Q2 | DJ73: 1931 | DK73: Q2 | DL73: 6 | DM73: 1931-06-30 | DN73: 18.899894 | DO73: -7.77777794
A74: Kennedy | B74: Macmillan | C74: Holyoake | G74: 1.34183 | H74: 5.677405119 | I74: 2.923474652 | J74: World Pop 3.1b Cuban Missile Crisis (Aug-Nov) | K74: 1962-04-12 | L74: N/A | M74: N/A | N74: N/A | O74: 3 | P74: N/A | Q74: 3.4 | R74: 3.61 | S74: N/A | T74: 3.86 | U74: 4.04 | V74: N/A | W74: N/A | X74: N/A | Y74: N/A | Z74: N/A | AA74: N/A | AB74: N/A | AC74: N/A | AD74: N/A | AE74: N/A | AF74: N/A | AG74: N/A | AH74: N/A | AI74: N/A | AJ74: N/A | AK74: N/A | AL74: N/A | AM74: N/A | AN74: N/A | AO74: N/A | AP74: N/A | AQ74: N/A | AR74: N/A | AS74: N/A | AT74: N/A | AU74: N/A | AV74: N/A | AW74: N/A | AX74: N/A | AY74: N/A | AZ74: N/A | BA74: N/A | BB74: N/A | BC74: N/A | BD74: N/A | BE74: N/A | BF74: N/A | BG74: N/A | BH74: N/A | BI74: N/A | BJ74: N/A | BK74: N/A | BL74: N/A | BM74: N/A | BN74: N/A | BO74: N/A | BP74: N/A | BQ74: N/A | BR74: N/A | BS74: N/A | BT74: N/A | BU74: N/A | BV74: N/A | BW74: N/A | BX74: N/A | BY74: N/A | BZ74: N/A | CA74: N/A | CB74: N/A | CC74: N/A | CD74: N/A | CE74: N/A | CF74: N/A | CG74: N/A | CH74: N/A | CI74: N/A | CJ74: N/A | CK74: N/A | CL74: N/A | CO74: 1953-11-01 | CP74: 0.59948 | CW74: 1960-11-01 | CX74: 6.588051291 | CY74: 1.727272727 | DC74: 1.727272727 | DI74: 1931Q3 | DJ74: 1931 | DK74: Q3 | DL74: 9 | DM74: 1931-09-30 | DN74: 18.444475 | DO74: -9.081630802
A75: Kennedy | B75: Macmillan | C75: Holyoake | G75: 1.34183 | H75: 5.677405119 | I75: 2.923474652 | J75: World Pop 3.1b Cuban Missile Crisis (Aug-Nov) | K75: 1962-04-13 | L75: N/A | M75: N/A | N75: N/A | O75: 3 | P75: N/A | Q75: 3.38 | R75: 3.6 | S75: N/A | T75: 3.85 | U75: 4.04 | V75: N/A | W75: N/A | X75: N/A | Y75: N/A | Z75: N/A | AA75: N/A | AB75: N/A | AC75: N/A | AD75: N/A | AE75: N/A | AF75: N/A | AG75: N/A | AH75: N/A | AI75: N/A | AJ75: N/A | AK75: N/A | AL75: N/A | AM75: N/A | AN75: N/A | AO75: N/A | AP75: N/A | AQ75: N/A | AR75: N/A | AS75: N/A | AT75: N/A | AU75: N/A | AV75: N/A | AW75: N/A | AX75: N/A | AY75: N/A | AZ75: N/A | BA75: N/A | BB75: N/A | BC75: N/A | BD75: N/A | BE75: N/A | BF75: N/A | BG75: N/A | BH75: N/A | BI75: N/A | BJ75: N/A | BK75: N/A | BL75: N/A | BM75: N/A | BN75: N/A | BO75: N/A | BP75: N/A | BQ75: N/A | BR75: N/A | BS75: N/A | BT75: N/A | BU75: N/A | BV75: N/A | BW75: N/A | BX75: N/A | BY75: N/A | BZ75: N/A | CA75: N/A | CB75: N/A | CC75: N/A | CD75: N/A | CE75: N/A | CF75: N/A | CG75: N/A | CH75: N/A | CI75: N/A | CJ75: N/A | CK75: N/A | CL75: N/A | CO75: 1953-12-01 | CP75: 0.59903 | CW75: 1960-12-01 | CX75: 6.605713627 | CY75: 1.814882033 | DC75: 1.814882033 | DI75: 1931Q4 | DJ75: 1931 | DK75: Q4 | DL75: 12 | DM75: 1931-12-31 | DN75: 18.382373 | DO75: -7.78815604
A76: Kennedy | B76: Macmillan | C76: Holyoake | G76: 1.34183 | H76: 5.677405119 | I76: 2.923474652 | J76: World Pop 3.1b Cuban Missile Crisis (Aug-Nov) | K76: 1962-04-16 | L76: N/A | M76: N/A | N76: N/A | O76: 3 | P76: N/A | Q76: 3.37 | R76: 3.6 | S76: N/A | T76: 3.83 | U76: 3.93 | V76: N/A | W76: N/A | X76: N/A | Y76: N/A | Z76: N/A | AA76: N/A | AB76: N/A | AC76: N/A | AD76: N/A | AE76: N/A | AF76: N/A | AG76: N/A | AH76: N/A | AI76: N/A | AJ76: N/A | AK76: N/A | AL76: N/A | AM76: N/A | AN76: N/A | AO76: N/A | AP76: N/A | AQ76: N/A | AR76: N/A | AS76: N/A | AT76: N/A | AU76: N/A | AV76: N/A | AW76: N/A | AX76: N/A | AY76: N/A | AZ76: N/A | BA76: N/A | BB76: N/A | BC76: N/A | BD76: N/A | BE76: N/A | BF76: N/A | BG76: N/A | BH76: N/A | BI76: N/A | BJ76: N/A | BK76: N/A | BL76: N/A | BM76: N/A | BN76: N/A | BO76: N/A | BP76: N/A | BQ76: N/A | BR76: N/A | BS76: N/A | BT76: N/A | BU76: N/A | BV76: N/A | BW76: N/A | BX76: N/A | BY76: N/A | BZ76: N/A | CA76: N/A | CB76: N/A | CC76: N/A | CD76: N/A | CE76: N/A | CF76: N/A | CG76: N/A | CH76: N/A | CI76: N/A | CJ76: N/A | CK76: N/A | CL76: N/A | CO76: 1954-01-01 | CP76: 1.12613 | CW76: 1961-01-01 | CX76: 6.611601072 | CY76: 2.183803458 | DC76: 2.183803458 | DI76: 1932Q1 | DJ76: 1932 | DK76: Q1 | DL76: 3 | DM76: 1932-03-31 | DN76: 18.113261 | DO76: -6.115877037
A77: Kennedy | B77: Macmillan | C77: Holyoake | G77: 1.34183 | H77: 5.677405119 | I77: 2.923474652 | J77: World Pop 3.1b Cuban Missile Crisis (Aug-Nov) | K77: 1962-04-17 | L77: N/A | M77: N/A | N77: N/A | O77: 3 | P77: N/A | Q77: 3.36 | R77: 3.6 | S77: N/A | T77: 3.82 | U77: 3.93 | V77: N/A | W77: N/A | X77: N/A | Y77: N/A | Z77: N/A | AA77: N/A | AB77: N/A | AC77: N/A | AD77: N/A | AE77: N/A | AF77: N/A | AG77: N/A | AH77: N/A | AI77: N/A | AJ77: N/A | AK77: N/A | AL77: N/A | AM77: N/A | AN77: N/A | AO77: N/A | AP77: N/A | AQ77: N/A | AR77: N/A | AS77: N/A | AT77: N/A | AU77: N/A | AV77: N/A | AW77: N/A | AX77: N/A | AY77: N/A | AZ77: N/A | BA77: N/A | BB77: N/A | BC77: N/A | BD77: N/A | BE77: N/A | BF77: N/A | BG77: N/A | BH77: N/A | BI77: N/A | BJ77: N/A | BK77: N/A | BL77: N/A | BM77: N/A | BN77: N/A | BO77: N/A | BP77: N/A | BQ77: N/A | BR77: N/A | BS77: N/A | BT77: N/A | BU77: N/A | BV77: N/A | BW77: N/A | BX77: N/A | BY77: N/A | BZ77: N/A | CA77: N/A | CB77: N/A | CC77: N/A | CD77: N/A | CE77: N/A | CF77: N/A | CG77: N/A | CH77: N/A | CI77: N/A | CJ77: N/A | CK77: N/A | CL77: N/A | CO77: 1954-02-01 | CP77: 1.50432 | CW77: 1961-02-01 | CX77: 6.611601072 | CY77: 2.183803458 | DC77: 2.183803458 | DI77: 1932Q2 | DJ77: 1932 | DK77: Q2 | DL77: 6 | DM77: 1932-06-30 | DN77: 17.368029 | DO77: -8.105151278
A78: Kennedy | B78: Macmillan | C78: Holyoake | G78: 1.34183 | H78: 5.677405119 | I78: 2.923474652 | J78: World Pop 3.1b Cuban Missile Crisis (Aug-Nov) | K78: 1962-04-18 | L78: N/A | M78: N/A | N78: N/A | O78: 3 | P78: N/A | Q78: 3.35 | R78: 3.6 | S78: N/A | T78: 3.81 | U78: 3.93 | V78: N/A | W78: N/A | X78: N/A | Y78: N/A | Z78: N/A | AA78: N/A | AB78: N/A | AC78: N/A | AD78: N/A | AE78: N/A | AF78: N/A | AG78: N/A | AH78: N/A | AI78: N/A | AJ78: N/A | AK78: N/A | AL78: N/A | AM78: N/A | AN78: N/A | AO78: N/A | AP78: N/A | AQ78: N/A | AR78: N/A | AS78: N/A | AT78: N/A | AU78: N/A | AV78: N/A | AW78: N/A | AX78: N/A | AY78: N/A | AZ78: N/A | BA78: N/A | BB78: N/A | BC78: N/A | BD78: N/A | BE78: N/A | BF78: N/A | BG78: N/A | BH78: N/A | BI78: N/A | BJ78: N/A | BK78: N/A | BL78: N/A | BM78: N/A | BN78: N/A | BO78: N/A | BP78: N/A | BQ78: N/A | BR78: N/A | BS78: N/A | BT78: N/A | BU78: N/A | BV78: N/A | BW78: N/A | BX78: N/A | BY78: N/A | BZ78: N/A | CA78: N/A | CB78: N/A | CC78: N/A | CD78: N/A | CE78: N/A | CF78: N/A | CG78: N/A | CH78: N/A | CI78: N/A | CJ78: N/A | CK78: N/A | CL78: N/A | CO78: 1954-03-01 | CP78: 1.12655 | CW78: 1961-03-01 | CX78: 6.635150854 | CY78: 2.734731085 | DC78: 2.734731085 | DI78: 1932Q3 | DJ78: 1932 | DK78: Q3 | DL78: 9 | DM78: 1932-09-30 | DN78: 16.995414 | DO78: -7.856341804
A79: Kennedy | B79: Macmillan | C79: Holyoake | G79: 1.34183 | H79: 5.677405119 | I79: 2.923474652 | J79: World Pop 3.1b Cuban Missile Crisis (Aug-Nov) | K79: 1962-04-19 | L79: N/A | M79: N/A | N79: N/A | O79: 3 | P79: N/A | Q79: 3.37 | R79: 3.6 | S79: N/A | T79: 3.82 | U79: 3.93 | V79: N/A | W79: N/A | X79: N/A | Y79: N/A | Z79: N/A | AA79: N/A | AB79: N/A | AC79: N/A | AD79: N/A | AE79: N/A | AF79: N/A | AG79: N/A | AH79: N/A | AI79: N/A | AJ79: N/A | AK79: N/A | AL79: N/A | AM79: N/A | AN79: N/A | AO79: N/A | AP79: N/A | AQ79: N/A | AR79: N/A | AS79: N/A | AT79: N/A | AU79: N/A | AV79: N/A | AW79: N/A | AX79: N/A | AY79: N/A | AZ79: N/A | BA79: N/A | BB79: N/A | BC79: N/A | BD79: N/A | BE79: N/A | BF79: N/A | BG79: N/A | BH79: N/A | BI79: N/A | BJ79: N/A | BK79: N/A | BL79: N/A | BM79: N/A | BN79: N/A | BO79: N/A | BP79: N/A | BQ79: N/A | BR79: N/A | BS79: N/A | BT79: N/A | BU79: N/A | BV79: N/A | BW79: N/A | BX79: N/A | BY79: N/A | BZ79: N/A | CA79: N/A | CB79: N/A | CC79: N/A | CD79: N/A | CE79: N/A | CF79: N/A | CG79: N/A | CH79: N/A | CI79: N/A | CJ79: N/A | CK79: N/A | CL79: N/A | CO79: 1954-04-01 | CP79: 0.63694 | CW79: 1961-04-01 | CX79: 6.670475525 | CY79: 2.719854941 | DC79: 2.719854941 | DI79: 1932Q4 | DJ79: 1932 | DK79: Q4 | DL79: 12 | DM79: 1932-12-31 | DN79: 16.684901 | DO79: -9.234237604
A80: Kennedy | B80: Macmillan | C80: Holyoake | G80: 1.34183 | H80: 5.677405119 | I80: 2.923474652 | J80: World Pop 3.1b Cuban Missile Crisis (Aug-Nov) | K80: 1962-04-23 | L80: N/A | M80: N/A | N80: N/A | O80: 3.03 | P80: N/A | Q80: 3.4 | R80: 3.63 | S80: N/A | T80: 3.86 | U80: 3.93 | V80: N/A | W80: N/A | X80: N/A | Y80: N/A | Z80: N/A | AA80: N/A | AB80: N/A | AC80: N/A | AD80: N/A | AE80: N/A | AF80: N/A | AG80: N/A | AH80: N/A | AI80: N/A | AJ80: N/A | AK80: N/A | AL80: N/A | AM80: N/A | AN80: N/A | AO80: N/A | AP80: N/A | AQ80: N/A | AR80: N/A | AS80: N/A | AT80: N/A | AU80: N/A | AV80: N/A | AW80: N/A | AX80: N/A | AY80: N/A | AZ80: N/A | BA80: N/A | BB80: N/A | BC80: N/A | BD80: N/A | BE80: N/A | BF80: N/A | BG80: N/A | BH80: N/A | BI80: N/A | BJ80: N/A | BK80: N/A | BL80: N/A | BM80: N/A | BN80: N/A | BO80: N/A | BP80: N/A | BQ80: N/A | BR80: N/A | BS80: N/A | BT80: N/A | BU80: N/A | BV80: N/A | BW80: N/A | BX80: N/A | BY80: N/A | BZ80: N/A | CA80: N/A | CB80: N/A | CC80: N/A | CD80: N/A | CE80: N/A | CF80: N/A | CG80: N/A | CH80: N/A | CI80: N/A | CJ80: N/A | CK80: N/A | CL80: N/A | CO80: 1954-05-01 | CP80: 0.86142 | CW80: 1961-05-01 | CX80: 6.688137861 | CY80: 2.991840435 | DC80: 2.991840435 | DI80: 1933Q1 | DJ80: 1933 | DK80: Q1 | DL80: 3 | DM80: 1933-03-31 | DN80: 16.498593 | DO80: -8.91428661
A81: Kennedy | B81: Macmillan | C81: Holyoake | G81: 1.34183 | H81: 5.677405119 | I81: 2.923474652 | J81: World Pop 3.1b Cuban Missile Crisis (Aug-Nov) | K81: 1962-04-24 | L81: N/A | M81: N/A | N81: N/A | O81: 3.08 | P81: N/A | Q81: 3.42 | R81: 3.65 | S81: N/A | T81: 3.87 | U81: 3.93 | V81: N/A | W81: N/A | X81: N/A | Y81: N/A | Z81: N/A | AA81: N/A | AB81: N/A | AC81: N/A | AD81: N/A | AE81: N/A | AF81: N/A | AG81: N/A | AH81: N/A | AI81: N/A | AJ81: N/A | AK81: N/A | AL81: N/A | AM81: N/A | AN81: N/A | AO81: N/A | AP81: N/A | AQ81: N/A | AR81: N/A | AS81: N/A | AT81: N/A | AU81: N/A | AV81: N/A | AW81: N/A | AX81: N/A | AY81: N/A | AZ81: N/A | BA81: N/A | BB81: N/A | BC81: N/A | BD81: N/A | BE81: N/A | BF81: N/A | BG81: N/A | BH81: N/A | BI81: N/A | BJ81: N/A | BK81: N/A | BL81: N/A | BM81: N/A | BN81: N/A | BO81: N/A | BP81: N/A | BQ81: N/A | BR81: N/A | BS81: N/A | BT81: N/A | BU81: N/A | BV81: N/A | BW81: N/A | BX81: N/A | BY81: N/A | BZ81: N/A | CA81: N/A | CB81: N/A | CC81: N/A | CD81: N/A | CE81: N/A | CF81: N/A | CG81: N/A | CH81: N/A | CI81: N/A | CJ81: N/A | CK81: N/A | CL81: N/A | CO81: 1954-06-01 | CP81: 0.63504 | CW81: 1961-06-01 | CX81: 6.747012314 | CY81: =100*(CX81/CX69-1) -> 3.336339044 | DC81: =CY81 -> 3.336339044 | DI81: 1933Q2 | DJ81: 1933 | DK81: Q2 | DL81: 6 | DM81: 1933-06-30 | DN81: 16.477892 | DO81: -5.125146901
A82: Kennedy | B82: Macmillan | C82: Holyoake | G82: 1.34183 | H82: 5.677405119 | I82: 2.923474652 | J82: World Pop 3.1b Cuban Missile Crisis (Aug-Nov) | K82: 1962-04-25 | L82: N/A | M82: N/A | N82: N/A | O82: 3.08 | P82: N/A | Q82: 3.43 | R82: 3.66 | S82: N/A | T82: 3.88 | U82: 3.93 | V82: N/A | W82: N/A | X82: N/A | Y82: N/A | Z82: N/A | AA82: N/A | AB82: N/A | AC82: N/A | AD82: N/A | AE82: N/A | AF82: N/A | AG82: N/A | AH82: N/A | AI82: N/A | AJ82: N/A | AK82: N/A | AL82: N/A | AM82: N/A | AN82: N/A | AO82: N/A | AP82: N/A | AQ82: N/A | AR82: N/A | AS82: N/A | AT82: N/A | AU82: N/A | AV82: N/A | AW82: N/A | AX82: N/A | AY82: N/A | AZ82: N/A | BA82: N/A | BB82: N/A | BC82: N/A | BD82: N/A | BE82: N/A | BF82: N/A | BG82: N/A | BH82: N/A | BI82: N/A | BJ82: N/A | BK82: N/A | BL82: N/A | BM82: N/A | BN82: N/A | BO82: N/A | BP82: N/A | BQ82: N/A | BR82: N/A | BS82: N/A | BT82: N/A | BU82: N/A | BV82: N/A | BW82: N/A | BX82: N/A | BY82: N/A | BZ82: N/A | CA82: N/A | CB82: N/A | CC82: N/A | CD82: N/A | CE82: N/A | CF82: N/A | CG82: N/A | CH82: N/A | CI82: N/A | CJ82: N/A | CK82: N/A | CL82: N/A | CO82: 1954-07-01 | CP82: 0.26129 | CW82: 1961-07-01 | CX82: 6.747012314 | CY82: 3.150315032 | DC82: 3.150315032 | DI82: 1933Q3 | DJ82: 1933 | DK82: Q3 | DL82: 9 | DM82: 1933-09-30 | DN82: 16.477892 | DO82: -3.045068511
A83: Kennedy | B83: Macmillan | C83: Holyoake | G83: 1.34183 | H83: 5.677405119 | I83: 2.923474652 | J83: World Pop 3.1b Cuban Missile Crisis (Aug-Nov) | K83: 1962-04-26 | L83: N/A | M83: N/A | N83: N/A | O83: 3.04 | P83: N/A | Q83: 3.43 | R83: 3.66 | S83: N/A | T83: 3.89 | U83: 3.93 | V83: N/A | W83: N/A | X83: N/A | Y83: N/A | Z83: N/A | AA83: N/A | AB83: N/A | AC83: N/A | AD83: N/A | AE83: N/A | AF83: N/A | AG83: N/A | AH83: N/A | AI83: N/A | AJ83: N/A | AK83: N/A | AL83: N/A | AM83: N/A | AN83: N/A | AO83: N/A | AP83: N/A | AQ83: N/A | AR83: N/A | AS83: N/A | AT83: N/A | AU83: N/A | AV83: N/A | AW83: N/A | AX83: N/A | AY83: N/A | AZ83: N/A | BA83: N/A | BB83: N/A | BC83: N/A | BD83: N/A | BE83: N/A | BF83: N/A | BG83: N/A | BH83: N/A | BI83: N/A | BJ83: N/A | BK83: N/A | BL83: N/A | BM83: N/A | BN83: N/A | BO83: N/A | BP83: N/A | BQ83: N/A | BR83: N/A | BS83: N/A | BT83: N/A | BU83: N/A | BV83: N/A | BW83: N/A | BX83: N/A | BY83: N/A | BZ83: N/A | CA83: N/A | CB83: N/A | CC83: N/A | CD83: N/A | CE83: N/A | CF83: N/A | CG83: N/A | CH83: N/A | CI83: N/A | CJ83: N/A | CK83: N/A | CL83: N/A | CO83: 1954-08-01 | CP83: 0 | CW83: 1961-08-01 | CX83: 6.811774213 | CY83: 4.800724638 | DC83: 4.800724638 | DI83: 1933Q4 | DJ83: 1933 | DK83: Q4 | DL83: 12 | DM83: 1933-12-31 | DN83: 16.560696 | DO83: -0.7444155647
A84: Kennedy | B84: Macmillan | C84: Holyoake | G84: 1.34183 | H84: 5.677405119 | I84: 2.923474652 | J84: World Pop 3.1b Cuban Missile Crisis (Aug-Nov) | K84: 1962-04-27 | L84: N/A | M84: N/A | N84: N/A | O84: 3.07 | P84: N/A | Q84: 3.45 | R84: 3.64 | S84: N/A | T84: 3.86 | U84: 3.93 | V84: N/A | W84: N/A | X84: N/A | Y84: N/A | Z84: N/A | AA84: N/A | AB84: N/A | AC84: N/A | AD84: N/A | AE84: N/A | AF84: N/A | AG84: N/A | AH84: N/A | AI84: N/A | AJ84: N/A | AK84: N/A | AL84: N/A | AM84: N/A | AN84: N/A | AO84: N/A | AP84: N/A | AQ84: N/A | AR84: N/A | AS84: N/A | AT84: N/A | AU84: N/A | AV84: N/A | AW84: N/A | AX84: N/A | AY84: N/A | AZ84: N/A | BA84: N/A | BB84: N/A | BC84: N/A | BD84: N/A | BE84: N/A | BF84: N/A | BG84: N/A | BH84: N/A | BI84: N/A | BJ84: N/A | BK84: N/A | BL84: N/A | BM84: N/A | BN84: N/A | BO84: N/A | BP84: N/A | BQ84: N/A | BR84: N/A | BS84: N/A | BT84: N/A | BU84: N/A | BV84: N/A | BW84: N/A | BX84: N/A | BY84: N/A | BZ84: N/A | CA84: N/A | CB84: N/A | CC84: N/A | CD84: N/A | CE84: N/A | CF84: N/A | CG84: N/A | CH84: N/A | CI84: N/A | CJ84: N/A | CK84: N/A | CL84: N/A | CO84: 1954-09-01 | CP84: -0.29751 | CW84: 1961-09-01 | CX84: 6.799999322 | CY84: 4.524886878 | DC84: 4.524886878 | DI84: 1934Q1 | DJ84: 1934 | DK84: Q1 | DL84: 3 | DM84: 1934-03-31 | DN84: 16.643499 | DO84: 0.8782930763
A85: Kennedy | B85: Macmillan | C85: Holyoake | G85: 1.34183 | H85: 5.677405119 | I85: 2.923474652 | J85: World Pop 3.1b Cuban Missile Crisis (Aug-Nov) | K85: 1962-04-30 | L85: N/A | M85: N/A | N85: N/A | O85: 3.07 | P85: N/A | Q85: 3.47 | R85: 3.64 | S85: N/A | T85: 3.86 | U85: 3.93 | V85: N/A | W85: N/A | X85: N/A | Y85: N/A | Z85: N/A | AA85: N/A | AB85: N/A | AC85: N/A | AD85: N/A | AE85: N/A | AF85: N/A | AG85: N/A | AH85: N/A | AI85: N/A | AJ85: N/A | AK85: N/A | AL85: N/A | AM85: N/A | AN85: N/A | AO85: N/A | AP85: N/A | AQ85: N/A | AR85: N/A | AS85: N/A | AT85: N/A | AU85: N/A | AV85: N/A | AW85: N/A | AX85: N/A | AY85: N/A | AZ85: N/A | BA85: N/A | BB85: N/A | BC85: N/A | BD85: N/A | BE85: N/A | BF85: N/A | BG85: N/A | BH85: N/A | BI85: N/A | BJ85: N/A | BK85: N/A | BL85: N/A | BM85: N/A | BN85: N/A | BO85: N/A | BP85: N/A | BQ85: N/A | BR85: N/A | BS85: N/A | BT85: N/A | BU85: N/A | BV85: N/A | BW85: N/A | BX85: N/A | BY85: N/A | BZ85: N/A | CA85: N/A | CB85: N/A | CC85: N/A | CD85: N/A | CE85: N/A | CF85: N/A | CG85: N/A | CH85: N/A | CI85: N/A | CJ85: N/A | CK85: N/A | CL85: N/A | CO85: 1954-10-01 | CP85: -0.85343 | CW85: 1961-10-01 | CX85: 6.811774213 | CY85: 3.859964093 | DC85: 3.859964093 | DI85: 1934Q2 | DJ85: 1934 | DK85: Q2 | DL85: 6 | DM85: 1934-06-30 | DN85: 16.809106 | DO85: 2.0100508
A86: Kennedy | B86: Macmillan | C86: Holyoake | G86: 1.34048 | H86: 5.708626761 | I86: 2.923474652 | J86: World Pop 3.1b Cuban Missile Crisis (Aug-Nov) | K86: 1962-05-01 | L86: N/A | M86: N/A | N86: N/A | O86: 3.06 | P86: N/A | Q86: 3.45 | R86: 3.63 | S86: N/A | T86: 3.85 | U86: 3.93 | V86: N/A | W86: N/A | X86: N/A | Y86: N/A | Z86: N/A | AA86: N/A | AB86: N/A | AC86: N/A | AD86: N/A | AE86: N/A | AF86: N/A | AG86: N/A | AH86: N/A | AI86: N/A | AJ86: N/A | AK86: N/A | AL86: N/A | AM86: N/A | AN86: N/A | AO86: N/A | AP86: N/A | AQ86: N/A | AR86: N/A | AS86: N/A | AT86: N/A | AU86: N/A | AV86: N/A | AW86: N/A | AX86: N/A | AY86: N/A | AZ86: N/A | BA86: N/A | BB86: N/A | BC86: N/A | BD86: N/A | BE86: N/A | BF86: N/A | BG86: N/A | BH86: N/A | BI86: N/A | BJ86: N/A | BK86: N/A | BL86: N/A | BM86: N/A | BN86: N/A | BO86: N/A | BP86: N/A | BQ86: N/A | BR86: N/A | BS86: N/A | BT86: N/A | BU86: N/A | BV86: N/A | BW86: N/A | BX86: N/A | BY86: N/A | BZ86: N/A | CA86: N/A | CB86: N/A | CC86: N/A | CD86: N/A | CE86: N/A | CF86: N/A | CG86: N/A | CH86: N/A | CI86: N/A | CJ86: N/A | CK86: N/A | CL86: N/A | CO86: 1954-11-01 | CP86: -0.26071 | CW86: 1961-11-01 | CX86: 6.882423556 | CY86: 4.468275246 | DC86: 4.468275246 | DI86: 1934Q3 | DJ86: 1934 | DK86: Q3 | DL86: 9 | DM86: 1934-09-30 | DN86: 16.705602 | DO86: 1.381912201
A87: Kennedy | B87: Macmillan | C87: Holyoake | G87: 1.34048 | H87: 5.708626761 | I87: 2.923474652 | J87: World Pop 3.1b Cuban Missile Crisis (Aug-Nov) | K87: 1962-05-02 | L87: N/A | M87: N/A | N87: N/A | O87: 3.06 | P87: N/A | Q87: 3.44 | R87: 3.64 | S87: N/A | T87: 3.86 | U87: 3.93 | V87: N/A | W87: N/A | X87: N/A | Y87: N/A | Z87: N/A | AA87: N/A | AB87: N/A | AC87: N/A | AD87: N/A | AE87: N/A | AF87: N/A | AG87: N/A | AH87: N/A | AI87: N/A | AJ87: N/A | AK87: N/A | AL87: N/A | AM87: N/A | AN87: N/A | AO87: N/A | AP87: N/A | AQ87: N/A | AR87: N/A | AS87: N/A | AT87: N/A | AU87: N/A | AV87: N/A | AW87: N/A | AX87: N/A | AY87: N/A | AZ87: N/A | BA87: N/A | BB87: N/A | BC87: N/A | BD87: N/A | BE87: N/A | BF87: N/A | BG87: N/A | BH87: N/A | BI87: N/A | BJ87: N/A | BK87: N/A | BL87: N/A | BM87: N/A | BN87: N/A | BO87: N/A | BP87: N/A | BQ87: N/A | BR87: N/A | BS87: N/A | BT87: N/A | BU87: N/A | BV87: N/A | BW87: N/A | BX87: N/A | BY87: N/A | BZ87: N/A | CA87: N/A | CB87: N/A | CC87: N/A | CD87: N/A | CE87: N/A | CF87: N/A | CG87: N/A | CH87: N/A | CI87: N/A | CJ87: N/A | CK87: N/A | CL87: N/A | CO87: 1954-12-01 | CP87: -0.37216 | CW87: 1961-12-01 | CX87: 6.894198447 | CY87: 4.367201426 | DC87: 4.367201426 | DI87: 1934Q4 | DJ87: 1934 | DK87: Q4 | DL87: 12 | DM87: 1934-12-31 | DN87: 16.767705 | DO87: 1.250001812
A88: Kennedy | B88: Macmillan | C88: Holyoake | G88: 1.34048 | H88: 5.708626761 | I88: 2.923474652 | J88: World Pop 3.1b Cuban Missile Crisis (Aug-Nov) | K88: 1962-05-03 | L88: N/A | M88: N/A | N88: N/A | O88: 3.05 | P88: N/A | Q88: 3.42 | R88: 3.64 | S88: N/A | T88: 3.86 | U88: 3.93 | V88: N/A | W88: N/A | X88: N/A | Y88: N/A | Z88: N/A | AA88: N/A | AB88: N/A | AC88: N/A | AD88: N/A | AE88: N/A | AF88: N/A | AG88: N/A | AH88: N/A | AI88: N/A | AJ88: N/A | AK88: N/A | AL88: N/A | AM88: N/A | AN88: N/A | AO88: N/A | AP88: N/A | AQ88: N/A | AR88: N/A | AS88: N/A | AT88: N/A | AU88: N/A | AV88: N/A | AW88: N/A | AX88: N/A | AY88: N/A | AZ88: N/A | BA88: N/A | BB88: N/A | BC88: N/A | BD88: N/A | BE88: N/A | BF88: N/A | BG88: N/A | BH88: N/A | BI88: N/A | BJ88: N/A | BK88: N/A | BL88: N/A | BM88: N/A | BN88: N/A | BO88: N/A | BP88: N/A | BQ88: N/A | BR88: N/A | BS88: N/A | BT88: N/A | BU88: N/A | BV88: N/A | BW88: N/A | BX88: N/A | BY88: N/A | BZ88: N/A | CA88: N/A | CB88: N/A | CC88: N/A | CD88: N/A | CE88: N/A | CF88: N/A | CG88: N/A | CH88: N/A | CI88: N/A | CJ88: N/A | CK88: N/A | CL88: N/A | CO88: 1955-01-01 | CP88: -0.63103 | CW88: 1962-01-01 | CX88: 6.917748228 | CY88: 4.630454141 | DC88: 4.630454141 | DI88: 1935Q1 | DJ88: 1935 | DK88: Q1 | DL88: 3 | DM88: 1935-03-31 | DN88: 17.098918 | DO88: 2.736317646
A89: Kennedy | B89: Macmillan | C89: Holyoake | G89: 1.34048 | H89: 5.708626761 | I89: 2.923474652 | J89: World Pop 3.1b Cuban Missile Crisis (Aug-Nov) | K89: 1962-05-04 | L89: N/A | M89: N/A | N89: N/A | O89: 3.05 | P89: N/A | Q89: 3.42 | R89: 3.64 | S89: N/A | T89: 3.87 | U89: 3.93 | V89: N/A | W89: N/A | X89: N/A | Y89: N/A | Z89: N/A | AA89: N/A | AB89: N/A | AC89: N/A | AD89: N/A | AE89: N/A | AF89: N/A | AG89: N/A | AH89: N/A | AI89: N/A | AJ89: N/A | AK89: N/A | AL89: N/A | AM89: N/A | AN89: N/A | AO89: N/A | AP89: N/A | AQ89: N/A | AR89: N/A | AS89: N/A | AT89: N/A | AU89: N/A | AV89: N/A | AW89: N/A | AX89: N/A | AY89: N/A | AZ89: N/A | BA89: N/A | BB89: N/A | BC89: N/A | BD89: N/A | BE89: N/A | BF89: N/A | BG89: N/A | BH89: N/A | BI89: N/A | BJ89: N/A | BK89: N/A | BL89: N/A | BM89: N/A | BN89: N/A | BO89: N/A | BP89: N/A | BQ89: N/A | BR89: N/A | BS89: N/A | BT89: N/A | BU89: N/A | BV89: N/A | BW89: N/A | BX89: N/A | BY89: N/A | BZ89: N/A | CA89: N/A | CB89: N/A | CC89: N/A | CD89: N/A | CE89: N/A | CF89: N/A | CG89: N/A | CH89: N/A | CI89: N/A | CJ89: N/A | CK89: N/A | CL89: N/A | CO89: 1955-02-01 | CP89: -0.62986 | CW89: 1962-02-01 | CX89: 6.924665976 | CY89: 4.735084595 | DC89: 4.735084595 | DI89: 1935Q2 | DJ89: 1935 | DK89: Q2 | DL89: 6 | DM89: 1935-06-30 | DN89: 17.285226 | DO89: 2.83251233
A90: Kennedy | B90: Macmillan | C90: Holyoake | G90: 1.34048 | H90: 5.708626761 | I90: 2.923474652 | J90: World Pop 3.1b Cuban Missile Crisis (Aug-Nov) | K90: 1962-05-07 | L90: N/A | M90: N/A | N90: N/A | O90: 3.04 | P90: N/A | Q90: 3.41 | R90: 3.64 | S90: N/A | T90: 3.86 | U90: 3.93 | V90: N/A | W90: N/A | X90: N/A | Y90: N/A | Z90: N/A | AA90: N/A | AB90: N/A | AC90: N/A | AD90: N/A | AE90: N/A | AF90: N/A | AG90: N/A | AH90: N/A | AI90: N/A | AJ90: N/A | AK90: N/A | AL90: N/A | AM90: N/A | AN90: N/A | AO90: N/A | AP90: N/A | AQ90: N/A | AR90: N/A | AS90: N/A | AT90: N/A | AU90: N/A | AV90: N/A | AW90: N/A | AX90: N/A | AY90: N/A | AZ90: N/A | BA90: N/A | BB90: N/A | BC90: N/A | BD90: N/A | BE90: N/A | BF90: N/A | BG90: N/A | BH90: N/A | BI90: N/A | BJ90: N/A | BK90: N/A | BL90: N/A | BM90: N/A | BN90: N/A | BO90: N/A | BP90: N/A | BQ90: N/A | BR90: N/A | BS90: N/A | BT90: N/A | BU90: N/A | BV90: N/A | BW90: N/A | BX90: N/A | BY90: N/A | BZ90: N/A | CA90: N/A | CB90: N/A | CC90: N/A | CD90: N/A | CE90: N/A | CF90: N/A | CG90: N/A | CH90: N/A | CI90: N/A | CJ90: N/A | CK90: N/A | CL90: N/A | CO90: 1955-03-01 | CP90: -0.51987 | CW90: 1962-03-01 | CX90: 6.952336969 | CY90: 4.780390417 | DC90: 4.780390417 | DI90: 1935Q3 | DJ90: 1935 | DK90: Q3 | DL90: 9 | DM90: 1935-09-30 | DN90: 17.347329 | DO90: 3.841388057
A91: Kennedy | B91: Macmillan | C91: Holyoake | G91: 1.34048 | H91: 5.708626761 | I91: 2.923474652 | J91: World Pop 3.1b Cuban Missile Crisis (Aug-Nov) | K91: 1962-05-08 | L91: N/A | M91: N/A | N91: N/A | O91: 3.01 | P91: N/A | Q91: 3.39 | R91: 3.62 | S91: N/A | T91: 3.85 | U91: 3.93 | V91: N/A | W91: N/A | X91: N/A | Y91: N/A | Z91: N/A | AA91: N/A | AB91: N/A | AC91: N/A | AD91: N/A | AE91: N/A | AF91: N/A | AG91: N/A | AH91: N/A | AI91: N/A | AJ91: N/A | AK91: N/A | AL91: N/A | AM91: N/A | AN91: N/A | AO91: N/A | AP91: N/A | AQ91: N/A | AR91: N/A | AS91: N/A | AT91: N/A | AU91: N/A | AV91: N/A | AW91: N/A | AX91: N/A | AY91: N/A | AZ91: N/A | BA91: N/A | BB91: N/A | BC91: N/A | BD91: N/A | BE91: N/A | BF91: N/A | BG91: N/A | BH91: N/A | BI91: N/A | BJ91: N/A | BK91: N/A | BL91: N/A | BM91: N/A | BN91: N/A | BO91: N/A | BP91: N/A | BQ91: N/A | BR91: N/A | BS91: N/A | BT91: N/A | BU91: N/A | BV91: N/A | BW91: N/A | BX91: N/A | BY91: N/A | BZ91: N/A | CA91: N/A | CB91: N/A | CC91: N/A | CD91: N/A | CE91: N/A | CF91: N/A | CG91: N/A | CH91: N/A | CI91: N/A | CJ91: N/A | CK91: N/A | CL91: N/A | CO91: 1955-04-01 | CP91: -0.26061 | CW91: 1962-04-01 | CX91: 7.049185444 | CY91: 5.677405119 | DC91: 5.677405119 | DI91: 1935Q4 | DJ91: 1935 | DK91: Q4 | DL91: 12 | DM91: 1935-12-31 | DN91: 17.699244 | DO91: 5.555554562
A92: Kennedy | B92: Macmillan | C92: Holyoake | G92: 1.34048 | H92: 5.708626761 | I92: 2.923474652 | J92: World Pop 3.1b Cuban Missile Crisis (Aug-Nov) | K92: 1962-05-09 | L92: N/A | M92: N/A | N92: N/A | O92: 3.01 | P92: N/A | Q92: 3.37 | R92: 3.6 | S92: N/A | T92: 3.82 | U92: 3.93 | V92: N/A | W92: N/A | X92: N/A | Y92: N/A | Z92: N/A | AA92: N/A | AB92: N/A | AC92: N/A | AD92: N/A | AE92: N/A | AF92: N/A | AG92: N/A | AH92: N/A | AI92: N/A | AJ92: N/A | AK92: N/A | AL92: N/A | AM92: N/A | AN92: N/A | AO92: N/A | AP92: N/A | AQ92: N/A | AR92: N/A | AS92: N/A | AT92: N/A | AU92: N/A | AV92: N/A | AW92: N/A | AX92: N/A | AY92: N/A | AZ92: N/A | BA92: N/A | BB92: N/A | BC92: N/A | BD92: N/A | BE92: N/A | BF92: N/A | BG92: N/A | BH92: N/A | BI92: N/A | BJ92: N/A | BK92: N/A | BL92: N/A | BM92: N/A | BN92: N/A | BO92: N/A | BP92: N/A | BQ92: N/A | BR92: N/A | BS92: N/A | BT92: N/A | BU92: N/A | BV92: N/A | BW92: N/A | BX92: N/A | BY92: N/A | BZ92: N/A | CA92: N/A | CB92: N/A | CC92: N/A | CD92: N/A | CE92: N/A | CF92: N/A | CG92: N/A | CH92: N/A | CI92: N/A | CJ92: N/A | CK92: N/A | CL92: N/A | CO92: 1955-05-01 | CP92: -0.59413 | CW92: 1962-05-01 | CX92: 7.069938689 | CY92: 5.708626761 | DC92: 5.708626761 | DI92: 1936Q1 | DJ92: 1936 | DK92: Q1 | DL92: 3 | DM92: 1936-03-31 | DN92: 17.388731 | DO92: 1.694920111
A93: Kennedy | B93: Macmillan | C93: Holyoake | G93: 1.34048 | H93: 5.708626761 | I93: 2.923474652 | J93: World Pop 3.1b Cuban Missile Crisis (Aug-Nov) | K93: 1962-05-10 | L93: N/A | M93: N/A | N93: N/A | O93: 2.99 | P93: N/A | Q93: 3.37 | R93: 3.61 | S93: N/A | T93: 3.83 | U93: 3.93 | V93: N/A | W93: N/A | X93: N/A | Y93: N/A | Z93: N/A | AA93: N/A | AB93: N/A | AC93: N/A | AD93: N/A | AE93: N/A | AF93: N/A | AG93: N/A | AH93: N/A | AI93: N/A | AJ93: N/A | AK93: N/A | AL93: N/A | AM93: N/A | AN93: N/A | AO93: N/A | AP93: N/A | AQ93: N/A | AR93: N/A | AS93: N/A | AT93: N/A | AU93: N/A | AV93: N/A | AW93: N/A | AX93: N/A | AY93: N/A | AZ93: N/A | BA93: N/A | BB93: N/A | BC93: N/A | BD93: N/A | BE93: N/A | BF93: N/A | BG93: N/A | BH93: N/A | BI93: N/A | BJ93: N/A | BK93: N/A | BL93: N/A | BM93: N/A | BN93: N/A | BO93: N/A | BP93: N/A | BQ93: N/A | BR93: N/A | BS93: N/A | BT93: N/A | BU93: N/A | BV93: N/A | BW93: N/A | BX93: N/A | BY93: N/A | BZ93: N/A | CA93: N/A | CB93: N/A | CC93: N/A | CD93: N/A | CE93: N/A | CF93: N/A | CG93: N/A | CH93: N/A | CI93: N/A | CJ93: N/A | CK93: N/A | CL93: N/A | CO93: 1955-06-01 | CP93: -0.85375 | CW93: 1962-06-01 | CX93: 7.118362927 | CY93: 5.503926702 | DC93: 5.503926702 | DI93: 1936Q2 | DJ93: 1936 | DK93: Q2 | DL93: 6 | DM93: 1936-06-30 | DN93: 17.719945 | DO93: 2.514974349
A94: Kennedy | B94: Macmillan | C94: Holyoake | G94: 1.34048 | H94: 5.708626761 | I94: 2.923474652 | J94: World Pop 3.1b Cuban Missile Crisis (Aug-Nov) | K94: 1962-05-11 | L94: N/A | M94: N/A | N94: N/A | O94: 3 | P94: N/A | Q94: 3.37 | R94: 3.61 | S94: N/A | T94: 3.82 | U94: 3.93 | V94: N/A | W94: N/A | X94: N/A | Y94: N/A | Z94: N/A | AA94: N/A | AB94: N/A | AC94: N/A | AD94: N/A | AE94: N/A | AF94: N/A | AG94: N/A | AH94: N/A | AI94: N/A | AJ94: N/A | AK94: N/A | AL94: N/A | AM94: N/A | AN94: N/A | AO94: N/A | AP94: N/A | AQ94: N/A | AR94: N/A | AS94: N/A | AT94: N/A | AU94: N/A | AV94: N/A | AW94: N/A | AX94: N/A | AY94: N/A | AZ94: N/A | BA94: N/A | BB94: N/A | BC94: N/A | BD94: N/A | BE94: N/A | BF94: N/A | BG94: N/A | BH94: N/A | BI94: N/A | BJ94: N/A | BK94: N/A | BL94: N/A | BM94: N/A | BN94: N/A | BO94: N/A | BP94: N/A | BQ94: N/A | BR94: N/A | BS94: N/A | BT94: N/A | BU94: N/A | BV94: N/A | BW94: N/A | BX94: N/A | BY94: N/A | BZ94: N/A | CA94: N/A | CB94: N/A | CC94: N/A | CD94: N/A | CE94: N/A | CF94: N/A | CG94: N/A | CH94: N/A | CI94: N/A | CJ94: N/A | CK94: N/A | CL94: N/A | CO94: 1955-07-01 | CP94: -0.3723 | CW94: 1962-07-01 | CX94: 7.090691934 | CY94: 5.093804538 | DC94: 5.093804538 | DI94: 1936Q3 | DJ94: 1936 | DK94: Q3 | DL94: 9 | DM94: 1936-09-30 | DN94: 18.009757 | DO94: 3.818616687
A95: Kennedy | B95: Macmillan | C95: Holyoake | G95: 1.34048 | H95: 5.708626761 | I95: 2.923474652 | J95: World Pop 3.1b Cuban Missile Crisis (Aug-Nov) | K95: 1962-05-14 | L95: N/A | M95: N/A | N95: N/A | O95: 3 | P95: N/A | Q95: 3.39 | R95: 3.63 | S95: N/A | T95: 3.85 | U95: 3.93 | V95: N/A | W95: N/A | X95: N/A | Y95: N/A | Z95: N/A | AA95: N/A | AB95: N/A | AC95: N/A | AD95: N/A | AE95: N/A | AF95: N/A | AG95: N/A | AH95: N/A | AI95: N/A | AJ95: N/A | AK95: N/A | AL95: N/A | AM95: N/A | AN95: N/A | AO95: N/A | AP95: N/A | AQ95: N/A | AR95: N/A | AS95: N/A | AT95: N/A | AU95: N/A | AV95: N/A | AW95: N/A | AX95: N/A | AY95: N/A | AZ95: N/A | BA95: N/A | BB95: N/A | BC95: N/A | BD95: N/A | BE95: N/A | BF95: N/A | BG95: N/A | BH95: N/A | BI95: N/A | BJ95: N/A | BK95: N/A | BL95: N/A | BM95: N/A | BN95: N/A | BO95: N/A | BP95: N/A | BQ95: N/A | BR95: N/A | BS95: N/A | BT95: N/A | BU95: N/A | BV95: N/A | BW95: N/A | BX95: N/A | BY95: N/A | BZ95: N/A | CA95: N/A | CB95: N/A | CC95: N/A | CD95: N/A | CE95: N/A | CF95: N/A | CG95: N/A | CH95: N/A | CI95: N/A | CJ95: N/A | CK95: N/A | CL95: N/A | CO95: 1955-08-01 | CP95: -0.48417 | CW95: 1962-08-01 | CX95: 7.0284322 | CY95: 3.180639585 | DC95: 3.180639585 | DI95: 1936Q4 | DJ95: 1936 | DK95: Q4 | DL95: 12 | DM95: 1936-12-31 | DN95: 18.278868 | DO95: 3.274851739
A96: Kennedy | B96: Macmillan | C96: Holyoake | G96: 1.34048 | H96: 5.708626761 | I96: 2.923474652 | J96: World Pop 3.1b Cuban Missile Crisis (Aug-Nov) | K96: 1962-05-15 | L96: N/A | M96: N/A | N96: N/A | O96: 3.04 | P96: N/A | Q96: 3.41 | R96: 3.67 | S96: N/A | T96: 3.87 | U96: 3.92 | V96: N/A | W96: N/A | X96: N/A | Y96: N/A | Z96: N/A | AA96: N/A | AB96: N/A | AC96: N/A | AD96: N/A | AE96: N/A | AF96: N/A | AG96: N/A | AH96: N/A | AI96: N/A | AJ96: N/A | AK96: N/A | AL96: N/A | AM96: N/A | AN96: N/A | AO96: N/A | AP96: N/A | AQ96: N/A | AR96: N/A | AS96: N/A | AT96: N/A | AU96: N/A | AV96: N/A | AW96: N/A | AX96: N/A | AY96: N/A | AZ96: N/A | BA96: N/A | BB96: N/A | BC96: N/A | BD96: N/A | BE96: N/A | BF96: N/A | BG96: N/A | BH96: N/A | BI96: N/A | BJ96: N/A | BK96: N/A | BL96: N/A | BM96: N/A | BN96: N/A | BO96: N/A | BP96: N/A | BQ96: N/A | BR96: N/A | BS96: N/A | BT96: N/A | BU96: N/A | BV96: N/A | BW96: N/A | BX96: N/A | BY96: N/A | BZ96: N/A | CA96: N/A | CB96: N/A | CC96: N/A | CD96: N/A | CE96: N/A | CF96: N/A | CG96: N/A | CH96: N/A | CI96: N/A | CJ96: N/A | CK96: N/A | CL96: N/A | CO96: 1955-09-01 | CP96: 0.1492 | CW96: 1962-09-01 | CX96: 7.021514451 | CY96: 3.257575758 | DC96: 3.257575758 | DI96: 1937Q1 | DJ96: 1937 | DK96: Q1 | DL96: 3 | DM96: 1937-03-31 | DN96: 18.589381 | DO96: 6.90475918
A97: Kennedy | B97: Macmillan | C97: Holyoake | G97: 1.34048 | H97: 5.708626761 | I97: 2.923474652 | J97: World Pop 3.1b Cuban Missile Crisis (Aug-Nov) | K97: 1962-05-16 | L97: N/A | M97: N/A | N97: N/A | O97: 3.04 | P97: N/A | Q97: 3.4 | R97: 3.67 | S97: N/A | T97: 3.86 | U97: 3.92 | V97: N/A | W97: N/A | X97: N/A | Y97: N/A | Z97: N/A | AA97: N/A | AB97: N/A | AC97: N/A | AD97: N/A | AE97: N/A | AF97: N/A | AG97: N/A | AH97: N/A | AI97: N/A | AJ97: N/A | AK97: N/A | AL97: N/A | AM97: N/A | AN97: N/A | AO97: N/A | AP97: N/A | AQ97: N/A | AR97: N/A | AS97: N/A | AT97: N/A | AU97: N/A | AV97: N/A | AW97: N/A | AX97: N/A | AY97: N/A | AZ97: N/A | BA97: N/A | BB97: N/A | BC97: N/A | BD97: N/A | BE97: N/A | BF97: N/A | BG97: N/A | BH97: N/A | BI97: N/A | BJ97: N/A | BK97: N/A | BL97: N/A | BM97: N/A | BN97: N/A | BO97: N/A | BP97: N/A | BQ97: N/A | BR97: N/A | BS97: N/A | BT97: N/A | BU97: N/A | BV97: N/A | BW97: N/A | BX97: N/A | BY97: N/A | BZ97: N/A | CA97: N/A | CB97: N/A | CC97: N/A | CD97: N/A | CE97: N/A | CF97: N/A | CG97: N/A | CH97: N/A | CI97: N/A | CJ97: N/A | CK97: N/A | CL97: N/A | CO97: 1955-10-01 | CP97: 0.37425 | CW97: 1962-10-01 | CX97: 7.014596703 | CY97: 2.97752809 | DC97: 2.97752809 | DI97: 1937Q2 | DJ97: 1937 | DK97: Q2 | DL97: 6 | DM97: 1937-06-30 | DN97: 19.0241 | DO97: 7.35981404
A98: Kennedy | B98: Macmillan | C98: Holyoake | G98: 1.34048 | H98: 5.708626761 | I98: 2.923474652 | J98: World Pop 3.1b Cuban Missile Crisis (Aug-Nov) | K98: 1962-05-17 | L98: N/A | M98: N/A | N98: N/A | O98: 3.06 | P98: N/A | Q98: 3.4 | R98: 3.67 | S98: N/A | T98: 3.87 | U98: 3.92 | V98: N/A | W98: N/A | X98: N/A | Y98: N/A | Z98: N/A | AA98: N/A | AB98: N/A | AC98: N/A | AD98: N/A | AE98: N/A | AF98: N/A | AG98: N/A | AH98: N/A | AI98: N/A | AJ98: N/A | AK98: N/A | AL98: N/A | AM98: N/A | AN98: N/A | AO98: N/A | AP98: N/A | AQ98: N/A | AR98: N/A | AS98: N/A | AT98: N/A | AU98: N/A | AV98: N/A | AW98: N/A | AX98: N/A | AY98: N/A | AZ98: N/A | BA98: N/A | BB98: N/A | BC98: N/A | BD98: N/A | BE98: N/A | BF98: N/A | BG98: N/A | BH98: N/A | BI98: N/A | BJ98: N/A | BK98: N/A | BL98: N/A | BM98: N/A | BN98: N/A | BO98: N/A | BP98: N/A | BQ98: N/A | BR98: N/A | BS98: N/A | BT98: N/A | BU98: N/A | BV98: N/A | BW98: N/A | BX98: N/A | BY98: N/A | BZ98: N/A | CA98: N/A | CB98: N/A | CC98: N/A | CD98: N/A | CE98: N/A | CF98: N/A | CG98: N/A | CH98: N/A | CI98: N/A | CJ98: N/A | CK98: N/A | CL98: N/A | CO98: 1955-11-01 | CP98: 0.37341 | CW98: 1962-11-01 | CX98: 7.042267696 | CY98: 2.322497861 | DC98: 2.322497861 | DI98: 1937Q3 | DJ98: 1937 | DK98: Q3 | DL98: 9 | DM98: 1937-09-30 | DN98: 19.189706 | DO98: 6.551720826
A99: Kennedy | B99: Macmillan | C99: Holyoake | G99: 1.34048 | H99: 5.708626761 | I99: 2.923474652 | J99: World Pop 3.1b Cuban Missile Crisis (Aug-Nov) | K99: 1962-05-18 | L99: N/A | M99: N/A | N99: N/A | O99: 3.05 | P99: N/A | Q99: 3.44 | R99: 3.72 | S99: N/A | T99: 3.93 | U99: 3.92 | V99: N/A | W99: N/A | X99: N/A | Y99: N/A | Z99: N/A | AA99: N/A | AB99: N/A | AC99: N/A | AD99: N/A | AE99: N/A | AF99: N/A | AG99: N/A | AH99: N/A | AI99: N/A | AJ99: N/A | AK99: N/A | AL99: N/A | AM99: N/A | AN99: N/A | AO99: N/A | AP99: N/A | AQ99: N/A | AR99: N/A | AS99: N/A | AT99: N/A | AU99: N/A | AV99: N/A | AW99: N/A | AX99: N/A | AY99: N/A | AZ99: N/A | BA99: N/A | BB99: N/A | BC99: N/A | BD99: N/A | BE99: N/A | BF99: N/A | BG99: N/A | BH99: N/A | BI99: N/A | BJ99: N/A | BK99: N/A | BL99: N/A | BM99: N/A | BN99: N/A | BO99: N/A | BP99: N/A | BQ99: N/A | BR99: N/A | BS99: N/A | BT99: N/A | BU99: N/A | BV99: N/A | BW99: N/A | BX99: N/A | BY99: N/A | BZ99: N/A | CA99: N/A | CB99: N/A | CC99: N/A | CD99: N/A | CE99: N/A | CF99: N/A | CG99: N/A | CH99: N/A | CI99: N/A | CJ99: N/A | CK99: N/A | CL99: N/A | CO99: 1955-12-01 | CP99: 0.37355 | CW99: 1962-12-01 | CX99: 7.076856437 | CY99: 2.649444919 | DC99: 2.649444919 | DI99: 1937Q4 | DJ99: 1937 | DK99: Q4 | DL99: 12 | DM99: 1937-12-31 | DN99: 19.603723 | DO99: 7.248014483
A100: Kennedy | B100: Macmillan | C100: Holyoake | G100: 1.34048 | H100: 5.708626761 | I100: 2.923474652 | J100: World Pop 3.1b Cuban Missile Crisis (Aug-Nov) | K100: 1962-05-21 | L100: N/A | M100: N/A | N100: N/A | O100: 3.05 | P100: N/A | Q100: 3.46 | R100: 3.74 | S100: N/A | T100: 3.94 | U100: 3.92 | V100: N/A | W100: N/A | X100: N/A | Y100: N/A | Z100: N/A | AA100: N/A | AB100: N/A | AC100: N/A | AD100: N/A | AE100: N/A | AF100: N/A | AG100: N/A | AH100: N/A | AI100: N/A | AJ100: N/A | AK100: N/A | AL100: N/A | AM100: N/A | AN100: N/A | AO100: N/A | AP100: N/A | AQ100: N/A | AR100: N/A | AS100: N/A | AT100: N/A | AU100: N/A | AV100: N/A | AW100: N/A | AX100: N/A | AY100: N/A | AZ100: N/A | BA100: N/A | BB100: N/A | BC100: N/A | BD100: N/A | BE100: N/A | BF100: N/A | BG100: N/A | BH100: N/A | BI100: N/A | BJ100: N/A | BK100: N/A | BL100: N/A | BM100: N/A | BN100: N/A | BO100: N/A | BP100: N/A | BQ100: N/A | BR100: N/A | BS100: N/A | BT100: N/A | BU100: N/A | BV100: N/A | BW100: N/A | BX100: N/A | BY100: N/A | BZ100: N/A | CA100: N/A | CB100: N/A | CC100: N/A | CD100: N/A | CE100: N/A | CF100: N/A | CG100: N/A | CH100: N/A | CI100: N/A | CJ100: N/A | CK100: N/A | CL100: N/A | CO100: 1956-01-01 | CP100: 0.22413 | CW100: 1963-01-01 | CX100: 7.10452743 | CY100: 2.7 | DC100: 2.7 | DI100: 1938Q1 | DJ100: 1938 | DK100: Q1 | DL100: 3 | DM100: 1938-03-31 | DN100: 19.52092 | DO100: 5.011135121
A101: Kennedy | B101: Macmillan | C101: Holyoake | G101: 1.34048 | H101: 5.708626761 | I101: 2.923474652 | J101: World Pop 3.1b Cuban Missile Crisis (Aug-Nov) | K101: 1962-05-22 | L101: N/A | M101: N/A | N101: N/A | O101: 3.05 | P101: N/A | Q101: 3.44 | R101: 3.71 | S101: N/A | T101: 3.93 | U101: 3.92 | V101: N/A | W101: N/A | X101: N/A | Y101: N/A | Z101: N/A | AA101: N/A | AB101: N/A | AC101: N/A | AD101: N/A | AE101: N/A | AF101: N/A | AG101: N/A | AH101: N/A | AI101: N/A | AJ101: N/A | AK101: N/A | AL101: N/A | AM101: N/A | AN101: N/A | AO101: N/A | AP101: N/A | AQ101: N/A | AR101: N/A | AS101: N/A | AT101: N/A | AU101: N/A | AV101: N/A | AW101: N/A | AX101: N/A | AY101: N/A | AZ101: N/A | BA101: N/A | BB101: N/A | BC101: N/A | BD101: N/A | BE101: N/A | BF101: N/A | BG101: N/A | BH101: N/A | BI101: N/A | BJ101: N/A | BK101: N/A | BL101: N/A | BM101: N/A | BN101: N/A | BO101: N/A | BP101: N/A | BQ101: N/A | BR101: N/A | BS101: N/A | BT101: N/A | BU101: N/A | BV101: N/A | BW101: N/A | BX101: N/A | BY101: N/A | BZ101: N/A | CA101: N/A | CB101: N/A | CC101: N/A | CD101: N/A | CE101: N/A | CF101: N/A | CG101: N/A | CH101: N/A | CI101: N/A | CJ101: N/A | CK101: N/A | CL101: N/A | CO101: 1956-02-01 | CP101: 0.14914 | CW101: 1963-02-01 | CX101: 7.166787164 | CY101: 3.496503497 | DC101: 3.496503497 | DI101: 1938Q2 | DJ101: 1938 | DK101: Q2 | DL101: 6 | DM101: 1938-06-30 | DN101: 19.686527 | DO101: 3.4820412
A102: Kennedy | B102: Macmillan | C102: Holyoake | G102: 1.34048 | H102: 5.708626761 | I102: 2.923474652 | J102: World Pop 3.1b Cuban Missile Crisis (Aug-Nov) | K102: 1962-05-23 | L102: N/A | M102: N/A | N102: N/A | O102: 3.04 | P102: N/A | Q102: 3.42 | R102: 3.69 | S102: N/A | T102: 3.91 | U102: 3.92 | V102: N/A | W102: N/A | X102: N/A | Y102: N/A | Z102: N/A | AA102: N/A | AB102: N/A | AC102: N/A | AD102: N/A | AE102: N/A | AF102: N/A | AG102: N/A | AH102: N/A | AI102: N/A | AJ102: N/A | AK102: N/A | AL102: N/A | AM102: N/A | AN102: N/A | AO102: N/A | AP102: N/A | AQ102: N/A | AR102: N/A | AS102: N/A | AT102: N/A | AU102: N/A | AV102: N/A | AW102: N/A | AX102: N/A | AY102: N/A | AZ102: N/A | BA102: N/A | BB102: N/A | BC102: N/A | BD102: N/A | BE102: N/A | BF102: N/A | BG102: N/A | BH102: N/A | BI102: N/A | BJ102: N/A | BK102: N/A | BL102: N/A | BM102: N/A | BN102: N/A | BO102: N/A | BP102: N/A | BQ102: N/A | BR102: N/A | BS102: N/A | BT102: N/A | BU102: N/A | BV102: N/A | BW102: N/A | BX102: N/A | BY102: N/A | BZ102: N/A | CA102: N/A | CB102: N/A | CC102: N/A | CD102: N/A | CE102: N/A | CF102: N/A | CG102: N/A | CH102: N/A | CI102: N/A | CJ102: N/A | CK102: N/A | CL102: N/A | CO102: 1956-03-01 | CP102: 0.37327 | CW102: 1963-03-01 | CX102: 7.173704912 | CY102: 3.184079602 | DC102: 3.184079602 | DI102: 1938Q3 | DJ102: 1938 | DK102: Q3 | DL102: 9 | DM102: 1938-09-30 | DN102: 19.707228 | DO102: 2.696873001
A103: Kennedy | B103: Macmillan | C103: Holyoake | G103: 1.34048 | H103: 5.708626761 | I103: 2.923474652 | J103: World Pop 3.1b Cuban Missile Crisis (Aug-Nov) | K103: 1962-05-24 | L103: N/A | M103: N/A | N103: N/A | O103: 3.02 | P103: N/A | Q103: 3.39 | R103: 3.68 | S103: N/A | T103: 3.9 | U103: 3.92 | V103: N/A | W103: N/A | X103: N/A | Y103: N/A | Z103: N/A | AA103: N/A | AB103: N/A | AC103: N/A | AD103: N/A | AE103: N/A | AF103: N/A | AG103: N/A | AH103: N/A | AI103: N/A | AJ103: N/A | AK103: N/A | AL103: N/A | AM103: N/A | AN103: N/A | AO103: N/A | AP103: N/A | AQ103: N/A | AR103: N/A | AS103: N/A | AT103: N/A | AU103: N/A | AV103: N/A | AW103: N/A | AX103: N/A | AY103: N/A | AZ103: N/A | BA103: N/A | BB103: N/A | BC103: N/A | BD103: N/A | BE103: N/A | BF103: N/A | BG103: N/A | BH103: N/A | BI103: N/A | BJ103: N/A | BK103: N/A | BL103: N/A | BM103: N/A | BN103: N/A | BO103: N/A | BP103: N/A | BQ103: N/A | BR103: N/A | BS103: N/A | BT103: N/A | BU103: N/A | BV103: N/A | BW103: N/A | BX103: N/A | BY103: N/A | BZ103: N/A | CA103: N/A | CB103: N/A | CC103: N/A | CD103: N/A | CE103: N/A | CF103: N/A | CG103: N/A | CH103: N/A | CI103: N/A | CJ103: N/A | CK103: N/A | CL103: N/A | CO103: 1956-04-01 | CP103: 0.52258 | CW103: 1963-04-01 | CX103: 7.194458157 | CY103: 2.060843965 | DC103: 2.060843965 | DI103: 1938Q4 | DJ103: 1938 | DK103: Q4 | DL103: 12 | DM103: 1938-12-31 | DN103: 19.727929 | DO103: 0.633583733
A104: Kennedy | B104: Macmillan | C104: Holyoake | G104: 1.34048 | H104: 5.708626761 | I104: 2.923474652 | J104: World Pop 3.1b Cuban Missile Crisis (Aug-Nov) | K104: 1962-05-25 | L104: N/A | M104: N/A | N104: N/A | O104: 3.01 | P104: N/A | Q104: 3.37 | R104: 3.66 | S104: N/A | T104: 3.88 | U104: 3.92 | V104: N/A | W104: N/A | X104: N/A | Y104: N/A | Z104: N/A | AA104: N/A | AB104: N/A | AC104: N/A | AD104: N/A | AE104: N/A | AF104: N/A | AG104: N/A | AH104: N/A | AI104: N/A | AJ104: N/A | AK104: N/A | AL104: N/A | AM104: N/A | AN104: N/A | AO104: N/A | AP104: N/A | AQ104: N/A | AR104: N/A | AS104: N/A | AT104: N/A | AU104: N/A | AV104: N/A | AW104: N/A | AX104: N/A | AY104: N/A | AZ104: N/A | BA104: N/A | BB104: N/A | BC104: N/A | BD104: N/A | BE104: N/A | BF104: N/A | BG104: N/A | BH104: N/A | BI104: N/A | BJ104: N/A | BK104: N/A | BL104: N/A | BM104: N/A | BN104: N/A | BO104: N/A | BP104: N/A | BQ104: N/A | BR104: N/A | BS104: N/A | BT104: N/A | BU104: N/A | BV104: N/A | BW104: N/A | BX104: N/A | BY104: N/A | BZ104: N/A | CA104: N/A | CB104: N/A | CC104: N/A | CD104: N/A | CE104: N/A | CF104: N/A | CG104: N/A | CH104: N/A | CI104: N/A | CJ104: N/A | CK104: N/A | CL104: N/A | CO104: 1956-05-01 | CP104: 0.97124 | CW104: 1963-05-01 | CX104: 7.187540409 | CY104: 1.663405088 | DC104: 1.663405088 | DI104: 1939Q1 | DJ104: 1939 | DK104: Q1 | DL104: 3 | DM104: 1939-03-31 | DN104: 20.059143 | DO104: 2.757160011
A105: Kennedy | B105: Macmillan | C105: Holyoake | G105: 1.34048 | H105: 5.708626761 | I105: 2.923474652 | J105: World Pop 3.1b Cuban Missile Crisis (Aug-Nov) | K105: 1962-05-28 | L105: N/A | M105: N/A | N105: N/A | O105: 2.98 | P105: N/A | Q105: 3.36 | R105: 3.65 | S105: N/A | T105: 3.87 | U105: 3.92 | V105: N/A | W105: N/A | X105: N/A | Y105: N/A | Z105: N/A | AA105: N/A | AB105: N/A | AC105: N/A | AD105: N/A | AE105: N/A | AF105: N/A | AG105: N/A | AH105: N/A | AI105: N/A | AJ105: N/A | AK105: N/A | AL105: N/A | AM105: N/A | AN105: N/A | AO105: N/A | AP105: N/A | AQ105: N/A | AR105: N/A | AS105: N/A | AT105: N/A | AU105: N/A | AV105: N/A | AW105: N/A | AX105: N/A | AY105: N/A | AZ105: N/A | BA105: N/A | BB105: N/A | BC105: N/A | BD105: N/A | BE105: N/A | BF105: N/A | BG105: N/A | BH105: N/A | BI105: N/A | BJ105: N/A | BK105: N/A | BL105: N/A | BM105: N/A | BN105: N/A | BO105: N/A | BP105: N/A | BQ105: N/A | BR105: N/A | BS105: N/A | BT105: N/A | BU105: N/A | BV105: N/A | BW105: N/A | BX105: N/A | BY105: N/A | BZ105: N/A | CA105: N/A | CB105: N/A | CC105: N/A | CD105: N/A | CE105: N/A | CF105: N/A | CG105: N/A | CH105: N/A | CI105: N/A | CJ105: N/A | CK105: N/A | CL105: N/A | CO105: 1956-06-01 | CP105: 1.64732 | CW105: 1963-06-01 | CX105: 7.187540409 | CY105: 0.9718172983 | DC105: 0.9718172983 | DI105: 1939Q2 | DJ105: 1939 | DK105: Q2 | DL105: 6 | DM105: 1939-06-30 | DN105: 20.348955 | DO105: 3.364879951
A106: Kennedy | B106: Macmillan | C106: Holyoake | G106: 1.34048 | H106: 5.708626761 | I106: 2.923474652 | J106: World Pop 3.1b Cuban Missile Crisis (Aug-Nov) | K106: 1962-05-29 | L106: N/A | M106: N/A | N106: N/A | O106: 2.97 | P106: N/A | Q106: 3.37 | R106: 3.66 | S106: N/A | T106: 3.89 | U106: 3.92 | V106: N/A | W106: N/A | X106: N/A | Y106: N/A | Z106: N/A | AA106: N/A | AB106: N/A | AC106: N/A | AD106: N/A | AE106: N/A | AF106: N/A | AG106: N/A | AH106: N/A | AI106: N/A | AJ106: N/A | AK106: N/A | AL106: N/A | AM106: N/A | AN106: N/A | AO106: N/A | AP106: N/A | AQ106: N/A | AR106: N/A | AS106: N/A | AT106: N/A | AU106: N/A | AV106: N/A | AW106: N/A | AX106: N/A | AY106: N/A | AZ106: N/A | BA106: N/A | BB106: N/A | BC106: N/A | BD106: N/A | BE106: N/A | BF106: N/A | BG106: N/A | BH106: N/A | BI106: N/A | BJ106: N/A | BK106: N/A | BL106: N/A | BM106: N/A | BN106: N/A | BO106: N/A | BP106: N/A | BQ106: N/A | BR106: N/A | BS106: N/A | BT106: N/A | BU106: N/A | BV106: N/A | BW106: N/A | BX106: N/A | BY106: N/A | BZ106: N/A | CA106: N/A | CB106: N/A | CC106: N/A | CD106: N/A | CE106: N/A | CF106: N/A | CG106: N/A | CH106: N/A | CI106: N/A | CJ106: N/A | CK106: N/A | CL106: N/A | CO106: 1956-07-01 | CP106: 1.98057 | CW106: 1963-07-01 | CX106: 7.14603392 | CY106: 0.7804878049 | DC106: 0.7804878049 | DI106: 1939Q3 | DJ106: 1939 | DK106: Q3 | DL106: 9 | DM106: 1939-09-30 | DN106: 20.597365 | DO106: 4.516804697
A107: Kennedy | B107: Macmillan | C107: Holyoake | G107: 1.34048 | H107: 5.708626761 | I107: 2.923474652 | J107: World Pop 3.1b Cuban Missile Crisis (Aug-Nov) | K107: 1962-05-31 | L107: N/A | M107: N/A | N107: N/A | O107: 2.99 | P107: N/A | Q107: 3.36 | R107: 3.66 | S107: N/A | T107: 3.9 | U107: 3.92 | V107: N/A | W107: N/A | X107: N/A | Y107: N/A | Z107: N/A | AA107: N/A | AB107: N/A | AC107: N/A | AD107: N/A | AE107: N/A | AF107: N/A | AG107: N/A | AH107: N/A | AI107: N/A | AJ107: N/A | AK107: N/A | AL107: N/A | AM107: N/A | AN107: N/A | AO107: N/A | AP107: N/A | AQ107: N/A | AR107: N/A | AS107: N/A | AT107: N/A | AU107: N/A | AV107: N/A | AW107: N/A | AX107: N/A | AY107: N/A | AZ107: N/A | BA107: N/A | BB107: N/A | BC107: N/A | BD107: N/A | BE107: N/A | BF107: N/A | BG107: N/A | BH107: N/A | BI107: N/A | BJ107: N/A | BK107: N/A | BL107: N/A | BM107: N/A | BN107: N/A | BO107: N/A | BP107: N/A | BQ107: N/A | BR107: N/A | BS107: N/A | BT107: N/A | BU107: N/A | BV107: N/A | BW107: N/A | BX107: N/A | BY107: N/A | BZ107: N/A | CA107: N/A | CB107: N/A | CC107: N/A | CD107: N/A | CE107: N/A | CF107: N/A | CG107: N/A | CH107: N/A | CI107: N/A | CJ107: N/A | CK107: N/A | CL107: N/A | CO107: 1956-08-01 | CP107: 2.20808 | CW107: 1963-08-01 | CX107: 7.125280675 | CY107: 1.377952756 | DC107: 1.377952756 | DI107: 1939Q4 | DJ107: 1939 | DK107: Q4 | DL107: 12 | DM107: 1939-12-31 | DN107: 21.239092 | DO107: 7.660018444
A108: Kennedy | B108: Macmillan | C108: Holyoake | G108: 1.23995 | H108: 5.503926702 | I108: 2.923474652 | J108: World Pop 3.1b Cuban Missile Crisis (Aug-Nov) | K108: 1962-06-01 | L108: N/A | M108: N/A | N108: N/A | O108: 2.98 | P108: N/A | Q108: 3.35 | R108: 3.64 | S108: N/A | T108: 3.89 | U108: 3.92 | V108: N/A | W108: N/A | X108: N/A | Y108: N/A | Z108: N/A | AA108: N/A | AB108: N/A | AC108: N/A | AD108: N/A | AE108: N/A | AF108: N/A | AG108: N/A | AH108: N/A | AI108: N/A | AJ108: N/A | AK108: N/A | AL108: N/A | AM108: N/A | AN108: N/A | AO108: N/A | AP108: N/A | AQ108: N/A | AR108: N/A | AS108: N/A | AT108: N/A | AU108: N/A | AV108: N/A | AW108: N/A | AX108: N/A | AY108: N/A | AZ108: N/A | BA108: N/A | BB108: N/A | BC108: N/A | BD108: N/A | BE108: N/A | BF108: N/A | BG108: N/A | BH108: N/A | BI108: N/A | BJ108: N/A | BK108: N/A | BL108: N/A | BM108: N/A | BN108: N/A | BO108: N/A | BP108: N/A | BQ108: N/A | BR108: N/A | BS108: N/A | BT108: N/A | BU108: N/A | BV108: N/A | BW108: N/A | BX108: N/A | BY108: N/A | BZ108: N/A | CA108: N/A | CB108: N/A | CC108: N/A | CD108: N/A | CE108: N/A | CF108: N/A | CG108: N/A | CH108: N/A | CI108: N/A | CJ108: N/A | CK108: N/A | CL108: N/A | CO108: 1956-09-01 | CP108: 1.8622 | CW108: 1963-09-01 | CX108: 7.14603392 | CY108: 1.773399015 | DC108: 1.773399015 | DI108: 1940Q1 | DJ108: 1940 | DK108: Q1 | DL108: 3 | DM108: 1940-03-31 | DN108: 20.969981 | DO108: 4.540762285
A109: Kennedy | B109: Macmillan | C109: Holyoake | G109: 1.23995 | H109: 5.503926702 | I109: 2.923474652 | J109: World Pop 3.1b Cuban Missile Crisis (Aug-Nov) | K109: 1962-06-04 | L109: N/A | M109: N/A | N109: N/A | O109: 2.98 | P109: N/A | Q109: 3.33 | R109: 3.63 | S109: N/A | T109: 3.88 | U109: 3.92 | V109: N/A | W109: N/A | X109: N/A | Y109: N/A | Z109: N/A | AA109: N/A | AB109: N/A | AC109: N/A | AD109: N/A | AE109: N/A | AF109: N/A | AG109: N/A | AH109: N/A | AI109: N/A | AJ109: N/A | AK109: N/A | AL109: N/A | AM109: N/A | AN109: N/A | AO109: N/A | AP109: N/A | AQ109: N/A | AR109: N/A | AS109: N/A | AT109: N/A | AU109: N/A | AV109: N/A | AW109: N/A | AX109: N/A | AY109: N/A | AZ109: N/A | BA109: N/A | BB109: N/A | BC109: N/A | BD109: N/A | BE109: N/A | BF109: N/A | BG109: N/A | BH109: N/A | BI109: N/A | BJ109: N/A | BK109: N/A | BL109: N/A | BM109: N/A | BN109: N/A | BO109: N/A | BP109: N/A | BQ109: N/A | BR109: N/A | BS109: N/A | BT109: N/A | BU109: N/A | BV109: N/A | BW109: N/A | BX109: N/A | BY109: N/A | BZ109: N/A | CA109: N/A | CB109: N/A | CC109: N/A | CD109: N/A | CE109: N/A | CF109: N/A | CG109: N/A | CH109: N/A | CI109: N/A | CJ109: N/A | CK109: N/A | CL109: N/A | CO109: 1956-10-01 | CP109: 2.57271 | CW109: 1963-10-01 | CX109: 7.173704912 | CY109: 2.268244576 | DC109: 2.268244576 | DI109: 1940Q2 | DJ109: 1940 | DK109: Q2 | DL109: 6 | DM109: 1940-06-30 | DN109: 21.301195 | DO109: 4.679552341
A110: Kennedy | B110: Macmillan | C110: Holyoake | G110: 1.23995 | H110: 5.503926702 | I110: 2.923474652 | J110: World Pop 3.1b Cuban Missile Crisis (Aug-Nov) | K110: 1962-06-05 | L110: N/A | M110: N/A | N110: N/A | O110: 2.97 | P110: N/A | Q110: 3.35 | R110: 3.64 | S110: N/A | T110: 3.89 | U110: 3.92 | V110: N/A | W110: N/A | X110: N/A | Y110: N/A | Z110: N/A | AA110: N/A | AB110: N/A | AC110: N/A | AD110: N/A | AE110: N/A | AF110: N/A | AG110: N/A | AH110: N/A | AI110: N/A | AJ110: N/A | AK110: N/A | AL110: N/A | AM110: N/A | AN110: N/A | AO110: N/A | AP110: N/A | AQ110: N/A | AR110: N/A | AS110: N/A | AT110: N/A | AU110: N/A | AV110: N/A | AW110: N/A | AX110: N/A | AY110: N/A | AZ110: N/A | BA110: N/A | BB110: N/A | BC110: N/A | BD110: N/A | BE110: N/A | BF110: N/A | BG110: N/A | BH110: N/A | BI110: N/A | BJ110: N/A | BK110: N/A | BL110: N/A | BM110: N/A | BN110: N/A | BO110: N/A | BP110: N/A | BQ110: N/A | BR110: N/A | BS110: N/A | BT110: N/A | BU110: N/A | BV110: N/A | BW110: N/A | BX110: N/A | BY110: N/A | BZ110: N/A | CA110: N/A | CB110: N/A | CC110: N/A | CD110: N/A | CE110: N/A | CF110: N/A | CG110: N/A | CH110: N/A | CI110: N/A | CJ110: N/A | CK110: N/A | CL110: N/A | CO110: 1956-11-01 | CP110: 2.34375 | CW110: 1963-11-01 | CX110: 7.194458157 | CY110: 2.161100196 | DC110: 2.161100196 | DI110: 1940Q3 | DJ110: 1940 | DK110: Q3 | DL110: 9 | DM110: 1940-09-30 | DN110: 21.570307 | DO110: 4.723623629
A111: Kennedy | B111: Macmillan | C111: Holyoake | G111: 1.23995 | H111: 5.503926702 | I111: 2.923474652 | J111: World Pop 3.1b Cuban Missile Crisis (Aug-Nov) | K111: 1962-06-06 | L111: N/A | M111: N/A | N111: N/A | O111: 2.95 | P111: N/A | Q111: 3.34 | R111: 3.62 | S111: N/A | T111: 3.89 | U111: 3.92 | V111: N/A | W111: N/A | X111: N/A | Y111: N/A | Z111: N/A | AA111: N/A | AB111: N/A | AC111: N/A | AD111: N/A | AE111: N/A | AF111: N/A | AG111: N/A | AH111: N/A | AI111: N/A | AJ111: N/A | AK111: N/A | AL111: N/A | AM111: N/A | AN111: N/A | AO111: N/A | AP111: N/A | AQ111: N/A | AR111: N/A | AS111: N/A | AT111: N/A | AU111: N/A | AV111: N/A | AW111: N/A | AX111: N/A | AY111: N/A | AZ111: N/A | BA111: N/A | BB111: N/A | BC111: N/A | BD111: N/A | BE111: N/A | BF111: N/A | BG111: N/A | BH111: N/A | BI111: N/A | BJ111: N/A | BK111: N/A | BL111: N/A | BM111: N/A | BN111: N/A | BO111: N/A | BP111: N/A | BQ111: N/A | BR111: N/A | BS111: N/A | BT111: N/A | BU111: N/A | BV111: N/A | BW111: N/A | BX111: N/A | BY111: N/A | BZ111: N/A | CA111: N/A | CB111: N/A | CC111: N/A | CD111: N/A | CE111: N/A | CF111: N/A | CG111: N/A | CH111: N/A | CI111: N/A | CJ111: N/A | CK111: N/A | CL111: N/A | CO111: 1956-12-01 | CP111: 2.82843 | CW111: 1963-12-01 | CX111: 7.208293654 | CY111: 1.857282502 | DC111: 1.857282502 | DI111: 1940Q4 | DJ111: 1940 | DK111: Q4 | DL111: 12 | DM111: 1940-12-31 | DN111: 21.818717 | DO111: 2.729047927
A112: Kennedy | B112: Macmillan | C112: Holyoake | G112: 1.23995 | H112: 5.503926702 | I112: 2.923474652 | J112: World Pop 3.1b Cuban Missile Crisis (Aug-Nov) | K112: 1962-06-07 | L112: N/A | M112: N/A | N112: N/A | O112: 2.95 | P112: N/A | Q112: 3.33 | R112: 3.6 | S112: N/A | T112: 3.87 | U112: 3.92 | V112: N/A | W112: N/A | X112: N/A | Y112: N/A | Z112: N/A | AA112: N/A | AB112: N/A | AC112: N/A | AD112: N/A | AE112: N/A | AF112: N/A | AG112: N/A | AH112: N/A | AI112: N/A | AJ112: N/A | AK112: N/A | AL112: N/A | AM112: N/A | AN112: N/A | AO112: N/A | AP112: N/A | AQ112: N/A | AR112: N/A | AS112: N/A | AT112: N/A | AU112: N/A | AV112: N/A | AW112: N/A | AX112: N/A | AY112: N/A | AZ112: N/A | BA112: N/A | BB112: N/A | BC112: N/A | BD112: N/A | BE112: N/A | BF112: N/A | BG112: N/A | BH112: N/A | BI112: N/A | BJ112: N/A | BK112: N/A | BL112: N/A | BM112: N/A | BN112: N/A | BO112: N/A | BP112: N/A | BQ112: N/A | BR112: N/A | BS112: N/A | BT112: N/A | BU112: N/A | BV112: N/A | BW112: N/A | BX112: N/A | BY112: N/A | BZ112: N/A | CA112: N/A | CB112: N/A | CC112: N/A | CD112: N/A | CE112: N/A | CF112: N/A | CG112: N/A | CH112: N/A | CI112: N/A | CJ112: N/A | CK112: N/A | CL112: N/A | CO112: 1957-01-01 | CP112: 3.13082 | CW112: 1964-01-01 | CX112: 7.242882395 | CY112: 1.947419669 | DC112: 1.947419669 | DI112: 1941Q1 | DJ112: 1941 | DK112: Q1 | DL112: 3 | DM112: 1941-03-31 | DN112: 21.860118 | DO112: 4.244815482
A113: Kennedy | B113: Macmillan | C113: Holyoake | G113: 1.23995 | H113: 5.503926702 | I113: 2.923474652 | J113: World Pop 3.1b Cuban Missile Crisis (Aug-Nov) | K113: 1962-06-08 | L113: N/A | M113: N/A | N113: N/A | O113: 2.94 | P113: N/A | Q113: 3.33 | R113: 3.6 | S113: N/A | T113: 3.86 | U113: 3.92 | V113: N/A | W113: N/A | X113: N/A | Y113: N/A | Z113: N/A | AA113: N/A | AB113: N/A | AC113: N/A | AD113: N/A | AE113: N/A | AF113: N/A | AG113: N/A | AH113: N/A | AI113: N/A | AJ113: N/A | AK113: N/A | AL113: N/A | AM113: N/A | AN113: N/A | AO113: N/A | AP113: N/A | AQ113: N/A | AR113: N/A | AS113: N/A | AT113: N/A | AU113: N/A | AV113: N/A | AW113: N/A | AX113: N/A | AY113: N/A | AZ113: N/A | BA113: N/A | BB113: N/A | BC113: N/A | BD113: N/A | BE113: N/A | BF113: N/A | BG113: N/A | BH113: N/A | BI113: N/A | BJ113: N/A | BK113: N/A | BL113: N/A | BM113: N/A | BN113: N/A | BO113: N/A | BP113: N/A | BQ113: N/A | BR113: N/A | BS113: N/A | BT113: N/A | BU113: N/A | BV113: N/A | BW113: N/A | BX113: N/A | BY113: N/A | BZ113: N/A | CA113: N/A | CB113: N/A | CC113: N/A | CD113: N/A | CE113: N/A | CF113: N/A | CG113: N/A | CH113: N/A | CI113: N/A | CJ113: N/A | CK113: N/A | CL113: N/A | CO113: 1957-02-01 | CP113: 3.49963 | CW113: 1964-02-01 | CX113: 7.249800143 | CY113: 1.158301158 | DC113: 1.158301158 | DI113: 1941Q2 | DJ113: 1941 | DK113: Q2 | DL113: 6 | DM113: 1941-06-30 | DN113: 22.12923 | DO113: 3.887270174
A114: Kennedy | B114: Macmillan | C114: Holyoake | G114: 1.23995 | H114: 5.503926702 | I114: 2.923474652 | J114: World Pop 3.1b Cuban Missile Crisis (Aug-Nov) | K114: 1962-06-11 | L114: N/A | M114: N/A | N114: N/A | O114: 2.95 | P114: N/A | Q114: 3.31 | R114: 3.59 | S114: N/A | T114: 3.87 | U114: 3.92 | V114: N/A | W114: N/A | X114: N/A | Y114: N/A | Z114: N/A | AA114: N/A | AB114: N/A | AC114: N/A | AD114: N/A | AE114: N/A | AF114: N/A | AG114: N/A | AH114: N/A | AI114: N/A | AJ114: N/A | AK114: N/A | AL114: N/A | AM114: N/A | AN114: N/A | AO114: N/A | AP114: N/A | AQ114: N/A | AR114: N/A | AS114: N/A | AT114: N/A | AU114: N/A | AV114: N/A | AW114: N/A | AX114: N/A | AY114: N/A | AZ114: N/A | BA114: N/A | BB114: N/A | BC114: N/A | BD114: N/A | BE114: N/A | BF114: N/A | BG114: N/A | BH114: N/A | BI114: N/A | BJ114: N/A | BK114: N/A | BL114: N/A | BM114: N/A | BN114: N/A | BO114: N/A | BP114: N/A | BQ114: N/A | BR114: N/A | BS114: N/A | BT114: N/A | BU114: N/A | BV114: N/A | BW114: N/A | BX114: N/A | BY114: N/A | BZ114: N/A | CA114: N/A | CB114: N/A | CC114: N/A | CD114: N/A | CE114: N/A | CF114: N/A | CG114: N/A | CH114: N/A | CI114: N/A | CJ114: N/A | CK114: N/A | CL114: N/A | CO114: 1957-03-01 | CP114: 3.60729 | CW114: 1964-03-01 | CX114: 7.277471136 | CY114: 1.446480231 | DC114: 1.446480231 | DI114: 1941Q3 | DJ114: 1941 | DK114: Q3 | DL114: 9 | DM114: 1941-09-30 | DN114: 22.212033 | DO114: 2.975043424
A115: Kennedy | B115: Macmillan | C115: Holyoake | G115: 1.23995 | H115: 5.503926702 | I115: 2.923474652 | J115: World Pop 3.1b Cuban Missile Crisis (Aug-Nov) | K115: 1962-06-12 | L115: N/A | M115: N/A | N115: N/A | O115: 2.94 | P115: N/A | Q115: 3.29 | R115: 3.57 | S115: N/A | T115: 3.86 | U115: 3.92 | V115: N/A | W115: N/A | X115: N/A | Y115: N/A | Z115: N/A | AA115: N/A | AB115: N/A | AC115: N/A | AD115: N/A | AE115: N/A | AF115: N/A | AG115: N/A | AH115: N/A | AI115: N/A | AJ115: N/A | AK115: N/A | AL115: N/A | AM115: N/A | AN115: N/A | AO115: N/A | AP115: N/A | AQ115: N/A | AR115: N/A | AS115: N/A | AT115: N/A | AU115: N/A | AV115: N/A | AW115: N/A | AX115: N/A | AY115: N/A | AZ115: N/A | BA115: N/A | BB115: N/A | BC115: N/A | BD115: N/A | BE115: N/A | BF115: N/A | BG115: N/A | BH115: N/A | BI115: N/A | BJ115: N/A | BK115: N/A | BL115: N/A | BM115: N/A | BN115: N/A | BO115: N/A | BP115: N/A | BQ115: N/A | BR115: N/A | BS115: N/A | BT115: N/A | BU115: N/A | BV115: N/A | BW115: N/A | BX115: N/A | BY115: N/A | BZ115: N/A | CA115: N/A | CB115: N/A | CC115: N/A | CD115: N/A | CE115: N/A | CF115: N/A | CG115: N/A | CH115: N/A | CI115: N/A | CJ115: N/A | CK115: N/A | CL115: N/A | CO115: 1957-04-01 | CP115: 3.71333 | CW115: 1964-04-01 | CX115: 7.33973087 | CY115: 2.019230769 | DC115: 2.019230769 | DI115: 1941Q4 | DJ115: 1941 | DK115: Q4 | DL115: 12 | DM115: 1941-12-31 | DN115: 22.646751 | DO115: 3.795062744
A116: Kennedy | B116: Macmillan | C116: Holyoake | G116: 1.23995 | H116: 5.503926702 | I116: 2.923474652 | J116: World Pop 3.1b Cuban Missile Crisis (Aug-Nov) | K116: 1962-06-13 | L116: N/A | M116: N/A | N116: N/A | O116: 2.94 | P116: N/A | Q116: 3.31 | R116: 3.57 | S116: N/A | T116: 3.87 | U116: 3.92 | V116: N/A | W116: N/A | X116: N/A | Y116: N/A | Z116: N/A | AA116: N/A | AB116: N/A | AC116: N/A | AD116: N/A | AE116: N/A | AF116: N/A | AG116: N/A | AH116: N/A | AI116: N/A | AJ116: N/A | AK116: N/A | AL116: N/A | AM116: N/A | AN116: N/A | AO116: N/A | AP116: N/A | AQ116: N/A | AR116: N/A | AS116: N/A | AT116: N/A | AU116: N/A | AV116: N/A | AW116: N/A | AX116: N/A | AY116: N/A | AZ116: N/A | BA116: N/A | BB116: N/A | BC116: N/A | BD116: N/A | BE116: N/A | BF116: N/A | BG116: N/A | BH116: N/A | BI116: N/A | BJ116: N/A | BK116: N/A | BL116: N/A | BM116: N/A | BN116: N/A | BO116: N/A | BP116: N/A | BQ116: N/A | BR116: N/A | BS116: N/A | BT116: N/A | BU116: N/A | BV116: N/A | BW116: N/A | BX116: N/A | BY116: N/A | BZ116: N/A | CA116: N/A | CB116: N/A | CC116: N/A | CD116: N/A | CE116: N/A | CF116: N/A | CG116: N/A | CH116: N/A | CI116: N/A | CJ116: N/A | CK116: N/A | CL116: N/A | CO116: 1957-05-01 | CP116: 3.58861 | CW116: 1964-05-01 | CX116: 7.401990604 | CY116: 2.983638114 | DC116: 2.983638114 | DI116: 1942Q1 | DJ116: 1942 | DK116: Q1 | DL116: 3 | DM116: 1942-03-31 | DN116: 22.35694 | DO116: 2.272732471
A117: Kennedy | B117: Macmillan | C117: Holyoake | G117: 1.23995 | H117: 5.503926702 | I117: 2.923474652 | J117: World Pop 3.1b Cuban Missile Crisis (Aug-Nov) | K117: 1962-06-14 | L117: N/A | M117: N/A | N117: N/A | O117: 3 | P117: N/A | Q117: 3.34 | R117: 3.6 | S117: N/A | T117: 3.9 | U117: 3.92 | V117: N/A | W117: N/A | X117: N/A | Y117: N/A | Z117: N/A | AA117: N/A | AB117: N/A | AC117: N/A | AD117: N/A | AE117: N/A | AF117: N/A | AG117: N/A | AH117: N/A | AI117: N/A | AJ117: N/A | AK117: N/A | AL117: N/A | AM117: N/A | AN117: N/A | AO117: N/A | AP117: N/A | AQ117: N/A | AR117: N/A | AS117: N/A | AT117: N/A | AU117: N/A | AV117: N/A | AW117: N/A | AX117: N/A | AY117: N/A | AZ117: N/A | BA117: N/A | BB117: N/A | BC117: N/A | BD117: N/A | BE117: N/A | BF117: N/A | BG117: N/A | BH117: N/A | BI117: N/A | BJ117: N/A | BK117: N/A | BL117: N/A | BM117: N/A | BN117: N/A | BO117: N/A | BP117: N/A | BQ117: N/A | BR117: N/A | BS117: N/A | BT117: N/A | BU117: N/A | BV117: N/A | BW117: N/A | BX117: N/A | BY117: N/A | BZ117: N/A | CA117: N/A | CB117: N/A | CC117: N/A | CD117: N/A | CE117: N/A | CF117: N/A | CG117: N/A | CH117: N/A | CI117: N/A | CJ117: N/A | CK117: N/A | CL117: N/A | CO117: 1957-06-01 | CP117: 3.53591 | CW117: 1964-06-01 | CX117: 7.429661597 | CY117: 3.368623677 | DC117: 3.368623677 | DI117: 1942Q2 | DJ117: 1942 | DK117: Q2 | DL117: 6 | DM117: 1942-06-30 | DN117: 22.708854 | DO117: 2.619268723
A118: Kennedy | B118: Macmillan | C118: Holyoake | G118: 1.23995 | H118: 5.503926702 | I118: 2.923474652 | J118: World Pop 3.1b Cuban Missile Crisis (Aug-Nov) | K118: 1962-06-15 | L118: N/A | M118: N/A | N118: N/A | O118: 3 | P118: N/A | Q118: 3.34 | R118: 3.6 | S118: N/A | T118: 3.89 | U118: 3.96 | V118: N/A | W118: N/A | X118: N/A | Y118: N/A | Z118: N/A | AA118: N/A | AB118: N/A | AC118: N/A | AD118: N/A | AE118: N/A | AF118: N/A | AG118: N/A | AH118: N/A | AI118: N/A | AJ118: N/A | AK118: N/A | AL118: N/A | AM118: N/A | AN118: N/A | AO118: N/A | AP118: N/A | AQ118: N/A | AR118: N/A | AS118: N/A | AT118: N/A | AU118: N/A | AV118: N/A | AW118: N/A | AX118: N/A | AY118: N/A | AZ118: N/A | BA118: N/A | BB118: N/A | BC118: N/A | BD118: N/A | BE118: N/A | BF118: N/A | BG118: N/A | BH118: N/A | BI118: N/A | BJ118: N/A | BK118: N/A | BL118: N/A | BM118: N/A | BN118: N/A | BO118: N/A | BP118: N/A | BQ118: N/A | BR118: N/A | BS118: N/A | BT118: N/A | BU118: N/A | BV118: N/A | BW118: N/A | BX118: N/A | BY118: N/A | BZ118: N/A | CA118: N/A | CB118: N/A | CC118: N/A | CD118: N/A | CE118: N/A | CF118: N/A | CG118: N/A | CH118: N/A | CI118: N/A | CJ118: N/A | CK118: N/A | CL118: N/A | CO118: 1957-07-01 | CP118: 3.29791 | CW118: 1964-07-01 | CX118: 7.429661597 | CY118: 3.969022265 | DC118: 3.969022265 | DI118: 1942Q3 | DJ118: 1942 | DK118: Q3 | DL118: 9 | DM118: 1942-09-30 | DN118: 23.143573 | DO118: 4.193852944
A119: Kennedy | B119: Macmillan | C119: Holyoake | G119: 1.23995 | H119: 5.503926702 | I119: 2.923474652 | J119: World Pop 3.1b Cuban Missile Crisis (Aug-Nov) | K119: 1962-06-18 | L119: N/A | M119: N/A | N119: N/A | O119: 3.03 | P119: N/A | Q119: 3.36 | R119: 3.61 | S119: N/A | T119: 3.91 | U119: 3.96 | V119: N/A | W119: N/A | X119: N/A | Y119: N/A | Z119: N/A | AA119: N/A | AB119: N/A | AC119: N/A | AD119: N/A | AE119: N/A | AF119: N/A | AG119: N/A | AH119: N/A | AI119: N/A | AJ119: N/A | AK119: N/A | AL119: N/A | AM119: N/A | AN119: N/A | AO119: N/A | AP119: N/A | AQ119: N/A | AR119: N/A | AS119: N/A | AT119: N/A | AU119: N/A | AV119: N/A | AW119: N/A | AX119: N/A | AY119: N/A | AZ119: N/A | BA119: N/A | BB119: N/A | BC119: N/A | BD119: N/A | BE119: N/A | BF119: N/A | BG119: N/A | BH119: N/A | BI119: N/A | BJ119: N/A | BK119: N/A | BL119: N/A | BM119: N/A | BN119: N/A | BO119: N/A | BP119: N/A | BQ119: N/A | BR119: N/A | BS119: N/A | BT119: N/A | BU119: N/A | BV119: N/A | BW119: N/A | BX119: N/A | BY119: N/A | BZ119: N/A | CA119: N/A | CB119: N/A | CC119: N/A | CD119: N/A | CE119: N/A | CF119: N/A | CG119: N/A | CH119: N/A | CI119: N/A | CJ119: N/A | CK119: N/A | CL119: N/A | CO119: 1957-08-01 | CP119: 3.55181 | CW119: 1964-08-01 | CX119: 7.45733259 | CY119: 4.660194175 | DC119: 4.660194175 | DI119: 1942Q4 | DJ119: 1942 | DK119: Q4 | DL119: 12 | DM119: 1942-12-31 | DN119: 23.536889 | DO119: 3.930532905
A120: Kennedy | B120: Macmillan | C120: Holyoake | G120: 1.23995 | H120: 5.503926702 | I120: 2.923474652 | J120: World Pop 3.1b Cuban Missile Crisis (Aug-Nov) | K120: 1962-06-19 | L120: N/A | M120: N/A | N120: N/A | O120: 3.06 | P120: N/A | Q120: 3.41 | R120: 3.64 | S120: N/A | T120: 3.93 | U120: 3.96 | V120: N/A | W120: N/A | X120: N/A | Y120: N/A | Z120: N/A | AA120: N/A | AB120: N/A | AC120: N/A | AD120: N/A | AE120: N/A | AF120: N/A | AG120: N/A | AH120: N/A | AI120: N/A | AJ120: N/A | AK120: N/A | AL120: N/A | AM120: N/A | AN120: N/A | AO120: N/A | AP120: N/A | AQ120: N/A | AR120: N/A | AS120: N/A | AT120: N/A | AU120: N/A | AV120: N/A | AW120: N/A | AX120: N/A | AY120: N/A | AZ120: N/A | BA120: N/A | BB120: N/A | BC120: N/A | BD120: N/A | BE120: N/A | BF120: N/A | BG120: N/A | BH120: N/A | BI120: N/A | BJ120: N/A | BK120: N/A | BL120: N/A | BM120: N/A | BN120: N/A | BO120: N/A | BP120: N/A | BQ120: N/A | BR120: N/A | BS120: N/A | BT120: N/A | BU120: N/A | BV120: N/A | BW120: N/A | BX120: N/A | BY120: N/A | BZ120: N/A | CA120: N/A | CB120: N/A | CC120: N/A | CD120: N/A | CE120: N/A | CF120: N/A | CG120: N/A | CH120: N/A | CI120: N/A | CJ120: N/A | CK120: N/A | CL120: N/A | CO120: 1957-09-01 | CP120: 3.54662 | CW120: 1964-09-01 | CX120: 7.45733259 | CY120: 4.35624395 | DC120: 4.35624395 | DI120: 1943Q1 | DJ120: 1943 | DK120: Q1 | DL120: 3 | DM120: 1943-03-31 | DN120: 23.247077 | DO120: 3.981479576
A121: Kennedy | B121: Macmillan | C121: Holyoake | G121: 1.23995 | H121: 5.503926702 | I121: 2.923474652 | J121: World Pop 3.1b Cuban Missile Crisis (Aug-Nov) | K121: 1962-06-20 | L121: N/A | M121: N/A | N121: N/A | O121: 3.04 | P121: N/A | Q121: 3.4 | R121: 3.63 | S121: N/A | T121: 3.92 | U121: 3.96 | V121: N/A | W121: N/A | X121: N/A | Y121: N/A | Z121: N/A | AA121: N/A | AB121: N/A | AC121: N/A | AD121: N/A | AE121: N/A | AF121: N/A | AG121: N/A | AH121: N/A | AI121: N/A | AJ121: N/A | AK121: N/A | AL121: N/A | AM121: N/A | AN121: N/A | AO121: N/A | AP121: N/A | AQ121: N/A | AR121: N/A | AS121: N/A | AT121: N/A | AU121: N/A | AV121: N/A | AW121: N/A | AX121: N/A | AY121: N/A | AZ121: N/A | BA121: N/A | BB121: N/A | BC121: N/A | BD121: N/A | BE121: N/A | BF121: N/A | BG121: N/A | BH121: N/A | BI121: N/A | BJ121: N/A | BK121: N/A | BL121: N/A | BM121: N/A | BN121: N/A | BO121: N/A | BP121: N/A | BQ121: N/A | BR121: N/A | BS121: N/A | BT121: N/A | BU121: N/A | BV121: N/A | BW121: N/A | BX121: N/A | BY121: N/A | BZ121: N/A | CA121: N/A | CB121: N/A | CC121: N/A | CD121: N/A | CE121: N/A | CF121: N/A | CG121: N/A | CH121: N/A | CI121: N/A | CJ121: N/A | CK121: N/A | CL121: N/A | CO121: 1957-10-01 | CP121: 2.94438 | CW121: 1964-10-01 | CX121: 7.464250338 | CY121: 4.050144648 | DC121: 4.050144648 | DI121: 1943Q2 | DJ121: 1943 | DK121: Q2 | DL121: 6 | DM121: 1943-06-30 | DN121: 23.309179 | DO121: =100*(DN121/DN117-1) -> 2.643572415
A122: Kennedy | B122: Macmillan | C122: Holyoake | G122: 1.23995 | H122: 5.503926702 | I122: 2.923474652 | J122: World Pop 3.1b Cuban Missile Crisis (Aug-Nov) | K122: 1962-06-21 | L122: N/A | M122: N/A | N122: N/A | O122: 3.04 | P122: N/A | Q122: 3.38 | R122: 3.61 | S122: N/A | T122: 3.9 | U122: 3.96 | V122: N/A | W122: N/A | X122: N/A | Y122: N/A | Z122: N/A | AA122: N/A | AB122: N/A | AC122: N/A | AD122: N/A | AE122: N/A | AF122: N/A | AG122: N/A | AH122: N/A | AI122: N/A | AJ122: N/A | AK122: N/A | AL122: N/A | AM122: N/A | AN122: N/A | AO122: N/A | AP122: N/A | AQ122: N/A | AR122: N/A | AS122: N/A | AT122: N/A | AU122: N/A | AV122: N/A | AW122: N/A | AX122: N/A | AY122: N/A | AZ122: N/A | BA122: N/A | BB122: N/A | BC122: N/A | BD122: N/A | BE122: N/A | BF122: N/A | BG122: N/A | BH122: N/A | BI122: N/A | BJ122: N/A | BK122: N/A | BL122: N/A | BM122: N/A | BN122: N/A | BO122: N/A | BP122: N/A | BQ122: N/A | BR122: N/A | BS122: N/A | BT122: N/A | BU122: N/A | BV122: N/A | BW122: N/A | BX122: N/A | BY122: N/A | BZ122: N/A | CA122: N/A | CB122: N/A | CC122: N/A | CD122: N/A | CE122: N/A | CF122: N/A | CG122: N/A | CH122: N/A | CI122: N/A | CJ122: N/A | CK122: N/A | CL122: N/A | CO122: 1957-11-01 | CP122: 3.27154 | CW122: 1964-11-01 | CX122: 7.526510072 | CY122: 4.615384615 | DC122: 4.615384615 | DI122: 1943Q3 | DJ122: 1943 | DK122: Q3 | DL122: 9 | DM122: 1943-09-30 | DN122: 23.55759 | DO122: 1.788907011
A123: Kennedy | B123: Macmillan | C123: Holyoake | G123: 1.23995 | H123: 5.503926702 | I123: 2.923474652 | J123: World Pop 3.1b Cuban Missile Crisis (Aug-Nov) | K123: 1962-06-22 | L123: N/A | M123: N/A | N123: N/A | O123: 3.04 | P123: N/A | Q123: 3.38 | R123: 3.61 | S123: N/A | T123: 3.9 | U123: 3.96 | V123: N/A | W123: N/A | X123: N/A | Y123: N/A | Z123: N/A | AA123: N/A | AB123: N/A | AC123: N/A | AD123: N/A | AE123: N/A | AF123: N/A | AG123: N/A | AH123: N/A | AI123: N/A | AJ123: N/A | AK123: N/A | AL123: N/A | AM123: N/A | AN123: N/A | AO123: N/A | AP123: N/A | AQ123: N/A | AR123: N/A | AS123: N/A | AT123: N/A | AU123: N/A | AV123: N/A | AW123: N/A | AX123: N/A | AY123: N/A | AZ123: N/A | BA123: N/A | BB123: N/A | BC123: N/A | BD123: N/A | BE123: N/A | BF123: N/A | BG123: N/A | BH123: N/A | BI123: N/A | BJ123: N/A | BK123: N/A | BL123: N/A | BM123: N/A | BN123: N/A | BO123: N/A | BP123: N/A | BQ123: N/A | BR123: N/A | BS123: N/A | BT123: N/A | BU123: N/A | BV123: N/A | BW123: N/A | BX123: N/A | BY123: N/A | BZ123: N/A | CA123: N/A | CB123: N/A | CC123: N/A | CD123: N/A | CE123: N/A | CF123: N/A | CG123: N/A | CH123: N/A | CI123: N/A | CJ123: N/A | CK123: N/A | CL123: N/A | CO123: 1957-12-01 | CP123: 3.04017 | CW123: 1964-12-01 | CX123: 7.554181065 | CY123: 4.798464491 | DC123: 4.798464491 | DI123: 1943Q4 | DJ123: 1943 | DK123: Q4 | DL123: 12 | DM123: 1943-12-31 | DN123: 23.868103 | DO123: 1.407212313
A124: Kennedy | B124: Macmillan | C124: Holyoake | G124: 1.23995 | H124: 5.503926702 | I124: 2.923474652 | J124: World Pop 3.1b Cuban Missile Crisis (Aug-Nov) | K124: 1962-06-25 | L124: N/A | M124: N/A | N124: N/A | O124: 3.12 | P124: N/A | Q124: 3.47 | R124: 3.68 | S124: N/A | T124: 3.95 | U124: 3.96 | V124: N/A | W124: N/A | X124: N/A | Y124: N/A | Z124: N/A | AA124: N/A | AB124: N/A | AC124: N/A | AD124: N/A | AE124: N/A | AF124: N/A | AG124: N/A | AH124: N/A | AI124: N/A | AJ124: N/A | AK124: N/A | AL124: N/A | AM124: N/A | AN124: N/A | AO124: N/A | AP124: N/A | AQ124: N/A | AR124: N/A | AS124: N/A | AT124: N/A | AU124: N/A | AV124: N/A | AW124: N/A | AX124: N/A | AY124: N/A | AZ124: N/A | BA124: N/A | BB124: N/A | BC124: N/A | BD124: N/A | BE124: N/A | BF124: N/A | BG124: N/A | BH124: N/A | BI124: N/A | BJ124: N/A | BK124: N/A | BL124: N/A | BM124: N/A | BN124: N/A | BO124: N/A | BP124: N/A | BQ124: N/A | BR124: N/A | BS124: N/A | BT124: N/A | BU124: N/A | BV124: N/A | BW124: N/A | BX124: N/A | BY124: N/A | BZ124: N/A | CA124: N/A | CB124: N/A | CC124: N/A | CD124: N/A | CE124: N/A | CF124: N/A | CG124: N/A | CH124: N/A | CI124: N/A | CJ124: N/A | CK124: N/A | CL124: N/A | CO124: 1958-01-01 | CP124: 3.5056 | CW124: 1965-01-01 | CX124: 7.57493431 | CY124: 4.584527221 | DC124: 4.584527221 | DI124: 1944Q1 | DJ124: 1944 | DK124: Q1 | DL124: 3 | DM124: 1944-03-31 | DN124: 23.661094 | DO124: 1.78094218
A125: Kennedy | B125: Macmillan | C125: Holyoake | G125: 1.23995 | H125: 5.503926702 | I125: 2.923474652 | J125: World Pop 3.1b Cuban Missile Crisis (Aug-Nov) | K125: 1962-06-26 | L125: N/A | M125: N/A | N125: N/A | O125: 3.14 | P125: N/A | Q125: 3.5 | R125: 3.71 | S125: N/A | T125: 3.97 | U125: 3.96 | V125: N/A | W125: N/A | X125: N/A | Y125: N/A | Z125: N/A | AA125: N/A | AB125: N/A | AC125: N/A | AD125: N/A | AE125: N/A | AF125: N/A | AG125: N/A | AH125: N/A | AI125: N/A | AJ125: N/A | AK125: N/A | AL125: N/A | AM125: N/A | AN125: N/A | AO125: N/A | AP125: N/A | AQ125: N/A | AR125: N/A | AS125: N/A | AT125: N/A | AU125: N/A | AV125: N/A | AW125: N/A | AX125: N/A | AY125: N/A | AZ125: N/A | BA125: N/A | BB125: N/A | BC125: N/A | BD125: N/A | BE125: N/A | BF125: N/A | BG125: N/A | BH125: N/A | BI125: N/A | BJ125: N/A | BK125: N/A | BL125: N/A | BM125: N/A | BN125: N/A | BO125: N/A | BP125: N/A | BQ125: N/A | BR125: N/A | BS125: N/A | BT125: N/A | BU125: N/A | BV125: N/A | BW125: N/A | BX125: N/A | BY125: N/A | BZ125: N/A | CA125: N/A | CB125: N/A | CC125: N/A | CD125: N/A | CE125: N/A | CF125: N/A | CG125: N/A | CH125: N/A | CI125: N/A | CJ125: N/A | CK125: N/A | CL125: N/A | CO125: 1958-02-01 | CP125: 3.23741 | CW125: 1965-02-01 | CX125: 7.57493431 | CY125: 4.484732824 | DC125: 4.484732824 | DI125: 1944Q2 | DJ125: 1944 | DK125: Q2 | DL125: 6 | DM125: 1944-06-30 | DN125: 23.785299 | DO125: 2.042628786
A126: Kennedy | B126: Macmillan | C126: Holyoake | G126: 1.23995 | H126: 5.503926702 | I126: 2.923474652 | J126: World Pop 3.1b Cuban Missile Crisis (Aug-Nov) | K126: 1962-06-27 | L126: N/A | M126: N/A | N126: N/A | O126: 3.14 | P126: N/A | Q126: 3.49 | R126: 3.68 | S126: N/A | T126: 3.96 | U126: 3.96 | V126: N/A | W126: N/A | X126: N/A | Y126: N/A | Z126: N/A | AA126: N/A | AB126: N/A | AC126: N/A | AD126: N/A | AE126: N/A | AF126: N/A | AG126: N/A | AH126: N/A | AI126: N/A | AJ126: N/A | AK126: N/A | AL126: N/A | AM126: N/A | AN126: N/A | AO126: N/A | AP126: N/A | AQ126: N/A | AR126: N/A | AS126: N/A | AT126: N/A | AU126: N/A | AV126: N/A | AW126: N/A | AX126: N/A | AY126: N/A | AZ126: N/A | BA126: N/A | BB126: N/A | BC126: N/A | BD126: N/A | BE126: N/A | BF126: N/A | BG126: N/A | BH126: N/A | BI126: N/A | BJ126: N/A | BK126: N/A | BL126: N/A | BM126: N/A | BN126: N/A | BO126: N/A | BP126: N/A | BQ126: N/A | BR126: N/A | BS126: N/A | BT126: N/A | BU126: N/A | BV126: N/A | BW126: N/A | BX126: N/A | BY126: N/A | BZ126: N/A | CA126: N/A | CB126: N/A | CC126: N/A | CD126: N/A | CE126: N/A | CF126: N/A | CG126: N/A | CH126: N/A | CI126: N/A | CJ126: N/A | CK126: N/A | CL126: N/A | CO126: 1958-03-01 | CP126: 3.62527 | CW126: 1965-03-01 | CX126: 7.602605303 | CY126: 4.467680608 | DC126: 4.467680608 | DI126: 1944Q3 | DJ126: 1944 | DK126: Q3 | DL126: 9 | DM126: 1944-09-30 | DN126: 23.950906 | DO126: 1.669593537
A127: Kennedy | B127: Macmillan | C127: Holyoake | G127: 1.23995 | H127: 5.503926702 | I127: 2.923474652 | J127: World Pop 3.1b Cuban Missile Crisis (Aug-Nov) | K127: 1962-06-28 | L127: N/A | M127: N/A | N127: N/A | O127: 3.18 | P127: N/A | Q127: 3.53 | R127: 3.76 | S127: N/A | T127: 3.98 | U127: 3.96 | V127: N/A | W127: N/A | X127: N/A | Y127: N/A | Z127: N/A | AA127: N/A | AB127: N/A | AC127: N/A | AD127: N/A | AE127: N/A | AF127: N/A | AG127: N/A | AH127: N/A | AI127: N/A | AJ127: N/A | AK127: N/A | AL127: N/A | AM127: N/A | AN127: N/A | AO127: N/A | AP127: N/A | AQ127: N/A | AR127: N/A | AS127: N/A | AT127: N/A | AU127: N/A | AV127: N/A | AW127: N/A | AX127: N/A | AY127: N/A | AZ127: N/A | BA127: N/A | BB127: N/A | BC127: N/A | BD127: N/A | BE127: N/A | BF127: N/A | BG127: N/A | BH127: N/A | BI127: N/A | BJ127: N/A | BK127: N/A | BL127: N/A | BM127: N/A | BN127: N/A | BO127: N/A | BP127: N/A | BQ127: N/A | BR127: N/A | BS127: N/A | BT127: N/A | BU127: N/A | BV127: N/A | BW127: N/A | BX127: N/A | BY127: N/A | BZ127: N/A | CA127: N/A | CB127: N/A | CC127: N/A | CD127: N/A | CE127: N/A | CF127: N/A | CG127: N/A | CH127: N/A | CI127: N/A | CJ127: N/A | CK127: N/A | CL127: N/A | CO127: 1958-04-01 | CP127: 3.61618 | CW127: 1965-04-01 | CX127: 7.747878015 | CY127: 5.560791706 | DC127: 5.560791706 | DI127: 1944Q4 | DJ127: 1944 | DK127: Q4 | DL127: 12 | DM127: 1944-12-31 | DN127: 24.220018 | DO127: 1.474415457
A128: Kennedy | B128: Macmillan | C128: Holyoake | G128: 1.23995 | H128: 5.503926702 | I128: 2.923474652 | J128: World Pop 3.1b Cuban Missile Crisis (Aug-Nov) | K128: 1962-06-29 | L128: N/A | M128: N/A | N128: N/A | O128: 3.2 | P128: N/A | Q128: 3.56 | R128: 3.76 | S128: N/A | T128: 4 | U128: 3.96 | V128: N/A | W128: N/A | X128: N/A | Y128: N/A | Z128: N/A | AA128: N/A | AB128: N/A | AC128: N/A | AD128: N/A | AE128: N/A | AF128: N/A | AG128: N/A | AH128: N/A | AI128: N/A | AJ128: N/A | AK128: N/A | AL128: N/A | AM128: N/A | AN128: N/A | AO128: N/A | AP128: N/A | AQ128: N/A | AR128: N/A | AS128: N/A | AT128: N/A | AU128: N/A | AV128: N/A | AW128: N/A | AX128: N/A | AY128: N/A | AZ128: N/A | BA128: N/A | BB128: N/A | BC128: N/A | BD128: N/A | BE128: N/A | BF128: N/A | BG128: N/A | BH128: N/A | BI128: N/A | BJ128: N/A | BK128: N/A | BL128: N/A | BM128: N/A | BN128: N/A | BO128: N/A | BP128: N/A | BQ128: N/A | BR128: N/A | BS128: N/A | BT128: N/A | BU128: N/A | BV128: N/A | BW128: N/A | BX128: N/A | BY128: N/A | BZ128: N/A | CA128: N/A | CB128: N/A | CC128: N/A | CD128: N/A | CE128: N/A | CF128: N/A | CG128: N/A | CH128: N/A | CI128: N/A | CJ128: N/A | CK128: N/A | CL128: N/A | CO128: 1958-05-01 | CP128: 3.35714 | CW128: 1965-05-01 | CX128: 7.775549008 | CY128: 5.046728972 | DC128: 5.046728972 | DI128: 1945Q1 | DJ128: 1945 | DK128: Q1 | DL128: 3 | DM128: 1945-03-31 | DN128: 24.075112 | DO128: 1.749783843
A129: Kennedy | B129: Macmillan | C129: Holyoake | G129: 1.00267 | H129: 5.093804538 | I129: 3.267411685 | J129: World Pop 3.1b Cuban Missile Crisis (Aug-Nov) | K129: 1962-07-02 | L129: N/A | M129: N/A | N129: N/A | O129: 3.21 | P129: N/A | Q129: 3.57 | R129: 3.77 | S129: N/A | T129: 4 | U129: 3.96 | V129: N/A | W129: N/A | X129: N/A | Y129: N/A | Z129: N/A | AA129: N/A | AB129: N/A | AC129: N/A | AD129: N/A | AE129: N/A | AF129: N/A | AG129: N/A | AH129: N/A | AI129: N/A | AJ129: N/A | AK129: N/A | AL129: N/A | AM129: N/A | AN129: N/A | AO129: N/A | AP129: N/A | AQ129: N/A | AR129: N/A | AS129: N/A | AT129: N/A | AU129: N/A | AV129: N/A | AW129: N/A | AX129: N/A | AY129: N/A | AZ129: N/A | BA129: N/A | BB129: N/A | BC129: N/A | BD129: N/A | BE129: N/A | BF129: N/A | BG129: N/A | BH129: N/A | BI129: N/A | BJ129: N/A | BK129: N/A | BL129: N/A | BM129: N/A | BN129: N/A | BO129: N/A | BP129: N/A | BQ129: N/A | BR129: N/A | BS129: N/A | BT129: N/A | BU129: N/A | BV129: N/A | BW129: N/A | BX129: N/A | BY129: N/A | BZ129: N/A | CA129: N/A | CB129: N/A | CC129: N/A | CD129: N/A | CE129: N/A | CF129: N/A | CG129: N/A | CH129: N/A | CI129: N/A | CJ129: N/A | CK129: N/A | CL129: N/A | CO129: 1958-06-01 | CP129: 2.84596 | CW129: 1965-06-01 | CX129: 7.796302253 | CY129: 4.934823091 | DC129: 4.934823091 | DI129: 1945Q2 | DJ129: 1945 | DK129: Q2 | DL129: 6 | DM129: 1945-06-30 | DN129: 24.095812 | DO129: 1.305482853
A130: Kennedy | B130: Macmillan | C130: Holyoake | G130: 1.00267 | H130: 5.093804538 | I130: 3.267411685 | J130: World Pop 3.1b Cuban Missile Crisis (Aug-Nov) | K130: 1962-07-03 | L130: N/A | M130: N/A | N130: N/A | O130: 3.23 | P130: N/A | Q130: 3.58 | R130: 3.76 | S130: N/A | T130: 4 | U130: 3.96 | V130: N/A | W130: N/A | X130: N/A | Y130: N/A | Z130: N/A | AA130: N/A | AB130: N/A | AC130: N/A | AD130: N/A | AE130: N/A | AF130: N/A | AG130: N/A | AH130: N/A | AI130: N/A | AJ130: N/A | AK130: N/A | AL130: N/A | AM130: N/A | AN130: N/A | AO130: N/A | AP130: N/A | AQ130: N/A | AR130: N/A | AS130: N/A | AT130: N/A | AU130: N/A | AV130: N/A | AW130: N/A | AX130: N/A | AY130: N/A | AZ130: N/A | BA130: N/A | BB130: N/A | BC130: N/A | BD130: N/A | BE130: N/A | BF130: N/A | BG130: N/A | BH130: N/A | BI130: N/A | BJ130: N/A | BK130: N/A | BL130: N/A | BM130: N/A | BN130: N/A | BO130: N/A | BP130: N/A | BQ130: N/A | BR130: N/A | BS130: N/A | BT130: N/A | BU130: N/A | BV130: N/A | BW130: N/A | BX130: N/A | BY130: N/A | BZ130: N/A | CA130: N/A | CB130: N/A | CC130: N/A | CD130: N/A | CE130: N/A | CF130: N/A | CG130: N/A | CH130: N/A | CI130: N/A | CJ130: N/A | CK130: N/A | CL130: N/A | CO130: 1958-07-01 | CP130: 2.48315 | CW130: 1965-07-01 | CX130: 7.796302253 | CY130: 4.934823091 | DC130: 4.934823091 | DI130: 1945Q3 | DJ130: 1945 | DK130: Q3 | DL130: 9 | DM130: 1945-09-30 | DN130: 24.220018 | DO130: 1.123598414
A131: Kennedy | B131: Macmillan | C131: Holyoake | G131: 1.00267 | H131: 5.093804538 | I131: 3.267411685 | J131: World Pop 3.1b Cuban Missile Crisis (Aug-Nov) | K131: 1962-07-05 | L131: N/A | M131: N/A | N131: N/A | O131: 3.21 | P131: N/A | Q131: 3.59 | R131: 3.78 | S131: N/A | T131: 4 | U131: 3.96 | V131: N/A | W131: N/A | X131: N/A | Y131: N/A | Z131: N/A | AA131: N/A | AB131: N/A | AC131: N/A | AD131: N/A | AE131: N/A | AF131: N/A | AG131: N/A | AH131: N/A | AI131: N/A | AJ131: N/A | AK131: N/A | AL131: N/A | AM131: N/A | AN131: N/A | AO131: N/A | AP131: N/A | AQ131: N/A | AR131: N/A | AS131: N/A | AT131: N/A | AU131: N/A | AV131: N/A | AW131: N/A | AX131: N/A | AY131: N/A | AZ131: N/A | BA131: N/A | BB131: N/A | BC131: N/A | BD131: N/A | BE131: N/A | BF131: N/A | BG131: N/A | BH131: N/A | BI131: N/A | BJ131: N/A | BK131: N/A | BL131: N/A | BM131: N/A | BN131: N/A | BO131: N/A | BP131: N/A | BQ131: N/A | BR131: N/A | BS131: N/A | BT131: N/A | BU131: N/A | BV131: N/A | BW131: N/A | BX131: N/A | BY131: N/A | BZ131: N/A | CA131: N/A | CB131: N/A | CC131: N/A | CD131: N/A | CE131: N/A | CF131: N/A | CG131: N/A | CH131: N/A | CI131: N/A | CJ131: N/A | CK131: N/A | CL131: N/A | CO131: 1958-08-01 | CP131: 2.3338 | CW131: 1965-08-01 | CX131: 7.810137749 | CY131: 4.730983302 | DC131: 4.730983302 | DI131: 1945Q4 | DJ131: 1945 | DK131: Q4 | DL131: 12 | DM131: 1945-12-31 | DN131: 24.530531 | DO131: 1.28205107
A132: Kennedy | B132: Macmillan | C132: Holyoake | G132: =VLOOKUP(K132,$CO$4:$CP$870,2,TRUE) -> 1.00267 | H132: =VLOOKUP(K132,$CW$4:$DC$831,7,TRUE) -> 5.093804538 | I132: =VLOOKUP(K132,$DM$5:$DO$832,3,TRUE) -> 3.267411685 | J132: World Pop 3.1b Cuban Missile Crisis (Aug-Nov) | K132: 1962-07-06 | L132: N/A | M132: N/A | N132: N/A | O132: 3.23 | P132: N/A | Q132: 3.6 | R132: 3.79 | S132: N/A | T132: 4.02 | U132: 3.96 | V132: N/A | W132: N/A | X132: N/A | Y132: N/A | Z132: N/A | AA132: N/A | AB132: N/A | AC132: N/A | AD132: N/A | AE132: N/A | AF132: N/A | AG132: N/A | AH132: N/A | AI132: N/A | AJ132: N/A | AK132: N/A | AL132: N/A | AM132: N/A | AN132: N/A | AO132: N/A | AP132: N/A | AQ132: N/A | AR132: N/A | AS132: N/A | AT132: N/A | AU132: N/A | AV132: N/A | AW132: N/A | AX132: N/A | AY132: N/A | AZ132: N/A | BA132: N/A | BB132: N/A | BC132: N/A | BD132: N/A | BE132: N/A | BF132: N/A | BG132: N/A | BH132: N/A | BI132: N/A | BJ132: N/A | BK132: N/A | BL132: N/A | BM132: N/A | BN132: N/A | BO132: N/A | BP132: N/A | BQ132: N/A | BR132: N/A | BS132: N/A | BT132: N/A | BU132: N/A | BV132: N/A | BW132: N/A | BX132: N/A | BY132: N/A | BZ132: N/A | CA132: N/A | CB132: N/A | CC132: N/A | CD132: N/A | CE132: N/A | CF132: N/A | CG132: N/A | CH132: N/A | CI132: N/A | CJ132: N/A | CK132: N/A | CL132: N/A | CO132: 1958-09-01 | CP132: 2.08333 | CW132: 1965-09-01 | CX132: 7.817055498 | CY132: 4.823747681 | DC132: 4.823747681 | DI132: 1946Q1 | DJ132: 1946 | DK132: Q1 | DL132: 3 | DM132: 1946-03-31 | DN132: 24.302821 | DO132: 0.9458273756
A133: Kennedy | B133: Macmillan | C133: Holyoake | G133: 1.00267 | H133: 5.093804538 | I133: 3.267411685 | J133: World Pop 3.1b Cuban Missile Crisis (Aug-Nov) | K133: 1962-07-09 | L133: N/A | M133: N/A | N133: N/A | O133: 3.26 | P133: N/A | Q133: 3.67 | R133: 3.83 | S133: N/A | T133: 4.05 | U133: 3.96 | V133: N/A | W133: N/A | X133: N/A | Y133: N/A | Z133: N/A | AA133: N/A | AB133: N/A | AC133: N/A | AD133: N/A | AE133: N/A | AF133: N/A | AG133: N/A | AH133: N/A | AI133: N/A | AJ133: N/A | AK133: N/A | AL133: N/A | AM133: N/A | AN133: N/A | AO133: N/A | AP133: N/A | AQ133: N/A | AR133: N/A | AS133: N/A | AT133: N/A | AU133: N/A | AV133: N/A | AW133: N/A | AX133: N/A | AY133: N/A | AZ133: N/A | BA133: N/A | BB133: N/A | BC133: N/A | BD133: N/A | BE133: N/A | BF133: N/A | BG133: N/A | BH133: N/A | BI133: N/A | BJ133: N/A | BK133: N/A | BL133: N/A | BM133: N/A | BN133: N/A | BO133: N/A | BP133: N/A | BQ133: N/A | BR133: N/A | BS133: N/A | BT133: N/A | BU133: N/A | BV133: N/A | BW133: N/A | BX133: N/A | BY133: N/A | BZ133: N/A | CA133: N/A | CB133: N/A | CC133: N/A | CD133: N/A | CE133: N/A | CF133: N/A | CG133: N/A | CH133: N/A | CI133: N/A | CJ133: N/A | CK133: N/A | CL133: N/A | CO133: 1958-10-01 | CP133: 2.08333 | CW133: 1965-10-01 | CX133: 7.823973246 | CY133: 4.819277108 | DC133: 4.819277108 | DI133: 1946Q2 | DJ133: 1946 | DK133: Q2 | DL133: 6 | DM133: 1946-06-30 | DN133: 24.344223 | DO133: 1.030930188
A134: Kennedy | B134: Macmillan | C134: Holyoake | G134: 1.00267 | H134: 5.093804538 | I134: 3.267411685 | J134: World Pop 3.1b Cuban Missile Crisis (Aug-Nov) | K134: 1962-07-10 | L134: N/A | M134: N/A | N134: N/A | O134: 3.27 | P134: N/A | Q134: 3.65 | R134: 3.81 | S134: N/A | T134: 4.02 | U134: 3.96 | V134: N/A | W134: N/A | X134: N/A | Y134: N/A | Z134: N/A | AA134: N/A | AB134: N/A | AC134: N/A | AD134: N/A | AE134: N/A | AF134: N/A | AG134: N/A | AH134: N/A | AI134: N/A | AJ134: N/A | AK134: N/A | AL134: N/A | AM134: N/A | AN134: N/A | AO134: N/A | AP134: N/A | AQ134: N/A | AR134: N/A | AS134: N/A | AT134: N/A | AU134: N/A | AV134: N/A | AW134: N/A | AX134: N/A | AY134: N/A | AZ134: N/A | BA134: N/A | BB134: N/A | BC134: N/A | BD134: N/A | BE134: N/A | BF134: N/A | BG134: N/A | BH134: N/A | BI134: N/A | BJ134: N/A | BK134: N/A | BL134: N/A | BM134: N/A | BN134: N/A | BO134: N/A | BP134: N/A | BQ134: N/A | BR134: N/A | BS134: N/A | BT134: N/A | BU134: N/A | BV134: N/A | BW134: N/A | BX134: N/A | BY134: N/A | BZ134: N/A | CA134: N/A | CB134: N/A | CC134: N/A | CD134: N/A | CE134: N/A | CF134: N/A | CG134: N/A | CH134: N/A | CI134: N/A | CJ134: N/A | CK134: N/A | CL134: N/A | CO134: 1958-11-01 | CP134: 1.90074 | CW134: 1965-11-01 | CX134: 7.858561987 | CY134: 4.411764706 | DC134: 4.411764706 | DI134: 1946Q3 | DJ134: =LEFT(DI134,4) -> 1946 | DK134: =RIGHT(DI134,2) -> Q3 | DL134: =IF(DK134="Q1",3,IF(DK134="Q2",6,IF(DK134="Q3",9,12))) -> 9 | DM134: =DATE(DJ134,DL134+1,) -> 1946-09-30 | DN134: 24.530531 | DO134: 1.28205107
A135: Kennedy | B135: Macmillan | C135: Holyoake | G135: 1.00267 | H135: 5.093804538 | I135: 3.267411685 | J135: World Pop 3.1b Cuban Missile Crisis (Aug-Nov) | K135: 1962-07-11 | L135: N/A | M135: N/A | N135: N/A | O135: 3.26 | P135: N/A | Q135: 3.59 | R135: 3.77 | S135: N/A | T135: 3.99 | U135: 3.96 | V135: N/A | W135: N/A | X135: N/A | Y135: N/A | Z135: N/A | AA135: N/A | AB135: N/A | AC135: N/A | AD135: N/A | AE135: N/A | AF135: N/A | AG135: N/A | AH135: N/A | AI135: N/A | AJ135: N/A | AK135: N/A | AL135: N/A | AM135: N/A | AN135: N/A | AO135: N/A | AP135: N/A | AQ135: N/A | AR135: N/A | AS135: N/A | AT135: N/A | AU135: N/A | AV135: N/A | AW135: N/A | AX135: N/A | AY135: N/A | AZ135: N/A | BA135: N/A | BB135: N/A | BC135: N/A | BD135: N/A | BE135: N/A | BF135: N/A | BG135: N/A | BH135: N/A | BI135: N/A | BJ135: N/A | BK135: N/A | BL135: N/A | BM135: N/A | BN135: N/A | BO135: N/A | BP135: N/A | BQ135: N/A | BR135: N/A | BS135: N/A | BT135: N/A | BU135: N/A | BV135: N/A | BW135: N/A | BX135: N/A | BY135: N/A | BZ135: N/A | CA135: N/A | CB135: N/A | CC135: N/A | CD135: N/A | CE135: N/A | CF135: N/A | CG135: N/A | CH135: N/A | CI135: N/A | CJ135: N/A | CK135: N/A | CL135: N/A | CO135: 1958-12-01 | CP135: 1.75623 | CW135: 1965-12-01 | CX135: 7.893150728 | CY135: 4.487179487 | DC135: 4.487179487 | DI135: 1946Q4 | DJ135: 1946 | DK135: Q4 | DL135: 12 | DM135: 1946-12-31 | DN135: 24.489129 | DO135: -0.1687774309
A136: Kennedy | B136: Macmillan | C136: Holyoake | G136: 1.00267 | H136: 5.093804538 | I136: 3.267411685 | J136: World Pop 3.1b Cuban Missile Crisis (Aug-Nov) | K136: 1962-07-12 | L136: N/A | M136: N/A | N136: N/A | O136: 3.27 | P136: N/A | Q136: 3.6 | R136: 3.78 | S136: N/A | T136: 4 | U136: 3.96 | V136: N/A | W136: N/A | X136: N/A | Y136: N/A | Z136: N/A | AA136: N/A | AB136: N/A | AC136: N/A | AD136: N/A | AE136: N/A | AF136: N/A | AG136: N/A | AH136: N/A | AI136: N/A | AJ136: N/A | AK136: N/A | AL136: N/A | AM136: N/A | AN136: N/A | AO136: N/A | AP136: N/A | AQ136: N/A | AR136: N/A | AS136: N/A | AT136: N/A | AU136: N/A | AV136: N/A | AW136: N/A | AX136: N/A | AY136: N/A | AZ136: N/A | BA136: N/A | BB136: N/A | BC136: N/A | BD136: N/A | BE136: N/A | BF136: N/A | BG136: N/A | BH136: N/A | BI136: N/A | BJ136: N/A | BK136: N/A | BL136: N/A | BM136: N/A | BN136: N/A | BO136: N/A | BP136: N/A | BQ136: N/A | BR136: N/A | BS136: N/A | BT136: N/A | BU136: N/A | BV136: N/A | BW136: N/A | BX136: N/A | BY136: N/A | BZ136: N/A | CA136: N/A | CB136: N/A | CC136: N/A | CD136: N/A | CE136: N/A | CF136: N/A | CG136: N/A | CH136: N/A | CI136: N/A | CJ136: N/A | CK136: N/A | CL136: N/A | CO136: 1959-01-01 | CP136: 1.2919 | CW136: 1966-01-01 | CX136: 7.906986225 | CY136: 4.383561644 | DC136: 4.383561644 | DI136: 1947Q1 | DJ136: 1947 | DK136: Q1 | DL136: 3 | DM136: 1947-03-31 | DN136: 24.385625 | DO136: 0.3407176476
A137: Kennedy | B137: Macmillan | C137: Holyoake | G137: 1.00267 | H137: 5.093804538 | I137: 3.267411685 | J137: World Pop 3.1b Cuban Missile Crisis (Aug-Nov) | K137: 1962-07-13 | L137: N/A | M137: N/A | N137: N/A | O137: 3.27 | P137: N/A | Q137: 3.61 | R137: 3.78 | S137: N/A | T137: 4 | U137: 3.96 | V137: N/A | W137: N/A | X137: N/A | Y137: N/A | Z137: N/A | AA137: N/A | AB137: N/A | AC137: N/A | AD137: N/A | AE137: N/A | AF137: N/A | AG137: N/A | AH137: N/A | AI137: N/A | AJ137: N/A | AK137: N/A | AL137: N/A | AM137: N/A | AN137: N/A | AO137: N/A | AP137: N/A | AQ137: N/A | AR137: N/A | AS137: N/A | AT137: N/A | AU137: N/A | AV137: N/A | AW137: N/A | AX137: N/A | AY137: N/A | AZ137: N/A | BA137: N/A | BB137: N/A | BC137: N/A | BD137: N/A | BE137: N/A | BF137: N/A | BG137: N/A | BH137: N/A | BI137: N/A | BJ137: N/A | BK137: N/A | BL137: N/A | BM137: N/A | BN137: N/A | BO137: N/A | BP137: N/A | BQ137: N/A | BR137: N/A | BS137: N/A | BT137: N/A | BU137: N/A | BV137: N/A | BW137: N/A | BX137: N/A | BY137: N/A | BZ137: N/A | CA137: N/A | CB137: N/A | CC137: N/A | CD137: N/A | CE137: N/A | CF137: N/A | CG137: N/A | CH137: N/A | CI137: N/A | CJ137: N/A | CK137: N/A | CL137: N/A | CO137: 1959-02-01 | CP137: 1.0453 | CW137: 1966-02-01 | CX137: 7.913903973 | CY137: 4.474885845 | DC137: 4.474885845 | DI137: 1947Q2 | DJ137: 1947 | DK137: Q2 | DL137: 6 | DM137: 1947-06-30 | DN137: 24.551232 | DO137: 0.8503413726
A138: Kennedy | B138: Macmillan | C138: Holyoake | G138: 1.00267 | H138: 5.093804538 | I138: 3.267411685 | J138: World Pop 3.1b Cuban Missile Crisis (Aug-Nov) | K138: 1962-07-16 | L138: N/A | M138: N/A | N138: N/A | O138: 3.28 | P138: N/A | Q138: 3.63 | R138: 3.8 | S138: N/A | T138: 4.01 | U138: 4.05 | V138: N/A | W138: N/A | X138: N/A | Y138: N/A | Z138: N/A | AA138: N/A | AB138: N/A | AC138: N/A | AD138: N/A | AE138: N/A | AF138: N/A | AG138: N/A | AH138: N/A | AI138: N/A | AJ138: N/A | AK138: N/A | AL138: N/A | AM138: N/A | AN138: N/A | AO138: N/A | AP138: N/A | AQ138: N/A | AR138: N/A | AS138: N/A | AT138: N/A | AU138: N/A | AV138: N/A | AW138: N/A | AX138: N/A | AY138: N/A | AZ138: N/A | BA138: N/A | BB138: N/A | BC138: N/A | BD138: N/A | BE138: N/A | BF138: N/A | BG138: N/A | BH138: N/A | BI138: N/A | BJ138: N/A | BK138: N/A | BL138: N/A | BM138: N/A | BN138: N/A | BO138: N/A | BP138: N/A | BQ138: N/A | BR138: N/A | BS138: N/A | BT138: N/A | BU138: N/A | BV138: N/A | BW138: N/A | BX138: N/A | BY138: N/A | BZ138: N/A | CA138: N/A | CB138: N/A | CC138: N/A | CD138: N/A | CE138: N/A | CF138: N/A | CG138: N/A | CH138: N/A | CI138: N/A | CJ138: N/A | CK138: N/A | CL138: N/A | CO138: 1959-03-01 | CP138: 0.34638 | CW138: 1966-03-01 | CX138: 7.927739469 | CY138: 4.276615105 | DC138: 4.276615105 | DI138: 1947Q3 | DJ138: 1947 | DK138: Q3 | DL138: 9 | DM138: 1947-09-30 | DN138: 24.965249 | DO138: 1.772150794
A139: Kennedy | B139: Macmillan | C139: Holyoake | G139: 1.00267 | H139: 5.093804538 | I139: 3.267411685 | J139: World Pop 3.1b Cuban Missile Crisis (Aug-Nov) | K139: 1962-07-17 | L139: N/A | M139: N/A | N139: N/A | O139: 3.34 | P139: N/A | Q139: 3.66 | R139: 3.82 | S139: N/A | T139: 4.03 | U139: 4.05 | V139: N/A | W139: N/A | X139: N/A | Y139: N/A | Z139: N/A | AA139: N/A | AB139: N/A | AC139: N/A | AD139: N/A | AE139: N/A | AF139: N/A | AG139: N/A | AH139: N/A | AI139: N/A | AJ139: N/A | AK139: N/A | AL139: N/A | AM139: N/A | AN139: N/A | AO139: N/A | AP139: N/A | AQ139: N/A | AR139: N/A | AS139: N/A | AT139: N/A | AU139: N/A | AV139: N/A | AW139: N/A | AX139: N/A | AY139: N/A | AZ139: N/A | BA139: N/A | BB139: N/A | BC139: N/A | BD139: N/A | BE139: N/A | BF139: N/A | BG139: N/A | BH139: N/A | BI139: N/A | BJ139: N/A | BK139: N/A | BL139: N/A | BM139: N/A | BN139: N/A | BO139: N/A | BP139: N/A | BQ139: N/A | BR139: N/A | BS139: N/A | BT139: N/A | BU139: N/A | BV139: N/A | BW139: N/A | BX139: N/A | BY139: N/A | BZ139: N/A | CA139: N/A | CB139: N/A | CC139: N/A | CD139: N/A | CE139: N/A | CF139: N/A | CG139: N/A | CH139: N/A | CI139: N/A | CJ139: N/A | CK139: N/A | CL139: N/A | CO139: 1959-04-01 | CP139: 0.13822 | CW139: 1966-04-01 | CX139: 8.024587945 | CY139: 3.571428571 | DC139: 3.571428571 | DI139: 1947Q4 | DJ139: 1947 | DK139: Q4 | DL139: 12 | DM139: 1947-12-31 | DN139: 26.973233 | DO139: 10.14370091
A140: Kennedy | B140: Macmillan | C140: Holyoake | G140: 1.00267 | H140: 5.093804538 | I140: 3.267411685 | J140: World Pop 3.1b Cuban Missile Crisis (Aug-Nov) | K140: 1962-07-18 | L140: N/A | M140: N/A | N140: N/A | O140: 3.36 | P140: N/A | Q140: 3.65 | R140: 3.83 | S140: N/A | T140: 4.02 | U140: 4.05 | V140: N/A | W140: N/A | X140: N/A | Y140: N/A | Z140: N/A | AA140: N/A | AB140: N/A | AC140: N/A | AD140: N/A | AE140: N/A | AF140: N/A | AG140: N/A | AH140: N/A | AI140: N/A | AJ140: N/A | AK140: N/A | AL140: N/A | AM140: N/A | AN140: N/A | AO140: N/A | AP140: N/A | AQ140: N/A | AR140: N/A | AS140: N/A | AT140: N/A | AU140: N/A | AV140: N/A | AW140: N/A | AX140: N/A | AY140: N/A | AZ140: N/A | BA140: N/A | BB140: N/A | BC140: N/A | BD140: N/A | BE140: N/A | BF140: N/A | BG140: N/A | BH140: N/A | BI140: N/A | BJ140: N/A | BK140: N/A | BL140: N/A | BM140: N/A | BN140: N/A | BO140: N/A | BP140: N/A | BQ140: N/A | BR140: N/A | BS140: N/A | BT140: N/A | BU140: N/A | BV140: N/A | BW140: N/A | BX140: N/A | BY140: N/A | BZ140: N/A | CA140: N/A | CB140: N/A | CC140: N/A | CD140: N/A | CE140: N/A | CF140: N/A | CG140: N/A | CH140: N/A | CI140: N/A | CJ140: N/A | CK140: N/A | CL140: N/A | CO140: 1959-05-01 | CP140: 0.34554 | CW140: 1966-05-01 | CX140: 8.07992993 | CY140: 3.914590747 | DC140: 3.914590747 | DI140: 1948Q1 | DJ140: 1948 | DK140: Q1 | DL140: 3 | DM140: 1948-03-31 | DN140: 26.849028 | DO140: 10.10186534
A141: Kennedy | B141: Macmillan | C141: Holyoake | G141: 1.00267 | H141: 5.093804538 | I141: 3.267411685 | J141: World Pop 3.1b Cuban Missile Crisis (Aug-Nov) | K141: 1962-07-19 | L141: N/A | M141: N/A | N141: N/A | O141: 3.33 | P141: N/A | Q141: 3.64 | R141: 3.83 | S141: N/A | T141: 4.02 | U141: 4.05 | V141: N/A | W141: N/A | X141: N/A | Y141: N/A | Z141: N/A | AA141: N/A | AB141: N/A | AC141: N/A | AD141: N/A | AE141: N/A | AF141: N/A | AG141: N/A | AH141: N/A | AI141: N/A | AJ141: N/A | AK141: N/A | AL141: N/A | AM141: N/A | AN141: N/A | AO141: N/A | AP141: N/A | AQ141: N/A | AR141: N/A | AS141: N/A | AT141: N/A | AU141: N/A | AV141: N/A | AW141: N/A | AX141: N/A | AY141: N/A | AZ141: N/A | BA141: N/A | BB141: N/A | BC141: N/A | BD141: N/A | BE141: N/A | BF141: N/A | BG141: N/A | BH141: N/A | BI141: N/A | BJ141: N/A | BK141: N/A | BL141: N/A | BM141: N/A | BN141: N/A | BO141: N/A | BP141: N/A | BQ141: N/A | BR141: N/A | BS141: N/A | BT141: N/A | BU141: N/A | BV141: N/A | BW141: N/A | BX141: N/A | BY141: N/A | BZ141: N/A | CA141: N/A | CB141: N/A | CC141: N/A | CD141: N/A | CE141: N/A | CF141: N/A | CG141: N/A | CH141: N/A | CI141: N/A | CJ141: N/A | CK141: N/A | CL141: N/A | CO141: 1959-06-01 | CP141: 0.6918 | CW141: 1966-06-01 | CX141: 8.100683175 | CY141: 3.904170364 | DC141: 3.904170364 | DI141: 1948Q2 | DJ141: 1948 | DK141: Q2 | DL141: 6 | DM141: 1948-06-30 | DN141: 27.159541 | DO141: 10.62394343
A142: Kennedy | B142: Macmillan | C142: Holyoake | G142: 1.00267 | H142: 5.093804538 | I142: 3.267411685 | J142: World Pop 3.1b Cuban Missile Crisis (Aug-Nov) | K142: 1962-07-20 | L142: N/A | M142: N/A | N142: N/A | O142: 3.32 | P142: N/A | Q142: 3.63 | R142: 3.82 | S142: N/A | T142: 4.01 | U142: 4.05 | V142: N/A | W142: N/A | X142: N/A | Y142: N/A | Z142: N/A | AA142: N/A | AB142: N/A | AC142: N/A | AD142: N/A | AE142: N/A | AF142: N/A | AG142: N/A | AH142: N/A | AI142: N/A | AJ142: N/A | AK142: N/A | AL142: N/A | AM142: N/A | AN142: N/A | AO142: N/A | AP142: N/A | AQ142: N/A | AR142: N/A | AS142: N/A | AT142: N/A | AU142: N/A | AV142: N/A | AW142: N/A | AX142: N/A | AY142: N/A | AZ142: N/A | BA142: N/A | BB142: N/A | BC142: N/A | BD142: N/A | BE142: N/A | BF142: N/A | BG142: N/A | BH142: N/A | BI142: N/A | BJ142: N/A | BK142: N/A | BL142: N/A | BM142: N/A | BN142: N/A | BO142: N/A | BP142: N/A | BQ142: N/A | BR142: N/A | BS142: N/A | BT142: N/A | BU142: N/A | BV142: N/A | BW142: N/A | BX142: N/A | BY142: N/A | BZ142: N/A | CA142: N/A | CB142: N/A | CC142: N/A | CD142: N/A | CE142: N/A | CF142: N/A | CG142: N/A | CH142: N/A | CI142: N/A | CJ142: N/A | CK142: N/A | CL142: N/A | CO142: 1959-07-01 | CP142: 0.89997 | CW142: 1966-07-01 | CX142: 8.066094434 | CY142: 3.460514641 | DC142: 3.460514641 | DI142: 1948Q3 | DJ142: 1948 | DK142: Q3 | DL142: 9 | DM142: 1948-09-30 | DN142: 27.345849 | DO142: 9.535654942
A143: Kennedy | B143: Macmillan | C143: Holyoake | G143: 1.00267 | H143: 5.093804538 | I143: 3.267411685 | J143: World Pop 3.1b Cuban Missile Crisis (Aug-Nov) | K143: 1962-07-23 | L143: N/A | M143: N/A | N143: N/A | O143: 3.32 | P143: N/A | Q143: 3.6 | R143: 3.81 | S143: N/A | T143: 4 | U143: 4.05 | V143: N/A | W143: N/A | X143: N/A | Y143: N/A | Z143: N/A | AA143: N/A | AB143: N/A | AC143: N/A | AD143: N/A | AE143: N/A | AF143: N/A | AG143: N/A | AH143: N/A | AI143: N/A | AJ143: N/A | AK143: N/A | AL143: N/A | AM143: N/A | AN143: N/A | AO143: N/A | AP143: N/A | AQ143: N/A | AR143: N/A | AS143: N/A | AT143: N/A | AU143: N/A | AV143: N/A | AW143: N/A | AX143: N/A | AY143: N/A | AZ143: N/A | BA143: N/A | BB143: N/A | BC143: N/A | BD143: N/A | BE143: N/A | BF143: N/A | BG143: N/A | BH143: N/A | BI143: N/A | BJ143: N/A | BK143: N/A | BL143: N/A | BM143: N/A | BN143: N/A | BO143: N/A | BP143: N/A | BQ143: N/A | BR143: N/A | BS143: N/A | BT143: N/A | BU143: N/A | BV143: N/A | BW143: N/A | BX143: N/A | BY143: N/A | BZ143: N/A | CA143: N/A | CB143: N/A | CC143: N/A | CD143: N/A | CE143: N/A | CF143: N/A | CG143: N/A | CH143: N/A | CI143: N/A | CJ143: N/A | CK143: N/A | CL143: N/A | CO143: 1959-08-01 | CP143: 0.8293 | CW143: 1966-08-01 | CX143: 8.114518671 | CY143: 3.897254207 | DC143: 3.897254207 | DI143: 1948Q4 | DJ143: 1948 | DK143: Q4 | DL143: 12 | DM143: 1948-12-31 | DN143: 27.407952 | DO143: 1.61166813
A144: Kennedy | B144: Macmillan | C144: Holyoake | G144: 1.00267 | H144: 5.093804538 | I144: 3.267411685 | J144: World Pop 3.1b Cuban Missile Crisis (Aug-Nov) | K144: 1962-07-24 | L144: N/A | M144: N/A | N144: N/A | O144: 3.32 | P144: N/A | Q144: 3.61 | R144: 3.82 | S144: N/A | T144: 4.01 | U144: 4.05 | V144: N/A | W144: N/A | X144: N/A | Y144: N/A | Z144: N/A | AA144: N/A | AB144: N/A | AC144: N/A | AD144: N/A | AE144: N/A | AF144: N/A | AG144: N/A | AH144: N/A | AI144: N/A | AJ144: N/A | AK144: N/A | AL144: N/A | AM144: N/A | AN144: N/A | AO144: N/A | AP144: N/A | AQ144: N/A | AR144: N/A | AS144: N/A | AT144: N/A | AU144: N/A | AV144: N/A | AW144: N/A | AX144: N/A | AY144: N/A | AZ144: N/A | BA144: N/A | BB144: N/A | BC144: N/A | BD144: N/A | BE144: N/A | BF144: N/A | BG144: N/A | BH144: N/A | BI144: N/A | BJ144: N/A | BK144: N/A | BL144: N/A | BM144: N/A | BN144: N/A | BO144: N/A | BP144: N/A | BQ144: N/A | BR144: N/A | BS144: N/A | BT144: N/A | BU144: N/A | BV144: N/A | BW144: N/A | BX144: N/A | BY144: N/A | BZ144: N/A | CA144: N/A | CB144: N/A | CC144: N/A | CD144: N/A | CE144: N/A | CF144: N/A | CG144: N/A | CH144: N/A | CI144: N/A | CJ144: N/A | CK144: N/A | CL144: N/A | CO144: 1959-09-01 | CP144: 1.17606 | CW144: 1966-09-01 | CX144: 8.100683175 | CY144: 3.628318584 | DC144: 3.628318584 | DI144: 1949Q1 | DJ144: 1949 | DK144: Q1 | DL144: 3 | DM144: 1949-03-31 | DN144: 27.407952 | DO144: 2.081728992
A145: Kennedy | B145: Macmillan | C145: Holyoake | G145: 1.00267 | H145: 5.093804538 | I145: 3.267411685 | J145: World Pop 3.1b Cuban Missile Crisis (Aug-Nov) | K145: 1962-07-25 | L145: N/A | M145: N/A | N145: N/A | O145: 3.32 | P145: N/A | Q145: 3.62 | R145: 3.83 | S145: N/A | T145: 4.02 | U145: 4.05 | V145: N/A | W145: N/A | X145: N/A | Y145: N/A | Z145: N/A | AA145: N/A | AB145: N/A | AC145: N/A | AD145: N/A | AE145: N/A | AF145: N/A | AG145: N/A | AH145: N/A | AI145: N/A | AJ145: N/A | AK145: N/A | AL145: N/A | AM145: N/A | AN145: N/A | AO145: N/A | AP145: N/A | AQ145: N/A | AR145: N/A | AS145: N/A | AT145: N/A | AU145: N/A | AV145: N/A | AW145: N/A | AX145: N/A | AY145: N/A | AZ145: N/A | BA145: N/A | BB145: N/A | BC145: N/A | BD145: N/A | BE145: N/A | BF145: N/A | BG145: N/A | BH145: N/A | BI145: N/A | BJ145: N/A | BK145: N/A | BL145: N/A | BM145: N/A | BN145: N/A | BO145: N/A | BP145: N/A | BQ145: N/A | BR145: N/A | BS145: N/A | BT145: N/A | BU145: N/A | BV145: N/A | BW145: N/A | BX145: N/A | BY145: N/A | BZ145: N/A | CA145: N/A | CB145: N/A | CC145: N/A | CD145: N/A | CE145: N/A | CF145: N/A | CG145: N/A | CH145: N/A | CI145: N/A | CJ145: N/A | CK145: N/A | CL145: N/A | CO145: 1959-10-01 | CP145: 1.52196 | CW145: 1966-10-01 | CX145: 8.12143642 | CY145: =100*(CX145/CX133-1) -> 3.801945181 | DC145: =CY145 -> 3.801945181 | DI145: 1949Q2 | DJ145: 1949 | DK145: Q2 | DL145: 6 | DM145: 1949-06-30 | DN145: 27.462768 | DO145: 1.116465849
A146: Kennedy | B146: Macmillan | C146: Holyoake | G146: 1.00267 | H146: 5.093804538 | I146: 3.267411685 | J146: World Pop 3.1b Cuban Missile Crisis (Aug-Nov) | K146: 1962-07-26 | L146: N/A | M146: N/A | N146: N/A | O146: 3.32 | P146: N/A | Q146: 3.62 | R146: 3.82 | S146: N/A | T146: 4.01 | U146: 4.05 | V146: N/A | W146: N/A | X146: N/A | Y146: N/A | Z146: N/A | AA146: N/A | AB146: N/A | AC146: N/A | AD146: N/A | AE146: N/A | AF146: N/A | AG146: N/A | AH146: N/A | AI146: N/A | AJ146: N/A | AK146: N/A | AL146: N/A | AM146: N/A | AN146: N/A | AO146: N/A | AP146: N/A | AQ146: N/A | AR146: N/A | AS146: N/A | AT146: N/A | AU146: N/A | AV146: N/A | AW146: N/A | AX146: N/A | AY146: N/A | AZ146: N/A | BA146: N/A | BB146: N/A | BC146: N/A | BD146: N/A | BE146: N/A | BF146: N/A | BG146: N/A | BH146: N/A | BI146: N/A | BJ146: N/A | BK146: N/A | BL146: N/A | BM146: N/A | BN146: N/A | BO146: N/A | BP146: N/A | BQ146: N/A | BR146: N/A | BS146: N/A | BT146: N/A | BU146: N/A | BV146: N/A | BW146: N/A | BX146: N/A | BY146: N/A | BZ146: N/A | CA146: N/A | CB146: N/A | CC146: N/A | CD146: N/A | CE146: N/A | CF146: N/A | CG146: N/A | CH146: N/A | CI146: N/A | CJ146: N/A | CK146: N/A | CL146: N/A | CO146: 1959-11-01 | CP146: 1.38169 | CW146: 1966-11-01 | CX146: 8.169860657 | CY146: 3.961267606 | DC146: 3.961267606 | DI146: 1949Q3 | DJ146: 1949 | DK146: Q3 | DL146: 9 | DM146: 1949-09-30 | DN146: 27.791663 | DO146: 1.63028034
A147: Kennedy | B147: Macmillan | C147: Holyoake | G147: 1.00267 | H147: 5.093804538 | I147: 3.267411685 | J147: World Pop 3.1b Cuban Missile Crisis (Aug-Nov) | K147: 1962-07-27 | L147: N/A | M147: N/A | N147: N/A | O147: 3.32 | P147: N/A | Q147: 3.59 | R147: 3.79 | S147: N/A | T147: 4.02 | U147: 4.05 | V147: N/A | W147: N/A | X147: N/A | Y147: N/A | Z147: N/A | AA147: N/A | AB147: N/A | AC147: N/A | AD147: N/A | AE147: N/A | AF147: N/A | AG147: N/A | AH147: N/A | AI147: N/A | AJ147: N/A | AK147: N/A | AL147: N/A | AM147: N/A | AN147: N/A | AO147: N/A | AP147: N/A | AQ147: N/A | AR147: N/A | AS147: N/A | AT147: N/A | AU147: N/A | AV147: N/A | AW147: N/A | AX147: N/A | AY147: N/A | AZ147: N/A | BA147: N/A | BB147: N/A | BC147: N/A | BD147: N/A | BE147: N/A | BF147: N/A | BG147: N/A | BH147: N/A | BI147: N/A | BJ147: N/A | BK147: N/A | BL147: N/A | BM147: N/A | BN147: N/A | BO147: N/A | BP147: N/A | BQ147: N/A | BR147: N/A | BS147: N/A | BT147: N/A | BU147: N/A | BV147: N/A | BW147: N/A | BX147: N/A | BY147: N/A | BZ147: N/A | CA147: N/A | CB147: N/A | CC147: N/A | CD147: N/A | CE147: N/A | CF147: N/A | CG147: N/A | CH147: N/A | CI147: N/A | CJ147: N/A | CK147: N/A | CL147: N/A | CO147: 1959-12-01 | CP147: 1.51881 | CW147: 1966-12-01 | CX147: 8.183696154 | CY147: 3.680981595 | DC147: 3.680981595 | DI147: 1949Q4 | DJ147: 1949 | DK147: Q4 | DL147: 12 | DM147: 1949-12-31 | DN147: 27.901294 | DO147: 1.799995855
A148: Kennedy | B148: Macmillan | C148: Holyoake | G148: 1.00267 | H148: 5.093804538 | I148: 3.267411685 | J148: World Pop 3.1b Cuban Missile Crisis (Aug-Nov) | K148: 1962-07-30 | L148: N/A | M148: N/A | N148: N/A | O148: 3.33 | P148: N/A | Q148: 3.61 | R148: 3.81 | S148: N/A | T148: 4.03 | U148: 4.05 | V148: N/A | W148: N/A | X148: N/A | Y148: N/A | Z148: N/A | AA148: N/A | AB148: N/A | AC148: N/A | AD148: N/A | AE148: N/A | AF148: N/A | AG148: N/A | AH148: N/A | AI148: N/A | AJ148: N/A | AK148: N/A | AL148: N/A | AM148: N/A | AN148: N/A | AO148: N/A | AP148: N/A | AQ148: N/A | AR148: N/A | AS148: N/A | AT148: N/A | AU148: N/A | AV148: N/A | AW148: N/A | AX148: N/A | AY148: N/A | AZ148: N/A | BA148: N/A | BB148: N/A | BC148: N/A | BD148: N/A | BE148: N/A | BF148: N/A | BG148: N/A | BH148: N/A | BI148: N/A | BJ148: N/A | BK148: N/A | BL148: N/A | BM148: N/A | BN148: N/A | BO148: N/A | BP148: N/A | BQ148: N/A | BR148: N/A | BS148: N/A | BT148: N/A | BU148: N/A | BV148: N/A | BW148: N/A | BX148: N/A | BY148: N/A | BZ148: N/A | CA148: N/A | CB148: N/A | CC148: N/A | CD148: N/A | CE148: N/A | CF148: N/A | CG148: N/A | CH148: N/A | CI148: N/A | CJ148: N/A | CK148: N/A | CL148: N/A | CO148: 1960-01-01 | CP148: 1.24095 | CW148: 1967-01-01 | CX148: 8.19753165 | CY148: 3.674540682 | DC148: 3.674540682 | DI148: 1950Q1 | DJ148: 1950 | DK148: Q1 | DL148: 3 | DM148: 1950-03-31 | DN148: 27.956111 | DO148: 1.999999854
A149: Kennedy | B149: Macmillan | C149: Holyoake | G149: 1.00267 | H149: 5.093804538 | I149: 3.267411685 | J149: World Pop 3.1b Cuban Missile Crisis (Aug-Nov) | K149: 1962-07-31 | L149: N/A | M149: N/A | N149: N/A | O149: 3.33 | P149: N/A | Q149: 3.62 | R149: 3.82 | S149: N/A | T149: 4.04 | U149: 4.05 | V149: N/A | W149: N/A | X149: N/A | Y149: N/A | Z149: N/A | AA149: N/A | AB149: N/A | AC149: N/A | AD149: N/A | AE149: N/A | AF149: N/A | AG149: N/A | AH149: N/A | AI149: N/A | AJ149: N/A | AK149: N/A | AL149: N/A | AM149: N/A | AN149: N/A | AO149: N/A | AP149: N/A | AQ149: N/A | AR149: N/A | AS149: N/A | AT149: N/A | AU149: N/A | AV149: N/A | AW149: N/A | AX149: N/A | AY149: N/A | AZ149: N/A | BA149: N/A | BB149: N/A | BC149: N/A | BD149: N/A | BE149: N/A | BF149: N/A | BG149: N/A | BH149: N/A | BI149: N/A | BJ149: N/A | BK149: N/A | BL149: N/A | BM149: N/A | BN149: N/A | BO149: N/A | BP149: N/A | BQ149: N/A | BR149: N/A | BS149: N/A | BT149: N/A | BU149: N/A | BV149: N/A | BW149: N/A | BX149: N/A | BY149: N/A | BZ149: N/A | CA149: N/A | CB149: N/A | CC149: N/A | CD149: N/A | CE149: N/A | CF149: N/A | CG149: N/A | CH149: N/A | CI149: N/A | CJ149: N/A | CK149: N/A | CL149: N/A | CO149: 1960-02-01 | CP149: 1.41379 | CW149: 1967-02-01 | CX149: 8.204449398 | CY149: 3.671328671 | DC149: 3.671328671 | DI149: 1950Q2 | DJ149: 1950 | DK149: Q2 | DL149: 6 | DM149: 1950-06-30 | DN149: 28.833165 | DO149: 4.990017758
A150: Kennedy | B150: Macmillan | C150: Holyoake | G150: 1.1356 | H150: 3.180639585 | I150: 3.267411685 | J150: World Pop 3.1b Cuban Missile Crisis (Aug-Nov) | K150: 1962-08-01 | L150: N/A | M150: N/A | N150: N/A | O150: 3.3 | P150: N/A | Q150: 3.59 | R150: 3.8 | S150: N/A | T150: 4.03 | U150: 4.05 | V150: N/A | W150: N/A | X150: N/A | Y150: N/A | Z150: N/A | AA150: N/A | AB150: N/A | AC150: N/A | AD150: N/A | AE150: N/A | AF150: N/A | AG150: N/A | AH150: N/A | AI150: N/A | AJ150: N/A | AK150: N/A | AL150: N/A | AM150: N/A | AN150: N/A | AO150: N/A | AP150: N/A | AQ150: N/A | AR150: N/A | AS150: N/A | AT150: N/A | AU150: N/A | AV150: N/A | AW150: N/A | AX150: N/A | AY150: N/A | AZ150: N/A | BA150: N/A | BB150: N/A | BC150: N/A | BD150: N/A | BE150: N/A | BF150: N/A | BG150: N/A | BH150: N/A | BI150: N/A | BJ150: N/A | BK150: N/A | BL150: N/A | BM150: N/A | BN150: N/A | BO150: N/A | BP150: N/A | BQ150: N/A | BR150: N/A | BS150: N/A | BT150: N/A | BU150: N/A | BV150: N/A | BW150: N/A | BX150: N/A | BY150: N/A | BZ150: N/A | CA150: N/A | CB150: N/A | CC150: N/A | CD150: N/A | CE150: N/A | CF150: N/A | CG150: N/A | CH150: N/A | CI150: N/A | CJ150: N/A | CK150: N/A | CL150: N/A | CO150: 1960-03-01 | CP150: 1.51881 | CW150: 1967-03-01 | CX150: 8.204449398 | CY150: 3.490401396 | DC150: 3.490401396 | DI150: 1950Q3 | DJ150: 1950 | DK150: Q3 | DL150: 9 | DM150: 1950-09-30 | DN150: 29.792444 | DO150: 7.199212944
A151: Kennedy | B151: Macmillan | C151: Holyoake | G151: 1.1356 | H151: 3.180639585 | I151: 3.267411685 | J151: World Pop 3.1b Cuban Missile Crisis (Aug-Nov) | K151: 1962-08-02 | L151: N/A | M151: N/A | N151: N/A | O151: 3.26 | P151: N/A | Q151: 3.55 | R151: 3.76 | S151: N/A | T151: 4 | U151: 4.05 | V151: N/A | W151: N/A | X151: N/A | Y151: N/A | Z151: N/A | AA151: N/A | AB151: N/A | AC151: N/A | AD151: N/A | AE151: N/A | AF151: N/A | AG151: N/A | AH151: N/A | AI151: N/A | AJ151: N/A | AK151: N/A | AL151: N/A | AM151: N/A | AN151: N/A | AO151: N/A | AP151: N/A | AQ151: N/A | AR151: N/A | AS151: N/A | AT151: N/A | AU151: N/A | AV151: N/A | AW151: N/A | AX151: N/A | AY151: N/A | AZ151: N/A | BA151: N/A | BB151: N/A | BC151: N/A | BD151: N/A | BE151: N/A | BF151: N/A | BG151: N/A | BH151: N/A | BI151: N/A | BJ151: N/A | BK151: N/A | BL151: N/A | BM151: N/A | BN151: N/A | BO151: N/A | BP151: N/A | BQ151: N/A | BR151: N/A | BS151: N/A | BT151: N/A | BU151: N/A | BV151: N/A | BW151: N/A | BX151: N/A | BY151: N/A | BZ151: N/A | CA151: N/A | CB151: N/A | CC151: N/A | CD151: N/A | CE151: N/A | CF151: N/A | CG151: N/A | CH151: N/A | CI151: N/A | CJ151: N/A | CK151: N/A | CL151: N/A | CO151: 1960-04-01 | CP151: 1.93237 | CW151: 1967-04-01 | CX151: 8.266709132 | CY151: 3.017241379 | DC151: 3.017241379 | DI151: 1950Q4 | DJ151: 1950 | DK151: Q4 | DL151: 12 | DM151: 1950-12-31 | DN151: 30.285786 | DO151: 8.546169937
A152: Kennedy | B152: Macmillan | C152: Holyoake | G152: 1.1356 | H152: 3.180639585 | I152: 3.267411685 | J152: World Pop 3.1b Cuban Missile Crisis (Aug-Nov) | K152: 1962-08-03 | L152: N/A | M152: N/A | N152: N/A | O152: 3.27 | P152: N/A | Q152: 3.56 | R152: 3.77 | S152: N/A | T152: 4.01 | U152: 4.05 | V152: N/A | W152: N/A | X152: N/A | Y152: N/A | Z152: N/A | AA152: N/A | AB152: N/A | AC152: N/A | AD152: N/A | AE152: N/A | AF152: N/A | AG152: N/A | AH152: N/A | AI152: N/A | AJ152: N/A | AK152: N/A | AL152: N/A | AM152: N/A | AN152: N/A | AO152: N/A | AP152: N/A | AQ152: N/A | AR152: N/A | AS152: N/A | AT152: N/A | AU152: N/A | AV152: N/A | AW152: N/A | AX152: N/A | AY152: N/A | AZ152: N/A | BA152: N/A | BB152: N/A | BC152: N/A | BD152: N/A | BE152: N/A | BF152: N/A | BG152: N/A | BH152: N/A | BI152: N/A | BJ152: N/A | BK152: N/A | BL152: N/A | BM152: N/A | BN152: N/A | BO152: N/A | BP152: N/A | BQ152: N/A | BR152: N/A | BS152: N/A | BT152: N/A | BU152: N/A | BV152: N/A | BW152: N/A | BX152: N/A | BY152: N/A | BZ152: N/A | CA152: N/A | CB152: N/A | CC152: N/A | CD152: N/A | CE152: N/A | CF152: N/A | CG152: N/A | CH152: N/A | CI152: N/A | CJ152: N/A | CK152: N/A | CL152: N/A | CO152: 1960-05-01 | CP152: 1.82507 | CW152: 1967-05-01 | CX152: 8.259791384 | CY152: 2.226027397 | DC152: 2.226027397 | DI152: 1951Q1 | DJ152: 1951 | DK152: Q1 | DL152: 3 | DM152: 1951-03-31 | DN152: 30.724314 | DO152: 9.901960255
A153: Kennedy | B153: Macmillan | C153: Holyoake | G153: 1.1356 | H153: 3.180639585 | I153: 3.267411685 | J153: World Pop 3.1b Cuban Missile Crisis (Aug-Nov) | K153: 1962-08-06 | L153: N/A | M153: N/A | N153: N/A | O153: 3.26 | P153: N/A | Q153: 3.53 | R153: 3.76 | S153: N/A | T153: 4.01 | U153: 4.05 | V153: N/A | W153: N/A | X153: N/A | Y153: N/A | Z153: N/A | AA153: N/A | AB153: N/A | AC153: N/A | AD153: N/A | AE153: N/A | AF153: N/A | AG153: N/A | AH153: N/A | AI153: N/A | AJ153: N/A | AK153: N/A | AL153: N/A | AM153: N/A | AN153: N/A | AO153: N/A | AP153: N/A | AQ153: N/A | AR153: N/A | AS153: N/A | AT153: N/A | AU153: N/A | AV153: N/A | AW153: N/A | AX153: N/A | AY153: N/A | AZ153: N/A | BA153: N/A | BB153: N/A | BC153: N/A | BD153: N/A | BE153: N/A | BF153: N/A | BG153: N/A | BH153: N/A | BI153: N/A | BJ153: N/A | BK153: N/A | BL153: N/A | BM153: N/A | BN153: N/A | BO153: N/A | BP153: N/A | BQ153: N/A | BR153: N/A | BS153: N/A | BT153: N/A | BU153: N/A | BV153: N/A | BW153: N/A | BX153: N/A | BY153: N/A | BZ153: N/A | CA153: N/A | CB153: N/A | CC153: N/A | CD153: N/A | CE153: N/A | CF153: N/A | CG153: N/A | CH153: N/A | CI153: N/A | CJ153: N/A | CK153: N/A | CL153: N/A | CO153: 1960-06-01 | CP153: 1.71762 | CW153: 1967-06-01 | CX153: 8.294380125 | CY153: 2.391118702 | DC153: 2.391118702 | DI153: 1951Q2 | DJ153: 1951 | DK153: Q2 | DL153: 6 | DM153: 1951-06-30 | DN153: 32.039896 | DO153: 11.12167533
A154: Kennedy | B154: Macmillan | C154: Holyoake | G154: 1.1356 | H154: 3.180639585 | I154: 3.267411685 | J154: World Pop 3.1b Cuban Missile Crisis (Aug-Nov) | K154: 1962-08-07 | L154: N/A | M154: N/A | N154: N/A | O154: 3.28 | P154: N/A | Q154: 3.55 | R154: 3.79 | S154: N/A | T154: 4.02 | U154: 4.05 | V154: N/A | W154: N/A | X154: N/A | Y154: N/A | Z154: N/A | AA154: N/A | AB154: N/A | AC154: N/A | AD154: N/A | AE154: N/A | AF154: N/A | AG154: N/A | AH154: N/A | AI154: N/A | AJ154: N/A | AK154: N/A | AL154: N/A | AM154: N/A | AN154: N/A | AO154: N/A | AP154: N/A | AQ154: N/A | AR154: N/A | AS154: N/A | AT154: N/A | AU154: N/A | AV154: N/A | AW154: N/A | AX154: N/A | AY154: N/A | AZ154: N/A | BA154: N/A | BB154: N/A | BC154: N/A | BD154: N/A | BE154: N/A | BF154: N/A | BG154: N/A | BH154: N/A | BI154: N/A | BJ154: N/A | BK154: N/A | BL154: N/A | BM154: N/A | BN154: N/A | BO154: N/A | BP154: N/A | BQ154: N/A | BR154: N/A | BS154: N/A | BT154: N/A | BU154: N/A | BV154: N/A | BW154: N/A | BX154: N/A | BY154: N/A | BZ154: N/A | CA154: N/A | CB154: N/A | CC154: N/A | CD154: N/A | CE154: N/A | CF154: N/A | CG154: N/A | CH154: N/A | CI154: N/A | CJ154: N/A | CK154: N/A | CL154: N/A | CO154: 1960-07-01 | CP154: 1.37221 | CW154: 1967-07-01 | CX154: 8.245955888 | CY154: 2.229845626 | DC154: 2.229845626 | DI154: 1951Q3 | DJ154: 1951 | DK154: Q3 | DL154: 9 | DM154: 1951-09-30 | DN154: 33.081397 | DO154: 11.03955419
A155: Kennedy | B155: Macmillan | C155: Holyoake | G155: 1.1356 | H155: 3.180639585 | I155: 3.267411685 | J155: World Pop 3.1b Cuban Missile Crisis (Aug-Nov) | K155: 1962-08-08 | L155: N/A | M155: N/A | N155: N/A | O155: 3.28 | P155: N/A | Q155: 3.54 | R155: 3.78 | S155: N/A | T155: 4.01 | U155: 4.05 | V155: N/A | W155: N/A | X155: N/A | Y155: N/A | Z155: N/A | AA155: N/A | AB155: N/A | AC155: N/A | AD155: N/A | AE155: N/A | AF155: N/A | AG155: N/A | AH155: N/A | AI155: N/A | AJ155: N/A | AK155: N/A | AL155: N/A | AM155: N/A | AN155: N/A | AO155: N/A | AP155: N/A | AQ155: N/A | AR155: N/A | AS155: N/A | AT155: N/A | AU155: N/A | AV155: N/A | AW155: N/A | AX155: N/A | AY155: N/A | AZ155: N/A | BA155: N/A | BB155: N/A | BC155: N/A | BD155: N/A | BE155: N/A | BF155: N/A | BG155: N/A | BH155: N/A | BI155: N/A | BJ155: N/A | BK155: N/A | BL155: N/A | BM155: N/A | BN155: N/A | BO155: N/A | BP155: N/A | BQ155: N/A | BR155: N/A | BS155: N/A | BT155: N/A | BU155: N/A | BV155: N/A | BW155: N/A | BX155: N/A | BY155: N/A | BZ155: N/A | CA155: N/A | CB155: N/A | CC155: N/A | CD155: N/A | CE155: N/A | CF155: N/A | CG155: N/A | CH155: N/A | CI155: N/A | CJ155: N/A | CK155: N/A | CL155: N/A | CO155: 1960-08-01 | CP155: 1.47361 | CW155: 1967-08-01 | CX155: 8.225202643 | CY155: 1.36402387 | DC155: 1.36402387 | DI155: 1951Q4 | DJ155: 1951 | DK155: Q4 | DL155: 12 | DM155: 1951-12-31 | DN155: 33.903636 | DO155: 11.94570285
A156: Kennedy | B156: Macmillan | C156: Holyoake | G156: 1.1356 | H156: 3.180639585 | I156: 3.267411685 | J156: World Pop 3.1b Cuban Missile Crisis (Aug-Nov) | K156: 1962-08-09 | L156: N/A | M156: N/A | N156: N/A | O156: 3.28 | P156: N/A | Q156: 3.52 | R156: 3.76 | S156: N/A | T156: 3.99 | U156: 4.05 | V156: N/A | W156: N/A | X156: N/A | Y156: N/A | Z156: N/A | AA156: N/A | AB156: N/A | AC156: N/A | AD156: N/A | AE156: N/A | AF156: N/A | AG156: N/A | AH156: N/A | AI156: N/A | AJ156: N/A | AK156: N/A | AL156: N/A | AM156: N/A | AN156: N/A | AO156: N/A | AP156: N/A | AQ156: N/A | AR156: N/A | AS156: N/A | AT156: N/A | AU156: N/A | AV156: N/A | AW156: N/A | AX156: N/A | AY156: N/A | AZ156: N/A | BA156: N/A | BB156: N/A | BC156: N/A | BD156: N/A | BE156: N/A | BF156: N/A | BG156: N/A | BH156: N/A | BI156: N/A | BJ156: N/A | BK156: N/A | BL156: N/A | BM156: N/A | BN156: N/A | BO156: N/A | BP156: N/A | BQ156: N/A | BR156: N/A | BS156: N/A | BT156: N/A | BU156: N/A | BV156: N/A | BW156: N/A | BX156: N/A | BY156: N/A | BZ156: N/A | CA156: N/A | CB156: N/A | CC156: N/A | CD156: N/A | CE156: N/A | CF156: N/A | CG156: N/A | CH156: N/A | CI156: N/A | CJ156: N/A | CK156: N/A | CL156: N/A | CO156: 1960-09-01 | CP156: 1.23077 | CW156: 1967-09-01 | CX156: 8.218284895 | CY156: 1.45175064 | DC156: 1.45175064 | DI156: 1952Q1 | DJ156: 1952 | DK156: Q1 | DL156: 3 | DM156: 1952-03-31 | DN156: 34.342163 | DO156: 11.77519863
A157: Kennedy | B157: Macmillan | C157: Holyoake | G157: 1.1356 | H157: 3.180639585 | I157: 3.267411685 | J157: World Pop 3.1b Cuban Missile Crisis (Aug-Nov) | K157: 1962-08-10 | L157: N/A | M157: N/A | N157: N/A | O157: 3.28 | P157: N/A | Q157: 3.51 | R157: 3.76 | S157: N/A | T157: 3.99 | U157: 4.05 | V157: N/A | W157: N/A | X157: N/A | Y157: N/A | Z157: N/A | AA157: N/A | AB157: N/A | AC157: N/A | AD157: N/A | AE157: N/A | AF157: N/A | AG157: N/A | AH157: N/A | AI157: N/A | AJ157: N/A | AK157: N/A | AL157: N/A | AM157: N/A | AN157: N/A | AO157: N/A | AP157: N/A | AQ157: N/A | AR157: N/A | AS157: N/A | AT157: N/A | AU157: N/A | AV157: N/A | AW157: N/A | AX157: N/A | AY157: N/A | AZ157: N/A | BA157: N/A | BB157: N/A | BC157: N/A | BD157: N/A | BE157: N/A | BF157: N/A | BG157: N/A | BH157: N/A | BI157: N/A | BJ157: N/A | BK157: N/A | BL157: N/A | BM157: N/A | BN157: N/A | BO157: N/A | BP157: N/A | BQ157: N/A | BR157: N/A | BS157: N/A | BT157: N/A | BU157: N/A | BV157: N/A | BW157: N/A | BX157: N/A | BY157: N/A | BZ157: N/A | CA157: N/A | CB157: N/A | CC157: N/A | CD157: N/A | CE157: N/A | CF157: N/A | CG157: N/A | CH157: N/A | CI157: N/A | CJ157: N/A | CK157: N/A | CL157: N/A | CO157: 1960-10-01 | CP157: 1.36286 | CW157: 1967-10-01 | CX157: 8.280544629 | CY157: 1.95911414 | DC157: 1.95911414 | DI157: 1952Q2 | DJ157: 1952 | DK157: Q2 | DL157: 6 | DM157: 1952-06-30 | DN157: 34.808099 | DO157: 8.639862626
A158: Kennedy | B158: Macmillan | C158: Holyoake | G158: 1.1356 | H158: 3.180639585 | I158: 3.267411685 | J158: World Pop 3.1b Cuban Missile Crisis (Aug-Nov) | K158: 1962-08-13 | L158: N/A | M158: N/A | N158: N/A | O158: 3.26 | P158: N/A | Q158: 3.5 | R158: 3.74 | S158: N/A | T158: 3.99 | U158: 4.05 | V158: N/A | W158: N/A | X158: N/A | Y158: N/A | Z158: N/A | AA158: N/A | AB158: N/A | AC158: N/A | AD158: N/A | AE158: N/A | AF158: N/A | AG158: N/A | AH158: N/A | AI158: N/A | AJ158: N/A | AK158: N/A | AL158: N/A | AM158: N/A | AN158: N/A | AO158: N/A | AP158: N/A | AQ158: N/A | AR158: N/A | AS158: N/A | AT158: N/A | AU158: N/A | AV158: N/A | AW158: N/A | AX158: N/A | AY158: N/A | AZ158: N/A | BA158: N/A | BB158: N/A | BC158: N/A | BD158: N/A | BE158: N/A | BF158: N/A | BG158: N/A | BH158: N/A | BI158: N/A | BJ158: N/A | BK158: N/A | BL158: N/A | BM158: N/A | BN158: N/A | BO158: N/A | BP158: N/A | BQ158: N/A | BR158: N/A | BS158: N/A | BT158: N/A | BU158: N/A | BV158: N/A | BW158: N/A | BX158: N/A | BY158: N/A | BZ158: N/A | CA158: N/A | CB158: N/A | CC158: N/A | CD158: N/A | CE158: N/A | CF158: N/A | CG158: N/A | CH158: N/A | CI158: N/A | CJ158: N/A | CK158: N/A | CL158: N/A | CO158: 1960-11-01 | CP158: 1.46508 | CW158: 1967-11-01 | CX158: 8.328968867 | CY158: 1.947502117 | DC158: 1.947502117 | DI158: 1952Q3 | DJ158: 1952 | DK158: Q3 | DL158: 9 | DM158: 1952-09-30 | DN158: 35.19181 | DO158: 6.379455499
A159: Kennedy | B159: Macmillan | C159: Holyoake | G159: 1.1356 | H159: 3.180639585 | I159: 3.267411685 | J159: World Pop 3.1b Cuban Missile Crisis (Aug-Nov) | K159: 1962-08-14 | L159: N/A | M159: N/A | N159: N/A | O159: 3.24 | P159: N/A | Q159: 3.48 | R159: 3.73 | S159: N/A | T159: 3.98 | U159: 4.05 | V159: N/A | W159: N/A | X159: N/A | Y159: N/A | Z159: N/A | AA159: N/A | AB159: N/A | AC159: N/A | AD159: N/A | AE159: N/A | AF159: N/A | AG159: N/A | AH159: N/A | AI159: N/A | AJ159: N/A | AK159: N/A | AL159: N/A | AM159: N/A | AN159: N/A | AO159: N/A | AP159: N/A | AQ159: N/A | AR159: N/A | AS159: N/A | AT159: N/A | AU159: N/A | AV159: N/A | AW159: N/A | AX159: N/A | AY159: N/A | AZ159: N/A | BA159: N/A | BB159: N/A | BC159: N/A | BD159: N/A | BE159: N/A | BF159: N/A | BG159: N/A | BH159: N/A | BI159: N/A | BJ159: N/A | BK159: N/A | BL159: N/A | BM159: N/A | BN159: N/A | BO159: N/A | BP159: N/A | BQ159: N/A | BR159: N/A | BS159: N/A | BT159: N/A | BU159: N/A | BV159: N/A | BW159: N/A | BX159: N/A | BY159: N/A | BZ159: N/A | CA159: N/A | CB159: N/A | CC159: N/A | CD159: N/A | CE159: N/A | CF159: N/A | CG159: N/A | CH159: N/A | CI159: N/A | CJ159: N/A | CK159: N/A | CL159: N/A | CO159: 1960-12-01 | CP159: 1.36008 | CW159: 1967-12-01 | CX159: 8.384310852 | CY159: 2.451394759 | DC159: 2.451394759 | DI159: 1952Q4 | DJ159: 1952 | DK159: Q4 | DL159: 12 | DM159: 1952-12-31 | DN159: 35.465889 | DO159: 4.607921699
A160: Kennedy | B160: Macmillan | C160: Holyoake | G160: 1.1356 | H160: 3.180639585 | I160: 3.267411685 | J160: World Pop 3.1b Cuban Missile Crisis (Aug-Nov) | K160: 1962-08-15 | L160: N/A | M160: N/A | N160: N/A | O160: 3.2 | P160: N/A | Q160: 3.47 | R160: 3.72 | S160: N/A | T160: 3.98 | U160: 4.01 | V160: N/A | W160: N/A | X160: N/A | Y160: N/A | Z160: N/A | AA160: N/A | AB160: N/A | AC160: N/A | AD160: N/A | AE160: N/A | AF160: N/A | AG160: N/A | AH160: N/A | AI160: N/A | AJ160: N/A | AK160: N/A | AL160: N/A | AM160: N/A | AN160: N/A | AO160: N/A | AP160: N/A | AQ160: N/A | AR160: N/A | AS160: N/A | AT160: N/A | AU160: N/A | AV160: N/A | AW160: N/A | AX160: N/A | AY160: N/A | AZ160: N/A | BA160: N/A | BB160: N/A | BC160: N/A | BD160: N/A | BE160: N/A | BF160: N/A | BG160: N/A | BH160: N/A | BI160: N/A | BJ160: N/A | BK160: N/A | BL160: N/A | BM160: N/A | BN160: N/A | BO160: N/A | BP160: N/A | BQ160: N/A | BR160: N/A | BS160: N/A | BT160: N/A | BU160: N/A | BV160: N/A | BW160: N/A | BX160: N/A | BY160: N/A | BZ160: N/A | CA160: N/A | CB160: N/A | CC160: N/A | CD160: N/A | CE160: N/A | CF160: N/A | CG160: N/A | CH160: N/A | CI160: N/A | CJ160: N/A | CK160: N/A | CL160: N/A | CO160: 1961-01-01 | CP160: 1.60027 | CW160: 1968-01-01 | CX160: 8.411981845 | CY160: 2.616033755 | DC160: 2.616033755 | DI160: 1953Q1 | DJ160: 1953 | DK160: Q1 | DL160: 3 | DM160: 1953-03-31 | DN160: 35.822192 | DO160: 4.309655743
A161: Kennedy | B161: Macmillan | C161: Holyoake | G161: 1.1356 | H161: 3.180639585 | I161: 3.267411685 | J161: World Pop 3.1b Cuban Missile Crisis (Aug-Nov) | K161: 1962-08-16 | L161: N/A | M161: N/A | N161: N/A | O161: 3.19 | P161: N/A | Q161: 3.44 | R161: 3.69 | S161: N/A | T161: 3.96 | U161: 4.01 | V161: N/A | W161: N/A | X161: N/A | Y161: N/A | Z161: N/A | AA161: N/A | AB161: N/A | AC161: N/A | AD161: N/A | AE161: N/A | AF161: N/A | AG161: N/A | AH161: N/A | AI161: N/A | AJ161: N/A | AK161: N/A | AL161: N/A | AM161: N/A | AN161: N/A | AO161: N/A | AP161: N/A | AQ161: N/A | AR161: N/A | AS161: N/A | AT161: N/A | AU161: N/A | AV161: N/A | AW161: N/A | AX161: N/A | AY161: N/A | AZ161: N/A | BA161: N/A | BB161: N/A | BC161: N/A | BD161: N/A | BE161: N/A | BF161: N/A | BG161: N/A | BH161: N/A | BI161: N/A | BJ161: N/A | BK161: N/A | BL161: N/A | BM161: N/A | BN161: N/A | BO161: N/A | BP161: N/A | BQ161: N/A | BR161: N/A | BS161: N/A | BT161: N/A | BU161: N/A | BV161: N/A | BW161: N/A | BX161: N/A | BY161: N/A | BZ161: N/A | CA161: N/A | CB161: N/A | CC161: N/A | CD161: N/A | CE161: N/A | CF161: N/A | CG161: N/A | CH161: N/A | CI161: N/A | CJ161: N/A | CK161: N/A | CL161: N/A | CO161: 1961-02-01 | CP161: 1.46209 | CW161: 1968-02-01 | CX161: 8.453488335 | CY161: 3.035413153 | DC161: 3.035413153 | DI161: 1953Q2 | DJ161: 1953 | DK161: Q2 | DL161: 6 | DM161: 1953-06-30 | DN161: 36.233312 | DO161: 4.094486746
A162: Kennedy | B162: Macmillan | C162: Holyoake | G162: 1.1356 | H162: 3.180639585 | I162: 3.267411685 | J162: World Pop 3.1b Cuban Missile Crisis (Aug-Nov) | K162: 1962-08-17 | L162: N/A | M162: N/A | N162: N/A | O162: 3.18 | P162: N/A | Q162: 3.42 | R162: 3.69 | S162: N/A | T162: 3.96 | U162: 4.01 | V162: N/A | W162: N/A | X162: N/A | Y162: N/A | Z162: N/A | AA162: N/A | AB162: N/A | AC162: N/A | AD162: N/A | AE162: N/A | AF162: N/A | AG162: N/A | AH162: N/A | AI162: N/A | AJ162: N/A | AK162: N/A | AL162: N/A | AM162: N/A | AN162: N/A | AO162: N/A | AP162: N/A | AQ162: N/A | AR162: N/A | AS162: N/A | AT162: N/A | AU162: N/A | AV162: N/A | AW162: N/A | AX162: N/A | AY162: N/A | AZ162: N/A | BA162: N/A | BB162: N/A | BC162: N/A | BD162: N/A | BE162: N/A | BF162: N/A | BG162: N/A | BH162: N/A | BI162: N/A | BJ162: N/A | BK162: N/A | BL162: N/A | BM162: N/A | BN162: N/A | BO162: N/A | BP162: N/A | BQ162: N/A | BR162: N/A | BS162: N/A | BT162: N/A | BU162: N/A | BV162: N/A | BW162: N/A | BX162: N/A | BY162: N/A | BZ162: N/A | CA162: N/A | CB162: N/A | CC162: N/A | CD162: N/A | CE162: N/A | CF162: N/A | CG162: N/A | CH162: N/A | CI162: N/A | CJ162: N/A | CK162: N/A | CL162: N/A | CO162: 1961-03-01 | CP162: 1.46209 | CW162: 1968-03-01 | CX162: 8.481159328 | CY162: 3.372681282 | DC162: 3.372681282 | DI162: 1953Q3 | DJ162: 1953 | DK162: Q3 | DL162: 9 | DM162: 1953-09-30 | DN162: 36.644431 | DO162: 4.127724604
A163: Kennedy | B163: Macmillan | C163: Holyoake | G163: 1.1356 | H163: 3.180639585 | I163: 3.267411685 | J163: World Pop 3.1b Cuban Missile Crisis (Aug-Nov) | K163: 1962-08-20 | L163: N/A | M163: N/A | N163: N/A | O163: 3.17 | P163: N/A | Q163: 3.38 | R163: 3.66 | S163: N/A | T163: 3.94 | U163: 4.01 | V163: N/A | W163: N/A | X163: N/A | Y163: N/A | Z163: N/A | AA163: N/A | AB163: N/A | AC163: N/A | AD163: N/A | AE163: N/A | AF163: N/A | AG163: N/A | AH163: N/A | AI163: N/A | AJ163: N/A | AK163: N/A | AL163: N/A | AM163: N/A | AN163: N/A | AO163: N/A | AP163: N/A | AQ163: N/A | AR163: N/A | AS163: N/A | AT163: N/A | AU163: N/A | AV163: N/A | AW163: N/A | AX163: N/A | AY163: N/A | AZ163: N/A | BA163: N/A | BB163: N/A | BC163: N/A | BD163: N/A | BE163: N/A | BF163: N/A | BG163: N/A | BH163: N/A | BI163: N/A | BJ163: N/A | BK163: N/A | BL163: N/A | BM163: N/A | BN163: N/A | BO163: N/A | BP163: N/A | BQ163: N/A | BR163: N/A | BS163: N/A | BT163: N/A | BU163: N/A | BV163: N/A | BW163: N/A | BX163: N/A | BY163: N/A | BZ163: N/A | CA163: N/A | CB163: N/A | CC163: N/A | CD163: N/A | CE163: N/A | CF163: N/A | CG163: N/A | CH163: N/A | CI163: N/A | CJ163: N/A | CK163: N/A | CL163: N/A | CO163: 1961-04-01 | CP163: 0.91401 | CW163: 1968-04-01 | CX163: 8.633349789 | CY163: 4.435146444 | DC163: 4.435146444 | DI163: 1953Q4 | DJ163: 1953 | DK163: Q4 | DL163: 12 | DM163: 1953-12-31 | DN163: 37.439262 | DO163: 5.56414362
A164: Kennedy | B164: Macmillan | C164: Holyoake | G164: 1.1356 | H164: 3.180639585 | I164: 3.267411685 | J164: World Pop 3.1b Cuban Missile Crisis (Aug-Nov) | K164: 1962-08-21 | L164: N/A | M164: N/A | N164: N/A | O164: 3.17 | P164: N/A | Q164: 3.39 | R164: 3.66 | S164: N/A | T164: 3.94 | U164: 4.01 | V164: N/A | W164: N/A | X164: N/A | Y164: N/A | Z164: N/A | AA164: N/A | AB164: N/A | AC164: N/A | AD164: N/A | AE164: N/A | AF164: N/A | AG164: N/A | AH164: N/A | AI164: N/A | AJ164: N/A | AK164: N/A | AL164: N/A | AM164: N/A | AN164: N/A | AO164: N/A | AP164: N/A | AQ164: N/A | AR164: N/A | AS164: N/A | AT164: N/A | AU164: N/A | AV164: N/A | AW164: N/A | AX164: N/A | AY164: N/A | AZ164: N/A | BA164: N/A | BB164: N/A | BC164: N/A | BD164: N/A | BE164: N/A | BF164: N/A | BG164: N/A | BH164: N/A | BI164: N/A | BJ164: N/A | BK164: N/A | BL164: N/A | BM164: N/A | BN164: N/A | BO164: N/A | BP164: N/A | BQ164: N/A | BR164: N/A | BS164: N/A | BT164: N/A | BU164: N/A | BV164: N/A | BW164: N/A | BX164: N/A | BY164: N/A | BZ164: N/A | CA164: N/A | CB164: N/A | CC164: N/A | CD164: N/A | CE164: N/A | CF164: N/A | CG164: N/A | CH164: N/A | CI164: N/A | CJ164: N/A | CK164: N/A | CL164: N/A | CO164: 1961-05-01 | CP164: 0.91309 | CW164: 1968-05-01 | CX164: 8.640267537 | CY164: 4.606365159 | DC164: 4.606365159 | DI164: 1954Q1 | DJ164: 1954 | DK164: Q1 | DL164: 3 | DM164: 1954-03-31 | DN164: 37.74075 | DO164: 5.355780573
A165: Kennedy | B165: Macmillan | C165: Holyoake | G165: 1.1356 | H165: 3.180639585 | I165: 3.267411685 | J165: World Pop 3.1b Cuban Missile Crisis (Aug-Nov) | K165: 1962-08-22 | L165: N/A | M165: N/A | N165: N/A | O165: 3.14 | P165: N/A | Q165: 3.39 | R165: 3.66 | S165: N/A | T165: 3.95 | U165: 4.01 | V165: N/A | W165: N/A | X165: N/A | Y165: N/A | Z165: N/A | AA165: N/A | AB165: N/A | AC165: N/A | AD165: N/A | AE165: N/A | AF165: N/A | AG165: N/A | AH165: N/A | AI165: N/A | AJ165: N/A | AK165: N/A | AL165: N/A | AM165: N/A | AN165: N/A | AO165: N/A | AP165: N/A | AQ165: N/A | AR165: N/A | AS165: N/A | AT165: N/A | AU165: N/A | AV165: N/A | AW165: N/A | AX165: N/A | AY165: N/A | AZ165: N/A | BA165: N/A | BB165: N/A | BC165: N/A | BD165: N/A | BE165: N/A | BF165: N/A | BG165: N/A | BH165: N/A | BI165: N/A | BJ165: N/A | BK165: N/A | BL165: N/A | BM165: N/A | BN165: N/A | BO165: N/A | BP165: N/A | BQ165: N/A | BR165: N/A | BS165: N/A | BT165: N/A | BU165: N/A | BV165: N/A | BW165: N/A | BX165: N/A | BY165: N/A | BZ165: N/A | CA165: N/A | CB165: N/A | CC165: N/A | CD165: N/A | CE165: N/A | CF165: N/A | CG165: N/A | CH165: N/A | CI165: N/A | CJ165: N/A | CK165: N/A | CL165: N/A | CO165: 1961-06-01 | CP165: 0.77676 | CW165: 1968-06-01 | CX165: 8.674856278 | CY165: 4.587155963 | DC165: 4.587155963 | DI165: 1954Q2 | DJ165: 1954 | DK165: Q2 | DL165: 6 | DM165: 1954-06-30 | DN165: 38.371132 | DO165: 5.900150668
A166: Kennedy | B166: Macmillan | C166: Holyoake | G166: 1.1356 | H166: 3.180639585 | I166: 3.267411685 | J166: World Pop 3.1b Cuban Missile Crisis (Aug-Nov) | K166: 1962-08-23 | L166: N/A | M166: N/A | N166: N/A | O166: 3.13 | P166: N/A | Q166: 3.38 | R166: 3.66 | S166: N/A | T166: 3.95 | U166: 4.01 | V166: N/A | W166: N/A | X166: N/A | Y166: N/A | Z166: N/A | AA166: N/A | AB166: N/A | AC166: N/A | AD166: N/A | AE166: N/A | AF166: N/A | AG166: N/A | AH166: N/A | AI166: N/A | AJ166: N/A | AK166: N/A | AL166: N/A | AM166: N/A | AN166: N/A | AO166: N/A | AP166: N/A | AQ166: N/A | AR166: N/A | AS166: N/A | AT166: N/A | AU166: N/A | AV166: N/A | AW166: N/A | AX166: N/A | AY166: N/A | AZ166: N/A | BA166: N/A | BB166: N/A | BC166: N/A | BD166: N/A | BE166: N/A | BF166: N/A | BG166: N/A | BH166: N/A | BI166: N/A | BJ166: N/A | BK166: N/A | BL166: N/A | BM166: N/A | BN166: N/A | BO166: N/A | BP166: N/A | BQ166: N/A | BR166: N/A | BS166: N/A | BT166: N/A | BU166: N/A | BV166: N/A | BW166: N/A | BX166: N/A | BY166: N/A | BZ166: N/A | CA166: N/A | CB166: N/A | CC166: N/A | CD166: N/A | CE166: N/A | CF166: N/A | CG166: N/A | CH166: N/A | CI166: N/A | CJ166: N/A | CK166: N/A | CL166: N/A | CO166: 1961-07-01 | CP166: 1.25212 | CW166: 1968-07-01 | CX166: 8.681774026 | CY166: 5.285234899 | DC166: 5.285234899 | DI166: 1954Q3 | DJ166: 1954 | DK166: Q3 | DL166: 9 | DM166: 1954-09-30 | DN166: 38.425948 | DO166: 4.861630953
A167: Kennedy | B167: Macmillan | C167: Holyoake | G167: 1.1356 | H167: 3.180639585 | I167: 3.267411685 | J167: World Pop 3.1b Cuban Missile Crisis (Aug-Nov) | K167: 1962-08-24 | L167: N/A | M167: N/A | N167: N/A | O167: 3.12 | P167: N/A | Q167: 3.39 | R167: 3.66 | S167: N/A | T167: 3.95 | U167: 4.01 | V167: N/A | W167: N/A | X167: N/A | Y167: N/A | Z167: N/A | AA167: N/A | AB167: N/A | AC167: N/A | AD167: N/A | AE167: N/A | AF167: N/A | AG167: N/A | AH167: N/A | AI167: N/A | AJ167: N/A | AK167: N/A | AL167: N/A | AM167: N/A | AN167: N/A | AO167: N/A | AP167: N/A | AQ167: N/A | AR167: N/A | AS167: N/A | AT167: N/A | AU167: N/A | AV167: N/A | AW167: N/A | AX167: N/A | AY167: N/A | AZ167: N/A | BA167: N/A | BB167: N/A | BC167: N/A | BD167: N/A | BE167: N/A | BF167: N/A | BG167: N/A | BH167: N/A | BI167: N/A | BJ167: N/A | BK167: N/A | BL167: N/A | BM167: N/A | BN167: N/A | BO167: N/A | BP167: N/A | BQ167: N/A | BR167: N/A | BS167: N/A | BT167: N/A | BU167: N/A | BV167: N/A | BW167: N/A | BX167: N/A | BY167: N/A | BZ167: N/A | CA167: N/A | CB167: N/A | CC167: N/A | CD167: N/A | CE167: N/A | CF167: N/A | CG167: N/A | CH167: N/A | CI167: N/A | CJ167: N/A | CK167: N/A | CL167: N/A | CO167: 1961-08-01 | CP167: 1.11449 | CW167: 1968-08-01 | CX167: 8.695609523 | CY167: 5.719091674 | DC167: 5.719091674 | DI167: 1954Q4 | DJ167: 1954 | DK167: Q4 | DL167: 12 | DM167: 1954-12-31 | DN167: 38.343724 | DO167: 2.415811508
A168: Kennedy | B168: Macmillan | C168: Holyoake | G168: 1.1356 | H168: 3.180639585 | I168: 3.267411685 | J168: World Pop 3.1b Cuban Missile Crisis (Aug-Nov) | K168: 1962-08-27 | L168: N/A | M168: N/A | N168: N/A | O168: 3.11 | P168: N/A | Q168: 3.39 | R168: 3.67 | S168: N/A | T168: 3.95 | U168: 4.01 | V168: N/A | W168: N/A | X168: N/A | Y168: N/A | Z168: N/A | AA168: N/A | AB168: N/A | AC168: N/A | AD168: N/A | AE168: N/A | AF168: N/A | AG168: N/A | AH168: N/A | AI168: N/A | AJ168: N/A | AK168: N/A | AL168: N/A | AM168: N/A | AN168: N/A | AO168: N/A | AP168: N/A | AQ168: N/A | AR168: N/A | AS168: N/A | AT168: N/A | AU168: N/A | AV168: N/A | AW168: N/A | AX168: N/A | AY168: N/A | AZ168: N/A | BA168: N/A | BB168: N/A | BC168: N/A | BD168: N/A | BE168: N/A | BF168: N/A | BG168: N/A | BH168: N/A | BI168: N/A | BJ168: N/A | BK168: N/A | BL168: N/A | BM168: N/A | BN168: N/A | BO168: N/A | BP168: N/A | BQ168: N/A | BR168: N/A | BS168: N/A | BT168: N/A | BU168: N/A | BV168: N/A | BW168: N/A | BX168: N/A | BY168: N/A | BZ168: N/A | CA168: N/A | CB168: N/A | CC168: N/A | CD168: N/A | CE168: N/A | CF168: N/A | CG168: N/A | CH168: N/A | CI168: N/A | CJ168: N/A | CK168: N/A | CL168: N/A | CO168: 1961-09-01 | CP168: 1.24958 | CW168: 1968-09-01 | CX168: 8.702527271 | CY168: 5.892255892 | DC168: 5.892255892 | DI168: 1955Q1 | DJ168: 1955 | DK168: Q1 | DL168: 3 | DM168: 1955-03-31 | DN168: 38.864476 | DO168: 2.977487199
A169: Kennedy | B169: Macmillan | C169: Holyoake | G169: 1.1356 | H169: 3.180639585 | I169: 3.267411685 | J169: World Pop 3.1b Cuban Missile Crisis (Aug-Nov) | K169: 1962-08-28 | L169: N/A | M169: N/A | N169: N/A | O169: 3.1 | P169: N/A | Q169: 3.4 | R169: 3.67 | S169: N/A | T169: 3.96 | U169: 4.01 | V169: N/A | W169: N/A | X169: N/A | Y169: N/A | Z169: N/A | AA169: N/A | AB169: N/A | AC169: N/A | AD169: N/A | AE169: N/A | AF169: N/A | AG169: N/A | AH169: N/A | AI169: N/A | AJ169: N/A | AK169: N/A | AL169: N/A | AM169: N/A | AN169: N/A | AO169: N/A | AP169: N/A | AQ169: N/A | AR169: N/A | AS169: N/A | AT169: N/A | AU169: N/A | AV169: N/A | AW169: N/A | AX169: N/A | AY169: N/A | AZ169: N/A | BA169: N/A | BB169: N/A | BC169: N/A | BD169: N/A | BE169: N/A | BF169: N/A | BG169: N/A | BH169: N/A | BI169: N/A | BJ169: N/A | BK169: N/A | BL169: N/A | BM169: N/A | BN169: N/A | BO169: N/A | BP169: N/A | BQ169: N/A | BR169: N/A | BS169: N/A | BT169: N/A | BU169: N/A | BV169: N/A | BW169: N/A | BX169: N/A | BY169: N/A | BZ169: N/A | CA169: N/A | CB169: N/A | CC169: N/A | CD169: N/A | CE169: N/A | CF169: N/A | CG169: N/A | CH169: N/A | CI169: N/A | CJ169: N/A | CK169: N/A | CL169: N/A | CO169: 1961-10-01 | CP169: 0.77311 | CW169: 1968-10-01 | CX169: 8.74403376 | CY169: 5.59732665 | DC169: 5.59732665 | DI169: 1955Q2 | DJ169: 1955 | DK169: Q2 | DL169: 6 | DM169: 1955-06-30 | DN169: 39.248187 | DO169: 2.28571573
A170: Kennedy | B170: Macmillan | C170: Holyoake | G170: 1.1356 | H170: 3.180639585 | I170: 3.267411685 | J170: World Pop 3.1b Cuban Missile Crisis (Aug-Nov) | K170: 1962-08-29 | L170: N/A | M170: N/A | N170: N/A | O170: 3.1 | P170: N/A | Q170: 3.39 | R170: 3.67 | S170: N/A | T170: 3.96 | U170: 4.01 | V170: N/A | W170: N/A | X170: N/A | Y170: N/A | Z170: N/A | AA170: N/A | AB170: N/A | AC170: N/A | AD170: N/A | AE170: N/A | AF170: N/A | AG170: N/A | AH170: N/A | AI170: N/A | AJ170: N/A | AK170: N/A | AL170: N/A | AM170: N/A | AN170: N/A | AO170: N/A | AP170: N/A | AQ170: N/A | AR170: N/A | AS170: N/A | AT170: N/A | AU170: N/A | AV170: N/A | AW170: N/A | AX170: N/A | AY170: N/A | AZ170: N/A | BA170: N/A | BB170: N/A | BC170: N/A | BD170: N/A | BE170: N/A | BF170: N/A | BG170: N/A | BH170: N/A | BI170: N/A | BJ170: N/A | BK170: N/A | BL170: N/A | BM170: N/A | BN170: N/A | BO170: N/A | BP170: N/A | BQ170: N/A | BR170: N/A | BS170: N/A | BT170: N/A | BU170: N/A | BV170: N/A | BW170: N/A | BX170: N/A | BY170: N/A | BZ170: N/A | CA170: N/A | CB170: N/A | CC170: N/A | CD170: N/A | CE170: N/A | CF170: N/A | CG170: N/A | CH170: N/A | CI170: N/A | CJ170: N/A | CK170: N/A | CL170: N/A | CO170: 1961-11-01 | CP170: 0.67159 | CW170: 1968-11-01 | CX170: 8.764787005 | CY170: 5.23255814 | DC170: 5.23255814 | DI170: 1955Q3 | DJ170: 1955 | DK170: Q3 | DL170: 9 | DM170: 1955-09-30 | DN170: 39.303002 | DO170: 2.282452472
A171: Kennedy | B171: Macmillan | C171: Holyoake | G171: 1.1356 | H171: 3.180639585 | I171: 3.267411685 | J171: World Pop 3.1b Cuban Missile Crisis (Aug-Nov) | K171: 1962-08-30 | L171: N/A | M171: N/A | N171: N/A | O171: 3.12 | P171: N/A | Q171: 3.4 | R171: 3.66 | S171: N/A | T171: 3.95 | U171: 4.01 | V171: N/A | W171: N/A | X171: N/A | Y171: N/A | Z171: N/A | AA171: N/A | AB171: N/A | AC171: N/A | AD171: N/A | AE171: N/A | AF171: N/A | AG171: N/A | AH171: N/A | AI171: N/A | AJ171: N/A | AK171: N/A | AL171: N/A | AM171: N/A | AN171: N/A | AO171: N/A | AP171: N/A | AQ171: N/A | AR171: N/A | AS171: N/A | AT171: N/A | AU171: N/A | AV171: N/A | AW171: N/A | AX171: N/A | AY171: N/A | AZ171: N/A | BA171: N/A | BB171: N/A | BC171: N/A | BD171: N/A | BE171: N/A | BF171: N/A | BG171: N/A | BH171: N/A | BI171: N/A | BJ171: N/A | BK171: N/A | BL171: N/A | BM171: N/A | BN171: N/A | BO171: N/A | BP171: N/A | BQ171: N/A | BR171: N/A | BS171: N/A | BT171: N/A | BU171: N/A | BV171: N/A | BW171: N/A | BX171: N/A | BY171: N/A | BZ171: N/A | CA171: N/A | CB171: N/A | CC171: N/A | CD171: N/A | CE171: N/A | CF171: N/A | CG171: N/A | CH171: N/A | CI171: N/A | CJ171: N/A | CK171: N/A | CL171: N/A | CO171: 1961-12-01 | CP171: 0.67092 | CW171: 1968-12-01 | CX171: 8.882388725 | CY171: 5.940594059 | DC171: 5.940594059 | DI171: 1955Q4 | DJ171: 1955 | DK171: Q4 | DL171: 12 | DM171: 1955-12-31 | DN171: 39.303002 | DO171: 2.501786211
A172: Kennedy | B172: Macmillan | C172: Holyoake | G172: 1.1356 | H172: 3.180639585 | I172: 3.267411685 | J172: World Pop 3.1b Cuban Missile Crisis (Aug-Nov) | K172: 1962-08-31 | L172: N/A | M172: N/A | N172: N/A | O172: 3.14 | P172: N/A | Q172: 3.42 | R172: 3.66 | S172: N/A | T172: 3.96 | U172: 4.01 | V172: N/A | W172: N/A | X172: N/A | Y172: N/A | Z172: N/A | AA172: N/A | AB172: N/A | AC172: N/A | AD172: N/A | AE172: N/A | AF172: N/A | AG172: N/A | AH172: N/A | AI172: N/A | AJ172: N/A | AK172: N/A | AL172: N/A | AM172: N/A | AN172: N/A | AO172: N/A | AP172: N/A | AQ172: N/A | AR172: N/A | AS172: N/A | AT172: N/A | AU172: N/A | AV172: N/A | AW172: N/A | AX172: N/A | AY172: N/A | AZ172: N/A | BA172: N/A | BB172: N/A | BC172: N/A | BD172: N/A | BE172: N/A | BF172: N/A | BG172: N/A | BH172: N/A | BI172: N/A | BJ172: N/A | BK172: N/A | BL172: N/A | BM172: N/A | BN172: N/A | BO172: N/A | BP172: N/A | BQ172: N/A | BR172: N/A | BS172: N/A | BT172: N/A | BU172: N/A | BV172: N/A | BW172: N/A | BX172: N/A | BY172: N/A | BZ172: N/A | CA172: N/A | CB172: N/A | CC172: N/A | CD172: N/A | CE172: N/A | CF172: N/A | CG172: N/A | CH172: N/A | CI172: N/A | CJ172: N/A | CK172: N/A | CL172: N/A | CO172: 1962-01-01 | CP172: 0.67024 | CW172: 1969-01-01 | CX172: 8.930812962 | CY172: 6.167763158 | DC172: 6.167763158 | DI172: 1956Q1 | DJ172: 1956 | DK172: Q1 | DL172: 3 | DM172: 1956-03-31 | DN172: 39.702884 | DO172: 2.157260528
A173: Kennedy | B173: Macmillan | C173: Holyoake | G173: 1.46765 | H173: 3.257575758 | I173: 3.267411685 | J173: World Pop 3.1b Cuban Missile Crisis (Aug-Nov) | K173: 1962-09-04 | L173: N/A | M173: N/A | N173: N/A | O173: 3.15 | P173: N/A | Q173: 3.43 | R173: 3.67 | S173: N/A | T173: 3.96 | U173: 4.01 | V173: N/A | W173: N/A | X173: N/A | Y173: N/A | Z173: N/A | AA173: N/A | AB173: N/A | AC173: N/A | AD173: N/A | AE173: N/A | AF173: N/A | AG173: N/A | AH173: N/A | AI173: N/A | AJ173: N/A | AK173: N/A | AL173: N/A | AM173: N/A | AN173: N/A | AO173: N/A | AP173: N/A | AQ173: N/A | AR173: N/A | AS173: N/A | AT173: N/A | AU173: N/A | AV173: N/A | AW173: N/A | AX173: N/A | AY173: N/A | AZ173: N/A | BA173: N/A | BB173: N/A | BC173: N/A | BD173: N/A | BE173: N/A | BF173: N/A | BG173: N/A | BH173: N/A | BI173: N/A | BJ173: N/A | BK173: N/A | BL173: N/A | BM173: N/A | BN173: N/A | BO173: N/A | BP173: N/A | BQ173: N/A | BR173: N/A | BS173: N/A | BT173: N/A | BU173: N/A | BV173: N/A | BW173: N/A | BX173: N/A | BY173: N/A | BZ173: N/A | CA173: N/A | CB173: N/A | CC173: N/A | CD173: N/A | CE173: N/A | CF173: N/A | CG173: N/A | CH173: N/A | CI173: N/A | CJ173: N/A | CK173: N/A | CL173: N/A | CO173: 1962-02-01 | CP173: 0.90483 | CW173: 1969-02-01 | CX173: 8.9792372 | CY173: 6.219312602 | DC173: 6.219312602 | DI173: 1956Q2 | DJ173: 1956 | DK173: Q2 | DL173: 6 | DM173: 1956-06-30 | DN173: 40.251591 | DO173: 2.556561402
A174: Kennedy | B174: Macmillan | C174: Holyoake | G174: 1.46765 | H174: 3.257575758 | I174: 3.267411685 | J174: World Pop 3.1b Cuban Missile Crisis (Aug-Nov) | K174: 1962-09-05 | L174: N/A | M174: N/A | N174: N/A | O174: 3.16 | P174: N/A | Q174: 3.44 | R174: 3.68 | S174: N/A | T174: 3.97 | U174: 4.01 | V174: N/A | W174: N/A | X174: N/A | Y174: N/A | Z174: N/A | AA174: N/A | AB174: N/A | AC174: N/A | AD174: N/A | AE174: N/A | AF174: N/A | AG174: N/A | AH174: N/A | AI174: N/A | AJ174: N/A | AK174: N/A | AL174: N/A | AM174: N/A | AN174: N/A | AO174: N/A | AP174: N/A | AQ174: N/A | AR174: N/A | AS174: N/A | AT174: N/A | AU174: N/A | AV174: N/A | AW174: N/A | AX174: N/A | AY174: N/A | AZ174: N/A | BA174: N/A | BB174: N/A | BC174: N/A | BD174: N/A | BE174: N/A | BF174: N/A | BG174: N/A | BH174: N/A | BI174: N/A | BJ174: N/A | BK174: N/A | BL174: N/A | BM174: N/A | BN174: N/A | BO174: N/A | BP174: N/A | BQ174: N/A | BR174: N/A | BS174: N/A | BT174: N/A | BU174: N/A | BV174: N/A | BW174: N/A | BX174: N/A | BY174: N/A | BZ174: N/A | CA174: N/A | CB174: N/A | CC174: N/A | CD174: N/A | CE174: N/A | CF174: N/A | CG174: N/A | CH174: N/A | CI174: N/A | CJ174: N/A | CK174: N/A | CL174: N/A | CO174: 1962-03-01 | CP174: 1.1059 | CW174: 1969-03-01 | CX174: 9.013825941 | CY174: 6.280587276 | DC174: 6.280587276 | DI174: 1956Q3 | DJ174: 1956 | DK174: Q3 | DL174: 9 | DM174: 1956-09-30 | DN174: 41.113846 | DO174: 4.607393603
A175: Kennedy | B175: Macmillan | C175: Holyoake | G175: 1.46765 | H175: 3.257575758 | I175: 3.267411685 | J175: World Pop 3.1b Cuban Missile Crisis (Aug-Nov) | K175: 1962-09-06 | L175: N/A | M175: N/A | N175: N/A | O175: 3.09 | P175: N/A | Q175: 3.44 | R175: 3.72 | S175: N/A | T175: 3.99 | U175: 4.01 | V175: N/A | W175: N/A | X175: N/A | Y175: N/A | Z175: N/A | AA175: N/A | AB175: N/A | AC175: N/A | AD175: N/A | AE175: N/A | AF175: N/A | AG175: N/A | AH175: N/A | AI175: N/A | AJ175: N/A | AK175: N/A | AL175: N/A | AM175: N/A | AN175: N/A | AO175: N/A | AP175: N/A | AQ175: N/A | AR175: N/A | AS175: N/A | AT175: N/A | AU175: N/A | AV175: N/A | AW175: N/A | AX175: N/A | AY175: N/A | AZ175: N/A | BA175: N/A | BB175: N/A | BC175: N/A | BD175: N/A | BE175: N/A | BF175: N/A | BG175: N/A | BH175: N/A | BI175: N/A | BJ175: N/A | BK175: N/A | BL175: N/A | BM175: N/A | BN175: N/A | BO175: N/A | BP175: N/A | BQ175: N/A | BR175: N/A | BS175: N/A | BT175: N/A | BU175: N/A | BV175: N/A | BW175: N/A | BX175: N/A | BY175: N/A | BZ175: N/A | CA175: N/A | CB175: N/A | CC175: N/A | CD175: N/A | CE175: N/A | CF175: N/A | CG175: N/A | CH175: N/A | CI175: N/A | CJ175: N/A | CK175: N/A | CL175: N/A | CO175: 1962-04-01 | CP175: 1.34183 | CW175: 1969-04-01 | CX175: 9.110674416 | CY175: 5.528846154 | DC175: 5.528846154 | DI175: 1956Q4 | DJ175: 1956 | DK175: Q4 | DL175: 12 | DM175: 1956-12-31 | DN175: 41.113846 | DO175: 4.607393603
A176: Kennedy | B176: Macmillan | C176: Holyoake | G176: 1.46765 | H176: 3.257575758 | I176: 3.267411685 | J176: World Pop 3.1b Cuban Missile Crisis (Aug-Nov) | K176: 1962-09-07 | L176: N/A | M176: N/A | N176: N/A | O176: 3.1 | P176: N/A | Q176: 3.44 | R176: 3.74 | S176: N/A | T176: 4.01 | U176: 4.01 | V176: N/A | W176: N/A | X176: N/A | Y176: N/A | Z176: N/A | AA176: N/A | AB176: N/A | AC176: N/A | AD176: N/A | AE176: N/A | AF176: N/A | AG176: N/A | AH176: N/A | AI176: N/A | AJ176: N/A | AK176: N/A | AL176: N/A | AM176: N/A | AN176: N/A | AO176: N/A | AP176: N/A | AQ176: N/A | AR176: N/A | AS176: N/A | AT176: N/A | AU176: N/A | AV176: N/A | AW176: N/A | AX176: N/A | AY176: N/A | AZ176: N/A | BA176: N/A | BB176: N/A | BC176: N/A | BD176: N/A | BE176: N/A | BF176: N/A | BG176: N/A | BH176: N/A | BI176: N/A | BJ176: N/A | BK176: N/A | BL176: N/A | BM176: N/A | BN176: N/A | BO176: N/A | BP176: N/A | BQ176: N/A | BR176: N/A | BS176: N/A | BT176: N/A | BU176: N/A | BV176: N/A | BW176: N/A | BX176: N/A | BY176: N/A | BZ176: N/A | CA176: N/A | CB176: N/A | CC176: N/A | CD176: N/A | CE176: N/A | CF176: N/A | CG176: N/A | CH176: N/A | CI176: N/A | CJ176: N/A | CK176: N/A | CL176: N/A | CO176: 1962-05-01 | CP176: 1.34048 | CW176: 1969-05-01 | CX176: 9.09683892 | CY176: 5.284227382 | DC176: 5.284227382 | DI176: 1957Q1 | DJ176: 1957 | DK176: Q1 | DL176: 3 | DM176: 1957-03-31 | DN176: 40.800299 | DO176: 2.764068726
A177: Kennedy | B177: Macmillan | C177: Holyoake | G177: 1.46765 | H177: 3.257575758 | I177: 3.267411685 | J177: World Pop 3.1b Cuban Missile Crisis (Aug-Nov) | K177: 1962-09-10 | L177: N/A | M177: N/A | N177: N/A | O177: 3.08 | P177: N/A | Q177: 3.43 | R177: 3.72 | S177: N/A | T177: 4 | U177: 4.01 | V177: N/A | W177: N/A | X177: N/A | Y177: N/A | Z177: N/A | AA177: N/A | AB177: N/A | AC177: N/A | AD177: N/A | AE177: N/A | AF177: N/A | AG177: N/A | AH177: N/A | AI177: N/A | AJ177: N/A | AK177: N/A | AL177: N/A | AM177: N/A | AN177: N/A | AO177: N/A | AP177: N/A | AQ177: N/A | AR177: N/A | AS177: N/A | AT177: N/A | AU177: N/A | AV177: N/A | AW177: N/A | AX177: N/A | AY177: N/A | AZ177: N/A | BA177: N/A | BB177: N/A | BC177: N/A | BD177: N/A | BE177: N/A | BF177: N/A | BG177: N/A | BH177: N/A | BI177: N/A | BJ177: N/A | BK177: N/A | BL177: N/A | BM177: N/A | BN177: N/A | BO177: N/A | BP177: N/A | BQ177: N/A | BR177: N/A | BS177: N/A | BT177: N/A | BU177: N/A | BV177: N/A | BW177: N/A | BX177: N/A | BY177: N/A | BZ177: N/A | CA177: N/A | CB177: N/A | CC177: N/A | CD177: N/A | CE177: N/A | CF177: N/A | CG177: N/A | CH177: N/A | CI177: N/A | CJ177: N/A | CK177: N/A | CL177: N/A | CO177: 1962-06-01 | CP177: 1.23995 | CW177: 1969-06-01 | CX177: 9.138345409 | CY177: 5.342902711 | DC177: 5.342902711 | DI177: 1957Q2 | DJ177: 1957 | DK177: Q2 | DL177: 6 | DM177: 1957-06-30 | DN177: 41.3882 | DO177: 2.823761674
A178: Kennedy | B178: Macmillan | C178: Holyoake | G178: 1.46765 | H178: 3.257575758 | I178: 3.267411685 | J178: World Pop 3.1b Cuban Missile Crisis (Aug-Nov) | K178: 1962-09-11 | L178: N/A | M178: N/A | N178: N/A | O178: 3.07 | P178: N/A | Q178: 3.42 | R178: 3.72 | S178: N/A | T178: 4 | U178: 4.01 | V178: N/A | W178: N/A | X178: N/A | Y178: N/A | Z178: N/A | AA178: N/A | AB178: N/A | AC178: N/A | AD178: N/A | AE178: N/A | AF178: N/A | AG178: N/A | AH178: N/A | AI178: N/A | AJ178: N/A | AK178: N/A | AL178: N/A | AM178: N/A | AN178: N/A | AO178: N/A | AP178: N/A | AQ178: N/A | AR178: N/A | AS178: N/A | AT178: N/A | AU178: N/A | AV178: N/A | AW178: N/A | AX178: N/A | AY178: N/A | AZ178: N/A | BA178: N/A | BB178: N/A | BC178: N/A | BD178: N/A | BE178: N/A | BF178: N/A | BG178: N/A | BH178: N/A | BI178: N/A | BJ178: N/A | BK178: N/A | BL178: N/A | BM178: N/A | BN178: N/A | BO178: N/A | BP178: N/A | BQ178: N/A | BR178: N/A | BS178: N/A | BT178: N/A | BU178: N/A | BV178: N/A | BW178: N/A | BX178: N/A | BY178: N/A | BZ178: N/A | CA178: N/A | CB178: N/A | CC178: N/A | CD178: N/A | CE178: N/A | CF178: N/A | CG178: N/A | CH178: N/A | CI178: N/A | CJ178: N/A | CK178: N/A | CL178: N/A | CO178: 1962-07-01 | CP178: 1.00267 | CW178: 1969-07-01 | CX178: 9.138345409 | CY178: 5.258964143 | DC178: 5.258964143 | DI178: 1957Q3 | DJ178: 1957 | DK178: Q3 | DL178: 9 | DM178: 1957-09-30 | DN178: 41.662553 | DO178: 1.334603919
A179: Kennedy | B179: Macmillan | C179: Holyoake | G179: 1.46765 | H179: 3.257575758 | I179: 3.267411685 | J179: World Pop 3.1b Cuban Missile Crisis (Aug-Nov) | K179: 1962-09-12 | L179: N/A | M179: N/A | N179: N/A | O179: 3.05 | P179: N/A | Q179: 3.42 | R179: 3.72 | S179: N/A | T179: 4 | U179: 4.01 | V179: N/A | W179: N/A | X179: N/A | Y179: N/A | Z179: N/A | AA179: N/A | AB179: N/A | AC179: N/A | AD179: N/A | AE179: N/A | AF179: N/A | AG179: N/A | AH179: N/A | AI179: N/A | AJ179: N/A | AK179: N/A | AL179: N/A | AM179: N/A | AN179: N/A | AO179: N/A | AP179: N/A | AQ179: N/A | AR179: N/A | AS179: N/A | AT179: N/A | AU179: N/A | AV179: N/A | AW179: N/A | AX179: N/A | AY179: N/A | AZ179: N/A | BA179: N/A | BB179: N/A | BC179: N/A | BD179: N/A | BE179: N/A | BF179: N/A | BG179: N/A | BH179: N/A | BI179: N/A | BJ179: N/A | BK179: N/A | BL179: N/A | BM179: N/A | BN179: N/A | BO179: N/A | BP179: N/A | BQ179: N/A | BR179: N/A | BS179: N/A | BT179: N/A | BU179: N/A | BV179: N/A | BW179: N/A | BX179: N/A | BY179: N/A | BZ179: N/A | CA179: N/A | CB179: N/A | CC179: N/A | CD179: N/A | CE179: N/A | CF179: N/A | CG179: N/A | CH179: N/A | CI179: N/A | CJ179: N/A | CK179: N/A | CL179: N/A | CO179: 1962-08-01 | CP179: 1.1356 | CW179: 1969-08-01 | CX179: 9.117592165 | CY179: 4.852824185 | DC179: 4.852824185 | DI179: 1957Q4 | DJ179: 1957 | DK179: Q4 | DL179: 12 | DM179: 1957-12-31 | DN179: 41.85852 | DO179: 1.811248697
A180: Kennedy | B180: Macmillan | C180: Holyoake | G180: 1.46765 | H180: 3.257575758 | I180: 3.267411685 | J180: World Pop 3.1b Cuban Missile Crisis (Aug-Nov) | K180: 1962-09-13 | L180: N/A | M180: N/A | N180: N/A | O180: 3.06 | P180: N/A | Q180: 3.41 | R180: 3.72 | S180: N/A | T180: 3.99 | U180: 4.01 | V180: N/A | W180: N/A | X180: N/A | Y180: N/A | Z180: N/A | AA180: N/A | AB180: N/A | AC180: N/A | AD180: N/A | AE180: N/A | AF180: N/A | AG180: N/A | AH180: N/A | AI180: N/A | AJ180: N/A | AK180: N/A | AL180: N/A | AM180: N/A | AN180: N/A | AO180: N/A | AP180: N/A | AQ180: N/A | AR180: N/A | AS180: N/A | AT180: N/A | AU180: N/A | AV180: N/A | AW180: N/A | AX180: N/A | AY180: N/A | AZ180: N/A | BA180: N/A | BB180: N/A | BC180: N/A | BD180: N/A | BE180: N/A | BF180: N/A | BG180: N/A | BH180: N/A | BI180: N/A | BJ180: N/A | BK180: N/A | BL180: N/A | BM180: N/A | BN180: N/A | BO180: N/A | BP180: N/A | BQ180: N/A | BR180: N/A | BS180: N/A | BT180: N/A | BU180: N/A | BV180: N/A | BW180: N/A | BX180: N/A | BY180: N/A | BZ180: N/A | CA180: N/A | CB180: N/A | CC180: N/A | CD180: N/A | CE180: N/A | CF180: N/A | CG180: N/A | CH180: N/A | CI180: N/A | CJ180: N/A | CK180: N/A | CL180: N/A | CO180: 1962-09-01 | CP180: 1.46765 | CW180: 1969-09-01 | CX180: 9.145263157 | CY180: 5.087440382 | DC180: 5.087440382 | DI180: 1958Q1 | DJ180: 1958 | DK180: Q1 | DL180: 3 | DM180: 1958-03-31 | DN180: 41.897714 | DO180: 2.689722936
A181: Kennedy | B181: Macmillan | C181: Holyoake | G181: 1.46765 | H181: 3.257575758 | I181: 3.267411685 | J181: World Pop 3.1b Cuban Missile Crisis (Aug-Nov) | K181: 1962-09-14 | L181: N/A | M181: N/A | N181: N/A | O181: 3.06 | P181: N/A | Q181: 3.42 | R181: 3.72 | S181: N/A | T181: 3.99 | U181: 4.01 | V181: N/A | W181: N/A | X181: N/A | Y181: N/A | Z181: N/A | AA181: N/A | AB181: N/A | AC181: N/A | AD181: N/A | AE181: N/A | AF181: N/A | AG181: N/A | AH181: N/A | AI181: N/A | AJ181: N/A | AK181: N/A | AL181: N/A | AM181: N/A | AN181: N/A | AO181: N/A | AP181: N/A | AQ181: N/A | AR181: N/A | AS181: N/A | AT181: N/A | AU181: N/A | AV181: N/A | AW181: N/A | AX181: N/A | AY181: N/A | AZ181: N/A | BA181: N/A | BB181: N/A | BC181: N/A | BD181: N/A | BE181: N/A | BF181: N/A | BG181: N/A | BH181: N/A | BI181: N/A | BJ181: N/A | BK181: N/A | BL181: N/A | BM181: N/A | BN181: N/A | BO181: N/A | BP181: N/A | BQ181: N/A | BR181: N/A | BS181: N/A | BT181: N/A | BU181: N/A | BV181: N/A | BW181: N/A | BX181: N/A | BY181: N/A | BZ181: N/A | CA181: N/A | CB181: N/A | CC181: N/A | CD181: N/A | CE181: N/A | CF181: N/A | CG181: N/A | CH181: N/A | CI181: N/A | CJ181: N/A | CK181: N/A | CL181: N/A | CO181: 1962-10-01 | CP181: 1.33422 | CW181: 1969-10-01 | CX181: 9.21444064 | CY181: 5.379746835 | DC181: 5.379746835 | DI181: 1958Q2 | DJ181: 1958 | DK181: Q2 | DL181: 6 | DM181: 1958-06-30 | DN181: 42.32884 | DO181: 2.272725076
A182: Kennedy | B182: Macmillan | C182: Holyoake | G182: 1.46765 | H182: 3.257575758 | I182: 3.267411685 | J182: World Pop 3.1b Cuban Missile Crisis (Aug-Nov) | K182: 1962-09-17 | L182: N/A | M182: N/A | N182: N/A | O182: 3.03 | P182: N/A | Q182: 3.41 | R182: 3.71 | S182: N/A | T182: 3.99 | U182: 4 | V182: N/A | W182: N/A | X182: N/A | Y182: N/A | Z182: N/A | AA182: N/A | AB182: N/A | AC182: N/A | AD182: N/A | AE182: N/A | AF182: N/A | AG182: N/A | AH182: N/A | AI182: N/A | AJ182: N/A | AK182: N/A | AL182: N/A | AM182: N/A | AN182: N/A | AO182: N/A | AP182: N/A | AQ182: N/A | AR182: N/A | AS182: N/A | AT182: N/A | AU182: N/A | AV182: N/A | AW182: N/A | AX182: N/A | AY182: N/A | AZ182: N/A | BA182: N/A | BB182: N/A | BC182: N/A | BD182: N/A | BE182: N/A | BF182: N/A | BG182: N/A | BH182: N/A | BI182: N/A | BJ182: N/A | BK182: N/A | BL182: N/A | BM182: N/A | BN182: N/A | BO182: N/A | BP182: N/A | BQ182: N/A | BR182: N/A | BS182: N/A | BT182: N/A | BU182: N/A | BV182: N/A | BW182: N/A | BX182: N/A | BY182: N/A | BZ182: N/A | CA182: N/A | CB182: N/A | CC182: N/A | CD182: N/A | CE182: N/A | CF182: N/A | CG182: N/A | CH182: N/A | CI182: N/A | CJ182: N/A | CK182: N/A | CL182: N/A | CO182: 1962-11-01 | CP182: 1.33422 | CW182: 1969-11-01 | CX182: 9.235193884 | CY182: 5.367008682 | DC182: 5.367008682 | DI182: 1958Q3 | DJ182: 1958 | DK182: Q3 | DL182: 9 | DM182: 1958-09-30 | DN182: 44.288509 | DO182: 6.302916674
A183: Kennedy | B183: Macmillan | C183: Holyoake | G183: 1.46765 | H183: 3.257575758 | I183: 3.267411685 | J183: World Pop 3.1b Cuban Missile Crisis (Aug-Nov) | K183: 1962-09-18 | L183: N/A | M183: N/A | N183: N/A | O183: 3.05 | P183: N/A | Q183: 3.41 | R183: 3.71 | S183: N/A | T183: 3.98 | U183: 4 | V183: N/A | W183: N/A | X183: N/A | Y183: N/A | Z183: N/A | AA183: N/A | AB183: N/A | AC183: N/A | AD183: N/A | AE183: N/A | AF183: N/A | AG183: N/A | AH183: N/A | AI183: N/A | AJ183: N/A | AK183: N/A | AL183: N/A | AM183: N/A | AN183: N/A | AO183: N/A | AP183: N/A | AQ183: N/A | AR183: N/A | AS183: N/A | AT183: N/A | AU183: N/A | AV183: N/A | AW183: N/A | AX183: N/A | AY183: N/A | AZ183: N/A | BA183: N/A | BB183: N/A | BC183: N/A | BD183: N/A | BE183: N/A | BF183: N/A | BG183: N/A | BH183: N/A | BI183: N/A | BJ183: N/A | BK183: N/A | BL183: N/A | BM183: N/A | BN183: N/A | BO183: N/A | BP183: N/A | BQ183: N/A | BR183: N/A | BS183: N/A | BT183: N/A | BU183: N/A | BV183: N/A | BW183: N/A | BX183: N/A | BY183: N/A | BZ183: N/A | CA183: N/A | CB183: N/A | CC183: N/A | CD183: N/A | CE183: N/A | CF183: N/A | CG183: N/A | CH183: N/A | CI183: N/A | CJ183: N/A | CK183: N/A | CL183: N/A | CO183: 1962-12-01 | CP183: 1.23292 | CW183: 1969-12-01 | CX183: 9.297453618 | CY183: 4.672897196 | DC183: 4.672897196 | DI183: 1958Q4 | DJ183: 1958 | DK183: Q4 | DL183: 12 | DM183: 1958-12-31 | DN183: 44.562862 | DO183: 6.460672761
A184: Kennedy | B184: Macmillan | C184: Holyoake | G184: 1.46765 | H184: 3.257575758 | I184: 3.267411685 | J184: World Pop 3.1b Cuban Missile Crisis (Aug-Nov) | K184: 1962-09-19 | L184: N/A | M184: N/A | N184: N/A | O184: 3.04 | P184: N/A | Q184: 3.41 | R184: 3.71 | S184: N/A | T184: 3.99 | U184: 4 | V184: N/A | W184: N/A | X184: N/A | Y184: N/A | Z184: N/A | AA184: N/A | AB184: N/A | AC184: N/A | AD184: N/A | AE184: N/A | AF184: N/A | AG184: N/A | AH184: N/A | AI184: N/A | AJ184: N/A | AK184: N/A | AL184: N/A | AM184: N/A | AN184: N/A | AO184: N/A | AP184: N/A | AQ184: N/A | AR184: N/A | AS184: N/A | AT184: N/A | AU184: N/A | AV184: N/A | AW184: N/A | AX184: N/A | AY184: N/A | AZ184: N/A | BA184: N/A | BB184: N/A | BC184: N/A | BD184: N/A | BE184: N/A | BF184: N/A | BG184: N/A | BH184: N/A | BI184: N/A | BJ184: N/A | BK184: N/A | BL184: N/A | BM184: N/A | BN184: N/A | BO184: N/A | BP184: N/A | BQ184: N/A | BR184: N/A | BS184: N/A | BT184: N/A | BU184: N/A | BV184: N/A | BW184: N/A | BX184: N/A | BY184: N/A | BZ184: N/A | CA184: N/A | CB184: N/A | CC184: N/A | CD184: N/A | CE184: N/A | CF184: N/A | CG184: N/A | CH184: N/A | CI184: N/A | CJ184: N/A | CK184: N/A | CL184: N/A | CO184: 1963-01-01 | CP184: 1.33156 | CW184: 1970-01-01 | CX184: 9.373548849 | CY184: 4.957397366 | DC184: 4.957397366 | DI184: 1959Q1 | DJ184: 1959 | DK184: Q1 | DL184: 3 | DM184: 1959-03-31 | DN184: 44.64125 | DO184: 6.548175874
A185: Kennedy | B185: Macmillan | C185: Holyoake | G185: 1.46765 | H185: 3.257575758 | I185: 3.267411685 | J185: World Pop 3.1b Cuban Missile Crisis (Aug-Nov) | K185: 1962-09-20 | L185: N/A | M185: N/A | N185: N/A | O185: 3.03 | P185: N/A | Q185: 3.41 | R185: 3.71 | S185: N/A | T185: 3.98 | U185: 4 | V185: N/A | W185: N/A | X185: N/A | Y185: N/A | Z185: N/A | AA185: N/A | AB185: N/A | AC185: N/A | AD185: N/A | AE185: N/A | AF185: N/A | AG185: N/A | AH185: N/A | AI185: N/A | AJ185: N/A | AK185: N/A | AL185: N/A | AM185: N/A | AN185: N/A | AO185: N/A | AP185: N/A | AQ185: N/A | AR185: N/A | AS185: N/A | AT185: N/A | AU185: N/A | AV185: N/A | AW185: N/A | AX185: N/A | AY185: N/A | AZ185: N/A | BA185: N/A | BB185: N/A | BC185: N/A | BD185: N/A | BE185: N/A | BF185: N/A | BG185: N/A | BH185: N/A | BI185: N/A | BJ185: N/A | BK185: N/A | BL185: N/A | BM185: N/A | BN185: N/A | BO185: N/A | BP185: N/A | BQ185: N/A | BR185: N/A | BS185: N/A | BT185: N/A | BU185: N/A | BV185: N/A | BW185: N/A | BX185: N/A | BY185: N/A | BZ185: N/A | CA185: N/A | CB185: N/A | CC185: N/A | CD185: N/A | CE185: N/A | CF185: N/A | CG185: N/A | CH185: N/A | CI185: N/A | CJ185: N/A | CK185: N/A | CL185: N/A | CO185: 1963-02-01 | CP185: 1.22883 | CW185: 1970-02-01 | CX185: 9.421973087 | CY185: 4.930662558 | DC185: 4.930662558 | DI185: 1959Q2 | DJ185: 1959 | DK185: Q2 | DL185: 6 | DM185: 1959-06-30 | DN185: 44.75883 | DO185: =100*(DN185/DN181-1) -> 5.740743191
A186: Kennedy | B186: Macmillan | C186: Holyoake | G186: 1.46765 | H186: 3.257575758 | I186: 3.267411685 | J186: World Pop 3.1b Cuban Missile Crisis (Aug-Nov) | K186: 1962-09-21 | L186: N/A | M186: N/A | N186: N/A | O186: 3.04 | P186: N/A | Q186: 3.41 | R186: 3.71 | S186: N/A | T186: 3.98 | U186: 4 | V186: N/A | W186: N/A | X186: N/A | Y186: N/A | Z186: N/A | AA186: N/A | AB186: N/A | AC186: N/A | AD186: N/A | AE186: N/A | AF186: N/A | AG186: N/A | AH186: N/A | AI186: N/A | AJ186: N/A | AK186: N/A | AL186: N/A | AM186: N/A | AN186: N/A | AO186: N/A | AP186: N/A | AQ186: N/A | AR186: N/A | AS186: N/A | AT186: N/A | AU186: N/A | AV186: N/A | AW186: N/A | AX186: N/A | AY186: N/A | AZ186: N/A | BA186: N/A | BB186: N/A | BC186: N/A | BD186: N/A | BE186: N/A | BF186: N/A | BG186: N/A | BH186: N/A | BI186: N/A | BJ186: N/A | BK186: N/A | BL186: N/A | BM186: N/A | BN186: N/A | BO186: N/A | BP186: N/A | BQ186: N/A | BR186: N/A | BS186: N/A | BT186: N/A | BU186: N/A | BV186: N/A | BW186: N/A | BX186: N/A | BY186: N/A | BZ186: N/A | CA186: N/A | CB186: N/A | CC186: N/A | CD186: N/A | CE186: N/A | CF186: N/A | CG186: N/A | CH186: N/A | CI186: N/A | CJ186: N/A | CK186: N/A | CL186: N/A | CO186: 1963-03-01 | CP186: 1.12695 | CW186: 1970-03-01 | CX186: 9.477315072 | CY186: 5.141980046 | DC186: 5.141980046 | DI186: 1959Q3 | DJ186: 1959 | DK186: Q3 | DL186: 9 | DM186: 1959-09-30 | DN186: 45.22915 | DO186: 2.123894033
A187: Kennedy | B187: Macmillan | C187: Holyoake | G187: 1.46765 | H187: 3.257575758 | I187: 3.267411685 | J187: World Pop 3.1b Cuban Missile Crisis (Aug-Nov) | K187: 1962-09-24 | L187: N/A | M187: N/A | N187: N/A | O187: 3.04 | P187: N/A | Q187: 3.39 | R187: 3.69 | S187: N/A | T187: 3.97 | U187: 4 | V187: N/A | W187: N/A | X187: N/A | Y187: N/A | Z187: N/A | AA187: N/A | AB187: N/A | AC187: N/A | AD187: N/A | AE187: N/A | AF187: N/A | AG187: N/A | AH187: N/A | AI187: N/A | AJ187: N/A | AK187: N/A | AL187: N/A | AM187: N/A | AN187: N/A | AO187: N/A | AP187: N/A | AQ187: N/A | AR187: N/A | AS187: N/A | AT187: N/A | AU187: N/A | AV187: N/A | AW187: N/A | AX187: N/A | AY187: N/A | AZ187: N/A | BA187: N/A | BB187: N/A | BC187: N/A | BD187: N/A | BE187: N/A | BF187: N/A | BG187: N/A | BH187: N/A | BI187: N/A | BJ187: N/A | BK187: N/A | BL187: N/A | BM187: N/A | BN187: N/A | BO187: N/A | BP187: N/A | BQ187: N/A | BR187: N/A | BS187: N/A | BT187: N/A | BU187: N/A | BV187: N/A | BW187: N/A | BX187: N/A | BY187: N/A | BZ187: N/A | CA187: N/A | CB187: N/A | CC187: N/A | CD187: N/A | CE187: N/A | CF187: N/A | CG187: N/A | CH187: N/A | CI187: N/A | CJ187: N/A | CK187: N/A | CL187: N/A | CO187: 1963-04-01 | CP187: 0.89374 | CW187: 1970-04-01 | CX187: 9.622587785 | CY187: 5.618830676 | DC187: 5.618830676 | DI187: 1959Q4 | DJ187: 1959 | DK187: Q4 | DL187: 12 | DM187: 1959-12-31 | DN187: 45.072376 | DO187: 1.143360137
A188: Kennedy | B188: Macmillan | C188: Holyoake | G188: 1.46765 | H188: 3.257575758 | I188: 3.267411685 | J188: World Pop 3.1b Cuban Missile Crisis (Aug-Nov) | K188: 1962-09-25 | L188: N/A | M188: N/A | N188: N/A | O188: 3.04 | P188: N/A | Q188: 3.37 | R188: 3.68 | S188: N/A | T188: 3.96 | U188: 4 | V188: N/A | W188: N/A | X188: N/A | Y188: N/A | Z188: N/A | AA188: N/A | AB188: N/A | AC188: N/A | AD188: N/A | AE188: N/A | AF188: N/A | AG188: N/A | AH188: N/A | AI188: N/A | AJ188: N/A | AK188: N/A | AL188: N/A | AM188: N/A | AN188: N/A | AO188: N/A | AP188: N/A | AQ188: N/A | AR188: N/A | AS188: N/A | AT188: N/A | AU188: N/A | AV188: N/A | AW188: N/A | AX188: N/A | AY188: N/A | AZ188: N/A | BA188: N/A | BB188: N/A | BC188: N/A | BD188: N/A | BE188: N/A | BF188: N/A | BG188: N/A | BH188: N/A | BI188: N/A | BJ188: N/A | BK188: N/A | BL188: N/A | BM188: N/A | BN188: N/A | BO188: N/A | BP188: N/A | BQ188: N/A | BR188: N/A | BS188: N/A | BT188: N/A | BU188: N/A | BV188: N/A | BW188: N/A | BX188: N/A | BY188: N/A | BZ188: N/A | CA188: N/A | CB188: N/A | CC188: N/A | CD188: N/A | CE188: N/A | CF188: N/A | CG188: N/A | CH188: N/A | CI188: N/A | CJ188: N/A | CK188: N/A | CL188: N/A | CO188: 1963-05-01 | CP188: 0.89286 | CW188: 1970-05-01 | CX188: 9.650258778 | CY188: 6.08365019 | DC188: 6.08365019 | DI188: 1960Q1 | DJ188: 1960 | DK188: Q1 | DL188: 3 | DM188: 1960-03-31 | DN188: 44.876409 | DO188: 0.5267751239
A189: Kennedy | B189: Macmillan | C189: Holyoake | G189: 1.46765 | H189: 3.257575758 | I189: 3.267411685 | J189: World Pop 3.1b Cuban Missile Crisis (Aug-Nov) | K189: 1962-09-26 | L189: N/A | M189: N/A | N189: N/A | O189: 3.02 | P189: N/A | Q189: 3.37 | R189: 3.67 | S189: N/A | T189: 3.95 | U189: 4 | V189: N/A | W189: N/A | X189: N/A | Y189: N/A | Z189: N/A | AA189: N/A | AB189: N/A | AC189: N/A | AD189: N/A | AE189: N/A | AF189: N/A | AG189: N/A | AH189: N/A | AI189: N/A | AJ189: N/A | AK189: N/A | AL189: N/A | AM189: N/A | AN189: N/A | AO189: N/A | AP189: N/A | AQ189: N/A | AR189: N/A | AS189: N/A | AT189: N/A | AU189: N/A | AV189: N/A | AW189: N/A | AX189: N/A | AY189: N/A | AZ189: N/A | BA189: N/A | BB189: N/A | BC189: N/A | BD189: N/A | BE189: N/A | BF189: N/A | BG189: N/A | BH189: N/A | BI189: N/A | BJ189: N/A | BK189: N/A | BL189: N/A | BM189: N/A | BN189: N/A | BO189: N/A | BP189: N/A | BQ189: N/A | BR189: N/A | BS189: N/A | BT189: N/A | BU189: N/A | BV189: N/A | BW189: N/A | BX189: N/A | BY189: N/A | BZ189: N/A | CA189: N/A | CB189: N/A | CC189: N/A | CD189: N/A | CE189: N/A | CF189: N/A | CG189: N/A | CH189: N/A | CI189: N/A | CJ189: N/A | CK189: N/A | CL189: N/A | CO189: 1963-06-01 | CP189: 1.32406 | CW189: 1970-06-01 | CX189: 9.677929771 | CY189: 5.904617714 | DC189: 5.904617714 | DI189: 1960Q2 | DJ189: 1960 | DK189: Q2 | DL189: 6 | DM189: 1960-06-30 | DN189: 44.954796 | DO189: 0.4378264579
A190: Kennedy | B190: Macmillan | C190: Holyoake | G190: 1.46765 | H190: 3.257575758 | I190: 3.267411685 | J190: World Pop 3.1b Cuban Missile Crisis (Aug-Nov) | K190: 1962-09-27 | L190: N/A | M190: N/A | N190: N/A | O190: 3.02 | P190: N/A | Q190: 3.37 | R190: 3.67 | S190: N/A | T190: 3.95 | U190: 4 | V190: N/A | W190: N/A | X190: N/A | Y190: N/A | Z190: N/A | AA190: N/A | AB190: N/A | AC190: N/A | AD190: N/A | AE190: N/A | AF190: N/A | AG190: N/A | AH190: N/A | AI190: N/A | AJ190: N/A | AK190: N/A | AL190: N/A | AM190: N/A | AN190: N/A | AO190: N/A | AP190: N/A | AQ190: N/A | AR190: N/A | AS190: N/A | AT190: N/A | AU190: N/A | AV190: N/A | AW190: N/A | AX190: N/A | AY190: N/A | AZ190: N/A | BA190: N/A | BB190: N/A | BC190: N/A | BD190: N/A | BE190: N/A | BF190: N/A | BG190: N/A | BH190: N/A | BI190: N/A | BJ190: N/A | BK190: N/A | BL190: N/A | BM190: N/A | BN190: N/A | BO190: N/A | BP190: N/A | BQ190: N/A | BR190: N/A | BS190: N/A | BT190: N/A | BU190: N/A | BV190: N/A | BW190: N/A | BX190: N/A | BY190: N/A | BZ190: N/A | CA190: N/A | CB190: N/A | CC190: N/A | CD190: N/A | CE190: N/A | CF190: N/A | CG190: N/A | CH190: N/A | CI190: N/A | CJ190: N/A | CK190: N/A | CL190: N/A | CO190: 1963-07-01 | CP190: 1.55526 | CW190: 1970-07-01 | CX190: 9.747107253 | CY190: 6.661619985 | DC190: 6.661619985 | DI190: 1960Q3 | DJ190: 1960 | DK190: Q3 | DL190: 9 | DM190: 1960-09-30 | DN190: 45.34673 | DO190: 0.2599650889
A191: Kennedy | B191: Macmillan | C191: Holyoake | G191: 1.46765 | H191: 3.257575758 | I191: 3.267411685 | J191: World Pop 3.1b Cuban Missile Crisis (Aug-Nov) | K191: 1962-09-28 | L191: N/A | M191: N/A | N191: N/A | O191: 3.02 | P191: N/A | Q191: 3.35 | R191: 3.66 | S191: N/A | T191: 3.94 | U191: 4 | V191: N/A | W191: N/A | X191: N/A | Y191: N/A | Z191: N/A | AA191: N/A | AB191: N/A | AC191: N/A | AD191: N/A | AE191: N/A | AF191: N/A | AG191: N/A | AH191: N/A | AI191: N/A | AJ191: N/A | AK191: N/A | AL191: N/A | AM191: N/A | AN191: N/A | AO191: N/A | AP191: N/A | AQ191: N/A | AR191: N/A | AS191: N/A | AT191: N/A | AU191: N/A | AV191: N/A | AW191: N/A | AX191: N/A | AY191: N/A | AZ191: N/A | BA191: N/A | BB191: N/A | BC191: N/A | BD191: N/A | BE191: N/A | BF191: N/A | BG191: N/A | BH191: N/A | BI191: N/A | BJ191: N/A | BK191: N/A | BL191: N/A | BM191: N/A | BN191: N/A | BO191: N/A | BP191: N/A | BQ191: N/A | BR191: N/A | BS191: N/A | BT191: N/A | BU191: N/A | BV191: N/A | BW191: N/A | BX191: N/A | BY191: N/A | BZ191: N/A | CA191: N/A | CB191: N/A | CC191: N/A | CD191: N/A | CE191: N/A | CF191: N/A | CG191: N/A | CH191: N/A | CI191: N/A | CJ191: N/A | CK191: N/A | CL191: N/A | CO191: 1963-08-01 | CP191: 1.55218 | CW191: 1970-08-01 | CX191: 9.740189505 | CY191: 6.828528073 | DC191: 6.828528073 | DI191: 1960Q4 | DJ191: 1960 | DK191: Q4 | DL191: 12 | DM191: 1960-12-31 | DN191: 45.777857 | DO191: 1.565218128
A192: Kennedy | B192: Macmillan | C192: Holyoake | G192: 1.33422 | H192: 2.97752809 | I192: 2.455546676 | J192: World Pop 3.1b Cuban Missile Crisis (Aug-Nov) | K192: 1962-10-01 | L192: N/A | M192: N/A | N192: N/A | O192: 3 | P192: N/A | Q192: 3.33 | R192: 3.64 | S192: N/A | T192: 3.93 | U192: 4 | V192: N/A | W192: N/A | X192: N/A | Y192: N/A | Z192: N/A | AA192: N/A | AB192: N/A | AC192: N/A | AD192: N/A | AE192: N/A | AF192: N/A | AG192: N/A | AH192: N/A | AI192: N/A | AJ192: N/A | AK192: N/A | AL192: N/A | AM192: N/A | AN192: N/A | AO192: N/A | AP192: N/A | AQ192: N/A | AR192: N/A | AS192: N/A | AT192: N/A | AU192: N/A | AV192: N/A | AW192: N/A | AX192: N/A | AY192: N/A | AZ192: N/A | BA192: N/A | BB192: N/A | BC192: N/A | BD192: N/A | BE192: N/A | BF192: N/A | BG192: N/A | BH192: N/A | BI192: N/A | BJ192: N/A | BK192: N/A | BL192: N/A | BM192: N/A | BN192: N/A | BO192: N/A | BP192: N/A | BQ192: N/A | BR192: N/A | BS192: N/A | BT192: N/A | BU192: N/A | BV192: N/A | BW192: N/A | BX192: N/A | BY192: N/A | BZ192: N/A | CA192: N/A | CB192: N/A | CC192: N/A | CD192: N/A | CE192: N/A | CF192: N/A | CG192: N/A | CH192: N/A | CI192: N/A | CJ192: N/A | CK192: N/A | CL192: N/A | CO192: 1963-09-01 | CP192: 0.98619 | CW192: 1970-09-01 | CX192: 9.788613743 | CY192: 7.034795764 | DC192: 7.034795764 | DI192: 1961Q1 | DJ192: 1961 | DK192: Q1 | DL192: 3 | DM192: 1961-03-31 | DN192: 45.58189 | DO192: 1.572053147
A193: Kennedy | B193: Macmillan | C193: Holyoake | G193: 1.33422 | H193: 2.97752809 | I193: 2.455546676 | J193: World Pop 3.1b Cuban Missile Crisis (Aug-Nov) | K193: 1962-10-02 | L193: N/A | M193: N/A | N193: N/A | O193: 2.99 | P193: N/A | Q193: 3.31 | R193: 3.62 | S193: N/A | T193: 3.92 | U193: 4 | V193: N/A | W193: N/A | X193: N/A | Y193: N/A | Z193: N/A | AA193: N/A | AB193: N/A | AC193: N/A | AD193: N/A | AE193: N/A | AF193: N/A | AG193: N/A | AH193: N/A | AI193: N/A | AJ193: N/A | AK193: N/A | AL193: N/A | AM193: N/A | AN193: N/A | AO193: N/A | AP193: N/A | AQ193: N/A | AR193: N/A | AS193: N/A | AT193: N/A | AU193: N/A | AV193: N/A | AW193: N/A | AX193: N/A | AY193: N/A | AZ193: N/A | BA193: N/A | BB193: N/A | BC193: N/A | BD193: N/A | BE193: N/A | BF193: N/A | BG193: N/A | BH193: N/A | BI193: N/A | BJ193: N/A | BK193: N/A | BL193: N/A | BM193: N/A | BN193: N/A | BO193: N/A | BP193: N/A | BQ193: N/A | BR193: N/A | BS193: N/A | BT193: N/A | BU193: N/A | BV193: N/A | BW193: N/A | BX193: N/A | BY193: N/A | BZ193: N/A | CA193: N/A | CB193: N/A | CC193: N/A | CD193: N/A | CE193: N/A | CF193: N/A | CG193: N/A | CH193: N/A | CI193: N/A | CJ193: N/A | CK193: N/A | CL193: N/A | CO193: 1963-10-01 | CP193: 1.21791 | CW193: 1970-10-01 | CX193: 9.892379966 | CY193: 7.357357357 | DC193: 7.357357357 | DI193: 1961Q2 | DJ193: 1961 | DK193: Q2 | DL193: 6 | DM193: 1961-06-30 | DN193: 45.58189 | DO193: 1.394943489
A194: Kennedy | B194: Macmillan | C194: Holyoake | G194: 1.33422 | H194: 2.97752809 | I194: 2.455546676 | J194: World Pop 3.1b Cuban Missile Crisis (Aug-Nov) | K194: 1962-10-03 | L194: N/A | M194: N/A | N194: N/A | O194: 2.98 | P194: N/A | Q194: 3.28 | R194: 3.6 | S194: N/A | T194: 3.9 | U194: 4 | V194: N/A | W194: N/A | X194: N/A | Y194: N/A | Z194: N/A | AA194: N/A | AB194: N/A | AC194: N/A | AD194: N/A | AE194: N/A | AF194: N/A | AG194: N/A | AH194: N/A | AI194: N/A | AJ194: N/A | AK194: N/A | AL194: N/A | AM194: N/A | AN194: N/A | AO194: N/A | AP194: N/A | AQ194: N/A | AR194: N/A | AS194: N/A | AT194: N/A | AU194: N/A | AV194: N/A | AW194: N/A | AX194: N/A | AY194: N/A | AZ194: N/A | BA194: N/A | BB194: N/A | BC194: N/A | BD194: N/A | BE194: N/A | BF194: N/A | BG194: N/A | BH194: N/A | BI194: N/A | BJ194: N/A | BK194: N/A | BL194: N/A | BM194: N/A | BN194: N/A | BO194: N/A | BP194: N/A | BQ194: N/A | BR194: N/A | BS194: N/A | BT194: N/A | BU194: N/A | BV194: N/A | BW194: N/A | BX194: N/A | BY194: N/A | BZ194: N/A | CA194: N/A | CB194: N/A | CC194: N/A | CD194: N/A | CE194: N/A | CF194: N/A | CG194: N/A | CH194: N/A | CI194: N/A | CJ194: N/A | CK194: N/A | CL194: N/A | CO194: 1963-11-01 | CP194: 1.31666 | CW194: 1970-11-01 | CX194: 9.961557448 | CY194: 7.865168539 | DC194: 7.865168539 | DI194: 1961Q3 | DJ194: 1961 | DK194: Q3 | DL194: 9 | DM194: 1961-09-30 | DN194: 46.287371 | DO194: 2.074330387
A195: Kennedy | B195: Macmillan | C195: Holyoake | G195: 1.33422 | H195: 2.97752809 | I195: 2.455546676 | J195: World Pop 3.1b Cuban Missile Crisis (Aug-Nov) | K195: 1962-10-04 | L195: N/A | M195: N/A | N195: N/A | O195: 2.97 | P195: N/A | Q195: 3.28 | R195: 3.6 | S195: N/A | T195: 3.9 | U195: 4 | V195: N/A | W195: N/A | X195: N/A | Y195: N/A | Z195: N/A | AA195: N/A | AB195: N/A | AC195: N/A | AD195: N/A | AE195: N/A | AF195: N/A | AG195: N/A | AH195: N/A | AI195: N/A | AJ195: N/A | AK195: N/A | AL195: N/A | AM195: N/A | AN195: N/A | AO195: N/A | AP195: N/A | AQ195: N/A | AR195: N/A | AS195: N/A | AT195: N/A | AU195: N/A | AV195: N/A | AW195: N/A | AX195: N/A | AY195: N/A | AZ195: N/A | BA195: N/A | BB195: N/A | BC195: N/A | BD195: N/A | BE195: N/A | BF195: N/A | BG195: N/A | BH195: N/A | BI195: N/A | BJ195: N/A | BK195: N/A | BL195: N/A | BM195: N/A | BN195: N/A | BO195: N/A | BP195: N/A | BQ195: N/A | BR195: N/A | BS195: N/A | BT195: N/A | BU195: N/A | BV195: N/A | BW195: N/A | BX195: N/A | BY195: N/A | BZ195: N/A | CA195: N/A | CB195: N/A | CC195: N/A | CD195: N/A | CE195: N/A | CF195: N/A | CG195: N/A | CH195: N/A | CI195: N/A | CJ195: N/A | CK195: N/A | CL195: N/A | CO195: 1963-12-01 | CP195: 1.64582 | CW195: 1970-12-01 | CX195: 10.03073493 | CY195: 7.886904762 | DC195: 7.886904762 | DI195: 1961Q4 | DJ195: 1961 | DK195: Q4 | DL195: 12 | DM195: 1961-12-31 | DN195: 46.757692 | DO195: 2.140412558
A196: Kennedy | B196: Macmillan | C196: Holyoake | G196: =VLOOKUP(K196,$CO$4:$CP$870,2,TRUE) -> 1.33422 | H196: =VLOOKUP(K196,$CW$4:$DC$831,7,TRUE) -> 2.97752809 | I196: =VLOOKUP(K196,$DM$5:$DO$832,3,TRUE) -> 2.455546676 | J196: World Pop 3.1b Cuban Missile Crisis (Aug-Nov) | K196: 1962-10-05 | L196: N/A | M196: N/A | N196: N/A | O196: 2.97 | P196: N/A | Q196: 3.3 | R196: 3.62 | S196: N/A | T196: 3.92 | U196: 4 | V196: N/A | W196: N/A | X196: N/A | Y196: N/A | Z196: N/A | AA196: N/A | AB196: N/A | AC196: N/A | AD196: N/A | AE196: N/A | AF196: N/A | AG196: N/A | AH196: N/A | AI196: N/A | AJ196: N/A | AK196: N/A | AL196: N/A | AM196: N/A | AN196: N/A | AO196: N/A | AP196: N/A | AQ196: N/A | AR196: N/A | AS196: N/A | AT196: N/A | AU196: N/A | AV196: N/A | AW196: N/A | AX196: N/A | AY196: N/A | AZ196: N/A | BA196: N/A | BB196: N/A | BC196: N/A | BD196: N/A | BE196: N/A | BF196: N/A | BG196: N/A | BH196: N/A | BI196: N/A | BJ196: N/A | BK196: N/A | BL196: N/A | BM196: N/A | BN196: N/A | BO196: N/A | BP196: N/A | BQ196: N/A | BR196: N/A | BS196: N/A | BT196: N/A | BU196: N/A | BV196: N/A | BW196: N/A | BX196: N/A | BY196: N/A | BZ196: N/A | CA196: N/A | CB196: N/A | CC196: N/A | CD196: N/A | CE196: N/A | CF196: N/A | CG196: N/A | CH196: N/A | CI196: N/A | CJ196: N/A | CK196: N/A | CL196: N/A | CO196: 1964-01-01 | CP196: 1.64258 | CW196: 1971-01-01 | CX196: 10.1690899 | CY196: 8.487084871 | DC196: 8.487084871 | DI196: 1962Q1 | DJ196: 1962 | DK196: Q1 | DL196: 3 | DM196: 1962-03-31 | DN196: 46.914465 | DO196: 2.923474652
A197: Kennedy | B197: Macmillan | C197: Holyoake | G197: 1.33422 | H197: 2.97752809 | I197: 2.455546676 | J197: World Pop 3.1b Cuban Missile Crisis (Aug-Nov) | K197: 1962-10-08 | L197: N/A | M197: N/A | N197: N/A | O197: 2.99 | P197: N/A | Q197: 3.32 | R197: 3.64 | S197: N/A | T197: 3.93 | U197: 4 | V197: N/A | W197: N/A | X197: N/A | Y197: N/A | Z197: N/A | AA197: N/A | AB197: N/A | AC197: N/A | AD197: N/A | AE197: N/A | AF197: N/A | AG197: N/A | AH197: N/A | AI197: N/A | AJ197: N/A | AK197: N/A | AL197: N/A | AM197: N/A | AN197: N/A | AO197: N/A | AP197: N/A | AQ197: N/A | AR197: N/A | AS197: N/A | AT197: N/A | AU197: N/A | AV197: N/A | AW197: N/A | AX197: N/A | AY197: N/A | AZ197: N/A | BA197: N/A | BB197: N/A | BC197: N/A | BD197: N/A | BE197: N/A | BF197: N/A | BG197: N/A | BH197: N/A | BI197: N/A | BJ197: N/A | BK197: N/A | BL197: N/A | BM197: N/A | BN197: N/A | BO197: N/A | BP197: N/A | BQ197: N/A | BR197: N/A | BS197: N/A | BT197: N/A | BU197: N/A | BV197: N/A | BW197: N/A | BX197: N/A | BY197: N/A | BZ197: N/A | CA197: N/A | CB197: N/A | CC197: N/A | CD197: N/A | CE197: N/A | CF197: N/A | CG197: N/A | CH197: N/A | CI197: N/A | CJ197: N/A | CK197: N/A | CL197: N/A | CO197: 1964-02-01 | CP197: 1.41076 | CW197: 1971-02-01 | CX197: 10.22443188 | CY197: 8.516886931 | DC197: 8.516886931 | DI197: 1962Q2 | DJ197: 1962 | DK197: Q2 | DL197: 6 | DM197: 1962-06-30 | DN197: 47.071238 | DO197: 3.267411685
A198: Kennedy | B198: Macmillan | C198: Holyoake | G198: 1.33422 | H198: 2.97752809 | I198: 2.455546676 | J198: World Pop 3.1b Cuban Missile Crisis (Aug-Nov) | K198: 1962-10-09 | L198: N/A | M198: N/A | N198: N/A | O198: 2.99 | P198: N/A | Q198: 3.33 | R198: 3.64 | S198: N/A | T198: 3.95 | U198: 4 | V198: N/A | W198: N/A | X198: N/A | Y198: N/A | Z198: N/A | AA198: N/A | AB198: N/A | AC198: N/A | AD198: N/A | AE198: N/A | AF198: N/A | AG198: N/A | AH198: N/A | AI198: N/A | AJ198: N/A | AK198: N/A | AL198: N/A | AM198: N/A | AN198: N/A | AO198: N/A | AP198: N/A | AQ198: N/A | AR198: N/A | AS198: N/A | AT198: N/A | AU198: N/A | AV198: N/A | AW198: N/A | AX198: N/A | AY198: N/A | AZ198: N/A | BA198: N/A | BB198: N/A | BC198: N/A | BD198: N/A | BE198: N/A | BF198: N/A | BG198: N/A | BH198: N/A | BI198: N/A | BJ198: N/A | BK198: N/A | BL198: N/A | BM198: N/A | BN198: N/A | BO198: N/A | BP198: N/A | BQ198: N/A | BR198: N/A | BS198: N/A | BT198: N/A | BU198: N/A | BV198: N/A | BW198: N/A | BX198: N/A | BY198: N/A | BZ198: N/A | CA198: N/A | CB198: N/A | CC198: N/A | CD198: N/A | CE198: N/A | CF198: N/A | CG198: N/A | CH198: N/A | CI198: N/A | CJ198: N/A | CK198: N/A | CL198: N/A | CO198: 1964-03-01 | CP198: 1.40937 | CW198: 1971-03-01 | CX198: 10.30744486 | CY198: 8.759124088 | DC198: 8.759124088 | DI198: 1962Q3 | DJ198: =LEFT(DI198,4) -> 1962 | DK198: =RIGHT(DI198,2) -> Q3 | DL198: =IF(DK198="Q1",3,IF(DK198="Q2",6,IF(DK198="Q3",9,12))) -> 9 | DM198: =DATE(DJ198,DL198+1,) -> 1962-09-30 | DN198: 47.423979 | DO198: 2.455546676
